Workbook

Sheet Summary
C1: HARMONIC ANALYSIS REPORT
A2: Project ID #: | I2: Date:
A3: Description: | I3: Phone:
A4: Requested By:
A5: Contact:
A6: Copy:
B7: By:
B8: Title: | C8: Sr. Application Engineer
B9: Email
A11: Thank you for requesting a computer simulated harmonic analysis from ABB. The analysis was performed
A12: based on the information provided to ABB. All values and any assumptions are clearly listed below.
D14: Application (Spc, Gen, Ded) = | H14: General
D15: Local MV to LV transformer kVA = | H15: 2500
D16: Local MV to LV transformer impedance (%Z) = | H16: 5.75
D17: Percent of total loading on the transformer = | H17: 80
D18: PCC Location for %TDD = | H18: Utility
D19: PCC Location for %THD = | H19: T1
A21: Assumptions
A22: Choose From Assumption Dropdown List | D22: =VLOOKUP(A22,assumptions,2,FALSE) -> 
A51: Drive Schedule
A52: VFD # | B52: Tag(s) | C52: HP | D52: Type | E52: VFD # | F52: Tag(s) | G52: HP | H52: Type
A53: 1 | C53: 1 | D53: 6 Pulse w/ 5% impedance | E53: 14
A54: 2 | E54: 15
A55: 3 | E55: 16
A56: 4 | E56: 17
A57: 5 | E57: 18
A58: 6 | E58: 19
A59: 7 | E59: 20
A60: 8 | E60: 21
A61: 9 | E61: 22
A62: 10 | E62: 23
A63: 11 | E63: 24
A64: 12 | E64: 25
A65: 13
A67: =IFERROR(IF(AND(E71<=J71,E72<=J72),'Working Data'!B1,'Working Data'!B2),"") -> ABB is pleased to inform you that the harmonic analysis shows that the system passes IEEE 519, as
A68: =IFERROR(IF(AND(E71<=J71,E72<=J72),'Working Data'!B5,'Working Data'!B3),"Results pending.") -> both the Total Harmonic Distortion and Total Demand Distortion are below IEEE 519 guidelines.
A69: =IFERROR(IF(AND(E72<=J72,E73<=J73),'Working Data'!B6,'Working Data'!B4),"") -> 
A71: The Total Harmonic Distortion (THD) is | E71: ='%Vthd'!P29 -> 4.254808499e-05 | F71: For this system, IEEE 519 allows THD up to | J71: ='%Vthd'!R30 -> 0.05
A72: The Total Demand Distortion (TDD) is | E72: ='%TDD'!P27 -> 0.0001840154763 | F72: For this system, IEEE 519 allows TDD up to | J72: ='%TDD'!R28 -> 0.15
A75: Note that the above information is meant as a reference tool to provide an estimate of harmonics within a system, and that actual harmonics at the facility can vary depending on real time operating characteristics of the system.

Sheet %TDD
C1: Drive Harmonic Calculator | G1: Harmonic Program: US 4.1 | J1: Revision 4.1.0 mam: 2-22-02 | L1: ID # | M1: =Q2 -> 0 | Q1: HARMONIC ANALYSIS REPORT | X1: Harmonic | Y1: Freq. (Hz) | Z1: % Vthd | AA1: % TDD | AB1: %TDD Limit | AC1: % Ithd | AD1: I h (amps) | AE1: LineIndexForHarmonic | AF1: D1 | AG1: D2 | AH1: D3 | AI1: D4 | AJ1: D5 | AK1: D6 | AL1: D7 | AM1: D8 | AN1: D9 | AO1: D10 | AP1: D11 | AQ1: D12 | AR1: D13 | AS1: D14 | AT1: D15 | AU1: D16 | AV1: D17 | AW1: D18 | AX1: D19 | AY1: D20 | AZ1: D21 | BA1: D22 | BB1: D23 | BC1: D24 | BD1: D25 | BM1: 0 | BN1: utility | BO1: t1 | BP1: t2 | BQ1: t3 | BR1: t4 | BS1: t5 | BT1: t6 | BU1: t7 | BV1: t8 | BW1: t9 | BX1: b1 | BY1: b2 | BZ1: b3 | CA1: b4 | CB1: b5 | CC1: b6 | CD1: b7 | CE1: b8 | CF1: b9 | CG1: b10 | CH1: 0 | CI1: 0 | CJ1: 1 | CK1: 2 | CL1: 3 | CM1: 4 | CN1: 5 | CO1: 6 | CP1: 7 | CQ1: 8 | CR1: 9 | CS1: 10 | CT1: 11 | CU1: 12 | CV1: 13 | CW1: 14 | CX1: 15 | CY1: 16 | CZ1: 17 | DA1: 18 | EO1: (h*Ih)^2 | EQ1: Chart Data | ER1: % Vthd | ES1: 0 | ET1: % TDD | EV1: Harmonic | EW1: I(h) | EX1: [I(h) * h]^2 | EY1: [I(h)]^2
A2: Zsource,Isc,Idmd Calculator | F2: Isc/Idmd= | G2: =+U17 -> 191.592869 | H2: Idmd/Idrv = | J2: =+U18 -> 2193.453294 | K2: Isc/Idrv= | L2: =+U19 -> 420250.0576 | M2: Isc@PCC V | N2: %Zs | O2: Project ID #: | Q2: =Summary!C2 -> 0 | T2: DATE: | U2: =Summary!J2 -> 00:00:00 | X2: 1 | Y2: =+X2*$J$9 -> 60 | Z2: 100 | AA2: =100*U23/U15 -> 0.04557840902 | AC2: 100 | AD2: =+U23 -> 0.03987193735 | AF2: 100 | AG2: 100 | AH2: 100 | AI2: 100 | AJ2: 100 | AK2: 100 | AL2: 100 | AM2: 100 | AN2: 100 | AO2: 100 | AP2: 100 | AQ2: 100 | AR2: 100 | AS2: 100 | AT2: 100 | AU2: 100 | AV2: 100 | AW2: 100 | AX2: 100 | AY2: 100 | AZ2: 100 | BA2: 100 | BB2: 100 | BC2: 100 | BD2: 100 | BN2: 100 | BO2: 100 | BP2: 100 | BQ2: 100 | BR2: 100 | BS2: 100 | BT2: 100 | BU2: 100 | BV2: 100 | BW2: 100 | BX2: 100 | BY2: 100 | BZ2: 100 | CA2: 100 | CB2: 100 | CC2: 100 | CD2: 100 | CE2: 100 | CF2: 100 | CG2: 100 | CH2: 1 | CI2: 6 pulse data | EM2: =+X2 -> 1 | EN2: =+AA2 -> 0.04557840902 | EO2: =+(EM2*EN2)^2 -> 0.002077391369 | EP2: =+X2 -> 1 | EQ2: 1 | ER2: 0 | ES2: 1 | ET2: 0 | EV2: =X2 -> 1 | EW2: =U15 -> 87.47987963 | EX2: =(EW2*EV2)^2 -> 7652.72934 | EY2: =EW2^2 -> 7652.72934
A3: Detailed Inputs are in green | E3: Primary Impedance: R = | H3: Primary MVA SC = | J3: 400 | K3: Pri Isc = | L3: =+M3*K7/G6 -> 17495.97593 | M3: =+IF(J3=0,1000000000000000,J3*1000000/1.732/K7) -> 17495.97593 | N3: =100*U16/M3 -> 0.0002278939024 | O3: Description: | Q3: =Summary!C3 -> 0 | X3: =+X2+1 -> 2 | Y3: 120 | Z3: =$X3/130*(BJ$80*HLOOKUP($BK$80,$BM$1:$CG$51,$X3+1,0)+BJ$81*HLOOKUP($BK$81,$BM$1:$CG$51,$X3+1,0)+BJ$82*HLOOKUP($BK$82,$BM$1:$CG$51,$X3+1,0)+BJ$83*HLOOKUP($BK$83,$BM$1:$CG$51,$X3+1,0)+BJ$84*HLOOKUP($BK$84,$BM$1:$CG$51,$X3+1,0)+BJ$85*HLOOKUP($BK$85,$BM$1:$CG$51,$X3+1,0)+BJ$86*HLOOKUP($BK$86,$BM$1:$CG$51,$X3+1,0)+BJ$87*HLOOKUP($BK$87,$BM$1:$CG$51,$X3+1,0)+BJ$88*HLOOKUP($BK$88,$BM$1:$CG$51,$X3+1,0)+BJ$89*HLOOKUP($BK$89,$BM$1:$CG$51,$X3+1,0)+BJ$90*HLOOKUP($BK$90,$BM$1:$CG$51,$X3+1,0)+BJ$91*HLOOKUP($BK$91,$BM$1:$CG$51,$X3+1,0)+BJ$92*HLOOKUP($BK$92,$BM$1:$CG$51,$X3+1,0)+BJ$93*HLOOKUP($BK$93,$BM$1:$CG$51,$X3+1,0)+BJ$94*HLOOKUP($BK$94,$BM$1:$CG$51,$X3+1,0)+BJ$95*HLOOKUP($BK$95,$BM$1:$CG$51,$X3+1,0)+BJ$96*HLOOKUP($BK$96,$BM$1:$CG$51,$X3+1,0)+BJ$97*HLOOKUP($BK$97,$BM$1:$CG$51,$X3+1,0)+BJ$98*HLOOKUP($BK$98,$BM$1:$CG$51,$X3+1,0)+BJ$99*HLOOKUP($BK$99,$BM$1:$CG$51,$X3+1,0)+BJ$100*HLOOKUP($BK$100,$BM$1:$CG$51,$X3+1,0))+BK163 -> 3.778380708e-08 | AA3: =1/$N$8/$U$18*(AF$103*AF$56*(AF3+AF163)+AG$103*AG$56*(AG3+AG163)+AH$103*AH$56*(AH3+AH163)+AI$103*AI$56*(AI3+AI163)+AJ$103*AJ$56*(AJ3+AJ163)+AK$103*AK$56*(AK3+AK163)+AL$103*AL$56*(AL3+AL163)+AM$103*AM$56*(AM3+AM163)+AN$103*AN$56*(AN3+AN163)+AO$103*AO$56*(AO3+AO163)+AP$103*AP$56*(AP3+AP163)+AQ$103*AQ$56*(AQ3+AQ163)+AR$103*AR$56*(AR3+AR163)+AS$103*AS$56*(AS3+AS163)+AT$103*AT$56*(AT3+AT163)+AU$103*AU$56*(AU3+AU163)+AV$103*AV$56*(AV3+AV163)+AW$103*AW$56*(AW3+AW163)+AX$103*AX$56*(AX3+AX163)+AY$103*AY$56*(AY3+AY163)+AZ$103*AZ$56*(AZ3+AZ163)+BA$103*BA$56*(BA3+BA163)+BB$103*BB$56*(BB3+BB163)+BC$103*BC$56*(BC3+BC163)+BD$103*BD$56*(BD3+BD163)) -> 4.913126828e-06 | AB3: =0.25*HLOOKUP($U$17,$Q$53:$Y$60,4,1) -> 3 | AC3: =+AA3*U$15/U$23 -> 0.01077950489 | AD3: =+AC3*AD$2/100 -> 4.297997435e-06 | AE3: 11 | AF3: =(HLOOKUP(AF$69,$CI$3:$DA$750,$AE3+52*(AF$75-1),1)-AF$74*(HLOOKUP(AF$73,$CI$1:$DA$750,$AE3+2+52*(AF$75-1),0)-HLOOKUP(AF$73+1,$CI$1:$DA$750,$AE3+2+52*(AF$75-1),0)))*AF$65 -> 0.01079826765 | AG3: =(HLOOKUP(AG$69,$CI$3:$DA$750,$AE3+52*(AG$75-1),1)-AG$74*(HLOOKUP(AG$73,$CI$1:$DA$750,$AE3+2+52*(AG$75-1),0)-HLOOKUP(AG$73+1,$CI$1:$DA$750,$AE3+2+52*(AG$75-1),0)))*AG$65 -> 0 | AH3: 0 | AI3: 0 | AJ3: 0 | AK3: 0 | AL3: 0 | AM3: 0 | AN3: 0 | AO3: 0 | AP3: 0 | AQ3: 0 | AR3: 0 | AS3: 0 | AT3: 0 | AU3: 0 | AV3: 0 | AW3: =(HLOOKUP(AW$69,$CI$3:$DA$750,$AE3+52*(AW$75-1),1)-AW$74*(HLOOKUP(AW$73,$CI$1:$DA$750,$AE3+2+52*(AW$75-1),0)-HLOOKUP(AW$73+1,$CI$1:$DA$750,$AE3+2+52*(AW$75-1),0)))*AW$65 -> 0 | AX3: 0 | AY3: 0 | AZ3: 0 | BA3: 0 | BB3: 0 | BC3: 0 | BD3: 0 | BN3: =($AF3*$AF$63*$AF$107+$AG3*$AG$63*$AG$107+$AH3*$AH$63*$AH$107+$AI3*$AI$63*$AI$107+$AJ3*$AJ$63*$AJ$107+$AK3*$AK$63*$AK$107+$AL3*$AL$63*$AL$107+$AM3*$AM$63*$AM$107+$AN3*$AN$63*$AN$107+$AO3*$AO$63*$AO$107+$AP3*$AP$63*$AP$107+$AQ3*$AQ$63*$AQ$107+$AR3*$AR$63*$AR$107+$AS3*$AS$63*$AS$107+$AT3*$AT$63*$AT$107+$AU3*$AU$63*$AU$107+$AV3*$AV$63*$AV$107+$AW3*$AW$63*$AW$107+$AX3*$AX$63*$AX$107+$AY3*$AY$63*$AY$107+$AZ3*$AZ$63*$AZ$107+$BA3*$BA$63*$BA$107+$BB3*$BB$63*$BB$107+$BC3*$BC$63*$BC$107+$BD3*$BD$63*$BD$107)/BN$63 -> 0.01077671423 | BO3: =($AF3*$AF$63*$AF$108+$AG3*$AG$63*$AG$108+$AH3*$AH$63*$AH$108+$AI3*$AI$63*$AI$108+$AJ3*$AJ$63*$AJ$108+$AK3*$AK$63*$AK$108+$AL3*$AL$63*$AL$108+$AM3*$AM$63*$AM$108+$AN3*$AN$63*$AN$108+$AO3*$AO$63*$AO$108+$AP3*$AP$63*$AP$108+$AQ3*$AQ$63*$AQ$108+$AR3*$AR$63*$AR$108+$AS3*$AS$63*$AS$108+$AT3*$AT$63*$AT$108+$AU3*$AU$63*$AU$108+$AV3*$AV$63*$AV$108+$AW3*$AW$63*$AW$108+$AX3*$AX$63*$AX$108+$AY3*$AY$63*$AY$108+$AZ3*$AZ$63*$AZ$108+$BA3*$BA$63*$BA$108+$BB3*$BB$63*$BB$108+$BC3*$BC$63*$BC$108+$BD3*$BD$63*$BD$108)/BO$63 -> 0.01078748017 | BP3: =($AF3*$AF$63*$AF$109+$AG3*$AG$63*$AG$109+$AH3*$AH$63*$AH$109+$AI3*$AI$63*$AI$109+$AJ3*$AJ$63*$AJ$109+$AK3*$AK$63*$AK$109+$AL3*$AL$63*$AL$109+$AM3*$AM$63*$AM$109+$AN3*$AN$63*$AN$109+$AO3*$AO$63*$AO$109+$AP3*$AP$63*$AP$109+$AQ3*$AQ$63*$AQ$109+$AR3*$AR$63*$AR$109+$AS3*$AS$63*$AS$109+$AT3*$AT$63*$AT$109+$AU3*$AU$63*$AU$109+$AV3*$AV$63*$AV$109+$AW3*$AW$63*$AW$109+$AX3*$AX$63*$AX$109+$AY3*$AY$63*$AY$109+$AZ3*$AZ$63*$AZ$109+$BA3*$BA$63*$BA$109+$BB3*$BB$63*$BB$109+$BC3*$BC$63*$BC$109+$BD3*$BD$63*$BD$109)/BP$63 -> 0 | BQ3: =($AF3*$AF$63*$AF$110+$AG3*$AG$63*$AG$110+$AH3*$AH$63*$AH$110+$AI3*$AI$63*$AI$110+$AJ3*$AJ$63*$AJ$110+$AK3*$AK$63*$AK$110+$AL3*$AL$63*$AL$110+$AM3*$AM$63*$AM$110+$AN3*$AN$63*$AN$110+$AO3*$AO$63*$AO$110+$AP3*$AP$63*$AP$110+$AQ3*$AQ$63*$AQ$110+$AR3*$AR$63*$AR$110+$AS3*$AS$63*$AS$110+$AT3*$AT$63*$AT$110+$AU3*$AU$63*$AU$110+$AV3*$AV$63*$AV$110+$AW3*$AW$63*$AW$110+$AX3*$AX$63*$AX$110+$AY3*$AY$63*$AY$110+$AZ3*$AZ$63*$AZ$110+$BA3*$BA$63*$BA$110+$BB3*$BB$63*$BB$110+$BC3*$BC$63*$BC$110+$BD3*$BD$63*$BD$110)/BQ$63 -> 0 | BR3: =($AF3*$AF$63*$AF$111+$AG3*$AG$63*$AG$111+$AH3*$AH$63*$AH$111+$AI3*$AI$63*$AI$111+$AJ3*$AJ$63*$AJ$111+$AK3*$AK$63*$AK$111+$AL3*$AL$63*$AL$111+$AM3*$AM$63*$AM$111+$AN3*$AN$63*$AN$111+$AO3*$AO$63*$AO$111+$AP3*$AP$63*$AP$111+$AQ3*$AQ$63*$AQ$111+$AR3*$AR$63*$AR$111+$AS3*$AS$63*$AS$111+$AT3*$AT$63*$AT$111+$AU3*$AU$63*$AU$111+$AV3*$AV$63*$AV$111+$AW3*$AW$63*$AW$111+$AX3*$AX$63*$AX$111+$AY3*$AY$63*$AY$111+$AZ3*$AZ$63*$AZ$111+$BA3*$BA$63*$BA$111+$BB3*$BB$63*$BB$111+$BC3*$BC$63*$BC$111+$BD3*$BD$63*$BD$111)/BR$63 -> 0 | BS3: =($AF3*$AF$63*$AF$112+$AG3*$AG$63*$AG$112+$AH3*$AH$63*$AH$112+$AI3*$AI$63*$AI$112+$AJ3*$AJ$63*$AJ$112+$AK3*$AK$63*$AK$112+$AL3*$AL$63*$AL$112+$AM3*$AM$63*$AM$112+$AN3*$AN$63*$AN$112+$AO3*$AO$63*$AO$112+$AP3*$AP$63*$AP$112+$AQ3*$AQ$63*$AQ$112+$AR3*$AR$63*$AR$112+$AS3*$AS$63*$AS$112+$AT3*$AT$63*$AT$112+$AU3*$AU$63*$AU$112+$AV3*$AV$63*$AV$112+$AW3*$AW$63*$AW$112+$AX3*$AX$63*$AX$112+$AY3*$AY$63*$AY$112+$AZ3*$AZ$63*$AZ$112+$BA3*$BA$63*$BA$112+$BB3*$BB$63*$BB$112+$BC3*$BC$63*$BC$112+$BD3*$BD$63*$BD$112)/BS$63 -> 0 | BT3: =($AF3*$AF$63*$AF$113+$AG3*$AG$63*$AG$113+$AH3*$AH$63*$AH$113+$AI3*$AI$63*$AI$113+$AJ3*$AJ$63*$AJ$113+$AK3*$AK$63*$AK$113+$AL3*$AL$63*$AL$113+$AM3*$AM$63*$AM$113+$AN3*$AN$63*$AN$113+$AO3*$AO$63*$AO$113+$AP3*$AP$63*$AP$113+$AQ3*$AQ$63*$AQ$113+$AR3*$AR$63*$AR$113+$AS3*$AS$63*$AS$113+$AT3*$AT$63*$AT$113+$AU3*$AU$63*$AU$113+$AV3*$AV$63*$AV$113+$AW3*$AW$63*$AW$113+$AX3*$AX$63*$AX$113+$AY3*$AY$63*$AY$113+$AZ3*$AZ$63*$AZ$113+$BA3*$BA$63*$BA$113+$BB3*$BB$63*$BB$113+$BC3*$BC$63*$BC$113+$BD3*$BD$63*$BD$113)/BT$63 -> 0 | BU3: =($AF3*$AF$63*$AF$114+$AG3*$AG$63*$AG$114+$AH3*$AH$63*$AH$114+$AI3*$AI$63*$AI$114+$AJ3*$AJ$63*$AJ$114+$AK3*$AK$63*$AK$114+$AL3*$AL$63*$AL$114+$AM3*$AM$63*$AM$114+$AN3*$AN$63*$AN$114+$AO3*$AO$63*$AO$114+$AP3*$AP$63*$AP$114+$AQ3*$AQ$63*$AQ$114+$AR3*$AR$63*$AR$114+$AS3*$AS$63*$AS$114+$AT3*$AT$63*$AT$114+$AU3*$AU$63*$AU$114+$AV3*$AV$63*$AV$114+$AW3*$AW$63*$AW$114+$AX3*$AX$63*$AX$114+$AY3*$AY$63*$AY$114+$AZ3*$AZ$63*$AZ$114+$BA3*$BA$63*$BA$114+$BB3*$BB$63*$BB$114+$BC3*$BC$63*$BC$114+$BD3*$BD$63*$BD$114)/BU$63 -> 0 | BV3: =($AF3*$AF$63*$AF$115+$AG3*$AG$63*$AG$115+$AH3*$AH$63*$AH$115+$AI3*$AI$63*$AI$115+$AJ3*$AJ$63*$AJ$115+$AK3*$AK$63*$AK$115+$AL3*$AL$63*$AL$115+$AM3*$AM$63*$AM$115+$AN3*$AN$63*$AN$115+$AO3*$AO$63*$AO$115+$AP3*$AP$63*$AP$115+$AQ3*$AQ$63*$AQ$115+$AR3*$AR$63*$AR$115+$AS3*$AS$63*$AS$115+$AT3*$AT$63*$AT$115+$AU3*$AU$63*$AU$115+$AV3*$AV$63*$AV$115+$AW3*$AW$63*$AW$115+$AX3*$AX$63*$AX$115+$AY3*$AY$63*$AY$115+$AZ3*$AZ$63*$AZ$115+$BA3*$BA$63*$BA$115+$BB3*$BB$63*$BB$115+$BC3*$BC$63*$BC$115+$BD3*$BD$63*$BD$115)/BV$63 -> 0 | BW3: =($AF3*$AF$63*$AF$116+$AG3*$AG$63*$AG$116+$AH3*$AH$63*$AH$116+$AI3*$AI$63*$AI$116+$AJ3*$AJ$63*$AJ$116+$AK3*$AK$63*$AK$116+$AL3*$AL$63*$AL$116+$AM3*$AM$63*$AM$116+$AN3*$AN$63*$AN$116+$AO3*$AO$63*$AO$116+$AP3*$AP$63*$AP$116+$AQ3*$AQ$63*$AQ$116+$AR3*$AR$63*$AR$116+$AS3*$AS$63*$AS$116+$AT3*$AT$63*$AT$116+$AU3*$AU$63*$AU$116+$AV3*$AV$63*$AV$116+$AW3*$AW$63*$AW$116+$AX3*$AX$63*$AX$116+$AY3*$AY$63*$AY$116+$AZ3*$AZ$63*$AZ$116+$BA3*$BA$63*$BA$116+$BB3*$BB$63*$BB$116+$BC3*$BC$63*$BC$116+$BD3*$BD$63*$BD$116)/BW$63 -> 0 | BX3: =($AF3*$AF$63*$AF$117+$AG3*$AG$63*$AG$117+$AH3*$AH$63*$AH$117+$AI3*$AI$63*$AI$117+$AJ3*$AJ$63*$AJ$117+$AK3*$AK$63*$AK$117+$AL3*$AL$63*$AL$117+$AM3*$AM$63*$AM$117+$AN3*$AN$63*$AN$117+$AO3*$AO$63*$AO$117+$AP3*$AP$63*$AP$117+$AQ3*$AQ$63*$AQ$117+$AR3*$AR$63*$AR$117+$AS3*$AS$63*$AS$117+$AT3*$AT$63*$AT$117+$AU3*$AU$63*$AU$117+$AV3*$AV$63*$AV$117+$AW3*$AW$63*$AW$117+$AX3*$AX$63*$AX$117+$AY3*$AY$63*$AY$117+$AZ3*$AZ$63*$AZ$117+$BA3*$BA$63*$BA$117+$BB3*$BB$63*$BB$117+$BC3*$BC$63*$BC$117+$BD3*$BD$63*$BD$117)/BX$63 -> 0 | BY3: =($AF3*$AF$63*$AF$118+$AG3*$AG$63*$AG$118+$AH3*$AH$63*$AH$118+$AI3*$AI$63*$AI$118+$AJ3*$AJ$63*$AJ$118+$AK3*$AK$63*$AK$118+$AL3*$AL$63*$AL$118+$AM3*$AM$63*$AM$118+$AN3*$AN$63*$AN$118+$AO3*$AO$63*$AO$118+$AP3*$AP$63*$AP$118+$AQ3*$AQ$63*$AQ$118+$AR3*$AR$63*$AR$118+$AS3*$AS$63*$AS$118+$AT3*$AT$63*$AT$118+$AU3*$AU$63*$AU$118+$AV3*$AV$63*$AV$118+$AW3*$AW$63*$AW$118+$AX3*$AX$63*$AX$118+$AY3*$AY$63*$AY$118+$AZ3*$AZ$63*$AZ$118+$BA3*$BA$63*$BA$118+$BB3*$BB$63*$BB$118+$BC3*$BC$63*$BC$118+$BD3*$BD$63*$BD$118)/BY$63 -> 0 | BZ3: =($AF3*$AF$63*$AF$119+$AG3*$AG$63*$AG$119+$AH3*$AH$63*$AH$119+$AI3*$AI$63*$AI$119+$AJ3*$AJ$63*$AJ$119+$AK3*$AK$63*$AK$119+$AL3*$AL$63*$AL$119+$AM3*$AM$63*$AM$119+$AN3*$AN$63*$AN$119+$AO3*$AO$63*$AO$119+$AP3*$AP$63*$AP$119+$AQ3*$AQ$63*$AQ$119+$AR3*$AR$63*$AR$119+$AS3*$AS$63*$AS$119+$AT3*$AT$63*$AT$119+$AU3*$AU$63*$AU$119+$AV3*$AV$63*$AV$119+$AW3*$AW$63*$AW$119+$AX3*$AX$63*$AX$119+$AY3*$AY$63*$AY$119+$AZ3*$AZ$63*$AZ$119+$BA3*$BA$63*$BA$119+$BB3*$BB$63*$BB$119+$BC3*$BC$63*$BC$119+$BD3*$BD$63*$BD$119)/BZ$63 -> 0 | CA3: =($AF3*$AF$63*$AF$120+$AG3*$AG$63*$AG$120+$AH3*$AH$63*$AH$120+$AI3*$AI$63*$AI$120+$AJ3*$AJ$63*$AJ$120+$AK3*$AK$63*$AK$120+$AL3*$AL$63*$AL$120+$AM3*$AM$63*$AM$120+$AN3*$AN$63*$AN$120+$AO3*$AO$63*$AO$120+$AP3*$AP$63*$AP$120+$AQ3*$AQ$63*$AQ$120+$AR3*$AR$63*$AR$120+$AS3*$AS$63*$AS$120+$AT3*$AT$63*$AT$120+$AU3*$AU$63*$AU$120+$AV3*$AV$63*$AV$120+$AW3*$AW$63*$AW$120+$AX3*$AX$63*$AX$120+$AY3*$AY$63*$AY$120+$AZ3*$AZ$63*$AZ$120+$BA3*$BA$63*$BA$120+$BB3*$BB$63*$BB$120+$BC3*$BC$63*$BC$120+$BD3*$BD$63*$BD$120)/CA$63 -> 0 | CB3: =($AF3*$AF$63*$AF$121+$AG3*$AG$63*$AG$121+$AH3*$AH$63*$AH$121+$AI3*$AI$63*$AI$121+$AJ3*$AJ$63*$AJ$121+$AK3*$AK$63*$AK$121+$AL3*$AL$63*$AL$121+$AM3*$AM$63*$AM$121+$AN3*$AN$63*$AN$121+$AO3*$AO$63*$AO$121+$AP3*$AP$63*$AP$121+$AQ3*$AQ$63*$AQ$121+$AR3*$AR$63*$AR$121+$AS3*$AS$63*$AS$121+$AT3*$AT$63*$AT$121+$AU3*$AU$63*$AU$121+$AV3*$AV$63*$AV$121+$AW3*$AW$63*$AW$121+$AX3*$AX$63*$AX$121+$AY3*$AY$63*$AY$121+$AZ3*$AZ$63*$AZ$121+$BA3*$BA$63*$BA$121+$BB3*$BB$63*$BB$121+$BC3*$BC$63*$BC$121+$BD3*$BD$63*$BD$121)/CB$63 -> 0 | CC3: =($AF3*$AF$63*$AF$122+$AG3*$AG$63*$AG$122+$AH3*$AH$63*$AH$122+$AI3*$AI$63*$AI$122+$AJ3*$AJ$63*$AJ$122+$AK3*$AK$63*$AK$122+$AL3*$AL$63*$AL$122+$AM3*$AM$63*$AM$122+$AN3*$AN$63*$AN$122+$AO3*$AO$63*$AO$122+$AP3*$AP$63*$AP$122+$AQ3*$AQ$63*$AQ$122+$AR3*$AR$63*$AR$122+$AS3*$AS$63*$AS$122+$AT3*$AT$63*$AT$122+$AU3*$AU$63*$AU$122+$AV3*$AV$63*$AV$122+$AW3*$AW$63*$AW$122+$AX3*$AX$63*$AX$122+$AY3*$AY$63*$AY$122+$AZ3*$AZ$63*$AZ$122+$BA3*$BA$63*$BA$122+$BB3*$BB$63*$BB$122+$BC3*$BC$63*$BC$122+$BD3*$BD$63*$BD$122)/CC$63 -> 0 | CD3: =($AF3*$AF$63*$AF$123+$AG3*$AG$63*$AG$123+$AH3*$AH$63*$AH$123+$AI3*$AI$63*$AI$123+$AJ3*$AJ$63*$AJ$123+$AK3*$AK$63*$AK$123+$AL3*$AL$63*$AL$123+$AM3*$AM$63*$AM$123+$AN3*$AN$63*$AN$123+$AO3*$AO$63*$AO$123+$AP3*$AP$63*$AP$123+$AQ3*$AQ$63*$AQ$123+$AR3*$AR$63*$AR$123+$AS3*$AS$63*$AS$123+$AT3*$AT$63*$AT$123+$AU3*$AU$63*$AU$123+$AV3*$AV$63*$AV$123+$AW3*$AW$63*$AW$123+$AX3*$AX$63*$AX$123+$AY3*$AY$63*$AY$123+$AZ3*$AZ$63*$AZ$123+$BA3*$BA$63*$BA$123+$BB3*$BB$63*$BB$123+$BC3*$BC$63*$BC$123+$BD3*$BD$63*$BD$123)/CD$63 -> 0 | CE3: =($AF3*$AF$63*$AF$124+$AG3*$AG$63*$AG$124+$AH3*$AH$63*$AH$124+$AI3*$AI$63*$AI$124+$AJ3*$AJ$63*$AJ$124+$AK3*$AK$63*$AK$124+$AL3*$AL$63*$AL$124+$AM3*$AM$63*$AM$124+$AN3*$AN$63*$AN$124+$AO3*$AO$63*$AO$124+$AP3*$AP$63*$AP$124+$AQ3*$AQ$63*$AQ$124+$AR3*$AR$63*$AR$124+$AS3*$AS$63*$AS$124+$AT3*$AT$63*$AT$124+$AU3*$AU$63*$AU$124+$AV3*$AV$63*$AV$124+$AW3*$AW$63*$AW$124+$AX3*$AX$63*$AX$124+$AY3*$AY$63*$AY$124+$AZ3*$AZ$63*$AZ$124+$BA3*$BA$63*$BA$124+$BB3*$BB$63*$BB$124+$BC3*$BC$63*$BC$124+$BD3*$BD$63*$BD$124)/CE$63 -> 0 | CF3: =($AF3*$AF$63*$AF$125+$AG3*$AG$63*$AG$125+$AH3*$AH$63*$AH$125+$AI3*$AI$63*$AI$125+$AJ3*$AJ$63*$AJ$125+$AK3*$AK$63*$AK$125+$AL3*$AL$63*$AL$125+$AM3*$AM$63*$AM$125+$AN3*$AN$63*$AN$125+$AO3*$AO$63*$AO$125+$AP3*$AP$63*$AP$125+$AQ3*$AQ$63*$AQ$125+$AR3*$AR$63*$AR$125+$AS3*$AS$63*$AS$125+$AT3*$AT$63*$AT$125+$AU3*$AU$63*$AU$125+$AV3*$AV$63*$AV$125+$AW3*$AW$63*$AW$125+$AX3*$AX$63*$AX$125+$AY3*$AY$63*$AY$125+$AZ3*$AZ$63*$AZ$125+$BA3*$BA$63*$BA$125+$BB3*$BB$63*$BB$125+$BC3*$BC$63*$BC$125+$BD3*$BD$63*$BD$125)/CF$63 -> 0 | CG3: =($AF3*$AF$63*$AF$126+$AG3*$AG$63*$AG$126+$AH3*$AH$63*$AH$126+$AI3*$AI$63*$AI$126+$AJ3*$AJ$63*$AJ$126+$AK3*$AK$63*$AK$126+$AL3*$AL$63*$AL$126+$AM3*$AM$63*$AM$126+$AN3*$AN$63*$AN$126+$AO3*$AO$63*$AO$126+$AP3*$AP$63*$AP$126+$AQ3*$AQ$63*$AQ$126+$AR3*$AR$63*$AR$126+$AS3*$AS$63*$AS$126+$AT3*$AT$63*$AT$126+$AU3*$AU$63*$AU$126+$AV3*$AV$63*$AV$126+$AW3*$AW$63*$AW$126+$AX3*$AX$63*$AX$126+$AY3*$AY$63*$AY$126+$AZ3*$AZ$63*$AZ$126+$BA3*$BA$63*$BA$126+$BB3*$BB$63*$BB$126+$BC3*$BC$63*$BC$126+$BD3*$BD$63*$BD$126)/CG$63 -> 0 | CI3: %Zloop | CJ3: 0.1 | CK3: 0.5 | CL3: 1 | CM3: 2 | CN3: 3 | CO3: 4 | CP3: 5 | CQ3: 6 | CR3: 7 | CS3: 8 | CT3: 10 | CU3: 12 | CV3: 14 | CW3: 18 | CX3: 21 | CY3: 100 | CZ3: 1000 | DA3: 10000 | EM3: 2 | EN3: 4.913126828e-06 | EO3: =+(EM3*EN3)^2 -> 9.655526093e-11 | EP3: =+X3 -> 2 | EQ3: 2 | ER3: =+Z3 -> 3.778380708e-08 | ES3: 2 | ET3: =+AA3 -> 4.913126828e-06 | EU3: Transformer K-factor Calculation | EV3: =X3 -> 2 | EW3: =AD3 -> 4.297997435e-06 | EX3: =(EW3*EV3)^2 -> 7.389112782e-11 | EY3: =EW3^2 -> 1.847278195e-11
A4: Critical Inputs are in red | E4: +jX = | H4: ohms, | I4: Z= | J4: =SQRT(G3^2+G4^2) -> 0 | K4: ohm X/R = | L4: =+G4/(G3+0.0001) -> 0 | M4: =+IF(J4=0,1000000000000000,G6^2/K7/1.732/SQRT(G3^2+G4^2)) -> 1000000000000000 | N4: =100*$U16/M4 -> 3.987226231e-15 | O4: Requested By: | Q4: =Summary!C4 -> 0 | X4: =+X3+1 -> 3 | Y4: 180 | Z4: 4.070159001e-05 | AA4: =1/$N$8/$U$18*(AF$103*AF$56*(AF4+AF164)+AG$103*AG$56*(AG4+AG164)+AH$103*AH$56*(AH4+AH164)+AI$103*AI$56*(AI4+AI164)+AJ$103*AJ$56*(AJ4+AJ164)+AK$103*AK$56*(AK4+AK164)+AL$103*AL$56*(AL4+AL164)+AM$103*AM$56*(AM4+AM164)+AN$103*AN$56*(AN4+AN164)+AO$103*AO$56*(AO4+AO164)+AP$103*AP$56*(AP4+AP164)+AQ$103*AQ$56*(AQ4+AQ164)+AR$103*AR$56*(AR4+AR164)+AS$103*AS$56*(AS4+AS164)+AT$103*AT$56*(AT4+AT164)+AU$103*AU$56*(AU4+AU164)+AV$103*AV$56*(AV4+AV164)+AW$103*AW$56*(AW4+AW164)+AX$103*AX$56*(AX4+AX164)+AY$103*AY$56*(AY4+AY164)+AZ$103*AZ$56*(AZ4+AZ164)+BA$103*BA$56*(BA4+BA164)+BB$103*BB$56*(BB4+BB164)+BC$103*BC$56*(BC4+BC164)+BD$103*BD$56*(BD4+BD164)) -> 0.003528355827 | AB4: =0.25*HLOOKUP($U$17,$Q$53:$Y$60,4,1) -> 3 | AC4: =+AA4*U$15/U$23 -> 7.741287821 | AD4: =+AC4*AD$2/100 -> 0.00308660143 | AE4: 12 | AF4: 7.754762278 | AG4: 0 | AH4: 0 | AI4: 0 | AJ4: 0 | AK4: 0 | AL4: 0 | AM4: 0 | AN4: 0 | AO4: 0 | AP4: 0 | AQ4: 0 | AR4: 0 | AS4: 0 | AT4: 0 | AU4: 0 | AV4: 0 | AW4: 0 | AX4: 0 | AY4: 0 | AZ4: 0 | BA4: 0 | BB4: 0 | BC4: 0 | BD4: 0 | BN4: =($AF4*$AF$63*$AF$107+$AG4*$AG$63*$AG$107+$AH4*$AH$63*$AH$107+$AI4*$AI$63*$AI$107+$AJ4*$AJ$63*$AJ$107+$AK4*$AK$63*$AK$107+$AL4*$AL$63*$AL$107+$AM4*$AM$63*$AM$107+$AN4*$AN$63*$AN$107+$AO4*$AO$63*$AO$107+$AP4*$AP$63*$AP$107+$AQ4*$AQ$63*$AQ$107+$AR4*$AR$63*$AR$107+$AS4*$AS$63*$AS$107+$AT4*$AT$63*$AT$107+$AU4*$AU$63*$AU$107+$AV4*$AV$63*$AV$107+$AW4*$AW$63*$AW$107+$AX4*$AX$63*$AX$107+$AY4*$AY$63*$AY$107+$AZ4*$AZ$63*$AZ$107+$BA4*$BA$63*$BA$107+$BB4*$BB$63*$BB$107+$BC4*$BC$63*$BC$107+$BD4*$BD$63*$BD$107)/BN$63 -> 7.739283711 | BO4: =($AF4*$AF$63*$AF$108+$AG4*$AG$63*$AG$108+$AH4*$AH$63*$AH$108+$AI4*$AI$63*$AI$108+$AJ4*$AJ$63*$AJ$108+$AK4*$AK$63*$AK$108+$AL4*$AL$63*$AL$108+$AM4*$AM$63*$AM$108+$AN4*$AN$63*$AN$108+$AO4*$AO$63*$AO$108+$AP4*$AP$63*$AP$108+$AQ4*$AQ$63*$AQ$108+$AR4*$AR$63*$AR$108+$AS4*$AS$63*$AS$108+$AT4*$AT$63*$AT$108+$AU4*$AU$63*$AU$108+$AV4*$AV$63*$AV$108+$AW4*$AW$63*$AW$108+$AX4*$AX$63*$AX$108+$AY4*$AY$63*$AY$108+$AZ4*$AZ$63*$AZ$108+$BA4*$BA$63*$BA$108+$BB4*$BB$63*$BB$108+$BC4*$BC$63*$BC$108+$BD4*$BD$63*$BD$108)/BO$63 -> 7.747015263 | BP4: =($AF4*$AF$63*$AF$109+$AG4*$AG$63*$AG$109+$AH4*$AH$63*$AH$109+$AI4*$AI$63*$AI$109+$AJ4*$AJ$63*$AJ$109+$AK4*$AK$63*$AK$109+$AL4*$AL$63*$AL$109+$AM4*$AM$63*$AM$109+$AN4*$AN$63*$AN$109+$AO4*$AO$63*$AO$109+$AP4*$AP$63*$AP$109+$AQ4*$AQ$63*$AQ$109+$AR4*$AR$63*$AR$109+$AS4*$AS$63*$AS$109+$AT4*$AT$63*$AT$109+$AU4*$AU$63*$AU$109+$AV4*$AV$63*$AV$109+$AW4*$AW$63*$AW$109+$AX4*$AX$63*$AX$109+$AY4*$AY$63*$AY$109+$AZ4*$AZ$63*$AZ$109+$BA4*$BA$63*$BA$109+$BB4*$BB$63*$BB$109+$BC4*$BC$63*$BC$109+$BD4*$BD$63*$BD$109)/BP$63 -> 0 | BQ4: =($AF4*$AF$63*$AF$110+$AG4*$AG$63*$AG$110+$AH4*$AH$63*$AH$110+$AI4*$AI$63*$AI$110+$AJ4*$AJ$63*$AJ$110+$AK4*$AK$63*$AK$110+$AL4*$AL$63*$AL$110+$AM4*$AM$63*$AM$110+$AN4*$AN$63*$AN$110+$AO4*$AO$63*$AO$110+$AP4*$AP$63*$AP$110+$AQ4*$AQ$63*$AQ$110+$AR4*$AR$63*$AR$110+$AS4*$AS$63*$AS$110+$AT4*$AT$63*$AT$110+$AU4*$AU$63*$AU$110+$AV4*$AV$63*$AV$110+$AW4*$AW$63*$AW$110+$AX4*$AX$63*$AX$110+$AY4*$AY$63*$AY$110+$AZ4*$AZ$63*$AZ$110+$BA4*$BA$63*$BA$110+$BB4*$BB$63*$BB$110+$BC4*$BC$63*$BC$110+$BD4*$BD$63*$BD$110)/BQ$63 -> 0 | BR4: =($AF4*$AF$63*$AF$111+$AG4*$AG$63*$AG$111+$AH4*$AH$63*$AH$111+$AI4*$AI$63*$AI$111+$AJ4*$AJ$63*$AJ$111+$AK4*$AK$63*$AK$111+$AL4*$AL$63*$AL$111+$AM4*$AM$63*$AM$111+$AN4*$AN$63*$AN$111+$AO4*$AO$63*$AO$111+$AP4*$AP$63*$AP$111+$AQ4*$AQ$63*$AQ$111+$AR4*$AR$63*$AR$111+$AS4*$AS$63*$AS$111+$AT4*$AT$63*$AT$111+$AU4*$AU$63*$AU$111+$AV4*$AV$63*$AV$111+$AW4*$AW$63*$AW$111+$AX4*$AX$63*$AX$111+$AY4*$AY$63*$AY$111+$AZ4*$AZ$63*$AZ$111+$BA4*$BA$63*$BA$111+$BB4*$BB$63*$BB$111+$BC4*$BC$63*$BC$111+$BD4*$BD$63*$BD$111)/BR$63 -> 0 | BS4: =($AF4*$AF$63*$AF$112+$AG4*$AG$63*$AG$112+$AH4*$AH$63*$AH$112+$AI4*$AI$63*$AI$112+$AJ4*$AJ$63*$AJ$112+$AK4*$AK$63*$AK$112+$AL4*$AL$63*$AL$112+$AM4*$AM$63*$AM$112+$AN4*$AN$63*$AN$112+$AO4*$AO$63*$AO$112+$AP4*$AP$63*$AP$112+$AQ4*$AQ$63*$AQ$112+$AR4*$AR$63*$AR$112+$AS4*$AS$63*$AS$112+$AT4*$AT$63*$AT$112+$AU4*$AU$63*$AU$112+$AV4*$AV$63*$AV$112+$AW4*$AW$63*$AW$112+$AX4*$AX$63*$AX$112+$AY4*$AY$63*$AY$112+$AZ4*$AZ$63*$AZ$112+$BA4*$BA$63*$BA$112+$BB4*$BB$63*$BB$112+$BC4*$BC$63*$BC$112+$BD4*$BD$63*$BD$112)/BS$63 -> 0 | BT4: =($AF4*$AF$63*$AF$113+$AG4*$AG$63*$AG$113+$AH4*$AH$63*$AH$113+$AI4*$AI$63*$AI$113+$AJ4*$AJ$63*$AJ$113+$AK4*$AK$63*$AK$113+$AL4*$AL$63*$AL$113+$AM4*$AM$63*$AM$113+$AN4*$AN$63*$AN$113+$AO4*$AO$63*$AO$113+$AP4*$AP$63*$AP$113+$AQ4*$AQ$63*$AQ$113+$AR4*$AR$63*$AR$113+$AS4*$AS$63*$AS$113+$AT4*$AT$63*$AT$113+$AU4*$AU$63*$AU$113+$AV4*$AV$63*$AV$113+$AW4*$AW$63*$AW$113+$AX4*$AX$63*$AX$113+$AY4*$AY$63*$AY$113+$AZ4*$AZ$63*$AZ$113+$BA4*$BA$63*$BA$113+$BB4*$BB$63*$BB$113+$BC4*$BC$63*$BC$113+$BD4*$BD$63*$BD$113)/BT$63 -> 0 | BU4: =($AF4*$AF$63*$AF$114+$AG4*$AG$63*$AG$114+$AH4*$AH$63*$AH$114+$AI4*$AI$63*$AI$114+$AJ4*$AJ$63*$AJ$114+$AK4*$AK$63*$AK$114+$AL4*$AL$63*$AL$114+$AM4*$AM$63*$AM$114+$AN4*$AN$63*$AN$114+$AO4*$AO$63*$AO$114+$AP4*$AP$63*$AP$114+$AQ4*$AQ$63*$AQ$114+$AR4*$AR$63*$AR$114+$AS4*$AS$63*$AS$114+$AT4*$AT$63*$AT$114+$AU4*$AU$63*$AU$114+$AV4*$AV$63*$AV$114+$AW4*$AW$63*$AW$114+$AX4*$AX$63*$AX$114+$AY4*$AY$63*$AY$114+$AZ4*$AZ$63*$AZ$114+$BA4*$BA$63*$BA$114+$BB4*$BB$63*$BB$114+$BC4*$BC$63*$BC$114+$BD4*$BD$63*$BD$114)/BU$63 -> 0 | BV4: =($AF4*$AF$63*$AF$115+$AG4*$AG$63*$AG$115+$AH4*$AH$63*$AH$115+$AI4*$AI$63*$AI$115+$AJ4*$AJ$63*$AJ$115+$AK4*$AK$63*$AK$115+$AL4*$AL$63*$AL$115+$AM4*$AM$63*$AM$115+$AN4*$AN$63*$AN$115+$AO4*$AO$63*$AO$115+$AP4*$AP$63*$AP$115+$AQ4*$AQ$63*$AQ$115+$AR4*$AR$63*$AR$115+$AS4*$AS$63*$AS$115+$AT4*$AT$63*$AT$115+$AU4*$AU$63*$AU$115+$AV4*$AV$63*$AV$115+$AW4*$AW$63*$AW$115+$AX4*$AX$63*$AX$115+$AY4*$AY$63*$AY$115+$AZ4*$AZ$63*$AZ$115+$BA4*$BA$63*$BA$115+$BB4*$BB$63*$BB$115+$BC4*$BC$63*$BC$115+$BD4*$BD$63*$BD$115)/BV$63 -> 0 | BW4: =($AF4*$AF$63*$AF$116+$AG4*$AG$63*$AG$116+$AH4*$AH$63*$AH$116+$AI4*$AI$63*$AI$116+$AJ4*$AJ$63*$AJ$116+$AK4*$AK$63*$AK$116+$AL4*$AL$63*$AL$116+$AM4*$AM$63*$AM$116+$AN4*$AN$63*$AN$116+$AO4*$AO$63*$AO$116+$AP4*$AP$63*$AP$116+$AQ4*$AQ$63*$AQ$116+$AR4*$AR$63*$AR$116+$AS4*$AS$63*$AS$116+$AT4*$AT$63*$AT$116+$AU4*$AU$63*$AU$116+$AV4*$AV$63*$AV$116+$AW4*$AW$63*$AW$116+$AX4*$AX$63*$AX$116+$AY4*$AY$63*$AY$116+$AZ4*$AZ$63*$AZ$116+$BA4*$BA$63*$BA$116+$BB4*$BB$63*$BB$116+$BC4*$BC$63*$BC$116+$BD4*$BD$63*$BD$116)/BW$63 -> 0 | BX4: =($AF4*$AF$63*$AF$117+$AG4*$AG$63*$AG$117+$AH4*$AH$63*$AH$117+$AI4*$AI$63*$AI$117+$AJ4*$AJ$63*$AJ$117+$AK4*$AK$63*$AK$117+$AL4*$AL$63*$AL$117+$AM4*$AM$63*$AM$117+$AN4*$AN$63*$AN$117+$AO4*$AO$63*$AO$117+$AP4*$AP$63*$AP$117+$AQ4*$AQ$63*$AQ$117+$AR4*$AR$63*$AR$117+$AS4*$AS$63*$AS$117+$AT4*$AT$63*$AT$117+$AU4*$AU$63*$AU$117+$AV4*$AV$63*$AV$117+$AW4*$AW$63*$AW$117+$AX4*$AX$63*$AX$117+$AY4*$AY$63*$AY$117+$AZ4*$AZ$63*$AZ$117+$BA4*$BA$63*$BA$117+$BB4*$BB$63*$BB$117+$BC4*$BC$63*$BC$117+$BD4*$BD$63*$BD$117)/BX$63 -> 0 | BY4: =($AF4*$AF$63*$AF$118+$AG4*$AG$63*$AG$118+$AH4*$AH$63*$AH$118+$AI4*$AI$63*$AI$118+$AJ4*$AJ$63*$AJ$118+$AK4*$AK$63*$AK$118+$AL4*$AL$63*$AL$118+$AM4*$AM$63*$AM$118+$AN4*$AN$63*$AN$118+$AO4*$AO$63*$AO$118+$AP4*$AP$63*$AP$118+$AQ4*$AQ$63*$AQ$118+$AR4*$AR$63*$AR$118+$AS4*$AS$63*$AS$118+$AT4*$AT$63*$AT$118+$AU4*$AU$63*$AU$118+$AV4*$AV$63*$AV$118+$AW4*$AW$63*$AW$118+$AX4*$AX$63*$AX$118+$AY4*$AY$63*$AY$118+$AZ4*$AZ$63*$AZ$118+$BA4*$BA$63*$BA$118+$BB4*$BB$63*$BB$118+$BC4*$BC$63*$BC$118+$BD4*$BD$63*$BD$118)/BY$63 -> 0 | BZ4: =($AF4*$AF$63*$AF$119+$AG4*$AG$63*$AG$119+$AH4*$AH$63*$AH$119+$AI4*$AI$63*$AI$119+$AJ4*$AJ$63*$AJ$119+$AK4*$AK$63*$AK$119+$AL4*$AL$63*$AL$119+$AM4*$AM$63*$AM$119+$AN4*$AN$63*$AN$119+$AO4*$AO$63*$AO$119+$AP4*$AP$63*$AP$119+$AQ4*$AQ$63*$AQ$119+$AR4*$AR$63*$AR$119+$AS4*$AS$63*$AS$119+$AT4*$AT$63*$AT$119+$AU4*$AU$63*$AU$119+$AV4*$AV$63*$AV$119+$AW4*$AW$63*$AW$119+$AX4*$AX$63*$AX$119+$AY4*$AY$63*$AY$119+$AZ4*$AZ$63*$AZ$119+$BA4*$BA$63*$BA$119+$BB4*$BB$63*$BB$119+$BC4*$BC$63*$BC$119+$BD4*$BD$63*$BD$119)/BZ$63 -> 0 | CA4: =($AF4*$AF$63*$AF$120+$AG4*$AG$63*$AG$120+$AH4*$AH$63*$AH$120+$AI4*$AI$63*$AI$120+$AJ4*$AJ$63*$AJ$120+$AK4*$AK$63*$AK$120+$AL4*$AL$63*$AL$120+$AM4*$AM$63*$AM$120+$AN4*$AN$63*$AN$120+$AO4*$AO$63*$AO$120+$AP4*$AP$63*$AP$120+$AQ4*$AQ$63*$AQ$120+$AR4*$AR$63*$AR$120+$AS4*$AS$63*$AS$120+$AT4*$AT$63*$AT$120+$AU4*$AU$63*$AU$120+$AV4*$AV$63*$AV$120+$AW4*$AW$63*$AW$120+$AX4*$AX$63*$AX$120+$AY4*$AY$63*$AY$120+$AZ4*$AZ$63*$AZ$120+$BA4*$BA$63*$BA$120+$BB4*$BB$63*$BB$120+$BC4*$BC$63*$BC$120+$BD4*$BD$63*$BD$120)/CA$63 -> 0 | CB4: =($AF4*$AF$63*$AF$121+$AG4*$AG$63*$AG$121+$AH4*$AH$63*$AH$121+$AI4*$AI$63*$AI$121+$AJ4*$AJ$63*$AJ$121+$AK4*$AK$63*$AK$121+$AL4*$AL$63*$AL$121+$AM4*$AM$63*$AM$121+$AN4*$AN$63*$AN$121+$AO4*$AO$63*$AO$121+$AP4*$AP$63*$AP$121+$AQ4*$AQ$63*$AQ$121+$AR4*$AR$63*$AR$121+$AS4*$AS$63*$AS$121+$AT4*$AT$63*$AT$121+$AU4*$AU$63*$AU$121+$AV4*$AV$63*$AV$121+$AW4*$AW$63*$AW$121+$AX4*$AX$63*$AX$121+$AY4*$AY$63*$AY$121+$AZ4*$AZ$63*$AZ$121+$BA4*$BA$63*$BA$121+$BB4*$BB$63*$BB$121+$BC4*$BC$63*$BC$121+$BD4*$BD$63*$BD$121)/CB$63 -> 0 | CC4: =($AF4*$AF$63*$AF$122+$AG4*$AG$63*$AG$122+$AH4*$AH$63*$AH$122+$AI4*$AI$63*$AI$122+$AJ4*$AJ$63*$AJ$122+$AK4*$AK$63*$AK$122+$AL4*$AL$63*$AL$122+$AM4*$AM$63*$AM$122+$AN4*$AN$63*$AN$122+$AO4*$AO$63*$AO$122+$AP4*$AP$63*$AP$122+$AQ4*$AQ$63*$AQ$122+$AR4*$AR$63*$AR$122+$AS4*$AS$63*$AS$122+$AT4*$AT$63*$AT$122+$AU4*$AU$63*$AU$122+$AV4*$AV$63*$AV$122+$AW4*$AW$63*$AW$122+$AX4*$AX$63*$AX$122+$AY4*$AY$63*$AY$122+$AZ4*$AZ$63*$AZ$122+$BA4*$BA$63*$BA$122+$BB4*$BB$63*$BB$122+$BC4*$BC$63*$BC$122+$BD4*$BD$63*$BD$122)/CC$63 -> 0 | CD4: =($AF4*$AF$63*$AF$123+$AG4*$AG$63*$AG$123+$AH4*$AH$63*$AH$123+$AI4*$AI$63*$AI$123+$AJ4*$AJ$63*$AJ$123+$AK4*$AK$63*$AK$123+$AL4*$AL$63*$AL$123+$AM4*$AM$63*$AM$123+$AN4*$AN$63*$AN$123+$AO4*$AO$63*$AO$123+$AP4*$AP$63*$AP$123+$AQ4*$AQ$63*$AQ$123+$AR4*$AR$63*$AR$123+$AS4*$AS$63*$AS$123+$AT4*$AT$63*$AT$123+$AU4*$AU$63*$AU$123+$AV4*$AV$63*$AV$123+$AW4*$AW$63*$AW$123+$AX4*$AX$63*$AX$123+$AY4*$AY$63*$AY$123+$AZ4*$AZ$63*$AZ$123+$BA4*$BA$63*$BA$123+$BB4*$BB$63*$BB$123+$BC4*$BC$63*$BC$123+$BD4*$BD$63*$BD$123)/CD$63 -> 0 | CE4: =($AF4*$AF$63*$AF$124+$AG4*$AG$63*$AG$124+$AH4*$AH$63*$AH$124+$AI4*$AI$63*$AI$124+$AJ4*$AJ$63*$AJ$124+$AK4*$AK$63*$AK$124+$AL4*$AL$63*$AL$124+$AM4*$AM$63*$AM$124+$AN4*$AN$63*$AN$124+$AO4*$AO$63*$AO$124+$AP4*$AP$63*$AP$124+$AQ4*$AQ$63*$AQ$124+$AR4*$AR$63*$AR$124+$AS4*$AS$63*$AS$124+$AT4*$AT$63*$AT$124+$AU4*$AU$63*$AU$124+$AV4*$AV$63*$AV$124+$AW4*$AW$63*$AW$124+$AX4*$AX$63*$AX$124+$AY4*$AY$63*$AY$124+$AZ4*$AZ$63*$AZ$124+$BA4*$BA$63*$BA$124+$BB4*$BB$63*$BB$124+$BC4*$BC$63*$BC$124+$BD4*$BD$63*$BD$124)/CE$63 -> 0 | CF4: =($AF4*$AF$63*$AF$125+$AG4*$AG$63*$AG$125+$AH4*$AH$63*$AH$125+$AI4*$AI$63*$AI$125+$AJ4*$AJ$63*$AJ$125+$AK4*$AK$63*$AK$125+$AL4*$AL$63*$AL$125+$AM4*$AM$63*$AM$125+$AN4*$AN$63*$AN$125+$AO4*$AO$63*$AO$125+$AP4*$AP$63*$AP$125+$AQ4*$AQ$63*$AQ$125+$AR4*$AR$63*$AR$125+$AS4*$AS$63*$AS$125+$AT4*$AT$63*$AT$125+$AU4*$AU$63*$AU$125+$AV4*$AV$63*$AV$125+$AW4*$AW$63*$AW$125+$AX4*$AX$63*$AX$125+$AY4*$AY$63*$AY$125+$AZ4*$AZ$63*$AZ$125+$BA4*$BA$63*$BA$125+$BB4*$BB$63*$BB$125+$BC4*$BC$63*$BC$125+$BD4*$BD$63*$BD$125)/CF$63 -> 0 | CG4: =($AF4*$AF$63*$AF$126+$AG4*$AG$63*$AG$126+$AH4*$AH$63*$AH$126+$AI4*$AI$63*$AI$126+$AJ4*$AJ$63*$AJ$126+$AK4*$AK$63*$AK$126+$AL4*$AL$63*$AL$126+$AM4*$AM$63*$AM$126+$AN4*$AN$63*$AN$126+$AO4*$AO$63*$AO$126+$AP4*$AP$63*$AP$126+$AQ4*$AQ$63*$AQ$126+$AR4*$AR$63*$AR$126+$AS4*$AS$63*$AS$126+$AT4*$AT$63*$AT$126+$AU4*$AU$63*$AU$126+$AV4*$AV$63*$AV$126+$AW4*$AW$63*$AW$126+$AX4*$AX$63*$AX$126+$AY4*$AY$63*$AY$126+$AZ4*$AZ$63*$AZ$126+$BA4*$BA$63*$BA$126+$BB4*$BB$63*$BB$126+$BC4*$BC$63*$BC$126+$BD4*$BD$63*$BD$126)/CG$63 -> 0 | CI4: Kfactor | CJ4: =+(10000+SUMPRODUCT(CJ13:CJ52,$DB13:$DB52,CJ13:CJ52,$DB13:$DB52))/10000/CJ6^2 -> 75.65943956 | CK4: =+(10000+SUMPRODUCT(CK13:CK52,$DB13:$DB52,CK13:CK52,$DB13:$DB52))/10000/CK6^2 -> 28.74087475 | CL4: 19.09143994 | CM4: 12.5947054 | CN4: 8.90948829 | CO4: 6.808932389 | CP4: 5.681860866 | CQ4: 4.962481552 | CR4: 4.431118884 | CS4: 4.026088288 | CT4: 3.469606316 | CU4: 3.08254893 | CV4: 2.808507561 | CW4: 2.425633586 | CX4: 2.440198421 | CY4: 2.440198421 | CZ4: 2.440198421 | DA4: 2.440198421 | EM4: 3 | EN4: 0.003528355827 | EO4: 0.0001120436536 | EP4: =+X4 -> 3 | EQ4: =1+EQ3 -> 3 | ER4: 4.070159001e-05 | ES4: =1+ES3 -> 3 | ET4: 0.003528355827 | EV4: =X4 -> 3 | EW4: =AD4 -> 0.00308660143 | EX4: 8.57439755e-05 | EY4: 9.527108389e-06
A5: Application (Spc, Gen, Ded) = | D5: =Summary!H14 -> General | E5: Primary Wire AWG Size: | H5: Wire Length(ft) = | K5: # in Paral= | M5: =+IF(L5=0,1000000000000000,G6^2/K7/1.732/VLOOKUP(G5,N65:R94,4)/(J5+0.000001)*L5) -> 1000000000000000 | N5: =100*U16/(M5+0.000001) -> 3.987226231e-15 | O5: Contact: | Q5: =Summary!C5 -> 0 | X5: 4 | Y5: 240 | Z5: 1.324740309e-07 | AA5: 8.612971611e-06 | AB5: =0.25*HLOOKUP($U$17,$Q$53:$Y$60,4,1) -> 3 | AC5: 0.01889704313 | AD5: 7.534617198e-06 | AE5: 13 | AF5: 0.01892993525 | AG5: 0 | AH5: 0 | AI5: 0 | AJ5: 0 | AK5: 0 | AL5: 0 | AM5: 0 | AN5: 0 | AO5: 0 | AP5: 0 | AQ5: 0 | AR5: 0 | AS5: 0 | AT5: 0 | AU5: 0 | AV5: 0 | AW5: 0 | AX5: 0 | AY5: 0 | AZ5: 0 | BA5: 0 | BB5: 0 | BC5: 0 | BD5: 0 | BN5: 0.01889215095 | BO5: 0.01891102423 | BP5: =($AF5*$AF$63*$AF$109+$AG5*$AG$63*$AG$109+$AH5*$AH$63*$AH$109+$AI5*$AI$63*$AI$109+$AJ5*$AJ$63*$AJ$109+$AK5*$AK$63*$AK$109+$AL5*$AL$63*$AL$109+$AM5*$AM$63*$AM$109+$AN5*$AN$63*$AN$109+$AO5*$AO$63*$AO$109+$AP5*$AP$63*$AP$109+$AQ5*$AQ$63*$AQ$109+$AR5*$AR$63*$AR$109+$AS5*$AS$63*$AS$109+$AT5*$AT$63*$AT$109+$AU5*$AU$63*$AU$109+$AV5*$AV$63*$AV$109+$AW5*$AW$63*$AW$109+$AX5*$AX$63*$AX$109+$AY5*$AY$63*$AY$109+$AZ5*$AZ$63*$AZ$109+$BA5*$BA$63*$BA$109+$BB5*$BB$63*$BB$109+$BC5*$BC$63*$BC$109+$BD5*$BD$63*$BD$109)/BP$63 -> 0 | BQ5: 0 | BR5: 0 | BS5: 0 | BT5: 0 | BU5: 0 | BV5: 0 | BW5: 0 | BX5: 0 | BY5: 0 | BZ5: 0 | CA5: 0 | CB5: 0 | CC5: 0 | CD5: 0 | CE5: 0 | CF5: 0 | CG5: 0 | CI5: %Ithd | CJ5: =+SQRT(SUMSQ(CJ13:CJ52)) -> 163.9370742 | CK5: =+SQRT(SUMSQ(CK13:CK52)) -> 113.4878351 | CL5: 92.20080947 | CM5: 70.91354585 | CN5: 54.74979618 | CO5: 45.40573169 | CP5: 40.44752987 | CQ5: 36.56490678 | CR5: 33.72092167 | CS5: 31.53671766 | CT5: 28.35306122 | CU5: 26.00362828 | CV5: 24.15995449 | CW5: 21.24950525 | CX5: 21.24707585 | CY5: 21.24707585 | CZ5: 21.24707585 | DA5: 21.24707585 | EM5: 4 | EN5: 8.612971611e-06 | EO5: 1.18693248e-09 | EP5: 4 | EQ5: =1+EQ4 -> 4 | ER5: 1.324740309e-07 | ES5: 4 | ET5: 8.612971611e-06 | EV5: 4 | EW5: 7.534617198e-06 | EX5: 9.08327301e-10 | EY5: 5.677045632e-11
A6: T1 KVA dxfmr = | D6: =Summary!H15 -> 2500 | E6: Vdxfmrpri = | G6: 13200 | H6: Idistxfmrrated@Vpcc = | K6: =+Q21 -> 109.3498495 | L6: Amps | M6: =+D6*100000/1.732/K7/(D7+0.00001) -> 1901.733206 | N6: =100*U16/M6 -> 0.002096627549 | O6: COPY: | Q6: =Summary!C6 -> 0 | X6: 5 | Y6: 300 | Z6: 0.0003260461629 | AA6: 0.01695865265 | AB6: =+HLOOKUP($U$17,$Q$53:$Y$60,4,1)*O59 -> 12 | AC6: 37.20764505 | AD6: 0.01483540892 | AE6: 14 | AF6: 37.27240854 | AG6: 0 | AH6: 0 | AI6: 0 | AJ6: 0 | AK6: 0 | AL6: 0 | AM6: 0 | AN6: 0 | AO6: 0 | AP6: 0 | AQ6: 0 | AR6: 0 | AS6: 0 | AT6: 0 | AU6: 0 | AV6: 0 | AW6: 0 | AX6: 0 | AY6: 0 | AZ6: 0 | BA6: 0 | BB6: 0 | BC6: 0 | BD6: 0 | BN6: 37.19801251 | BO6: 37.23517337 | BP6: 0 | BQ6: 0 | BR6: 0 | BS6: 0 | BT6: 0 | BU6: 0 | BV6: 0 | BW6: 0 | BX6: 0 | BY6: 0 | BZ6: 0 | CA6: 0 | CB6: 0 | CC6: 0 | CD6: 0 | CE6: 0 | CF6: 0 | CG6: 0 | CI6: Irms/If | CJ6: =+SQRT(1+(CJ5/100)^2) -> 1.920295922 | CK6: =+SQRT(1+(CK5/100)^2) -> 1.512596731 | CL6: 1.360183417 | CM6: 1.225917248 | CN6: 1.14006755 | CO6: 1.098256822 | CP6: 1.078703049 | CQ6: 1.064753136 | CR6: 1.055324621 | CS6: 1.048549692 | CT6: 1.039417918 | CU6: 1.033256439 | CV6: 1.028771277 | CW6: 1.022327808 | CX6: 1.022322759 | CY6: 1.022322759 | CZ6: 1.022322759 | DA6: 1.022322759 | EM6: 5 | EN6: 0.01695865265 | EO6: 0.007189897492 | EP6: 5 | EQ6: 5 | ER6: 0.0003260461629 | ES6: 5 | ET6: 0.01695865265 | EV6: 5 | EW6: 0.01483540892 | EX6: 0.005502233948 | EY6: 0.0002200893579
A7: Dist Xfmr % Z = | D7: =Summary!H16 -> 5.75 | E7: Vdxfmrsec = | G7: 480 | H7: Idmd t1pri = | I7: =+G8/0.001732/G6 -> 87.47987963 | J7: Vll @ pcc = | K7: =+U11 -> 13200 | L7: Total = | M7: =1/(1/M3+1/M4+1/(M5+0.0001)+1/M6) -> 1715.289067 | N7: =SUM(N3:N6) -> 0.002324521451 | O7: NOTES; | X7: 6 | Y7: 360 | Z7: 7.057661093e-08 | AA7: 3.059086836e-06 | AB7: =0.25*HLOOKUP($U$17,$Q$53:$Y$60,4,1) -> 3 | AC7: 0.006711701662 | AD7: 2.676085482e-06 | AE7: 15 | AF7: 0.006723384025 | AG7: 0 | AH7: 0 | AI7: 0 | AJ7: 0 | AK7: 0 | AL7: 0 | AM7: 0 | AN7: 0 | AO7: 0 | AP7: 0 | AQ7: 0 | AR7: 0 | AS7: 0 | AT7: 0 | AU7: 0 | AV7: 0 | AW7: 0 | AX7: 0 | AY7: 0 | AZ7: 0 | BA7: 0 | BB7: 0 | BC7: 0 | BD7: 0 | BN7: 0.006709964097 | BO7: 0.006716667358 | BP7: 0 | BQ7: 0 | BR7: 0 | BS7: 0 | BT7: 0 | BU7: 0 | BV7: 0 | BW7: 0 | BX7: 0 | BY7: 0 | BZ7: 0 | CA7: 0 | CB7: 0 | CC7: 0 | CD7: 0 | CE7: 0 | CF7: 0 | CG7: 0 | CI7: Ih/If | CJ7: =+CJ5/100 -> 1.639370742 | CK7: =+CK5/100 -> 1.134878351 | CL7: 0.9220080947 | CM7: 0.7091354585 | CN7: 0.5474979618 | CO7: 0.4540573169 | CP7: 0.4044752987 | CQ7: 0.3656490678 | CR7: 0.3372092167 | CS7: 0.3153671766 | CT7: 0.2835306122 | CU7: 0.2600362828 | CV7: 0.2415995449 | CW7: 0.2124950525 | CX7: 0.2124707585 | CY7: 0.2124707585 | CZ7: 0.2124707585 | DA7: 0.2124707585 | EM7: 6 | EN7: 3.059086836e-06 | EO7: 3.368884418e-10 | EP7: 6 | EQ7: 6 | ER7: 7.057661093e-08 | ES7: 6 | ET7: 3.059086836e-06 | EV7: 6 | EW7: 2.676085482e-06 | EX7: 2.578116062e-10 | EY7: 7.161433507e-12
A8: % Demand: T1 KVA = | D8: =Summary!H17 -> 80 | E8: KVA dmd = | G8: =+Q23 -> 2000 | H8: Idmd t1sec= | I8: =+G8/G7*1000/1.732 -> 2405.69669 | J8: Idmd@pcc | K8: =+U15 -> 87.47987963 | M8: UsedHPpcc= | N8: =+U13 -> 1.002 | O8: By: | P8: =Summary!C7 -> 0 | T8: Phone: | U8: =Summary!J3 -> 0 | X8: =+X7+1 -> 7 | Y8: 420 | Z8: 0.0001273997018 | AA8: 0.004733175709 | AB8: =+HLOOKUP($U$17,$Q$53:$Y$60,4,1)*O59 -> 12 | AC8: 10.3846883 | AD8: 0.004140576413 | AE8: 16 | AF8: 10.40276385 | AG8: 0 | AH8: 0 | AI8: 0 | AJ8: 0 | AK8: 0 | AL8: 0 | AM8: 0 | AN8: 0 | AO8: 0 | AP8: 0 | AQ8: 0 | AR8: 0 | AS8: 0 | AT8: 0 | AU8: 0 | AV8: 0 | AW8: 0 | AX8: 0 | AY8: 0 | AZ8: 0 | BA8: 0 | BB8: 0 | BC8: 0 | BD8: 0 | BN8: 10.38199985 | BO8: 10.39237148 | BP8: 0 | BQ8: 0 | BR8: 0 | BS8: 0 | BT8: 0 | BU8: 0 | BV8: 0 | BW8: 0 | BX8: 0 | BY8: 0 | BZ8: 0 | CA8: 0 | CB8: 0 | CC8: 0 | CD8: 0 | CE8: 0 | CF8: 0 | CG8: 0 | CI8: DispPF | CJ8: 0.975 | CK8: 0.974 | CL8: 0.973 | CM8: 0.971 | CN8: 0.97 | CO8: 0.969 | CP8: 0.968 | CQ8: 0.967 | CR8: 0.966 | CS8: 0.965 | CT8: 0.963 | CU8: 0.96 | CV8: 0.955 | CW8: 0.95 | CX8: 0.94 | CY8: 0.9 | CZ8: 0.9 | DA8: 0.9 | EM8: 7 | EN8: 0.004733175709 | EO8: 0.001097744662 | EP8: 7 | EQ8: 7 | ER8: 0.0001273997018 | ES8: 7 | ET8: 0.004733175709 | EV8: 7 | EW8: 0.004140576413 | EX8: 0.0008400742785 | EY8: 1.714437303e-05
A9: PCC Location = | D9: =Summary!H18 -> Utility | E9: Ave % MTR Loading: | G9: 100 | I9: LineFreq = | J9: 60 | K9: Idrv@pcc | L9: =+U16 -> 0.03987226231 | M9: DrvHPpcc= | N9: =+U12 -> 1 | O9: Email: | P9: =Summary!C9 -> 0 | T9: Fax: | X9: 8 | Y9: 480 | Z9: =$X9/130*(BJ$80*HLOOKUP($BK$80,$BM$1:$CG$51,$X9+1,0)+BJ$81*HLOOKUP($BK$81,$BM$1:$CG$51,$X9+1,0)+BJ$82*HLOOKUP($BK$82,$BM$1:$CG$51,$X9+1,0)+BJ$83*HLOOKUP($BK$83,$BM$1:$CG$51,$X9+1,0)+BJ$84*HLOOKUP($BK$84,$BM$1:$CG$51,$X9+1,0)+BJ$85*HLOOKUP($BK$85,$BM$1:$CG$51,$X9+1,0)+BJ$86*HLOOKUP($BK$86,$BM$1:$CG$51,$X9+1,0)+BJ$87*HLOOKUP($BK$87,$BM$1:$CG$51,$X9+1,0)+BJ$88*HLOOKUP($BK$88,$BM$1:$CG$51,$X9+1,0)+BJ$89*HLOOKUP($BK$89,$BM$1:$CG$51,$X9+1,0)+BJ$90*HLOOKUP($BK$90,$BM$1:$CG$51,$X9+1,0)+BJ$91*HLOOKUP($BK$91,$BM$1:$CG$51,$X9+1,0)+BJ$92*HLOOKUP($BK$92,$BM$1:$CG$51,$X9+1,0)+BJ$93*HLOOKUP($BK$93,$BM$1:$CG$51,$X9+1,0)+BJ$94*HLOOKUP($BK$94,$BM$1:$CG$51,$X9+1,0)+BJ$95*HLOOKUP($BK$95,$BM$1:$CG$51,$X9+1,0)+BJ$96*HLOOKUP($BK$96,$BM$1:$CG$51,$X9+1,0)+BJ$97*HLOOKUP($BK$97,$BM$1:$CG$51,$X9+1,0)+BJ$98*HLOOKUP($BK$98,$BM$1:$CG$51,$X9+1,0)+BJ$99*HLOOKUP($BK$99,$BM$1:$CG$51,$X9+1,0)+BJ$100*HLOOKUP($BK$100,$BM$1:$CG$51,$X9+1,0))+BK169 -> 2.74155243e-07 | AA9: 8.912280043e-06 | AB9: =0.25*HLOOKUP($U$17,$Q$53:$Y$60,4,1) -> 3 | AC9: 0.0195537322 | AD9: 7.796451854e-06 | AE9: 17 | AF9: 0.01958776736 | AG9: 0 | AH9: 0 | AI9: 0 | AJ9: 0 | AK9: 0 | AL9: 0 | AM9: 0 | AN9: 0 | AO9: 0 | AP9: 0 | AQ9: 0 | AR9: 0 | AS9: 0 | AT9: 0 | AU9: 0 | AV9: 0 | AW9: 0 | AX9: 0 | AY9: 0 | AZ9: 0 | BA9: 0 | BB9: 0 | BC9: 0 | BD9: 0 | BN9: 0.01954867002 | BO9: 0.01956819916 | BP9: 0 | BQ9: 0 | BR9: 0 | BS9: 0 | BT9: 0 | BU9: 0 | BV9: 0 | BW9: 0 | BX9: 0 | BY9: 0 | BZ9: 0 | CA9: 0 | CB9: 0 | CC9: 0 | CD9: 0 | CE9: 0 | CF9: 0 | CG9: 0 | CI9: ActPF | CJ9: 0.54 | CK9: 0.677 | CL9: 0.736 | CM9: 0.812 | CN9: 0.873 | CO9: 0.898 | CP9: 0.91 | CQ9: 0.918 | CR9: 0.922 | CS9: 0.925 | CT9: 0.929 | CU9: 0.931 | CV9: 0.931 | CW9: 0.932 | CX9: 0.931 | CY9: 0.9 | CZ9: 0.9 | DA9: 0.9 | EM9: 8 | EN9: 8.912280043e-06 | EO9: 5.083439076e-09 | EP9: 8 | EQ9: 8 | ER9: 2.74155243e-07 | ES9: 8 | ET9: 8.912280043e-06 | EV9: 8 | EW9: 7.796451854e-06 | EX9: 3.890218337e-09 | EY9: 6.078466151e-11
A10: Transformer | C10: Network Inputs: | F10: AveSysEff*PF: | G10: 0.82 | H10: Bus# | I10: ID TAG | J10: Fed From | K10: Wire Size | L10: # in Paral | M10: W Length | N10: Ampacity | O10: System Data: | Q10: PCC = | R10: =+D9 -> Utility | S10: Line Freq = | U10: =+J9 -> 60 | V10: Hz | X10: 9 | Y10: 540 | Z10: 2.443667049e-05 | AA10: 0.000706125311 | AB10: =0.25*HLOOKUP($U$17,$Q$53:$Y$60,4,1) -> 3 | AC10: 1.549253969 | AD10: 0.0006177175721 | AE10: 18 | AF10: 1.551950595 | AG10: 0 | AH10: 0 | AI10: 0 | AJ10: 0 | AK10: 0 | AL10: 0 | AM10: 0 | AN10: 0 | AO10: 0 | AP10: 0 | AQ10: 0 | AR10: 0 | AS10: 0 | AT10: 0 | AU10: 0 | AV10: 0 | AW10: 0 | AX10: 0 | AY10: 0 | AZ10: 0 | BA10: 0 | BB10: 0 | BC10: 0 | BD10: 0 | BN10: 1.548852889 | BO10: 1.550400195 | BP10: 0 | BQ10: 0 | BR10: 0 | BS10: 0 | BT10: 0 | BU10: 0 | BV10: 0 | BW10: 0 | BX10: 0 | BY10: 0 | BZ10: 0 | CA10: 0 | CB10: 0 | CC10: 0 | CD10: 0 | CE10: 0 | CF10: 0 | CG10: 0 | CI10: %Vthd | CJ10: 1.232 | CK10: 3.016 | CL10: 4.441 | CM10: 6.185 | CN10: 6.976 | CO10: 7.861 | CP10: 8.733 | CQ10: 9.586 | CR10: 10.41 | CS10: 11.18 | CT10: 12.64 | CU10: 13.97 | CV10: 15.21 | CW10: 17.42 | CX10: 18.88 | CY10: 90 | CZ10: 90 | DA10: 90 | EM10: 9 | EN10: 0.000706125311 | EO10: 4.038764934e-05 | EP10: 9 | EQ10: 9 | ER10: 2.443667049e-05 | ES10: 9 | ET10: 0.000706125311 | EV10: 9 | EW10: 0.0006177175721 | EX10: 3.090757491e-05 | EY10: 3.815749989e-07
A11: # | B11: ID TAG | C11: Fed From | D11: KVA | E11: % Z | F11: Vsec | G11: Irated pcc | H11: B1 | N11: =VLOOKUP(K11,$N$65:$S$94,6)*L11 -> 0 | O11: MVAsc before Xfmr = | Q11: =+IF(M3>M7*25,"",J3) -> 400 | R11: MVA | S11: Vll @ PCC = | U11: =HLOOKUP(D9,BM1:CG65,65,0) -> 13200 | V11: Volts | X11: 10 | Y11: 600 | Z11: 2.159056684e-07 | AA11: 5.614955262e-06 | AB11: =0.25*HLOOKUP($U$17,$Q$53:$Y$60,4,1) -> 3 | AC11: 0.01231933142 | AD11: 4.911956105e-06 | AE11: 19 | AF11: 0.0123407744 | AG11: 0 | AH11: 0 | AI11: 0 | AJ11: 0 | AK11: 0 | AL11: 0 | AM11: 0 | AN11: 0 | AO11: 0 | AP11: 0 | AQ11: 0 | AR11: 0 | AS11: 0 | AT11: 0 | AU11: 0 | AV11: 0 | AW11: 0 | AX11: 0 | AY11: 0 | AZ11: 0 | BA11: 0 | BB11: 0 | BC11: 0 | BD11: 0 | BN11: 0.01231614212 | BO11: 0.01232844595 | BP11: 0 | BQ11: 0 | BR11: 0 | BS11: 0 | BT11: 0 | BU11: 0 | BV11: 0 | BW11: 0 | BX11: 0 | BY11: 0 | BZ11: 0 | CA11: 0 | CB11: 0 | CC11: 0 | CD11: 0 | CE11: 0 | CF11: 0 | CG11: 0 | CI11: Vrms/Vs | CJ11: 1 | CK11: 0.999 | CL11: 0.998 | CM11: 0.996 | CN11: 0.993 | CO11: 0.991 | CP11: 0.988 | CQ11: 0.986 | CR11: 0.983 | CS11: 0.981 | CT11: 0.975 | CU11: 0.97 | CV11: 0.965 | CW11: 0.954 | CX11: 0.946 | CY11: 0.09 | CZ11: 0.09 | DA11: 0.09 | EM11: 10 | EN11: 5.614955262e-06 | EO11: 3.15277226e-09 | EP11: 10 | EQ11: 10 | ER11: 2.159056684e-07 | ES11: 10 | ET11: 5.614955262e-06 | EV11: 10 | EW11: 4.911956105e-06 | EX11: 2.412731277e-09 | EY11: 2.412731277e-11
A12: T1 | B12: N/A | C12: Utility | D12: =+D6 -> 2500 | E12: =+D7 -> 5.75 | F12: =+G7 -> 480 | G12: =+Q21 -> 109.3498495 | H12: B2 | N12: 0 | O12: Other Z primary: R = | Q12: =+IF(M4>M7*25," ",G3) ->  | R12: ohm | S12: Total Drive HP @ PCC | U12: =+HLOOKUP(D9,BM1:CG65,62,0) -> 1 | V12: HP | X12: 11 | Y12: 660 | Z12: 0.0001328799378 | AA12: 0.003141586244 | AB12: =+HLOOKUP($U$17,$Q$53:$Y$60,5,1)*O60 -> 5.5 | AC12: 6.89270712 | AD12: 0.002748255865 | AE12: 20 | AF12: 6.904704541 | AG12: 0 | AH12: 0 | AI12: 0 | AJ12: 0 | AK12: 0 | AL12: 0 | AM12: 0 | AN12: 0 | AO12: 0 | AP12: 0 | AQ12: 0 | AR12: 0 | AS12: 0 | AT12: 0 | AU12: 0 | AV12: 0 | AW12: 0 | AX12: 0 | AY12: 0 | AZ12: 0 | BA12: 0 | BB12: 0 | BC12: 0 | BD12: 0 | BN12: 6.890922695 | BO12: 6.897806734 | BP12: 0 | BQ12: 0 | BR12: 0 | BS12: 0 | BT12: 0 | BU12: 0 | BV12: 0 | BW12: 0 | BX12: 0 | BY12: 0 | BZ12: 0 | CA12: 0 | CB12: 0 | CC12: 0 | CD12: 0 | CE12: 0 | CF12: 0 | CG12: 0 | CI12: Vbus/Vs | CJ12: 1.403 | CK12: 1.381 | CL12: 1.359 | CM12: 1.332 | CN12: 1.323 | CO12: 1.315 | CP12: 1.307 | CQ12: 1.299 | CR12: 1.292 | CS12: 1.285 | CT12: 1.271 | CU12: 1.258 | CV12: 1.245 | CW12: 1.221 | CX12: 1.204 | CY12: 0.5 | CZ12: 0.5 | DA12: 0.5 | EM12: 11 | EN12: 0.003141586244 | EO12: 0.00119421726 | EP12: 11 | EQ12: 11 | ER12: 0.0001328799378 | ES12: 11 | ET12: 0.003141586244 | EV12: 11 | EW12: 0.002748255865 | EX12: 0.000913902146 | EY12: 7.552910298e-06
A13: T2 | G13: =+D13/0.001732/(0.000001+F13) -> 0 | H13: B3 | N13: 0 | P13: X = | Q13: =+IF(M4>M7*25," ",G4) ->  | R13: ohm | S13: Total Used HP @ PCC | U13: =+HLOOKUP(D9,BM1:CG65,63,0) -> 1.002 | V13: HP | X13: 12 | Y13: 720 | Z13: 9.712437407e-08 | AA13: 2.104889214e-06 | AB13: =0.25*HLOOKUP($U$17,$Q$53:$Y$60,5,1) -> 1.375 | AC13: 0.004618171759 | AD13: 1.841354551e-06 | AE13: 21 | AF13: 0.004626210132 | AG13: 0 | AH13: 0 | AI13: 0 | AJ13: 0 | AK13: 0 | AL13: 0 | AM13: 0 | AN13: 0 | AO13: 0 | AP13: 0 | AQ13: 0 | AR13: 0 | AS13: 0 | AT13: 0 | AU13: 0 | AV13: 0 | AW13: 0 | AX13: 0 | AY13: 0 | AZ13: 0 | BA13: 0 | BB13: 0 | BC13: 0 | BD13: 0 | BN13: 0.00461697618 | BO13: 0.004621588544 | BP13: 0 | BQ13: 0 | BR13: 0 | BS13: 0 | BT13: 0 | BU13: 0 | BV13: 0 | BW13: 0 | BX13: 0 | BY13: 0 | BZ13: 0 | CA13: 0 | CB13: 0 | CC13: 0 | CD13: 0 | CE13: 0 | CF13: 0 | CG13: 0 | CI13: %I2nd | CJ13: 0.01729132496 | CK13: 0.06699801844 | CL13: 0.1241656075 | CM13: 0.1916467896 | CN13: 0.03243233771 | CO13: 0.0267949173 | CP13: 0.01078735106 | CQ13: 0.0154888307 | CR13: 0.01112091801 | CS13: 0.0125719077 | CT13: 0.02636287592 | CU13: 0.003906877198 | CV13: 0.01783236037 | CW13: 0.006571503806 | CX13: 0.005714603655 | CY13: 0.005714603655 | CZ13: 0.005714603655 | DA13: 0.005714603655 | DB13: 2 | DD13: 0.06699801844 | DE13: 0.1241656075 | DF13: 0.1916467896 | DG13: 0.03243233771 | DH13: 0.0267949173 | DI13: 0.01078735106 | DJ13: 0.0154888307 | DK13: 0.01112091801 | DL13: 0.0125719077 | DM13: 0.02636287592 | DN13: 0.003906877198 | DO13: 0.01783236037 | DP13: 0.006571503806 | DQ13: 0.02254542775 | DR13: 0.02254542775 | DS13: 0.02254542775 | DT13: 2 | EM13: 12 | EN13: 2.104889214e-06 | EO13: 6.380004388e-10 | EP13: 12 | EQ13: 12 | ER13: 9.712437407e-08 | ES13: 12 | ET13: 2.104889214e-06 | EV13: 12 | EW13: 1.841354551e-06 | EX13: 4.882444677e-10 | EY13: 3.390586581e-12
A14: T3 | G14: =+D14/0.001732/(0.00001+F14) -> 0 | H14: B4 | N14: 0 | P14: Z = | Q14: =+IF(M4>M7*25," ",J4) ->  | R14: ohm | S14: I Short Ckt @ PCC = | U14: =+U16*100/(U20+0.00001) -> 16760.52303 | V14: Amps | X14: 13 | Y14: 780 | Z14: 7.434099215e-05 | AA14: 0.001487192739 | AB14: =+HLOOKUP($U$17,$Q$53:$Y$60,5,1)*O60 -> 5.5 | AC14: 3.262932539 | AD14: 0.001300994418 | AE14: 22 | AF14: 3.268611987 | AG14: 0 | AH14: 0 | AI14: 0 | AJ14: 0 | AK14: 0 | AL14: 0 | AM14: 0 | AN14: 0 | AO14: 0 | AP14: 0 | AQ14: 0 | AR14: 0 | AS14: 0 | AT14: 0 | AU14: 0 | AV14: 0 | AW14: 0 | AX14: 0 | AY14: 0 | AZ14: 0 | BA14: 0 | BB14: 0 | BC14: 0 | BD14: 0 | BN14: 3.262087812 | BO14: 3.265346641 | BP14: 0 | BQ14: 0 | BR14: 0 | BS14: 0 | BT14: 0 | BU14: 0 | BV14: 0 | BW14: 0 | BX14: 0 | BY14: 0 | BZ14: 0 | CA14: 0 | CB14: 0 | CC14: 0 | CD14: 0 | CE14: 0 | CF14: 0 | CG14: 0 | CI14: %I3rd | CJ14: 0.5538510443 | CK14: 8.547377472 | CL14: 4.385761552 | CM14: 4.89167634 | CN14: 5.10724851 | CO14: 6.207288544 | CP14: 7.760855764 | CQ14: 5.136557788 | CR14: 3.711534324 | CS14: 2.865250174 | CT14: 1.976424394 | CU14: 1.512989132 | CV14: 1.247984401 | CW14: 0.9018613828 | CX14: 0.8611207071 | CY14: 0.8611207071 | CZ14: 0.8611207071 | DA14: 0.8611207071 | DB14: 3 | DC14: 0.5538510443 | DD14: 8.547377472 | DE14: 4.385761552 | DF14: 4.89167634 | DG14: 5.10724851 | DH14: 6.207288544 | DI14: 7.760855764 | DJ14: 5.136557788 | DK14: 3.711534324 | DL14: 2.865250174 | DM14: 1.976424394 | DN14: 1.512989132 | DO14: 1.247984401 | DP14: 0.9018613828 | DQ14: 0.7381049916 | DR14: 0.7381049916 | DS14: 0.7381049916 | DT14: 3 | EM14: 13 | EN14: 0.001487192739 | EO14: 0.0003737844389 | EP14: 13 | EQ14: 13 | ER14: 7.434099215e-05 | ES14: 13 | ET14: 0.001487192739 | EV14: 13 | EW14: 0.001300994418 | EX14: 0.0002860471143 | EY14: 1.692586475e-06
A15: T4 | G15: =+D15/0.001732/(0.000001+F15) -> 0 | H15: B5 | N15: 0 | O15: AWG Wire Size = | Q15: =+IF(M5>M7*25," ",G5) ->  | S15: I demand @ PCC = | U15: =+MAX(I8*G7,746/1.732/G10*HLOOKUP(D9,BM1:CG65,60,0))/U11 -> 87.47987963 | V15: Amps | X15: 14 | Y15: 840 | Z15: 3.425612624e-07 | AA15: 6.363447574e-06 | AB15: =0.25*HLOOKUP($U$17,$Q$53:$Y$60,5,1) -> 1.375 | AC15: 0.01396153949 | AD15: 5.566736278e-06 | AE15: 23 | AF15: 0.01398584089 | AG15: 0 | AH15: 0 | AI15: 0 | AJ15: 0 | AK15: 0 | AL15: 0 | AM15: 0 | AN15: 0 | AO15: 0 | AP15: 0 | AQ15: 0 | AR15: 0 | AS15: 0 | AT15: 0 | AU15: 0 | AV15: 0 | AW15: 0 | AX15: 0 | AY15: 0 | AZ15: 0 | BA15: 0 | BB15: 0 | BC15: 0 | BD15: 0 | BN15: 0.01395792504 | BO15: 0.01397186902 | BP15: 0 | BQ15: 0 | BR15: 0 | BS15: 0 | BT15: 0 | BU15: 0 | BV15: 0 | BW15: 0 | BX15: 0 | BY15: 0 | BZ15: 0 | CA15: 0 | CB15: 0 | CC15: 0 | CD15: 0 | CE15: 0 | CF15: 0 | CG15: 0 | CI15: %I4th | CJ15: 0.1352025028 | CK15: 0.02869536014 | CL15: 0.1123765457 | CM15: 0.1270693444 | CN15: 0.02967365074 | CO15: 0.02121222106 | CP15: 0.01891675805 | CQ15: 0.02459181895 | CR15: 0.02230987199 | CS15: 0.01467211925 | CT15: 0.003497773835 | CU15: 0.003318391374 | CV15: 0.01838005086 | CW15: 0.005724045485 | CX15: 0.001584787357 | CY15: 0.001584787357 | CZ15: 0.001584787357 | DA15: 0.001584787357 | DB15: 4 | DC15: 0.1352025028 | DD15: 0.02869536014 | DE15: 0.1123765457 | DF15: 0.1270693444 | DG15: 0.02967365074 | DH15: 0.02121222106 | DI15: 0.01891675805 | DJ15: 0.02459181895 | DK15: 0.02230987199 | DL15: 0.01467211925 | DM15: 0.003497773835 | DN15: 0.003318391374 | DO15: 0.01838005086 | DP15: 0.005724045485 | DQ15: 0.009190341271 | DR15: 0.009190341271 | DS15: 0.009190341271 | DT15: 4 | EM15: 14 | EN15: 6.363447574e-06 | EO15: 7.936719144e-09 | EP15: 14 | EQ15: 14 | ER15: 3.425612624e-07 | ES15: 14 | ET15: 6.363447574e-06 | EV15: 14 | EW15: 5.566736278e-06 | EX15: 6.073756346e-09 | EY15: 3.098855278e-11
A16: T5 | G16: 0 | H16: B6 | N16: 0 | O16: Wire Length = | Q16: =+IF(M5>M7*25," ",J5) ->  | R16: feet | S16: I drives in @ PCC = | U16: =746/1.732/G10*U13/U11 -> 0.03987226231 | V16: Amps | X16: 15 | Y16: 900 | Z16: 2.029325945e-05 | AA16: 0.0003518380497 | AB16: =0.25*HLOOKUP($U$17,$Q$53:$Y$60,5,1) -> 1.375 | AC16: 0.7719401735 | AD16: 0.0003077875024 | AE16: 24 | AF16: 0.7732838097 | AG16: 0 | AH16: 0 | AI16: 0 | AJ16: 0 | AK16: 0 | AL16: 0 | AM16: 0 | AN16: 0 | AO16: 0 | AP16: 0 | AQ16: 0 | AR16: 0 | AS16: 0 | AT16: 0 | AU16: 0 | AV16: 0 | AW16: 0 | AX16: 0 | AY16: 0 | AZ16: 0 | BA16: 0 | BB16: 0 | BC16: 0 | BD16: 0 | BN16: 0.7717403291 | BO16: 0.7725112984 | BP16: 0 | BQ16: 0 | BR16: 0 | BS16: 0 | BT16: 0 | BU16: 0 | BV16: 0 | BW16: 0 | BX16: 0 | BY16: 0 | BZ16: 0 | CA16: 0 | CB16: 0 | CC16: 0 | CD16: 0 | CE16: 0 | CF16: 0 | CG16: 0 | CI16: %I5th | CJ16: 93.36874801 | CK16: 82.87682728 | CL16: 73.24722184 | CM16: 60.83145905 | CN16: 49.38282897 | CO16: 41.72752692 | CP16: 37.27946499 | CQ16: 34.24044244 | CR16: 31.80183447 | CS16: 29.83391153 | CT16: 26.82944744 | CU16: 24.52437795 | CV16: 22.66614595 | CW16: 19.68348131 | CX16: 19.5542088 | CY16: 19.5542088 | CZ16: 19.5542088 | DA16: 19.5542088 | DB16: 5 | DC16: 93.36874801 | DD16: 82.87682728 | DE16: 73.24722184 | DF16: 60.83145905 | DG16: 49.38282897 | DH16: 41.72752692 | DI16: 37.27946499 | DJ16: 34.24044244 | DK16: 31.80183447 | DL16: 29.83391153 | DM16: 26.82944744 | DN16: 24.52437795 | DO16: 22.66614595 | DP16: 19.68348131 | DQ16: 17.85774985 | DR16: 17.85774985 | DS16: 17.85774985 | DT16: 5 | EM16: 15 | EN16: 0.0003518380497 | EO16: 2.785275297e-05 | EP16: 15 | EQ16: 15 | ER16: 2.029325945e-05 | ES16: 15 | ET16: 0.0003518380497 | EV16: 15 | EW16: 0.0003077875024 | EX16: 2.131495799e-05 | EY16: 9.473314661e-08
A17: T6 | G17: 0 | H17: B7 | N17: 0 | O17: # in Parallel = | Q17: =+IF(M5>M7*25," ",L5) ->  | S17: Isc / Idmd = | U17: =U14/(U15+0.00001) -> 191.592869 | X17: 16 | Y17: 960 | Z17: 2.614439006e-07 | AA17: 4.249528904e-06 | AB17: =0.25*HLOOKUP($U$17,$Q$53:$Y$60,5,1) -> 1.375 | AC17: 0.009323556909 | AD17: 3.71748277e-06 | AE17: 25 | AF17: 0.009339785458 | AG17: 0 | AH17: 0 | AI17: 0 | AJ17: 0 | AK17: 0 | AL17: 0 | AM17: 0 | AN17: 0 | AO17: 0 | AP17: 0 | AQ17: 0 | AR17: 0 | AS17: 0 | AT17: 0 | AU17: 0 | AV17: 0 | AW17: 0 | AX17: 0 | AY17: 0 | AZ17: 0 | BA17: 0 | BB17: 0 | BC17: 0 | BD17: 0 | BN17: 0.009321143172 | BO17: 0.009330455003 | BP17: 0 | BQ17: 0 | BR17: 0 | BS17: 0 | BT17: 0 | BU17: 0 | BV17: 0 | BW17: 0 | BX17: 0 | BY17: 0 | BZ17: 0 | CA17: 0 | CB17: 0 | CC17: 0 | CD17: 0 | CE17: 0 | CF17: 0 | CG17: 0 | CI17: %I6th | CJ17: 0.06881849608 | CK17: 0.05293619149 | CL17: 0.007010264163 | CM17: 0.0118623519 | CN17: 0.00192227027 | CO17: 0.01108714641 | CP17: 0.006728513289 | CQ17: 0.004519479298 | CR17: 0.006016963986 | CS17: 0.007333032773 | CT17: 0.004936801543 | CU17: 0.002100557235 | CV17: 0.009281622282 | CW17: 0.00380219896 | CX17: 0.002694936591 | CY17: 0.002694936591 | CZ17: 0.002694936591 | DA17: 0.002694936591 | DB17: 6 | DC17: 0.06881849608 | DD17: 0.05293619149 | DE17: 0.007010264163 | DF17: 0.0118623519 | DG17: 0.00192227027 | DH17: 0.01108714641 | DI17: 0.006728513289 | DJ17: 0.004519479298 | DK17: 0.006016963986 | DL17: 0.007333032773 | DM17: 0.004936801543 | DN17: 0.002100557235 | DO17: 0.009281622282 | DP17: 0.00380219896 | DQ17: 0.003756133549 | DR17: 0.003756133549 | DS17: 0.003756133549 | DT17: 6 | EM17: 16 | EN17: 4.249528904e-06 | EO17: 4.622974951e-09 | EP17: 16 | EQ17: 16 | ER17: 2.614439006e-07 | ES17: 16 | ET17: 4.249528904e-06 | EV17: 16 | EW17: 3.71748277e-06 | EX17: 3.537837605e-09 | EY17: 1.381967814e-11
A18: T7 | G18: 0 | H18: B8 | N18: 0 | O18: % Wire Voltage Drop | Q18: =+IF(M5>M7*25," ",N5) ->  | R18: % | S18: Idmd/Idrv = | U18: =+U15/(U16+0.00001) -> 2193.453294 | X18: 17 | Y18: 1020 | Z18: 8.31206737e-05 | AA18: 0.001271576195 | AB18: =+HLOOKUP($U$17,$Q$53:$Y$60,6,1)*O61 -> 5 | AC18: 2.78986525 | AD18: 0.001112373325 | AE18: 26 | AF18: 2.794721279 | AG18: 0 | AH18: 0 | AI18: 0 | AJ18: 0 | AK18: 0 | AL18: 0 | AM18: 0 | AN18: 0 | AO18: 0 | AP18: 0 | AQ18: 0 | AR18: 0 | AS18: 0 | AT18: 0 | AU18: 0 | AV18: =(HLOOKUP(AV$69,$CI$3:$DA$750,$AE18+52*(AV$75-1),1)-AV$74*(HLOOKUP(AV$73,$CI$1:$DA$750,$AE18+2+52*(AV$75-1),0)-HLOOKUP(AV$73+1,$CI$1:$DA$750,$AE18+2+52*(AV$75-1),0)))*AV$65 -> 0 | AW18: 0 | AX18: 0 | AY18: 0 | AZ18: 0 | BA18: 0 | BB18: 0 | BC18: 0 | BD18: 0 | BN18: 2.789142993 | BO18: 2.79192935 | BP18: 0 | BQ18: 0 | BR18: 0 | BS18: 0 | BT18: 0 | BU18: 0 | BV18: 0 | BW18: 0 | BX18: 0 | BY18: 0 | BZ18: 0 | CA18: 0 | CB18: 0 | CC18: 0 | CD18: 0 | CE18: 0 | CF18: 0 | CG18: 0 | CI18: %I7th | CJ18: 85.79292922 | CK18: 65.67536665 | CL18: 52.47110135 | CM18: 34.47392608 | CN18: 20.70483243 | CO18: 13.8859457 | CP18: 10.40737047 | CQ18: 8.423425047 | CR18: 7.344748666 | CS18: 6.802266368 | CT18: 6.516670828 | CU18: 6.627386049 | CV18: 6.802240304 | CW18: 6.987229811 | CX18: 7.326010338 | CY18: 7.326010338 | CZ18: 7.326010338 | DA18: 7.326010338 | DB18: 7 | DC18: 85.79292922 | DD18: 65.67536665 | DE18: 52.47110135 | DF18: 34.47392608 | DG18: 20.70483243 | DH18: 13.8859457 | DI18: 10.40737047 | DJ18: 8.423425047 | DK18: 7.344748666 | DL18: 6.802266368 | DM18: 6.516670828 | DN18: 6.627386049 | DO18: 6.802240304 | DP18: 6.987229811 | DQ18: 6.959298154 | DR18: 6.959298154 | DS18: 6.959298154 | DT18: 7 | EM18: 17 | EN18: 0.001271576195 | EO18: 0.0004672858397 | EP18: 17 | EQ18: 17 | ER18: 8.31206737e-05 | ES18: 17 | ET18: 0.001271576195 | EV18: 17 | EW18: 0.001112373325 | EX18: 0.0003576012055 | EY18: 1.237374414e-06
A19: T8 | G19: 0 | H19: B9 | N19: 0 | O19: Dist Xfmr KVA: | Q19: =+IF(M6>M7*25,"",D6) -> 2500 | R19: KVA | S19: Isc/Idrv = | U19: =+U14/(U16+0.00001) -> 420250.0576 | X19: 18 | Y19: 1080 | Z19: 1.025726904e-07 | AA19: 1.481977116e-06 | AB19: =0.25*HLOOKUP($U$17,$Q$53:$Y$60,6,1) -> 1.25 | AC19: 0.003251489351 | AD19: 1.296431797e-06 | AE19: 27 | AF19: 0.003257148881 | AG19: =(HLOOKUP(AG$69,$CI$3:$DA$750,$AE19+52*(AG$75-1),1)-AG$74*(HLOOKUP(AG$73,$CI$1:$DA$750,$AE19+2+52*(AG$75-1),0)-HLOOKUP(AG$73+1,$CI$1:$DA$750,$AE19+2+52*(AG$75-1),0)))*AG$65 -> 0 | AH19: 0 | AI19: 0 | AJ19: 0 | AK19: 0 | AL19: 0 | AM19: 0 | AN19: 0 | AO19: 0 | AP19: 0 | AQ19: 0 | AR19: 0 | AS19: 0 | AT19: 0 | AU19: 0 | AV19: 0 | AW19: 0 | AX19: 0 | AY19: 0 | AZ19: 0 | BA19: 0 | BB19: 0 | BC19: 0 | BD19: 0 | BN19: 0.003250647586 | BO19: 0.003253894986 | BP19: 0 | BQ19: 0 | BR19: 0 | BS19: 0 | BT19: 0 | BU19: 0 | BV19: 0 | BW19: 0 | BX19: 0 | BY19: 0 | BZ19: 0 | CA19: 0 | CB19: 0 | CC19: 0 | CD19: 0 | CE19: 0 | CF19: 0 | CG19: 0 | CI19: %I8th | CJ19: 0.1520709157 | CK19: 0.05289182447 | CL19: 0.05704008259 | CM19: 0.01911604917 | CN19: 0.02356498766 | CO19: 0.008535510246 | CP19: 0.01960394504 | CQ19: 0.01263665716 | CR19: 0.01064335153 | CS19: 0.00434738486 | CT19: 0.002541580751 | CU19: 0.001221665531 | CV19: 0.00645954616 | CW19: 0.001398381392 | CX19: 0.003405617801 | CY19: 0.003405617801 | CZ19: 0.003405617801 | DA19: 0.003405617801 | DB19: 8 | DC19: 0.1520709157 | DD19: 0.05289182447 | DE19: 0.05704008259 | DF19: 0.01911604917 | DG19: 0.02356498766 | DH19: 0.008535510246 | DI19: 0.01960394504 | DJ19: 0.01263665716 | DK19: 0.01064335153 | DL19: 0.00434738486 | DM19: 0.002541580751 | DN19: 0.001221665531 | DO19: 0.00645954616 | DP19: 0.001398381392 | DQ19: 0.000711104582 | DR19: 0.000711104582 | DS19: 0.000711104582 | DT19: 8 | EM19: 18 | EN19: 1.481977116e-06 | EO19: 7.115869995e-10 | EP19: 18 | EQ19: 18 | ER19: 1.025726904e-07 | ES19: 18 | ET19: 1.481977116e-06 | EV19: 18 | EW19: 1.296431797e-06 | EX19: 5.445582708e-10 | EY19: 1.680735404e-12
A20: T9 | G20: 0 | H20: B10 | N20: 0 | O20: Dist Xfmr % Z: | Q20: =+IF(M6>M7*25,"",D7) -> 5.75 | R20: % | S20: %Zs before PCC = | U20: =+HLOOKUP(D9,BM1:CG70,68,0) -> 0.0002278939024 | V20: % | X20: 19 | Y20: 1140 | Z20: 6.033627112e-05 | AA20: 0.0008258613113 | AB20: =+HLOOKUP($U$17,$Q$53:$Y$60,6,1)*O61 -> 5 | AC20: 1.811957304 | AD20: 0.000722462481 | AE20: 28 | AF20: =(HLOOKUP(AF$69,$CI$3:$DA$750,$AE20+52*(AF$75-1),1)-AF$74*(HLOOKUP(AF$73,$CI$1:$DA$750,$AE20+2+52*(AF$75-1),0)-HLOOKUP(AF$73+1,$CI$1:$DA$750,$AE20+2+52*(AF$75-1),0)))*AF$65 -> 1.81511119 | AG20: 0 | AH20: 0 | AI20: 0 | AJ20: 0 | AK20: 0 | AL20: 0 | AM20: 0 | AN20: 0 | AO20: 0 | AP20: 0 | AQ20: 0 | AR20: 0 | AS20: 0 | AT20: 0 | AU20: 0 | AV20: 0 | AW20: 0 | AX20: 0 | AY20: 0 | AZ20: 0 | BA20: 0 | BB20: 0 | BC20: 0 | BD20: 0 | BN20: 1.811488214 | BO20: 1.813297892 | BP20: 0 | BQ20: 0 | BR20: 0 | BS20: 0 | BT20: 0 | BU20: 0 | BV20: 0 | BW20: 0 | BX20: 0 | BY20: 0 | BZ20: 0 | CA20: 0 | CB20: 0 | CC20: 0 | CD20: 0 | CE20: 0 | CF20: 0 | CG20: 0 | CI20: %I9th | CJ20: 1.154353525 | CK20: 3.591459353 | CL20: 0.6615660074 | CM20: 0.6036876926 | CN20: 0.4244776433 | CO20: 1.064896216 | CP20: 1.553265052 | CQ20: 0.9871644555 | CR20: 0.6810407697 | CS20: 0.5061037424 | CT20: 0.3186814221 | CU20: 0.2262662476 | CV20: 0.1789795623 | CW20: 0.1396605287 | CX20: 0.1324729005 | CY20: 0.1324729005 | CZ20: 0.1324729005 | DA20: 0.1324729005 | DB20: 9 | DC20: 1.154353525 | DD20: 3.591459353 | DE20: 0.6615660074 | DF20: 0.6036876926 | DG20: 0.4244776433 | DH20: 1.064896216 | DI20: 1.553265052 | DJ20: 0.9871644555 | DK20: 0.6810407697 | DL20: 0.5061037424 | DM20: 0.3186814221 | DN20: 0.2262662476 | DO20: 0.1789795623 | DP20: 0.1396605287 | DQ20: 0.1298276113 | DR20: 0.1298276113 | DS20: 0.1298276113 | DT20: 9 | EM20: 19 | EN20: 0.0008258613113 | EO20: 0.0002462189329 | EP20: 19 | EQ20: 19 | ER20: 6.033627112e-05 | ES20: 19 | ET20: 0.0008258613113 | EV20: 19 | EW20: 0.000722462481 | EX20: 0.0001884246851 | EY20: 5.219520364e-07
A21: Drive # | B21: ID TAG | C21: Fed From | D21: Conv Type | E21: Hp Drive | F21: % Z Int | G21: % Z Ext | H21: % Load | I21: Wire Size | J21: # in Paral | K21: W Length | L21: Ampacity | M21: % Z Total | N21: Vll@drv | O21: DXfmr Irate @ PCC: | Q21: =+IF(M6>M7*25,"",D6*1000/1.732/K7) -> 109.3498495 | R21: Amps | S21: % Zf after PCC = | U21: =(HLOOKUP(D9,BM1:CG70,69,0)) -> 5.007094726 | V21: % | X21: 20 | Y21: 1200 | Z21: 4.031427719e-07 | AA21: 5.242170447e-06 | AB21: =0.25*HLOOKUP($U$17,$Q$53:$Y$60,6,1) -> 1.25 | AC21: 0.01150143359 | AD21: 4.585844397e-06 | AE21: 29 | AF21: 0.01152145295 | AG21: 0 | AH21: 0 | AI21: 0 | AJ21: 0 | AK21: 0 | AL21: 0 | AM21: 0 | AN21: 0 | AO21: 0 | AP21: 0 | AQ21: 0 | AR21: 0 | AS21: 0 | AT21: 0 | AU21: 0 | AV21: 0 | AW21: 0 | AX21: 0 | AY21: 0 | AZ21: 0 | BA21: 0 | BB21: 0 | BC21: 0 | BD21: 0 | BN21: 0.01149845603 | BO21: 0.011509943 | BP21: 0 | BQ21: 0 | BR21: 0 | BS21: 0 | BT21: 0 | BU21: 0 | BV21: 0 | BW21: 0 | BX21: 0 | BY21: 0 | BZ21: 0 | CA21: 0 | CB21: 0 | CC21: 0 | CD21: 0 | CE21: 0 | CF21: 0 | CG21: 0 | CI21: %I10th | CJ21: 0.2294007148 | CK21: 0.04674083713 | CL21: 0.03917101779 | CM21: 0.03189611029 | CN21: 0.009707276007 | CO21: 0.01376027535 | CP21: 0.01235116302 | CQ21: 0.007877067729 | CR21: 0.006624146068 | CS21: 0.000954461117 | CT21: 0.005900082925 | CU21: 0.002841023697 | CV21: 0.003093303414 | CW21: 0.001702465154 | CX21: 0.003840541148 | CY21: 0.003840541148 | CZ21: 0.003840541148 | DA21: 0.003840541148 | DB21: 10 | DC21: 0.2294007148 | DD21: 0.04674083713 | DE21: 0.03917101779 | DF21: 0.03189611029 | DG21: 0.009707276007 | DH21: 0.01376027535 | DI21: 0.01235116302 | DJ21: 0.007877067729 | DK21: 0.006624146068 | DL21: 0.000954461117 | DM21: 0.005900082925 | DN21: 0.002841023697 | DO21: 0.003093303414 | DP21: 0.001702465154 | DQ21: 0.000973798897 | DR21: 0.000973798897 | DS21: 0.000973798897 | DT21: 10 | EM21: 20 | EN21: 5.242170447e-06 | EO21: 1.09921404e-08 | EP21: 20 | EQ21: 20 | ER21: 4.031427719e-07 | ES21: 20 | ET21: 5.242170447e-06 | EV21: 20 | EW21: 4.585844397e-06 | EX21: 8.411987532e-09 | EY21: 2.102996883e-11
A22: 1 | B22: =Summary!B53 -> 0 | C22: =IF(E22<>0,"T1",0) -> T1 | D22: =convtype(Summary!D53) -> 1 | E22: =Summary!C53 -> 1 | F22: =int_imp(Summary!D53) -> 5 | G22: =ext_imp(Summary!D53) -> 0 | L22: =+IF(D22=8,E22/(N22+0.00001)*746/1.732*H22/100,VLOOKUP(I22,$N$65:$S$94,6)*J22) -> 0 | M22: =+(VLOOKUP(I22,$N$65:$R$94,4)*K22/(J22+0.000001)*100*746/G$10*E22/(N22+0.00001)^2+F22+G22)*$G$9/100*IF(H22=0,100,H22)/100 -> 5 | N22: =+AF66 -> 480 | O22: Demand % KVA Xfmr: | Q22: =+IF(M6>M7*25,"",D8) -> 80 | R22: % | S22: % Z loop @ PCC= | U22: =+U20+U21 -> 5.00732262 | V22: % | X22: 21 | Y22: 1260 | Z22: 1.880802206e-05 | AA22: 0.0002329196273 | AB22: =0.25*HLOOKUP($U$17,$Q$53:$Y$60,6,1) -> 1.25 | AC22: 0.5110306223 | AD22: 0.0002037578096 | AE22: 30 | AF22: 0.5119201203 | AG22: 0 | AH22: 0 | AI22: 0 | AJ22: 0 | AK22: 0 | AL22: 0 | AM22: 0 | AN22: 0 | AO22: 0 | AP22: 0 | AQ22: 0 | AR22: 0 | AS22: 0 | AT22: 0 | AU22: 0 | AV22: 0 | AW22: 0 | AX22: 0 | AY22: 0 | AZ22: 0 | BA22: 0 | BB22: 0 | BC22: 0 | BD22: 0 | BN22: 0.5108983237 | BO22: 0.5114087116 | BP22: 0 | BQ22: 0 | BR22: 0 | BS22: 0 | BT22: 0 | BU22: 0 | BV22: 0 | BW22: 0 | BX22: 0 | BY22: 0 | BZ22: 0 | CA22: 0 | CB22: 0 | CC22: 0 | CD22: 0 | CE22: 0 | CF22: 0 | CG22: 0 | CI22: %I11th | CJ22: 69.04856771 | CK22: 33.68534858 | CL22: 15.5837873 | CM22: 6.56360086 | CN22: 7.679797587 | CO22: 7.457084028 | CP22: 6.905567023 | CQ22: 6.5341193 | CR22: 6.078615009 | CS22: 5.615123499 | CT22: 4.773122079 | CU22: 4.037747205 | CV22: 3.444205341 | CW22: 2.657107929 | CX22: 2.631933563 | CY22: 2.631933563 | CZ22: 2.631933563 | DA22: 2.631933563 | DB22: 11 | DC22: 69.04856771 | DD22: 33.68534858 | DE22: 15.5837873 | DF22: 6.56360086 | DG22: 7.679797587 | DH22: 7.457084028 | DI22: 6.905567023 | DJ22: 6.5341193 | DK22: 6.078615009 | DL22: 5.615123499 | DM22: 4.773122079 | DN22: 4.037747205 | DO22: 3.444205341 | DP22: 2.657107929 | DQ22: 2.359150546 | DR22: 2.359150546 | DS22: 2.359150546 | DT22: 11 | EM22: 21 | EN22: 0.0002329196273 | EO22: 2.392493477e-05 | EP22: 21 | EQ22: 21 | ER22: 1.880802206e-05 | ES22: 21 | ET22: 0.0002329196273 | EV22: 21 | EW22: 0.0002037578096 | EX22: 1.830910503e-05 | EY22: 4.151724496e-08
A23: 2 | B23: =Summary!B54 -> 0 | C23: =IF(E23<>0,"T1",0) -> 0 | D23: =convtype(Summary!D54) -> 0 | E23: =Summary!C54 -> 0 | F23: =int_imp(Summary!D54) -> 0 | G23: =ext_imp(Summary!D54) -> 0 | L23: =+IF(D23=8,E23/(N23+0.00001)*746/1.732*H23/100,VLOOKUP(I23,$N$65:$S$94,6)*J23) -> 0 | M23: =+(VLOOKUP(I23,$N$65:$R$94,4)*K23/(J23+0.000001)*100*746/G$10*E23/(N23+0.00001)^2+F23+G23)*$G$9/100*IF(H23=0,100,H23)/100 -> 0 | N23: =+AG66 -> 0.001 | O23: Demand KVA: | Q23: =+D6*D8/100 -> 2000 | R23: KVA | S23: If drvs@ PCC = | U23: =+SQRT(U25^2-U24^2) -> 0.03987193735 | V23: Amps | X23: 22 | Y23: 1320 | Z23: 5.126985177e-07 | AA23: 6.060683944e-06 | AB23: =0.25*HLOOKUP($U$17,$Q$53:$Y$60,6,1) -> 1.25 | AC23: 0.01329726964 | AD23: 5.301879018e-06 | AE23: 31 | AF23: 0.01332041481 | AG23: 0 | AH23: 0 | AI23: 0 | AJ23: 0 | AK23: 0 | AL23: 0 | AM23: 0 | AN23: 0 | AO23: 0 | AP23: 0 | AQ23: 0 | AR23: 0 | AS23: 0 | AT23: 0 | AU23: 0 | AV23: 0 | AW23: 0 | AX23: 0 | AY23: 0 | AZ23: 0 | BA23: 0 | BB23: 0 | BC23: 0 | BD23: 0 | BN23: 0.01329382716 | BO23: 0.01330710771 | BP23: 0 | BQ23: 0 | BR23: 0 | BS23: 0 | BT23: 0 | BU23: 0 | BV23: 0 | BW23: 0 | BX23: 0 | BY23: 0 | BZ23: 0 | CA23: 0 | CB23: 0 | CC23: 0 | CD23: 0 | CE23: 0 | CF23: 0 | CG23: 0 | CI23: %I12th | CJ23: 0.04392612602 | CK23: 0.01287749447 | CL23: 0.00459541574 | CM23: 0.005329225147 | CN23: 0.001745582534 | CO23: 0.006192225265 | CP23: 0.004634030776 | CQ23: 0.001265892842 | CR23: 0.0007234547071 | CS23: 0.002813754228 | CT23: 0.003338781715 | CU23: 0.0007041522882 | CV23: 0.003286682768 | CW23: 0.002129932191 | CX23: 0.003072607821 | CY23: 0.003072607821 | CZ23: 0.003072607821 | DA23: 0.003072607821 | DB23: 12 | DC23: 0.04392612602 | DD23: 0.01287749447 | DE23: 0.00459541574 | DF23: 0.005329225147 | DG23: 0.001745582534 | DH23: 0.006192225265 | DI23: 0.004634030776 | DJ23: 0.001265892842 | DK23: 0.0007234547071 | DL23: 0.002813754228 | DM23: 0.003338781715 | DN23: 0.0007041522882 | DO23: 0.003286682768 | DP23: 0.002129932191 | DQ23: 0.003015558393 | DR23: 0.003015558393 | DS23: 0.003015558393 | DT23: 12 | EM23: 22 | EN23: 6.060683944e-06 | EO23: 1.777823469e-08 | EP23: 22 | EQ23: 22 | ER23: 5.126985177e-07 | ES23: 22 | ET23: 6.060683944e-06 | EV23: 22 | EW23: 5.301879018e-06 | EX23: 1.360520182e-08 | EY23: 2.810992113e-11
A24: 3 | B24: =Summary!B55 -> 0 | C24: 0 | D24: =convtype(Summary!D55) -> 0 | E24: =Summary!C55 -> 0 | F24: =int_imp(Summary!D55) -> 0 | G24: =ext_imp(Summary!D55) -> 0 | L24: 0 | M24: 0 | N24: =+AH66 -> 0.001 | O24: Ave % Motor Loading: | Q24: =+G9 -> 100 | R24: % | S24: Ih @ PCC = | U24: =+U15*P27/100 -> 0.0001609765171 | V24: Amps | X24: 23 | Y24: 1380 | Z24: 5.488867537e-05 | AA24: 0.0006206362952 | AB24: =+HLOOKUP($U$17,$Q$53:$Y$60,7,1)*O60 -> 2 | AC24: 1.361689248 | AD24: 0.000542931884 | AE24: 32 | AF24: 1.3640594 | AG24: 0 | AH24: 0 | AI24: 0 | AJ24: 0 | AK24: 0 | AL24: 0 | AM24: 0 | AN24: 0 | AO24: 0 | AP24: 0 | AQ24: 0 | AR24: 0 | AS24: 0 | AT24: 0 | AU24: 0 | AV24: 0 | AW24: 0 | AX24: 0 | AY24: 0 | AZ24: 0 | BA24: 0 | BB24: 0 | BC24: 0 | BD24: 0 | BN24: 1.361336726 | BO24: 1.362696703 | BP24: 0 | BQ24: 0 | BR24: 0 | BS24: 0 | BT24: 0 | BU24: 0 | BV24: 0 | BW24: 0 | BX24: 0 | BY24: 0 | BZ24: 0 | CA24: 0 | CB24: 0 | CC24: 0 | CD24: 0 | CE24: 0 | CF24: 0 | CG24: 0 | CI24: %I13th | CJ24: 57.62607168 | CK24: 19.00883341 | CL24: 6.081107448 | CM24: 6.420350866 | CN24: 4.053836065 | CO24: 3.136813926 | CP24: 3.268788657 | CQ24: 3.192701993 | CR24: 3.159032356 | CS24: 3.111440501 | CT24: 2.94139905 | CU24: 2.689138192 | CV24: 2.412911387 | CW24: 1.901913214 | CX24: 1.973131667 | CY24: 1.973131667 | CZ24: 1.973131667 | DA24: 1.973131667 | DB24: 13 | DC24: 57.62607168 | DD24: 19.00883341 | DE24: 6.081107448 | DF24: 6.420350866 | DG24: 4.053836065 | DH24: 3.136813926 | DI24: 3.268788657 | DJ24: 3.192701993 | DK24: 3.159032356 | DL24: 3.111440501 | DM24: 2.94139905 | DN24: 2.689138192 | DO24: 2.412911387 | DP24: 1.901913214 | DQ24: 1.625834731 | DR24: 1.625834731 | DS24: 1.625834731 | DT24: 13 | EM24: 23 | EN24: 0.0006206362952 | EO24: 0.0002037651984 | EP24: 23 | EQ24: 23 | ER24: 5.488867537e-05 | ES24: 23 | ET24: 0.0006206362952 | EV24: 23 | EW24: 0.000542931884 | EX24: 0.0001559359912 | EY24: 2.947750307e-07
A25: 4 | B25: =Summary!B56 -> 0 | C25: 0 | D25: =convtype(Summary!D56) -> 0 | E25: =Summary!C56 -> 0 | F25: =int_imp(Summary!D56) -> 0 | G25: =ext_imp(Summary!D56) -> 0 | L25: 0 | M25: 0 | N25: =+AI66 -> 0.001 | O25: =+IF((P30<R30), IF((P27<R28),"Meets IEEE-519: %TDD at PCC", IF((P27<R29), "Meets IEEE-519: %TDD at T1 PRI","Results: Fail IEEE-519" )),"Results: Fail IEEE-519") -> Meets IEEE-519: %TDD at PCC | S25: Irms @ PCC = | U25: =+U16 -> 0.03987226231 | V25: Amps | X25: 24 | Y25: 1440 | Z25: 2.437491817e-07 | AA25: 2.641278404e-06 | AB25: =0.25*HLOOKUP($U$17,$Q$53:$Y$60,7,1) -> 0.5 | AC25: 0.005795021065 | AD25: 2.310587168e-06 | AE25: 33 | AF25: 0.005805107857 | AG25: 0 | AH25: 0 | AI25: 0 | AJ25: 0 | AK25: 0 | AL25: 0 | AM25: 0 | AN25: 0 | AO25: 0 | AP25: 0 | AQ25: 0 | AR25: 0 | AS25: 0 | AT25: 0 | AU25: 0 | AV25: 0 | AW25: 0 | AX25: 0 | AY25: 0 | AZ25: 0 | BA25: 0 | BB25: 0 | BC25: 0 | BD25: 0 | BN25: 0.005793520816 | BO25: 0.005799308549 | BP25: 0 | BQ25: 0 | BR25: 0 | BS25: 0 | BT25: 0 | BU25: 0 | BV25: 0 | BW25: 0 | BX25: 0 | BY25: 0 | BZ25: 0 | CA25: 0 | CB25: 0 | CC25: 0 | CD25: 0 | CE25: 0 | CF25: 0 | CG25: 0 | CI25: %I14th | CJ25: 0.2092740393 | CK25: 0.05560261127 | CL25: 0.04015068098 | CM25: 0.0113640226 | CN25: 0.01580869343 | CO25: 0.01130057166 | CP25: 0.01398644435 | CQ25: 0.01372655014 | CR25: 0.01292271078 | CS25: 0.006757339578 | CT25: 0.006054116397 | CU25: 0.0008856614364 | CV25: 0.004585643414 | CW25: 0.002376904909 | CX25: 0.002168791794 | CY25: 0.002168791794 | CZ25: 0.002168791794 | DA25: 0.002168791794 | DB25: 14 | DC25: 0.2092740393 | DD25: 0.05560261127 | DE25: 0.04015068098 | DF25: 0.0113640226 | DG25: 0.01580869343 | DH25: 0.01130057166 | DI25: 0.01398644435 | DJ25: 0.01372655014 | DK25: 0.01292271078 | DL25: 0.006757339578 | DM25: 0.006054116397 | DN25: 0.0008856614364 | DO25: 0.004585643414 | DP25: 0.002376904909 | DQ25: 0.003025269965 | DR25: 0.003025269965 | DS25: 0.003025269965 | DT25: 14 | EM25: 24 | EN25: 2.641278404e-06 | EO25: 4.018378526e-09 | EP25: 24 | EQ25: 24 | ER25: 2.437491817e-07 | ES25: 24 | ET25: 2.641278404e-06 | EV25: 24 | EW25: 2.310587168e-06 | EX25: 3.075156324e-09 | EY25: 5.338813063e-12
A26: 5 | B26: =Summary!B57 -> 0 | C26: 0 | D26: =convtype(Summary!D57) -> 0 | E26: =Summary!C57 -> 0 | F26: =int_imp(Summary!D57) -> 0 | G26: =ext_imp(Summary!D57) -> 0 | L26: 0 | M26: 0 | N26: =+AJ66 -> 0.001 | O26: Ithdf: | P26: =100*U24/U23 -> 0.4037338736 | Q26: IEEE-519 Limits: | S26: K factor = | U26: =EX205/EY205 -> 1.0000011 | X26: 25 | Y26: 1500 | Z26: 4.461332001e-05 | AA26: 0.0004640948944 | AB26: =+HLOOKUP($U$17,$Q$53:$Y$60,7,1)*O60 -> 2 | AC26: 1.018234081 | AD26: 0.000405989655 | AE26: 34 | AF26: 1.020006416 | AG26: 0 | AH26: 0 | AI26: 0 | AJ26: 0 | AK26: 0 | AL26: 0 | AM26: 0 | AN26: 0 | AO26: 0 | AP26: 0 | AQ26: 0 | AR26: 0 | AS26: 0 | AT26: 0 | AU26: 0 | AV26: 0 | AW26: 0 | AX26: 0 | AY26: 0 | AZ26: 0 | BA26: 0 | BB26: 0 | BC26: 0 | BD26: 0 | BN26: 1.017970475 | BO26: 1.018987428 | BP26: 0 | BQ26: 0 | BR26: 0 | BS26: 0 | BT26: 0 | BU26: 0 | BV26: 0 | BW26: 0 | BX26: 0 | BY26: 0 | BZ26: 0 | CA26: 0 | CB26: 0 | CC26: 0 | CD26: 0 | CE26: 0 | CF26: 0 | CG26: 0 | CI26: %I15th | CJ26: 1.136851568 | CK26: 0.2309561097 | CL26: 0.4593501047 | CM26: 0.3397947946 | CN26: 0.1987787464 | CO26: 0.6117370589 | CP26: 0.7739736036 | CQ26: 0.4768981811 | CR26: 0.3244544498 | CS26: 0.2459073765 | CT26: 0.178637617 | CU26: 0.1523859015 | CV26: 0.1387958787 | CW26: 0.1084993015 | CX26: 0.1043870826 | CY26: 0.1043870826 | CZ26: 0.1043870826 | DA26: 0.1043870826 | DB26: 15 | DC26: 1.136851568 | DD26: 0.2309561097 | DE26: 0.4593501047 | DF26: 0.3397947946 | DG26: 0.1987787464 | DH26: 0.6117370589 | DI26: 0.7739736036 | DJ26: 0.4768981811 | DK26: 0.3244544498 | DL26: 0.2459073765 | DM26: 0.178637617 | DN26: 0.1523859015 | DO26: 0.1387958787 | DP26: 0.1084993015 | DQ26: 0.08978931202 | DR26: 0.08978931202 | DS26: 0.08978931202 | DT26: 15 | EM26: 25 | EN26: 0.0004640948944 | EO26: 0.0001346150444 | EP26: 25 | EQ26: 25 | ER26: 4.461332001e-05 | ES26: 25 | ET26: 0.0004640948944 | EV26: 25 | EW26: 0.000405989655 | EX26: 0.00010301725 | EY26: 1.648275999e-07
A27: 6 | B27: =Summary!B58 -> 0 | C27: 0 | D27: =convtype(Summary!D58) -> 0 | E27: =Summary!C58 -> 0 | F27: =int_imp(Summary!D58) -> 0 | G27: =ext_imp(Summary!D58) -> 0 | L27: 0 | M27: 0 | N27: =+AK66 -> 0.001 | O27: TDD | P27: =(SQRT(SUMSQ(AA3:AA51)))/100 -> 0.0001840154763 | Q27: % TDD Limit | S27: Disp PF = | U27: =HLOOKUP($U$22,$CI$3:$DA$750,6+52*($D22-1),1)+$AF74*(HLOOKUP($AF73+1,$CI$1:$DA$750,8+52*($D22-1),0)-HLOOKUP($AF73,$CI$1:$DA$750,8+52*($D22-1),0)) -> 0.9679976781 | X27: 26 | Y27: 1560 | Z27: 5.576752885e-07 | AA27: 5.578151539e-06 | AB27: =0.25*HLOOKUP($U$17,$Q$53:$Y$60,7,1) -> 0.5 | AC27: 0.01223858327 | AD27: 4.879760252e-06 | AE27: 35 | AF27: 0.0122598857 | AG27: 0 | AH27: 0 | AI27: 0 | AJ27: 0 | AK27: 0 | AL27: 0 | AM27: 0 | AN27: 0 | AO27: 0 | AP27: 0 | AQ27: 0 | AR27: 0 | AS27: 0 | AT27: 0 | AU27: 0 | AV27: 0 | AW27: 0 | AX27: 0 | AY27: 0 | AZ27: 0 | BA27: 0 | BB27: 0 | BC27: 0 | BD27: 0 | BN27: 0.01223541487 | BO27: 0.01224763806 | BP27: 0 | BQ27: 0 | BR27: 0 | BS27: 0 | BT27: 0 | BU27: 0 | BV27: 0 | BW27: 0 | BX27: 0 | BY27: 0 | BZ27: 0 | CA27: 0 | CB27: 0 | CC27: 0 | CD27: 0 | CE27: 0 | CF27: 0 | CG27: 0 | CI27: %I16th | CJ27: 0.2126048054 | CK27: 0.05525105981 | CL27: 0.02954906005 | CM27: 0.01914926035 | CN27: 0.008889408421 | CO27: 0.009800450365 | CP27: 0.00933551076 | CQ27: 0.01117650641 | CR27: 0.01079781252 | CS27: 0.004925845976 | CT27: 0.001541236233 | CU27: 0.001770727853 | CV27: 0.003890546751 | CW27: 0.003127005179 | CX27: 0.002754688547 | CY27: 0.002754688547 | CZ27: 0.002754688547 | DA27: 0.002754688547 | DB27: 16 | DC27: 0.2126048054 | DD27: 0.05525105981 | DE27: 0.02954906005 | DF27: 0.01914926035 | DG27: 0.008889408421 | DH27: 0.009800450365 | DI27: 0.00933551076 | DJ27: 0.01117650641 | DK27: 0.01079781252 | DL27: 0.004925845976 | DM27: 0.001541236233 | DN27: 0.001770727853 | DO27: 0.003890546751 | DP27: 0.003127005179 | DQ27: 0.004585191776 | DR27: 0.004585191776 | DS27: 0.004585191776 | DT27: 16 | EM27: 26 | EN27: 5.578151539e-06 | EO27: 2.103426363e-08 | EP27: 26 | EQ27: 26 | ER27: 5.576752885e-07 | ES27: 26 | ET27: 5.578151539e-06 | EV27: 26 | EW27: 4.879760252e-06 | EX27: 1.609695264e-08 | EY27: 2.381206012e-11
A28: 7 | B28: =Summary!B59 -> 0 | C28: 0 | D28: =convtype(Summary!D59) -> 0 | E28: =Summary!C59 -> 0 | F28: =int_imp(Summary!D59) -> 0 | G28: =ext_imp(Summary!D59) -> 0 | L28: 0 | M28: 0 | N28: =+AL66 -> 0.001 | Q28: @ PCC | R28: =(+HLOOKUP(U17,Q53:Y54,2,1))/100 -> 0.15 | S28: Act PF = | U28: =+IF(U27=0,1,U27)*U23/U25 -> 0.9679897889 | X28: 27 | Y28: 1620 | Z28: 1.926349588e-05 | AA28: 0.0001855468543 | AB28: =0.25*HLOOKUP($U$17,$Q$53:$Y$60,7,1) -> 0.5 | AC28: 0.4070937497 | AD28: 0.0001623161648 | AE28: 36 | AF28: 0.4078023356 | AG28: 0 | AH28: 0 | AI28: 0 | AJ28: 0 | AK28: 0 | AL28: 0 | AM28: 0 | AN28: 0 | AO28: 0 | AP28: 0 | AQ28: 0 | AR28: 0 | AS28: 0 | AT28: 0 | AU28: 0 | AV28: 0 | AW28: 0 | AX28: 0 | AY28: 0 | AZ28: 0 | BA28: 0 | BB28: 0 | BC28: 0 | BD28: 0 | BN28: 0.4069883589 | BO28: 0.4073949406 | BP28: 0 | BQ28: 0 | BR28: 0 | BS28: 0 | BT28: 0 | BU28: 0 | BV28: 0 | BW28: 0 | BX28: 0 | BY28: 0 | BZ28: 0 | CA28: 0 | CB28: 0 | CC28: 0 | CD28: 0 | CE28: 0 | CF28: 0 | CG28: 0 | CI28: %I17th | CJ28: 38.30586843 | CK28: 5.299990369 | CL28: 6.257800744 | CM28: 3.651615692 | CN28: 3.936136861 | CO28: 3.536588864 | CP28: 2.795496227 | CQ28: 2.461747338 | CR28: 2.128105759 | CS28: 1.850567348 | CT28: 1.532482889 | CU28: 1.425173957 | CV28: 1.411762287 | CW28: 1.348578945 | CX28: 1.351686482 | CY28: 1.351686482 | CZ28: 1.351686482 | DA28: 1.351686482 | DB28: 17 | DC28: 38.30586843 | DD28: 5.299990369 | DE28: 6.257800744 | DF28: 3.651615692 | DG28: 3.936136861 | DH28: 3.536588864 | DI28: 2.795496227 | DJ28: 2.461747338 | DK28: 2.128105759 | DL28: 1.850567348 | DM28: 1.532482889 | DN28: 1.425173957 | DO28: 1.411762287 | DP28: 1.348578945 | DQ28: 1.22046531 | DR28: 1.22046531 | DS28: 1.22046531 | DT28: 17 | EM28: 27 | EN28: 0.0001855468543 | EO28: 2.509774603e-05 | EP28: 27 | EQ28: 27 | ER28: 1.926349588e-05 | ES28: 27 | ET28: 0.0001855468543 | EV28: 27 | EW28: 0.0001623161648 | EX28: 1.920662574e-05 | EY28: 2.634653737e-08
A29: 8 | B29: =Summary!B60 -> 0 | C29: 0 | D29: =convtype(Summary!D60) -> 0 | E29: =Summary!C60 -> 0 | F29: =int_imp(Summary!D60) -> 0 | G29: =ext_imp(Summary!D60) -> 0 | L29: 0 | M29: 0 | N29: =+AM66 -> 0.001 | Q29: @ T1 Pri | R29: =(+HLOOKUP(1/(1/M3+1/M4+1/M5)/I7*(K7/G6),Q53:Y54,2,1))/100 -> 0.15 | S29: Vrms @ PCC = | U29: =(HLOOKUP($U$22,$CI$3:$DA$750,9+52*($D22-1),1)+$AF74*(HLOOKUP($AF73+1,$CI$1:$DA$750,11+52*($D22-1),0)-HLOOKUP($AF73,$CI$1:$DA$750,11+52*($D22-1),0)))*U11 -> 13041.5387 | V29: Volts AC | X29: 28 | Y29: 1680 | Z29: 6.148816835e-07 | AA29: 5.71104761e-06 | AB29: =0.25*HLOOKUP($U$17,$Q$53:$Y$60,7,1) -> 0.5 | AC29: 0.01253016007 | AD29: 4.996017574e-06 | AE29: 37 | AF29: 0.01255197002 | AG29: 0 | AH29: 0 | AI29: 0 | AJ29: 0 | AK29: 0 | AL29: 0 | AM29: 0 | AN29: 0 | AO29: 0 | AP29: 0 | AQ29: 0 | AR29: 0 | AS29: 0 | AT29: 0 | AU29: 0 | AV29: 0 | AW29: 0 | AX29: 0 | AY29: 0 | AZ29: 0 | BA29: 0 | BB29: 0 | BC29: 0 | BD29: 0 | BN29: 0.01252691619 | BO29: 0.01253943059 | BP29: 0 | BQ29: 0 | BR29: 0 | BS29: 0 | BT29: 0 | BU29: 0 | BV29: 0 | BW29: 0 | BX29: 0 | BY29: 0 | BZ29: 0 | CA29: 0 | CB29: 0 | CC29: 0 | CD29: 0 | CE29: 0 | CF29: 0 | CG29: 0 | CI29: %I18th | CJ29: 0.006807331716 | CK29: 0.004485502397 | CL29: 0.003708045225 | CM29: 0.004189179426 | CN29: 0.002580065286 | CO29: 0.005132345237 | CP29: 0.003262466089 | CQ29: 0.0009724896302 | CR29: 0.0005382496718 | CS29: 0.003420780047 | CT29: 0.002302219322 | CU29: 0.0007176698521 | CV29: 0.001674797911 | CW29: 0.00102433996 | CX29: 0.002764588274 | CY29: 0.002764588274 | CZ29: 0.002764588274 | DA29: 0.002764588274 | DB29: 18 | DC29: 0.006807331716 | DD29: 0.004485502397 | DE29: 0.003708045225 | DF29: 0.004189179426 | DG29: 0.002580065286 | DH29: 0.005132345237 | DI29: 0.003262466089 | DJ29: 0.0009724896302 | DK29: 0.0005382496718 | DL29: 0.003420780047 | DM29: 0.002302219322 | DN29: 0.0007176698521 | DO29: 0.001674797911 | DP29: 0.00102433996 | DQ29: 0.00213667115 | DR29: 0.00213667115 | DS29: 0.00213667115 | DT29: 18 | EM29: 28 | EN29: 5.71104761e-06 | EO29: 2.55709948e-08 | EP29: 28 | EQ29: 28 | ER29: 6.148816835e-07 | ES29: 28 | ET29: 5.71104761e-06 | EV29: 28 | EW29: 4.996017574e-06 | EX29: 1.956879022e-08 | EY29: 2.49601916e-11
A30: 9 | B30: =Summary!B61 -> 0 | C30: 0 | D30: =convtype(Summary!D61) -> 0 | E30: =Summary!C61 -> 0 | F30: =int_imp(Summary!D61) -> 0 | G30: =ext_imp(Summary!D61) -> 0 | L30: 0 | M30: 0 | N30: =+AN66 -> 0.001 | O30: Vthdf: | P30: =SQRT(SUMSQ(Z3:Z51))/100 -> 4.17178158e-06 | Q30: Vthd Limit | R30: =(+IF(LEFT(D5,1)="S",3,IF(LEFT(D5,1)="D",10,5)))/100 -> 0.05 | S30: Vbus @ D1 = | U30: =(HLOOKUP($AF69,$CI$3:$DA$750,10+52*($D22-1),1)+$AF74*(HLOOKUP($AF73+1,$CI$1:$DA$750,12+52*($D22-1),0)-HLOOKUP($AF73,$CI$1:$DA$750,12+52*($D22-1),0)))*N22 -> 627.3510837 | V30: Volts DC | X30: 29 | Y30: 1740 | Z30: 3.849376698e-05 | AA30: 0.0003452030871 | AB30: =+HLOOKUP($U$17,$Q$53:$Y$60,7,1)*O59 -> 2 | AC30: 0.7573829242 | AD30: 0.000301983245 | AE30: 38 | AF30: 0.7587012221 | AG30: 0 | AH30: 0 | AI30: 0 | AJ30: 0 | AK30: 0 | AL30: 0 | AM30: 0 | AN30: 0 | AO30: 0 | AP30: 0 | AQ30: 0 | AR30: 0 | AS30: 0 | AT30: 0 | AU30: 0 | AV30: 0 | AW30: 0 | AX30: 0 | AY30: 0 | AZ30: 0 | BA30: 0 | BB30: 0 | BC30: 0 | BD30: 0 | BN30: 0.7571868484 | BO30: 0.7579432788 | BP30: 0 | BQ30: 0 | BR30: 0 | BS30: 0 | BT30: 0 | BU30: 0 | BV30: 0 | BW30: 0 | BX30: 0 | BY30: 0 | BZ30: 0 | CA30: 0 | CB30: 0 | CC30: 0 | CD30: 0 | CE30: 0 | CF30: 0 | CG30: 0 | CI30: %I19th | CJ30: 28.12675018 | CK30: 5.769423573 | CL30: 4.492344414 | CM30: 2.46181814 | CN30: 1.561203395 | CO30: 1.435344928 | CP30: 1.815254956 | CQ30: 1.753338951 | CR30: 1.644120558 | CS30: 1.501509472 | CT30: 1.197876053 | CU30: 0.9649343464 | CV30: 0.8623053891 | CW30: 0.8714313454 | CX30: 0.8942388739 | CY30: 0.8942388739 | CZ30: 0.8942388739 | DA30: 0.8942388739 | DB30: 19 | DC30: 28.12675018 | DD30: 5.769423573 | DE30: 4.492344414 | DF30: 2.46181814 | DG30: 1.561203395 | DH30: 1.435344928 | DI30: 1.815254956 | DJ30: 1.753338951 | DK30: 1.644120558 | DL30: 1.501509472 | DM30: 1.197876053 | DN30: 0.9649343464 | DO30: 0.8623053891 | DP30: 0.8714313454 | DQ30: 0.8708201437 | DR30: 0.8708201437 | DS30: 0.8708201437 | DT30: 19 | EM30: 29 | EN30: 0.0003452030871 | EO30: 0.0001002179091 | EP30: 29 | EQ30: 29 | ER30: 3.849376698e-05 | ES30: 29 | ET30: 0.0003452030871 | EV30: 29 | EW30: 0.000301983245 | EX30: 7.669405331e-05 | EY30: 9.119388028e-08
A31: 10 | B31: =Summary!B62 -> 0 | C31: 0 | D31: =convtype(Summary!D62) -> 0 | E31: =Summary!C62 -> 0 | F31: =int_imp(Summary!D62) -> 0 | G31: =ext_imp(Summary!D62) -> 0 | L31: 0 | M31: 0 | N31: =+AO66 -> 0.001 | X31: 30 | Y31: 1800 | Z31: 2.416034132e-07 | AA31: 2.094421399e-06 | AB31: =0.25*HLOOKUP($U$17,$Q$53:$Y$60,7,1) -> 0.5 | AC31: 0.00459520515 | AD31: 1.832197318e-06 | AE31: 39 | AF31: 0.004603203547 | AG31: 0 | AH31: 0 | AI31: 0 | AJ31: 0 | AK31: 0 | AL31: 0 | AM31: 0 | AN31: 0 | AO31: 0 | AP31: 0 | AQ31: 0 | AR31: 0 | AS31: 0 | AT31: 0 | AU31: 0 | AV31: 0 | AW31: 0 | AX31: 0 | AY31: 0 | AZ31: 0 | BA31: 0 | BB31: 0 | BC31: 0 | BD31: 0 | BN31: 0.004594015516 | BO31: 0.004598604942 | BP31: 0 | BQ31: 0 | BR31: 0 | BS31: 0 | BT31: 0 | BU31: 0 | BV31: 0 | BW31: 0 | BX31: 0 | BY31: 0 | BZ31: 0 | CA31: 0 | CB31: 0 | CC31: 0 | CD31: 0 | CE31: 0 | CF31: 0 | CG31: 0 | CI31: %I20th | CJ31: 0.1622802561 | CK31: 0.03430459543 | CL31: 0.03603503131 | CM31: 0.0134144574 | CN31: 0.01382064814 | CO31: 0.01255364529 | CP31: 0.01151921606 | CQ31: 0.01248258362 | CR31: 0.01065958693 | CS31: 0.003999062157 | CT31: 0.0042899246 | CU31: 0.002363135941 | CV31: 0.002037213983 | CW31: 0.002609937922 | CX31: 0.003316401447 | CY31: 0.003316401447 | CZ31: 0.003316401447 | DA31: 0.003316401447 | DB31: 20 | DC31: 0.1622802561 | DD31: 0.03430459543 | DE31: 0.03603503131 | DF31: 0.0134144574 | DG31: 0.01382064814 | DH31: 0.01255364529 | DI31: 0.01151921606 | DJ31: 0.01248258362 | DK31: 0.01065958693 | DL31: 0.003999062157 | DM31: 0.0042899246 | DN31: 0.002363135941 | DO31: 0.002037213983 | DP31: 0.002609937922 | DQ31: 0.003316574081 | DR31: 0.003316574081 | DS31: 0.003316574081 | DT31: 20 | EM31: 30 | EN31: 2.094421399e-06 | EO31: 3.947940895e-09 | EP31: 30 | EQ31: 30 | ER31: 2.416034132e-07 | ES31: 30 | ET31: 2.094421399e-06 | EV31: 30 | EW31: 1.832197318e-06 | EX31: 3.021252312e-09 | EY31: 3.356947013e-12
A32: 11 | B32: =Summary!B63 -> 0 | C32: 0 | D32: =convtype(Summary!D63) -> 0 | E32: =Summary!C63 -> 0 | F32: =int_imp(Summary!D63) -> 0 | G32: =ext_imp(Summary!D63) -> 0 | L32: 0 | M32: 0 | N32: =+AP66 -> 0.001 | X32: 31 | Y32: 1860 | Z32: 3.077766969e-05 | AA32: 0.0002582000348 | AB32: =+HLOOKUP($U$17,$Q$53:$Y$60,7,1)*O59 -> 2 | AC32: 0.5664963747 | AD32: 0.0002258730796 | AE32: 40 | AF32: 0.5674824162 | AG32: 0 | AH32: 0 | AI32: 0 | AJ32: 0 | AK32: 0 | AL32: 0 | AM32: 0 | AN32: 0 | AO32: 0 | AP32: 0 | AQ32: 0 | AR32: 0 | AS32: 0 | AT32: 0 | AU32: 0 | AV32: 0 | AW32: 0 | AX32: 0 | AY32: 0 | AZ32: 0 | BA32: 0 | BB32: 0 | BC32: 0 | BD32: 0 | BN32: 0.5663497167 | BO32: 0.5669155007 | BP32: 0 | BQ32: 0 | BR32: 0 | BS32: 0 | BT32: 0 | BU32: 0 | BV32: 0 | BW32: 0 | BX32: 0 | BY32: 0 | BZ32: 0 | CA32: 0 | CB32: 0 | CC32: 0 | CD32: 0 | CE32: 0 | CF32: 0 | CG32: 0 | CI32: %I21th | CJ32: 0.6232931632 | CK32: 0.3865291236 | CL32: 0.2884858781 | CM32: 0.2327624797 | CN32: 0.1269596271 | CO32: 0.4315683139 | CP32: 0.5123286195 | CQ32: 0.3363991948 | CR32: 0.2497627408 | CS32: 0.2014366495 | CT32: 0.1488607132 | CU32: 0.1105708212 | CV32: 0.08690958776 | CW32: 0.06469840402 | CX32: 0.06207334554 | CY32: 0.06207334554 | CZ32: 0.06207334554 | DA32: 0.06207334554 | DB32: 21 | DC32: 0.6232931632 | DD32: 0.3865291236 | DE32: 0.2884858781 | DF32: 0.2327624797 | DG32: 0.1269596271 | DH32: 0.4315683139 | DI32: 0.5123286195 | DJ32: 0.3363991948 | DK32: 0.2497627408 | DL32: 0.2014366495 | DM32: 0.1488607132 | DN32: 0.1105708212 | DO32: 0.08690958776 | DP32: 0.06469840402 | DQ32: 0.06019464262 | DR32: 0.06019464262 | DS32: 0.06019464262 | DT32: 21 | EM32: 31 | EN32: 0.0002582000348 | EO32: 6.406723489e-05 | EP32: 31 | EQ32: 31 | ER32: 3.077766969e-05 | ES32: 31 | ET32: 0.0002582000348 | EV32: 31 | EW32: 0.0002258730796 | EX32: 4.902892081e-05 | EY32: 5.101864809e-08
A33: 12 | B33: =Summary!B64 -> 0 | C33: 0 | D33: =convtype(Summary!D64) -> 0 | E33: =Summary!C64 -> 0 | F33: =int_imp(Summary!D64) -> 0 | G33: =ext_imp(Summary!D64) -> 0 | L33: 0 | M33: 0 | N33: =+AQ66 -> 0.001 | X33: 32 | Y33: 1920 | Z33: 4.984924217e-07 | AA33: 4.051266733e-06 | AB33: =0.25*HLOOKUP($U$17,$Q$53:$Y$60,7,1) -> 0.5 | AC33: 0.008888565484 | AD33: 3.544043261e-06 | AE33: 41 | AF33: 0.008904036888 | AG33: 0 | AH33: 0 | AI33: 0 | AJ33: 0 | AK33: 0 | AL33: 0 | AM33: 0 | AN33: 0 | AO33: 0 | AP33: 0 | AQ33: 0 | AR33: 0 | AS33: 0 | AT33: 0 | AU33: 0 | AV33: 0 | AW33: 0 | AX33: 0 | AY33: 0 | AZ33: 0 | BA33: 0 | BB33: 0 | BC33: 0 | BD33: 0 | BN33: 0.00888626436 | BO33: 0.008895141747 | BP33: 0 | BQ33: 0 | BR33: 0 | BS33: 0 | BT33: 0 | BU33: 0 | BV33: 0 | BW33: 0 | BX33: 0 | BY33: 0 | BZ33: 0 | CA33: 0 | CB33: 0 | CC33: 0 | CD33: 0 | CE33: 0 | CF33: 0 | CG33: 0 | CI33: %I22th | CJ33: 0.1019662865 | CK33: 0.03870208842 | CL33: 0.03294082314 | CM33: 0.01439708823 | CN33: 0.008043313114 | CO33: 0.009141148279 | CP33: 0.01332829751 | CQ33: 0.009933433943 | CR33: 0.008777694955 | CS33: 0.002842269044 | CT33: 0.001769317425 | CU33: 0.002368396503 | CV33: 0.002268774836 | CW33: 0.003295689339 | CX33: 0.00318457332 | CY33: 0.00318457332 | CZ33: 0.00318457332 | DA33: 0.00318457332 | DB33: 22 | DC33: 0.1019662865 | DD33: 0.03870208842 | DE33: 0.03294082314 | DF33: 0.01439708823 | DG33: 0.008043313114 | DH33: 0.009141148279 | DI33: 0.01332829751 | DJ33: 0.009933433943 | DK33: 0.008777694955 | DL33: 0.002842269044 | DM33: 0.001769317425 | DN33: 0.002368396503 | DO33: 0.002268774836 | DP33: 0.003295689339 | DQ33: 0.005447600692 | DR33: 0.005447600692 | DS33: 0.005447600692 | DT33: 22 | EM33: 32 | EN33: 4.051266733e-06 | EO33: 1.680666843e-08 | EP33: 32 | EQ33: 32 | ER33: 4.984924217e-07 | ES33: 32 | ET33: 4.051266733e-06 | EV33: 32 | EW33: 3.544043261e-06 | EX33: 1.286168846e-08 | EY33: 1.256024264e-11
A34: 13 | B34: =Summary!B65 -> 0 | C34: 0 | D34: =convtype(Summary!D65) -> 0 | E34: =Summary!C65 -> 0 | F34: =int_imp(Summary!D65) -> 0 | G34: =ext_imp(Summary!D65) -> 0 | L34: 0 | M34: 0 | N34: =+AR66 -> 0.001 | X34: =+X33+1 -> 33 | Y34: =+X34*$J$9 -> 1980 | Z34: 1.971001273e-05 | AA34: 0.0001553299565 | AB34: =0.25*HLOOKUP($U$17,$Q$53:$Y$60,7,1) -> 0.5 | AC34: 0.3407972323 | AD34: 0.000135882459 | AE34: 42 | AF34: 0.3413904227 | AG34: 0 | AH34: 0 | AI34: 0 | AJ34: 0 | AK34: 0 | AL34: 0 | AM34: 0 | AN34: 0 | AO34: 0 | AP34: 0 | AQ34: 0 | AR34: 0 | AS34: 0 | AT34: 0 | AU34: 0 | AV34: =(HLOOKUP(AV$69,$CI$3:$DA$750,$AE34+52*(AV$75-1),1)-AV$74*(HLOOKUP(AV$73,$CI$1:$DA$750,$AE34+2+52*(AV$75-1),0)-HLOOKUP(AV$73+1,$CI$1:$DA$750,$AE34+2+52*(AV$75-1),0)))*AV$65 -> 0 | AW34: 0 | AX34: 0 | AY34: 0 | AZ34: 0 | BA34: 0 | BB34: 0 | BC34: 0 | BD34: 0 | BN34: 0.3407090047 | BO34: 0.3410493733 | BP34: 0 | BQ34: 0 | BR34: 0 | BS34: 0 | BT34: 0 | BU34: 0 | BV34: 0 | BW34: 0 | BX34: 0 | BY34: 0 | BZ34: 0 | CA34: 0 | CB34: 0 | CC34: 0 | CD34: 0 | CE34: 0 | CF34: 0 | CG34: 0 | CI34: %I23th | CJ34: 14.11133625 | CK34: 4.550276277 | CL34: 2.81730699 | CM34: 2.067095269 | CN34: 2.292808791 | CO34: 1.947202094 | CP34: 1.364508943 | CQ34: 1.170902716 | CR34: 1.044962244 | CS34: 0.9866877628 | CT34: 0.9715191093 | CU34: 0.9149910963 | CV34: 0.8194123701 | CW34: 0.6415101152 | CX34: 0.6434739967 | CY34: 0.6434739967 | CZ34: 0.6434739967 | DA34: 0.6434739967 | DB34: 23 | DC34: 14.11133625 | DD34: 4.550276277 | DE34: 2.81730699 | DF34: 2.067095269 | DG34: 2.292808791 | DH34: 1.947202094 | DI34: 1.364508943 | DJ34: 1.170902716 | DK34: 1.044962244 | DL34: 0.9866877628 | DM34: 0.9715191093 | DN34: 0.9149910963 | DO34: 0.8194123701 | DP34: 0.6415101152 | DQ34: 0.5964265832 | DR34: 0.5964265832 | DS34: 0.5964265832 | DT34: 23 | EM34: =+X34 -> 33 | EN34: =+AA34 -> 0.0001553299565 | EO34: 2.627473357e-05 | EP34: 33 | EQ34: 33 | ER34: 1.971001273e-05 | ES34: 33 | ET34: 0.0001553299565 | EV34: 33 | EW34: 0.000135882459 | EX34: 2.010734245e-05 | EY34: 1.846404265e-08
A35: 14 | B35: =Summary!F53 -> 0 | C35: 0 | D35: =convtype(Summary!H53) -> 0 | E35: =Summary!G53 -> 0 | F35: =int_imp(Summary!H53) -> 0 | G35: =ext_imp(Summary!H53) -> 0 | L35: 0 | M35: 0 | N35: =+AS66 -> 0.001 | X35: 34 | Y35: 2040 | Z35: 1.299734096e-05 | AA35: 9.941635832e-05 | AB35: =0.25*HLOOKUP($U$17,$Q$53:$Y$60,7,1) -> 0.5 | AC35: 0.2181216072 | AD35: 8.696931059e-05 | AE35: 48 | AF35: 0.2185012689 | AG35: 0 | AH35: 0 | AI35: 0 | AJ35: 0 | AK35: 0 | AL35: 0 | AM35: 0 | AN35: 0 | AO35: 0 | AP35: 0 | AQ35: 0 | AR35: 0 | AS35: 0 | AT35: 0 | AU35: =(HLOOKUP(AU$69,$CI$3:$DA$750,$AE35+52*(AU$75-1),1)-AU$74*(HLOOKUP(AU$73,$CI$1:$DA$750,$AE35+2+52*(AU$75-1),0)-HLOOKUP(AU$73+1,$CI$1:$DA$750,$AE35+2+52*(AU$75-1),0)))*AU$65 -> 0 | AV35: 0 | AW35: 0 | AX35: 0 | AY35: 0 | AZ35: 0 | BA35: 0 | BB35: 0 | BC35: 0 | BD35: 0 | BN35: 0.2180651386 | BO35: 0.2182829859 | BP35: 0 | BQ35: 0 | BR35: 0 | BS35: 0 | BT35: 0 | BU35: 0 | BV35: 0 | BW35: 0 | BX35: 0 | BY35: 0 | BZ35: 0 | CA35: 0 | CB35: 0 | CC35: 0 | CD35: 0 | CE35: 0 | CF35: 0 | CG35: 0 | CI35: %I24th | CJ35: 0.0368244549 | CK35: 0.00983826816 | CL35: 0.002486944226 | CM35: 0.003782332002 | CN35: 0.003003566773 | CO35: 0.005323541733 | CP35: 0.005811670028 | CQ35: 0.002985522228 | CR35: 0.002327295792 | CS35: 0.003107526861 | CT35: 0.001664205947 | CU35: 0.0005046581411 | CV35: 0.002465272897 | CW35: 0.0005681598969 | CX35: 0.002910084522 | CY35: 0.002910084522 | CZ35: 0.002910084522 | DA35: 0.002910084522 | DB35: 24 | DC35: 0.0368244549 | DD35: 0.00983826816 | DE35: 0.002486944226 | DF35: 0.003782332002 | DG35: 0.003003566773 | DH35: 0.005323541733 | DI35: 0.005811670028 | DJ35: 0.002985522228 | DK35: 0.002327295792 | DL35: 0.003107526861 | DM35: 0.001664205947 | DN35: 0.0005046581411 | DO35: 0.002465272897 | DP35: 0.0005681598969 | DQ35: 0.0009224319412 | DR35: 0.0009224319412 | DS35: 0.0009224319412 | DT35: 24 | EM35: 34 | EN35: 9.941635832e-05 | EO35: 1.142545582e-05 | EP35: 34 | EQ35: 34 | ER35: =+Z35 -> 1.299734096e-05 | ES35: 34 | ET35: =+AA35 -> 9.941635832e-05 | EV35: 34 | EW35: 8.696931059e-05 | EX35: 8.743592097e-06 | EY35: 7.563660984e-09
A36: 15 | B36: =Summary!F54 -> 0 | C36: 0 | D36: =convtype(Summary!H54) -> 0 | E36: =Summary!G54 -> 0 | F36: =int_imp(Summary!H54) -> 0 | G36: =ext_imp(Summary!H54) -> 0 | L36: 0 | M36: 0 | N36: =+AT66 -> 0.001 | X36: 35 | Y36: 2100 | Z36: 3.163298802e-05 | AA36: 0.0002350468462 | AB36: =+HLOOKUP($U$17,$Q$53:$Y$60,8,1)*O62 -> 1 | AC36: 0.5156977859 | AD36: 0.0002056186981 | AE36: 43 | AF36: =(HLOOKUP(AF$69,$CI$3:$DA$750,$AE36+52*(AF$75-1),1)-AF$74*(HLOOKUP(AF$73,$CI$1:$DA$750,$AE36+2+52*(AF$75-1),0)-HLOOKUP(AF$73+1,$CI$1:$DA$750,$AE36+2+52*(AF$75-1),0)))*AF$65 -> 0.5165954075 | AG36: 0 | AH36: 0 | AI36: 0 | AJ36: 0 | AK36: 0 | AL36: 0 | AM36: 0 | AN36: 0 | AO36: 0 | AP36: 0 | AQ36: 0 | AR36: 0 | AS36: 0 | AT36: 0 | AU36: 0 | AV36: 0 | AW36: 0 | AX36: 0 | AY36: 0 | AZ36: 0 | BA36: 0 | BB36: 0 | BC36: 0 | BD36: 0 | BN36: 0.515564279 | BO36: 0.5160793282 | BP36: 0 | BQ36: 0 | BR36: 0 | BS36: 0 | BT36: 0 | BU36: 0 | BV36: 0 | BW36: 0 | BX36: 0 | BY36: 0 | BZ36: 0 | CA36: 0 | CB36: 0 | CC36: 0 | CD36: 0 | CE36: 0 | CF36: 0 | CG36: 0 | CI36: %I25th | CJ36: 9.146084719 | CK36: 3.328775593 | CL36: 2.476908264 | CM36: 1.406581624 | CN36: 0.9812541546 | CO36: 0.8751651594 | CP36: 1.020304752 | CQ36: 0.8918194513 | CR36: 0.7733539098 | CS36: 0.6809439622 | CT36: 0.6041078373 | CU36: 0.5962515934 | CV36: 0.5791119772 | CW36: 0.4758813192 | CX36: 0.4833285608 | CY36: 0.4833285608 | CZ36: 0.4833285608 | DA36: 0.4833285608 | DB36: 25 | DC36: 9.146084719 | DD36: 3.328775593 | DE36: 2.476908264 | DF36: 1.406581624 | DG36: 0.9812541546 | DH36: 0.8751651594 | DI36: 1.020304752 | DJ36: 0.8918194513 | DK36: 0.7733539098 | DL36: 0.6809439622 | DM36: 0.6041078373 | DN36: 0.5962515934 | DO36: 0.5791119772 | DP36: 0.4758813192 | DQ36: 0.4240603362 | DR36: 0.4240603362 | DS36: 0.4240603362 | DT36: 25 | EM36: 35 | EN36: 0.0002350468462 | EO36: 6.767759937e-05 | EP36: 35 | EQ36: 35 | ER36: 3.163298802e-05 | ES36: 35 | ET36: 0.0002350468462 | EV36: 35 | EW36: 0.0002056186981 | EX36: 5.179183503e-05 | EY36: 4.227904901e-08
A37: 16 | B37: =Summary!F55 -> 0 | C37: 0 | D37: =convtype(Summary!H55) -> 0 | E37: =Summary!G55 -> 0 | F37: =int_imp(Summary!H55) -> 0 | G37: =ext_imp(Summary!H55) -> 0 | L37: 0 | M37: 0 | N37: =+AU66 -> 0.001 | X37: 36 | Y37: 2160 | Z37: 1.376189043e-05 | AA37: 9.941635832e-05 | AB37: =0.25*HLOOKUP($U$17,$Q$53:$Y$60,8,1) -> 0.25 | AC37: 0.2181216072 | AD37: 8.696931059e-05 | AE37: 48 | AF37: 0.2185012689 | AG37: 0 | AH37: 0 | AI37: 0 | AJ37: 0 | AK37: 0 | AL37: 0 | AM37: 0 | AN37: 0 | AO37: 0 | AP37: 0 | AQ37: 0 | AR37: 0 | AS37: 0 | AT37: 0 | AU37: 0 | AV37: 0 | AW37: 0 | AX37: 0 | AY37: 0 | AZ37: 0 | BA37: 0 | BB37: 0 | BC37: 0 | BD37: 0 | BN37: 0.2180651386 | BO37: 0.2182829859 | BP37: 0 | BQ37: 0 | BR37: 0 | BS37: 0 | BT37: 0 | BU37: 0 | BV37: 0 | BW37: 0 | BX37: 0 | BY37: 0 | BZ37: 0 | CA37: 0 | CB37: 0 | CC37: 0 | CD37: 0 | CE37: 0 | CF37: 0 | CG37: 0 | CI37: %I26th | CJ37: 0.05082150422 | CK37: 0.05506254948 | CL37: 0.02656983822 | CM37: 0.01718071035 | CN37: 0.0144137653 | CO37: 0.01340051167 | CP37: 0.01226166758 | CQ37: 0.01149426133 | CR37: 0.01150216455 | CS37: 0.006358683567 | CT37: 0.005728336683 | CU37: 0.001415639154 | CV37: 0.00235923527 | CW37: 0.003048115693 | CX37: 0.002505817916 | CY37: 0.002505817916 | CZ37: 0.002505817916 | DA37: 0.002505817916 | DB37: 26 | DC37: 0.05082150422 | DD37: 0.05506254948 | DE37: 0.02656983822 | DF37: 0.01718071035 | DG37: 0.0144137653 | DH37: 0.01340051167 | DI37: 0.01226166758 | DJ37: 0.01149426133 | DK37: 0.01150216455 | DL37: 0.006358683567 | DM37: 0.005728336683 | DN37: 0.001415639154 | DO37: 0.00235923527 | DP37: 0.003048115693 | DQ37: 0.0009200795734 | DR37: 0.0009200795734 | DS37: 0.0009200795734 | DT37: 26 | EM37: 36 | EN37: 9.941635832e-05 | EO37: 1.280916154e-05 | EP37: 36 | EQ37: 36 | ER37: 1.376189043e-05 | ES37: 36 | ET37: 9.941635832e-05 | EV37: 36 | EW37: 8.696931059e-05 | EX37: 9.802504635e-06 | EY37: 7.563660984e-09
A38: 17 | B38: =Summary!F56 -> 0 | C38: 0 | D38: =convtype(Summary!H56) -> 0 | E38: =Summary!G56 -> 0 | F38: =int_imp(Summary!H56) -> 0 | G38: =ext_imp(Summary!H56) -> 0 | L38: 0 | M38: 0 | N38: =+AV66 -> 0.001 | X38: 37 | Y38: 2220 | Z38: 2.213052651e-05 | AA38: 0.0001555508104 | AB38: =+HLOOKUP($U$17,$Q$53:$Y$60,8,1)*O62 -> 1 | AC38: 0.3412817906 | AD38: 0.0001360756617 | AE38: 44 | AF38: 0.3418758244 | AG38: 0 | AH38: 0 | AI38: 0 | AJ38: 0 | AK38: 0 | AL38: 0 | AM38: 0 | AN38: 0 | AO38: 0 | AP38: 0 | AQ38: 0 | AR38: 0 | AS38: 0 | AT38: 0 | AU38: 0 | AV38: 0 | AW38: 0 | AX38: 0 | AY38: 0 | AZ38: 0 | BA38: 0 | BB38: 0 | BC38: 0 | BD38: 0 | BN38: 0.3411934375 | BO38: 0.3415342901 | BP38: 0 | BQ38: 0 | BR38: 0 | BS38: 0 | BT38: 0 | BU38: 0 | BV38: 0 | BW38: 0 | BX38: 0 | BY38: 0 | BZ38: 0 | CA38: 0 | CB38: 0 | CC38: 0 | CD38: 0 | CE38: 0 | CF38: 0 | CG38: 0 | CI38: %I27th | CJ38: 0.2123868036 | CK38: 0.2570740518 | CL38: 0.1607374132 | CM38: 0.1738096265 | CN38: 0.09119380622 | CO38: 0.3308837288 | CP38: 0.408092185 | CQ38: 0.2832619511 | CR38: 0.2056358248 | CS38: 0.1576050502 | CT38: 0.09937704351 | CU38: 0.07539162221 | CV38: 0.06801148596 | CW38: 0.05566647655 | CX38: 0.05335482102 | CY38: 0.05335482102 | CZ38: 0.05335482102 | DA38: 0.05335482102 | DB38: 27 | DC38: 0.2123868036 | DD38: 0.2570740518 | DE38: 0.1607374132 | DF38: 0.1738096265 | DG38: 0.09119380622 | DH38: 0.3308837288 | DI38: 0.408092185 | DJ38: 0.2832619511 | DK38: 0.2056358248 | DL38: 0.1576050502 | DM38: 0.09937704351 | DN38: 0.07539162221 | DO38: 0.06801148596 | DP38: 0.05566647655 | DQ38: 0.04491647942 | DR38: 0.04491647942 | DS38: 0.04491647942 | DT38: 27 | DW38: 0.1 | DX38: 0.5 | DY38: 1 | DZ38: 2 | EA38: 3 | EB38: 4 | EC38: 5 | ED38: 6 | EE38: 7 | EF38: 8 | EG38: 10 | EH38: 12 | EI38: 14 | EJ38: 18 | EK38: 21 | EM38: 37 | EN38: 0.0001555508104 | EO38: 3.312439878e-05 | EP38: 37 | EQ38: 37 | ER38: 2.213052651e-05 | ES38: 37 | ET38: 0.0001555508104 | EV38: 37 | EW38: 0.0001360756617 | EX38: 2.534920584e-05 | EY38: 1.851658571e-08
A39: 18 | B39: =Summary!F57 -> 0 | C39: 0 | D39: =convtype(Summary!H57) -> 0 | E39: =Summary!G57 -> 0 | F39: =int_imp(Summary!H57) -> 0 | G39: =ext_imp(Summary!H57) -> 0 | L39: 0 | M39: 0 | N39: =+AW66 -> 0.001 | X39: 38 | Y39: 2280 | Z39: 1.452643989e-05 | AA39: 9.941635832e-05 | AB39: =0.25*HLOOKUP($U$17,$Q$53:$Y$60,8,1) -> 0.25 | AC39: 0.2181216072 | AD39: 8.696931059e-05 | AE39: 48 | AF39: 0.2185012689 | AG39: 0 | AH39: 0 | AI39: 0 | AJ39: 0 | AK39: 0 | AL39: 0 | AM39: 0 | AN39: 0 | AO39: 0 | AP39: 0 | AQ39: 0 | AR39: 0 | AS39: 0 | AT39: 0 | AU39: 0 | AV39: 0 | AW39: 0 | AX39: 0 | AY39: 0 | AZ39: 0 | BA39: 0 | BB39: 0 | BC39: 0 | BD39: 0 | BN39: 0.2180651386 | BO39: 0.2182829859 | BP39: 0 | BQ39: 0 | BR39: 0 | BS39: 0 | BT39: 0 | BU39: 0 | BV39: 0 | BW39: 0 | BX39: 0 | BY39: 0 | BZ39: 0 | CA39: 0 | CB39: 0 | CC39: 0 | CD39: 0 | CE39: 0 | CF39: 0 | CG39: 0 | CI39: %I28th | CJ39: 0.01939262578 | CK39: 0.04710251852 | CL39: 0.02897141866 | CM39: 0.01187254126 | CN39: 0.006961113098 | CO39: 0.00853626819 | CP39: 0.01255665804 | CQ39: 0.01053765679 | CR39: 0.009293077573 | CS39: 0.003309013581 | CT39: 0.0008442950933 | CU39: 0.001753675684 | CV39: 0.001248638028 | CW39: 0.003229320765 | CX39: 0.002733392597 | CY39: 0.002733392597 | CZ39: 0.002733392597 | DA39: 0.002733392597 | DB39: 28 | DC39: 0.01939262578 | DD39: 0.04710251852 | DE39: 0.02897141866 | DF39: 0.01187254126 | DG39: 0.006961113098 | DH39: 0.00853626819 | DI39: 0.01255665804 | DJ39: 0.01053765679 | DK39: 0.009293077573 | DL39: 0.003309013581 | DM39: 0.0008442950933 | DN39: 0.001753675684 | DO39: 0.001248638028 | DP39: 0.003229320765 | DQ39: 0.003155111031 | DR39: 0.003155111031 | DS39: 0.003155111031 | DT39: 28 | DU39: 6 pulse | DV39: 1 | DW39: 163.9370742 | DX39: 113.4878351 | DY39: 92.20080947 | DZ39: 70.91354585 | EA39: 54.74979618 | EB39: 45.40573169 | EC39: 40.44752987 | ED39: 36.56490678 | EE39: 33.72092167 | EF39: 31.53671766 | EG39: 28.35306122 | EH39: 26.00362828 | EI39: 24.15995449 | EJ39: 21.24950525 | EK39: 21.24707585 | EM39: 38 | EN39: 9.941635832e-05 | EO39: 1.427193616e-05 | EP39: 38 | EQ39: 38 | ER39: 1.452643989e-05 | ES39: 38 | ET39: 9.941635832e-05 | EV39: 38 | EW39: 8.696931059e-05 | EX39: 1.092192646e-05 | EY39: 7.563660984e-09
A40: 19 | B40: =Summary!F58 -> 0 | C40: 0 | D40: =convtype(Summary!H58) -> 0 | E40: =Summary!G58 -> 0 | F40: =int_imp(Summary!H58) -> 0 | G40: =ext_imp(Summary!H58) -> 0 | L40: 0 | M40: 0 | N40: =+AX66 -> 0.001 | X40: 39 | Y40: 2340 | Z40: 1.884416102e-05 | AA40: 0.0001256592477 | AB40: =0.25*HLOOKUP($U$17,$Q$53:$Y$60,8,1) -> 0.25 | AC40: 0.2756990654 | AD40: 0.0001099265586 | AE40: 45 | AF40: 0.2761789462 | AG40: 0 | AH40: 0 | AI40: 0 | AJ40: 0 | AK40: 0 | AL40: 0 | AM40: 0 | AN40: 0 | AO40: 0 | AP40: 0 | AQ40: 0 | AR40: 0 | AS40: 0 | AT40: 0 | AU40: 0 | AV40: 0 | AW40: 0 | AX40: 0 | AY40: 0 | AZ40: 0 | BA40: 0 | BB40: 0 | BC40: 0 | BD40: 0 | BN40: 0.2756276908 | BO40: 0.2759030431 | BP40: 0 | BQ40: 0 | BR40: 0 | BS40: 0 | BT40: 0 | BU40: 0 | BV40: 0 | BW40: 0 | BX40: 0 | BY40: 0 | BZ40: 0 | CA40: 0 | CB40: 0 | CC40: 0 | CD40: 0 | CE40: 0 | CF40: 0 | CG40: 0 | CI40: %I29th | CJ40: 6.514686125 | CK40: 2.6788138 | CL40: 1.610666752 | CM40: 1.397542305 | CN40: 1.399993463 | CO40: 1.090785022 | CP40: 0.7587056738 | CQ40: 0.7567884368 | CR40: 0.755759833 | CS40: 0.7247850613 | CT40: 0.618405774 | CU40: 0.5057874345 | CV40: 0.4672702513 | CW40: 0.4538674378 | CX40: 0.4514293952 | CY40: 0.4514293952 | CZ40: 0.4514293952 | DA40: 0.4514293952 | DB40: 29 | DC40: 6.514686125 | DD40: 2.6788138 | DE40: 1.610666752 | DF40: 1.397542305 | DG40: 1.399993463 | DH40: 1.090785022 | DI40: 0.7587056738 | DJ40: 0.7567884368 | DK40: 0.755759833 | DL40: 0.7247850613 | DM40: 0.618405774 | DN40: 0.5057874345 | DO40: 0.4672702513 | DP40: 0.4538674378 | DQ40: 0.3970879881 | DR40: 0.3970879881 | DS40: 0.3970879881 | DT40: 29 | DU40: 12 pulse | DV40: 2 | DW40: 73.15924296 | DX40: 24.5262801 | DY40: 14.15019803 | DZ40: 11.58489278 | EA40: 11.80675058 | EB40: 11.01063622 | EC40: 8.954619069 | ED40: 7.649928215 | EE40: 6.789778482 | EF40: 6.197757593 | EG40: 5.402985496 | EH40: 4.865306691 | EI40: 4.466927051 | EJ40: 3.893930633 | EK40: 3.555648064 | EM40: 39 | EN40: 0.0001256592477 | EO40: 2.401696498e-05 | EP40: 39 | EQ40: 39 | ER40: 1.884416102e-05 | ES40: 39 | ET40: 0.0001256592477 | EV40: 39 | EW40: 0.0001099265586 | EX40: 1.837953326e-05 | EY40: 1.208384829e-08
A41: 20 | B41: =Summary!F59 -> 0 | C41: 0 | D41: =convtype(Summary!H59) -> 0 | E41: =Summary!G59 -> 0 | F41: =int_imp(Summary!H59) -> 0 | G41: =ext_imp(Summary!H59) -> 0 | L41: 0 | M41: 0 | N41: =+AY66 -> 0.001 | X41: 40 | Y41: 2400 | Z41: 1.529098936e-05 | AA41: 9.941635832e-05 | AB41: =0.25*HLOOKUP($U$17,$Q$53:$Y$60,8,1) -> 0.25 | AC41: 0.2181216072 | AD41: 8.696931059e-05 | AE41: 48 | AF41: 0.2185012689 | AG41: 0 | AH41: 0 | AI41: 0 | AJ41: 0 | AK41: 0 | AL41: 0 | AM41: 0 | AN41: 0 | AO41: 0 | AP41: 0 | AQ41: 0 | AR41: 0 | AS41: 0 | AT41: 0 | AU41: 0 | AV41: 0 | AW41: 0 | AX41: 0 | AY41: 0 | AZ41: 0 | BA41: 0 | BB41: 0 | BC41: 0 | BD41: 0 | BN41: 0.2180651386 | BO41: 0.2182829859 | BP41: 0 | BQ41: 0 | BR41: 0 | BS41: 0 | BT41: 0 | BU41: 0 | BV41: 0 | BW41: 0 | BX41: 0 | BY41: 0 | BZ41: 0 | CA41: 0 | CB41: 0 | CC41: 0 | CD41: 0 | CE41: 0 | CF41: 0 | CG41: 0 | CI41: %I30th | CJ41: 0.0348843709 | CK41: 0.004176577223 | CL41: 0.003194564219 | CM41: 0.003602877072 | CN41: 0.003292030037 | CO41: 0.005031486842 | CP41: 0.004605307581 | CQ41: 0.003699157194 | CR41: 0.001956401983 | CS41: 0.002871755378 | CT41: 0.002682176099 | CU41: 0.0005398511085 | CV41: 0.0008618977274 | CW41: 0.0007058797119 | CX41: 0.002596718373 | CY41: 0.002596718373 | CZ41: 0.002596718373 | DA41: 0.002596718373 | DB41: 30 | DC41: 0.0348843709 | DD41: 0.004176577223 | DE41: 0.003194564219 | DF41: 0.003602877072 | DG41: 0.003292030037 | DH41: 0.005031486842 | DI41: 0.004605307581 | DJ41: 0.003699157194 | DK41: 0.001956401983 | DL41: 0.002871755378 | DM41: 0.002682176099 | DN41: 0.0005398511085 | DO41: 0.0008618977274 | DP41: 0.0007058797119 | DQ41: 0.0005216980873 | DR41: 0.0005216980873 | DS41: 0.0005216980873 | DT41: 30 | DU41: 18 pulse | DV41: 3 | DW41: 23.82920156 | DX41: 11.47386659 | DY41: 7.675272739 | DZ41: 7.44102365 | EA41: 9.031275232 | EB41: 9.16835945 | EC41: 6.930413326 | ED41: 5.420633589 | EE41: 4.503305601 | EF41: 3.92735479 | EG41: 3.228627109 | EH41: 2.843981975 | EI41: 2.613643049 | EJ41: 2.213446357 | EK41: 2.018876917 | EM41: 40 | EN41: 9.941635832e-05 | EO41: 1.581377968e-05 | EP41: 40 | EQ41: 40 | ER41: 1.529098936e-05 | ES41: 40 | ET41: 9.941635832e-05 | EV41: 40 | EW41: 8.696931059e-05 | EX41: 1.210185757e-05 | EY41: 7.563660984e-09
A42: 21 | B42: =Summary!F60 -> 0 | C42: 0 | D42: =convtype(Summary!H60) -> 0 | E42: =Summary!G60 -> 0 | F42: =int_imp(Summary!H60) -> 0 | G42: =ext_imp(Summary!H60) -> 0 | L42: 0 | M42: 0 | N42: =+AZ66 -> 0.001 | X42: 41 | Y42: 2460 | Z42: 2.866013251e-05 | AA42: 0.0001817927641 | AB42: =+HLOOKUP($U$17,$Q$53:$Y$60,8,1)*O59 -> 1 | AC42: 0.3988571958 | AD42: 0.0001590320912 | AE42: 46 | AF42: 0.3995514452 | AG42: 0 | AH42: 0 | AI42: 0 | AJ42: 0 | AK42: 0 | AL42: 0 | AM42: 0 | AN42: 0 | AO42: 0 | AP42: 0 | AQ42: 0 | AR42: 0 | AS42: 0 | AT42: 0 | AU42: 0 | AV42: 0 | AW42: 0 | AX42: 0 | AY42: 0 | AZ42: 0 | BA42: 0 | BB42: 0 | BC42: 0 | BD42: 0 | BN42: 0.3987539373 | BO42: 0.3991522929 | BP42: 0 | BQ42: 0 | BR42: 0 | BS42: 0 | BT42: 0 | BU42: 0 | BV42: 0 | BW42: 0 | BX42: 0 | BY42: 0 | BZ42: 0 | CA42: 0 | CB42: 0 | CC42: 0 | CD42: 0 | CE42: 0 | CF42: 0 | CG42: 0 | CI42: %I31th | CJ42: 6.333910733 | CK42: 2.485868505 | CL42: 1.432222254 | CM42: 0.8228027917 | CN42: 0.6851235363 | CO42: 0.5811200581 | CP42: 0.5677274021 | CQ42: 0.4622186345 | CR42: 0.4248657655 | CS42: 0.4305687489 | CT42: 0.4326801018 | CU42: 0.3761752761 | CV42: 0.3167857746 | CW42: 0.3087700832 | CX42: 0.3120658887 | CY42: 0.3120658887 | CZ42: 0.3120658887 | DA42: 0.3120658887 | DB42: 31 | DC42: 6.333910733 | DD42: 2.485868505 | DE42: 1.432222254 | DF42: 0.8228027917 | DG42: 0.6851235363 | DH42: 0.5811200581 | DI42: 0.5677274021 | DJ42: 0.4622186345 | DK42: 0.4248657655 | DL42: 0.4305687489 | DM42: 0.4326801018 | DN42: 0.3761752761 | DO42: 0.3167857746 | DP42: 0.3087700832 | DQ42: 0.2970439017 | DR42: 0.2970439017 | DS42: 0.2970439017 | DT42: 31 | DU42: trap w5% | DV42: 4 | DW42: 18.85079381 | DX42: 18.10149494 | DY42: 16.41780124 | DZ42: 14.49366983 | EA42: 13.03676841 | EB42: 11.7183345 | EC42: 10.58496127 | ED42: 9.719132873 | EE42: 9.031978912 | EF42: 8.400340526 | EG42: 7.429959873 | EH42: 6.578143166 | EI42: 5.904396508 | EJ42: 4.923188426 | EK42: 4.370694722 | EM42: 41 | EN42: 0.0001817927641 | EO42: 5.555471188e-05 | EP42: 41 | EQ42: 41 | ER42: 2.866013251e-05 | ES42: 41 | ET42: 0.0001817927641 | EV42: 41 | EW42: 0.0001590320912 | EX42: 4.251451736e-05 | EY42: 2.529120604e-08
A43: 22 | B43: =Summary!F61 -> 0 | C43: 0 | D43: =convtype(Summary!H61) -> 0 | E43: =Summary!G61 -> 0 | F43: =int_imp(Summary!H61) -> 0 | G43: =ext_imp(Summary!H61) -> 0 | L43: 0 | M43: 0 | N43: =+BA66 -> 0.001 | X43: 42 | Y43: 2520 | Z43: 1.605553883e-05 | AA43: 9.941635832e-05 | AB43: =0.25*HLOOKUP($U$17,$Q$53:$Y$60,8,1) -> 0.25 | AC43: 0.2181216072 | AD43: 8.696931059e-05 | AE43: 48 | AF43: 0.2185012689 | AG43: 0 | AH43: 0 | AI43: 0 | AJ43: 0 | AK43: 0 | AL43: 0 | AM43: 0 | AN43: 0 | AO43: 0 | AP43: 0 | AQ43: 0 | AR43: 0 | AS43: 0 | AT43: 0 | AU43: 0 | AV43: 0 | AW43: 0 | AX43: 0 | AY43: 0 | AZ43: 0 | BA43: 0 | BB43: 0 | BC43: 0 | BD43: 0 | BN43: 0.2180651386 | BO43: 0.2182829859 | BP43: 0 | BQ43: 0 | BR43: 0 | BS43: 0 | BT43: 0 | BU43: 0 | BV43: 0 | BW43: 0 | BX43: 0 | BY43: 0 | BZ43: 0 | CA43: 0 | CB43: 0 | CC43: 0 | CD43: 0 | CE43: 0 | CF43: 0 | CG43: 0 | CI43: %I32th | CJ43: 0.04650620554 | CK43: 0.03326051835 | CL43: 0.02958619551 | CM43: 0.0195357977 | CN43: 0.01456360631 | CO43: 0.01305927337 | CP43: 0.008897061025 | CQ43: 0.0119013751 | CR43: 0.01192165852 | CS43: 0.005918766307 | CT43: 0.00458746263 | CU43: 0.001269964631 | CV43: 0.00224442926 | CW43: 0.002838496676 | CX43: 0.002928737124 | CY43: 0.002928737124 | CZ43: 0.002928737124 | DA43: 0.002928737124 | DB43: 32 | DC43: 0.04650620554 | DD43: 0.03326051835 | DE43: 0.02958619551 | DF43: 0.0195357977 | DG43: 0.01456360631 | DH43: 0.01305927337 | DI43: 0.008897061025 | DJ43: 0.0119013751 | DK43: 0.01192165852 | DL43: 0.005918766307 | DM43: 0.00458746263 | DN43: 0.001269964631 | DO43: 0.00224442926 | DP43: 0.002838496676 | DQ43: 0.002274371634 | DR43: 0.002274371634 | DS43: 0.002274371634 | DT43: 32 | DU43: Mirus | DV43: 5 | DW43: 7.329957793 | DX43: 7.270907354 | DY43: 7.209932385 | DZ43: 7.063241112 | EA43: 6.844523358 | EB43: 6.722269427 | EC43: 6.569876806 | ED43: 6.408136917 | EE43: 6.289475336 | EF43: 6.139078208 | EG43: 5.861100579 | EH43: 5.558987655 | EI43: 5.273237265 | EJ43: 4.746281439 | EK43: 4.393745555 | EM43: 42 | EN43: 9.941635832e-05 | EO43: 1.74346921e-05 | EP43: 42 | EQ43: 42 | ER43: 1.605553883e-05 | ES43: 42 | ET43: 9.941635832e-05 | EV43: 42 | EW43: 8.696931059e-05 | EX43: 1.334229798e-05 | EY43: 7.563660984e-09
A44: 23 | B44: =Summary!F62 -> 0 | C44: 0 | D44: =convtype(Summary!H62) -> 0 | E44: =Summary!G62 -> 0 | F44: =int_imp(Summary!H62) -> 0 | G44: =ext_imp(Summary!H62) -> 0 | L44: 0 | M44: 0 | N44: =+BB66 -> 0.001 | X44: 43 | Y44: 2580 | Z44: 1.921165262e-05 | AA44: 0.0001161926149 | AB44: =+HLOOKUP($U$17,$Q$53:$Y$60,8,1)*O59 -> 1 | AC44: 0.2549290713 | AD44: 0.0001016451596 | AE44: 47 | AF44: 0.2553727999 | AG44: 0 | AH44: 0 | AI44: 0 | AJ44: 0 | AK44: 0 | AL44: 0 | AM44: 0 | AN44: 0 | AO44: 0 | AP44: 0 | AQ44: 0 | AR44: 0 | AS44: 0 | AT44: 0 | AU44: 0 | AV44: 0 | AW44: 0 | AX44: 0 | AY44: 0 | AZ44: 0 | BA44: 0 | BB44: 0 | BC44: 0 | BD44: 0 | BN44: 0.2548630738 | BO44: 0.2551176822 | BP44: 0 | BQ44: 0 | BR44: 0 | BS44: 0 | BT44: 0 | BU44: 0 | BV44: 0 | BW44: 0 | BX44: 0 | BY44: 0 | BZ44: 0 | CA44: 0 | CB44: 0 | CC44: 0 | CD44: 0 | CE44: 0 | CF44: 0 | CG44: 0 | CI44: %I33rd | CJ44: 0.3027492789 | CK44: 0.01721665717 | CL44: 0.1223357161 | CM44: 0.1360562119 | CN44: 0.07076314841 | CO44: 0.2656362826 | CP44: 0.3416556659 | CQ44: 0.2274226791 | CR44: 0.1538167344 | CS44: 0.1155893065 | CT44: 0.0841514093 | CU44: 0.06750363952 | CV44: 0.05641337161 | CW44: 0.04164769702 | CX44: 0.0397997986 | CY44: 0.0397997986 | CZ44: 0.0397997986 | DA44: 0.0397997986 | DB44: 33 | DC44: 0.3027492789 | DD44: 0.01721665717 | DE44: 0.1223357161 | DF44: 0.1360562119 | DG44: 0.07076314841 | DH44: 0.2656362826 | DI44: 0.3416556659 | DJ44: 0.2274226791 | DK44: 0.1538167344 | DL44: 0.1155893065 | DM44: 0.0841514093 | DN44: 0.06750363952 | DO44: 0.05641337161 | DP44: 0.04164769702 | DQ44: 0.04014508986 | DR44: 0.04014508986 | DS44: 0.04014508986 | DT44: 33 | DU44: -37 | DV44: 6 | DW44: 4.382875768 | DX44: 4.382875768 | DY44: 4.382875768 | DZ44: 4.382875768 | EA44: 4.382875768 | EB44: 4.382875768 | EC44: 4.382875768 | ED44: 4.382875768 | EE44: 4.382875768 | EF44: 4.382875768 | EG44: 4.382875768 | EH44: 4.382875768 | EI44: 4.382875768 | EJ44: 4.382875768 | EK44: 4.382875768 | EM44: 43 | EN44: 0.0001161926149 | EO44: 2.496283821e-05 | EP44: 43 | EQ44: 43 | ER44: 1.921165262e-05 | ES44: 43 | ET44: 0.0001161926149 | EV44: 43 | EW44: 0.0001016451596 | EX44: 1.910338443e-05 | EY44: 1.033173847e-08
A45: 24 | B45: =Summary!F63 -> 0 | C45: 0 | D45: =convtype(Summary!H63) -> 0 | E45: =Summary!G63 -> 0 | F45: =int_imp(Summary!H63) -> 0 | G45: =ext_imp(Summary!H63) -> 0 | L45: 0 | M45: 0 | N45: =+BC66 -> 0.001 | X45: 44 | Y45: 2640 | Z45: 1.68200883e-05 | AA45: 9.941635832e-05 | AB45: =0.25*HLOOKUP($U$17,$Q$53:$Y$60,8,1) -> 0.25 | AC45: 0.2181216072 | AD45: 8.696931059e-05 | AE45: 48 | AF45: 0.2185012689 | AG45: 0 | AH45: 0 | AI45: 0 | AJ45: 0 | AK45: 0 | AL45: 0 | AM45: 0 | AN45: 0 | AO45: 0 | AP45: 0 | AQ45: 0 | AR45: 0 | AS45: 0 | AT45: 0 | AU45: 0 | AV45: 0 | AW45: 0 | AX45: 0 | AY45: 0 | AZ45: 0 | BA45: 0 | BB45: 0 | BC45: 0 | BD45: 0 | BN45: 0.2180651386 | BO45: 0.2182829859 | BP45: 0 | BQ45: 0 | BR45: 0 | BS45: 0 | BT45: 0 | BU45: 0 | BV45: 0 | BW45: 0 | BX45: 0 | BY45: 0 | BZ45: 0 | CA45: 0 | CB45: 0 | CC45: 0 | CD45: 0 | CE45: 0 | CF45: 0 | CG45: 0 | CI45: %I35th | CJ45: 5.902985226 | CK45: 1.473326059 | CL45: 1.280361629 | CM45: 1.029025726 | CN45: 0.9507868469 | CO45: 0.6875551836 | CP45: 0.5164807797 | CQ45: 0.5658478638 | CR45: 0.551722053 | CS45: 0.4879646625 | CT45: 0.390293357 | CU45: 0.3634346662 | CV45: 0.3516663113 | CW45: 0.2854524029 | CX45: 0.2828184015 | CY45: 0.2828184015 | CZ45: 0.2828184015 | DA45: 0.2828184015 | DB45: 35 | DC45: 5.902985226 | DD45: 1.473326059 | DE45: 1.280361629 | DF45: 1.029025726 | DG45: 0.9507868469 | DH45: 0.6875551836 | DI45: 0.5164807797 | DJ45: 0.5658478638 | DK45: 0.551722053 | DL45: 0.4879646625 | DM45: 0.390293357 | DN45: 0.3634346662 | DO45: 0.3516663113 | DP45: 0.2854524029 | DQ45: 0.2728274181 | DR45: 0.2728274181 | DS45: 0.2728274181 | DT45: 35 | DU45: trap w10% | DV45: 7 | DW45: 10.50786738 | DX45: 10.2076629 | DY45: 9.719135905 | DZ45: 9.031899341 | EA45: 8.400985175 | EB45: 7.88058112 | EC45: 7.42997066 | ED45: 7.063567139 | EE45: 6.578149665 | EF45: 6.227343141 | EG45: 5.633790932 | EH45: 5.13987908 | EI45: 4.72633118 | EJ45: 4.064220322 | EK45: 3.672552714 | EM45: 44 | EN45: 9.941635832e-05 | EO45: 1.913467341e-05 | EP45: 44 | EQ45: 44 | ER45: 1.68200883e-05 | ES45: 44 | ET45: 9.941635832e-05 | EV45: 44 | EW45: 8.696931059e-05 | EX45: 1.464324766e-05 | EY45: 7.563660984e-09
A46: 25 | B46: =Summary!F64 -> 0 | C46: 0 | D46: =convtype(Summary!H64) -> 0 | E46: =Summary!G64 -> 0 | F46: =int_imp(Summary!H64) -> 0 | G46: =ext_imp(Summary!H64) -> 0 | L46: 0 | M46: 0 | N46: =+BD66 -> 0.001 | X46: 45 | Y46: 2700 | Z46: 1.720236303e-05 | AA46: 9.941635832e-05 | AB46: =0.25*HLOOKUP($U$17,$Q$53:$Y$60,8,1) -> 0.25 | AC46: 0.2181216072 | AD46: 8.696931059e-05 | AE46: 48 | AF46: 0.2185012689 | AG46: 0 | AH46: 0 | AI46: 0 | AJ46: 0 | AK46: 0 | AL46: 0 | AM46: 0 | AN46: 0 | AO46: 0 | AP46: 0 | AQ46: 0 | AR46: 0 | AS46: 0 | AT46: 0 | AU46: 0 | AV46: 0 | AW46: 0 | AX46: 0 | AY46: 0 | AZ46: 0 | BA46: 0 | BB46: 0 | BC46: 0 | BD46: 0 | BN46: 0.2180651386 | BO46: 0.2182829859 | BP46: 0 | BQ46: 0 | BR46: 0 | BS46: 0 | BT46: 0 | BU46: 0 | BV46: 0 | BW46: 0 | BX46: 0 | BY46: 0 | BZ46: 0 | CA46: 0 | CB46: 0 | CC46: 0 | CD46: 0 | CE46: 0 | CF46: 0 | CG46: 0 | CI46: %I37th | CJ46: 4.724260529 | CK46: 1.414779599 | CL46: 0.8656330217 | CM46: 0.5879240805 | CN46: 0.4457128414 | CO46: 0.3507138836 | CP46: 0.3419235646 | CQ46: 0.3213631546 | CR46: 0.3233427734 | CS46: 0.3145812281 | CT46: 0.2603889913 | CU46: 0.2329365914 | CV46: 0.2349524357 | CW46: 0.1983093021 | CX46: 0.199958399 | CY46: 0.199958399 | CZ46: 0.199958399 | DA46: 0.199958399 | DB46: 37 | DC46: 4.724260529 | DD46: 1.414779599 | DE46: 0.8656330217 | DF46: 0.5879240805 | DG46: 0.4457128414 | DH46: 0.3507138836 | DI46: 0.3419235646 | DJ46: 0.3213631546 | DK46: 0.3233427734 | DL46: 0.3145812281 | DM46: 0.2603889913 | DN46: 0.2329365914 | DO46: 0.2349524357 | DP46: 0.1983093021 | DQ46: 0.1873742818 | DR46: 0.1873742818 | DS46: 0.1873742818 | DT46: 37 | DU46: active | DV46: 8 | EM46: 45 | EN46: 9.941635832e-05 | EO46: 2.001431491e-05 | EP46: 45 | EQ46: 45 | ER46: 1.720236303e-05 | ES46: 45 | ET46: 9.941635832e-05 | EV46: 45 | EW46: 8.696931059e-05 | EX46: 1.531641349e-05 | EY46: 7.563660984e-09
A47: All % Impedances are with respect to the total drives connected thru the PCC. I-demand includes both drive currents and sinusoidal currents. The ratio I-demand / I-drives is assumed the same at all points in network unless sine loads are added at a point. ABB 6-pulse drives have built-in internal line reactor or equivalent bus choke. For ACS800: 3/2.5% for VT, 2.3/1.9% for CT; for ACH/S550: 5/4% @ 60/50Hz. For Converter Input Type Above: 1 = 6-pulse; 2 = 12-pulse; 3 = 18-pulse w Isolated Primary/Secondaries; 11 = 18-Pulse with AutoTransformer; 5 = Mirus Coupled Filter; 6 = ACS800-11, 17, 31, 37; 7 = TCI HG7 Filter; 10 = MTE Matrix Filter. | X47: 46 | Y47: 2760 | Z47: 1.758463777e-05 | AA47: 9.941635832e-05 | AB47: =0.25*HLOOKUP($U$17,$Q$53:$Y$60,8,1) -> 0.25 | AC47: 0.2181216072 | AD47: 8.696931059e-05 | AE47: 48 | AF47: 0.2185012689 | AG47: 0 | AH47: 0 | AI47: 0 | AJ47: 0 | AK47: 0 | AL47: 0 | AM47: 0 | AN47: 0 | AO47: 0 | AP47: 0 | AQ47: 0 | AR47: 0 | AS47: 0 | AT47: 0 | AU47: 0 | AV47: 0 | AW47: 0 | AX47: 0 | AY47: 0 | AZ47: 0 | BA47: 0 | BB47: 0 | BC47: 0 | BD47: 0 | BN47: 0.2180651386 | BO47: 0.2182829859 | BP47: 0 | BQ47: 0 | BR47: 0 | BS47: 0 | BT47: 0 | BU47: 0 | BV47: 0 | BW47: 0 | BX47: 0 | BY47: 0 | BZ47: 0 | CA47: 0 | CB47: 0 | CC47: 0 | CD47: 0 | CE47: 0 | CF47: 0 | CG47: 0 | CI47: %I39th | CJ47: 0.20798509 | CK47: 0.1304164751 | CL47: 0.1294750911 | CM47: 0.1100940478 | CN47: 0.06014929528 | CO47: 0.2194967127 | CP47: 0.2764070145 | CQ47: 0.1781841998 | CR47: 0.1225617464 | CS47: 0.09838720341 | CT47: 0.0719580246 | CU47: 0.05136662079 | CV47: 0.04285008841 | CW47: 0.03592232215 | CX47: 0.03455639188 | CY47: 0.03455639188 | CZ47: 0.03455639188 | DA47: 0.03455639188 | DB47: 39 | DC47: 0.20798509 | DD47: 0.1304164751 | DE47: 0.1294750911 | DF47: 0.1100940478 | DG47: 0.06014929528 | DH47: 0.2194967127 | DI47: 0.2764070145 | DJ47: 0.1781841998 | DK47: 0.1225617464 | DL47: 0.09838720341 | DM47: 0.0719580246 | DN47: 0.05136662079 | DO47: 0.04285008841 | DP47: 0.03592232215 | DQ47: 0.03085008372 | DR47: 0.03085008372 | DS47: 0.03085008372 | DT47: 39 | DU47: sine | DV47: 9 | EM47: 46 | EN47: 9.941635832e-05 | EO47: 2.091372363e-05 | EP47: 46 | EQ47: 46 | ER47: 1.758463777e-05 | ES47: 46 | ET47: 9.941635832e-05 | EV47: 46 | EW47: 8.696931059e-05 | EX47: 1.600470664e-05 | EY47: 7.563660984e-09
X48: 47 | Y48: 2820 | Z48: 2.417675778e-05 | AA48: 0.0001337773095 | AB48: =+HLOOKUP($U$17,$Q$53:$Y$60,8,1)*O60 -> 1 | AC48: 0.2935102659 | AD48: 0.0001170282293 | AE48: 49 | AF48: 0.2940211487 | AG48: 0 | AH48: 0 | AI48: 0 | AJ48: 0 | AK48: 0 | AL48: 0 | AM48: 0 | AN48: 0 | AO48: 0 | AP48: 0 | AQ48: 0 | AR48: 0 | AS48: 0 | AT48: 0 | AU48: 0 | AV48: 0 | AW48: 0 | AX48: 0 | AY48: 0 | AZ48: 0 | BA48: 0 | BB48: 0 | BC48: 0 | BD48: 0 | BN48: 0.2934342802 | BO48: 0.2937274213 | BP48: 0 | BQ48: 0 | BR48: 0 | BS48: 0 | BT48: 0 | BU48: 0 | BV48: 0 | BW48: 0 | BX48: 0 | BY48: 0 | BZ48: 0 | CA48: 0 | CB48: 0 | CC48: 0 | CD48: 0 | CE48: 0 | CF48: 0 | CG48: 0 | CI48: %I41th | CJ48: 2.959352372 | CK48: 1.396044854 | CL48: 0.9788469485 | CM48: 0.7662690223 | CN48: 0.6498643236 | CO48: 0.4947910147 | CP48: 0.3995132897 | CQ48: 0.4159458056 | CR48: 0.3757902935 | CS48: 0.3244012281 | CT48: 0.3052987465 | CU48: 0.2728563258 | CV48: 0.2352824917 | CW48: 0.2193026806 | CX48: 0.2194222336 | CY48: 0.2194222336 | CZ48: 0.2194222336 | DA48: 0.2194222336 | DB48: 41 | DC48: 2.959352372 | DD48: 1.396044854 | DE48: 0.9788469485 | DF48: 0.7662690223 | DG48: 0.6498643236 | DH48: 0.4947910147 | DI48: 0.3995132897 | DJ48: 0.4159458056 | DK48: 0.3757902935 | DL48: 0.3244012281 | DM48: 0.3052987465 | DN48: 0.2728563258 | DO48: 0.2352824917 | DP48: 0.2193026806 | DQ48: 0.1978346424 | DR48: 0.1978346424 | DS48: 0.1978346424 | DT48: 41 | DU48: MTE Matrix | DV48: 10 | DW48: 15.96134261 | DX48: 10.64089508 | DY48: 9.925634086 | DZ48: 9.10668326 | EA48: 8.556291486 | EB48: 7.926163006 | EC48: 7.214519804 | ED48: 6.896129349 | EE48: 6.559424365 | EF48: 5.973383296 | EG48: 5.973383296 | EH48: 5.973383296 | EI48: 5.973383296 | EJ48: 5.973383296 | EK48: 5.973383296 | EM48: 47 | EN48: 0.0001337773095 | EO48: 3.95330781e-05 | EP48: 47 | EQ48: 47 | ER48: 2.417675778e-05 | ES48: 47 | ET48: 0.0001337773095 | EV48: 47 | EW48: 0.0001170282293 | EX48: 3.025359466e-05 | EY48: 1.369560646e-08
X49: 48 | Y49: 2880 | Z49: 1.834918724e-05 | AA49: 9.941635832e-05 | AB49: =0.25*HLOOKUP($U$17,$Q$53:$Y$60,8,1) -> 0.25 | AC49: 0.2181216072 | AD49: 8.696931059e-05 | AE49: 48 | AF49: 0.2185012689 | AG49: 0 | AH49: 0 | AI49: 0 | AJ49: 0 | AK49: 0 | AL49: 0 | AM49: 0 | AN49: 0 | AO49: 0 | AP49: 0 | AQ49: 0 | AR49: 0 | AS49: 0 | AT49: 0 | AU49: 0 | AV49: 0 | AW49: 0 | AX49: 0 | AY49: 0 | AZ49: 0 | BA49: 0 | BB49: 0 | BC49: 0 | BD49: 0 | BN49: 0.2180651386 | BO49: 0.2182829859 | BP49: 0 | BQ49: 0 | BR49: 0 | BS49: 0 | BT49: 0 | BU49: 0 | BV49: 0 | BW49: 0 | BX49: 0 | BY49: 0 | BZ49: 0 | CA49: 0 | CB49: 0 | CC49: 0 | CD49: 0 | CE49: 0 | CF49: 0 | CG49: 0 | CI49: %I43th | CJ49: 2.217856051 | CK49: 1.190597232 | CL49: 0.7561517566 | CM49: 0.4536255165 | CN49: 0.2852817373 | CO49: 0.2177975266 | CP49: 0.2553895198 | CQ49: 0.2481887197 | CR49: 0.223088632 | CS49: 0.1977908045 | CT49: 0.1877023015 | CU49: 0.1802472197 | CV49: 0.1496935649 | CW49: 0.1540217211 | CX49: 0.14788154 | CY49: 0.14788154 | CZ49: 0.14788154 | DA49: 0.14788154 | DB49: 43 | DC49: 2.217856051 | DD49: 1.190597232 | DE49: 0.7561517566 | DF49: 0.4536255165 | DG49: 0.2852817373 | DH49: 0.2177975266 | DI49: 0.2553895198 | DJ49: 0.2481887197 | DK49: 0.223088632 | DL49: 0.1977908045 | DM49: 0.1877023015 | DN49: 0.1802472197 | DO49: 0.1496935649 | DP49: 0.1540217211 | DQ49: 0.1376838157 | DR49: 0.1376838157 | DS49: 0.1376838157 | DT49: 43 | DU49: 18 P auto | DV49: 11 | DW49: 30.14704942 | DX49: 11.06729636 | DY49: 10.14677657 | DZ49: 13.69178773 | EA49: 16.02878623 | EB49: 8.730478128 | EC49: 6.718986127 | ED49: 5.79525907 | EE49: 5.25337548 | EF49: 4.799714262 | EG49: 4.150127666 | EH49: 3.58482552 | EI49: 3.116790253 | EJ49: 2.587797585 | EK49: 2.280581217 | EM49: 48 | EN49: 9.941635832e-05 | EO49: 2.277184274e-05 | EP49: 48 | EQ49: 48 | ER49: 1.834918724e-05 | ES49: 48 | ET49: 9.941635832e-05 | EV49: 48 | EW49: 8.696931059e-05 | EX49: 1.742667491e-05 | EY49: 7.563660984e-09
X50: 49 | Y50: 2940 | Z50: =$X50/130*(BJ$80*HLOOKUP($BK$80,$BM$1:$CG$51,$X50+1,0)+BJ$81*HLOOKUP($BK$81,$BM$1:$CG$51,$X50+1,0)+BJ$82*HLOOKUP($BK$82,$BM$1:$CG$51,$X50+1,0)+BJ$83*HLOOKUP($BK$83,$BM$1:$CG$51,$X50+1,0)+BJ$84*HLOOKUP($BK$84,$BM$1:$CG$51,$X50+1,0)+BJ$85*HLOOKUP($BK$85,$BM$1:$CG$51,$X50+1,0)+BJ$86*HLOOKUP($BK$86,$BM$1:$CG$51,$X50+1,0)+BJ$87*HLOOKUP($BK$87,$BM$1:$CG$51,$X50+1,0)+BJ$88*HLOOKUP($BK$88,$BM$1:$CG$51,$X50+1,0)+BJ$89*HLOOKUP($BK$89,$BM$1:$CG$51,$X50+1,0)+BJ$90*HLOOKUP($BK$90,$BM$1:$CG$51,$X50+1,0)+BJ$91*HLOOKUP($BK$91,$BM$1:$CG$51,$X50+1,0)+BJ$92*HLOOKUP($BK$92,$BM$1:$CG$51,$X50+1,0)+BJ$93*HLOOKUP($BK$93,$BM$1:$CG$51,$X50+1,0)+BJ$94*HLOOKUP($BK$94,$BM$1:$CG$51,$X50+1,0)+BJ$95*HLOOKUP($BK$95,$BM$1:$CG$51,$X50+1,0)+BJ$96*HLOOKUP($BK$96,$BM$1:$CG$51,$X50+1,0)+BJ$97*HLOOKUP($BK$97,$BM$1:$CG$51,$X50+1,0)+BJ$98*HLOOKUP($BK$98,$BM$1:$CG$51,$X50+1,0)+BJ$99*HLOOKUP($BK$99,$BM$1:$CG$51,$X50+1,0)+BJ$100*HLOOKUP($BK$100,$BM$1:$CG$51,$X50+1,0))+BK210 -> 1.683001568e-05 | AA50: =1/$N$8/$U$18*(AF$103*AF$56*(AF50+AF210)+AG$103*AG$56*(AG50+AG210)+AH$103*AH$56*(AH50+AH210)+AI$103*AI$56*(AI50+AI210)+AJ$103*AJ$56*(AJ50+AJ210)+AK$103*AK$56*(AK50+AK210)+AL$103*AL$56*(AL50+AL210)+AM$103*AM$56*(AM50+AM210)+AN$103*AN$56*(AN50+AN210)+AO$103*AO$56*(AO50+AO210)+AP$103*AP$56*(AP50+AP210)+AQ$103*AQ$56*(AQ50+AQ210)+AR$103*AR$56*(AR50+AR210)+AS$103*AS$56*(AS50+AS210)+AT$103*AT$56*(AT50+AT210)+AU$103*AU$56*(AU50+AU210)+AV$103*AV$56*(AV50+AV210)+AW$103*AW$56*(AW50+AW210)+AX$103*AX$56*(AX50+AX210)+AY$103*AY$56*(AY50+AY210)+AZ$103*AZ$56*(AZ50+AZ210)+BA$103*BA$56*(BA50+BA210)+BB$103*BB$56*(BB50+BB210)+BC$103*BC$56*(BC50+BC210)+BD$103*BD$56*(BD50+BD210)) -> 8.932452107e-05 | AB50: =+HLOOKUP($U$17,$Q$53:$Y$60,8,1)*O60 -> 1 | AC50: 0.1959799014 | AD50: 7.814098351e-05 | AE50: 50 | AF50: 0.1963210233 | AG50: 0 | AH50: 0 | AI50: 0 | AJ50: 0 | AK50: 0 | AL50: 0 | AM50: 0 | AN50: 0 | AO50: 0 | AP50: 0 | AQ50: 0 | AR50: 0 | AS50: 0 | AT50: 0 | AU50: 0 | AV50: =(HLOOKUP(AV$69,$CI$3:$DA$750,$AE50+52*(AV$75-1),1)-AV$74*(HLOOKUP(AV$73,$CI$1:$DA$750,$AE50+2+52*(AV$75-1),0)-HLOOKUP(AV$73+1,$CI$1:$DA$750,$AE50+2+52*(AV$75-1),0)))*AV$65 -> 0 | AW50: 0 | AX50: 0 | AY50: 0 | AZ50: 0 | BA50: 0 | BB50: 0 | BC50: 0 | BD50: 0 | BN50: 0.195929165 | BO50: 0.1961248984 | BP50: 0 | BQ50: 0 | BR50: 0 | BS50: 0 | BT50: 0 | BU50: 0 | BV50: 0 | BW50: 0 | BX50: 0 | BY50: 0 | BZ50: 0 | CA50: 0 | CB50: 0 | CC50: 0 | CD50: 0 | CE50: 0 | CF50: 0 | CG50: 0 | CI50: %I45th | CJ50: 0.1567438138 | CK50: 0.06913551545 | CL50: 0.1172193186 | CM50: 0.09097627692 | CN50: 0.05597479549 | CO50: 0.1845514 | CP50: 0.2186651556 | CQ50: 0.1480836146 | CR50: 0.1086725285 | CS50: 0.08793288003 | CT50: 0.05826161961 | CU50: 0.04425480386 | CV50: 0.03951162236 | CW50: 0.02954301251 | CX50: 0.02807159087 | CY50: 0.02807159087 | CZ50: 0.02807159087 | DA50: 0.02807159087 | DB50: 45 | DC50: 0.1567438138 | DD50: 0.06913551545 | DE50: 0.1172193186 | DF50: 0.09097627692 | DG50: 0.05597479549 | DH50: 0.1845514 | DI50: 0.2186651556 | DJ50: 0.1480836146 | DK50: 0.1086725285 | DL50: 0.08793288003 | DM50: 0.05826161961 | DN50: 0.04425480386 | DO50: 0.03951162236 | DP50: 0.02954301251 | DQ50: 0.02750879993 | DR50: 0.02750879993 | DS50: 0.02750879993 | DT50: 45 | EM50: 49 | EN50: 8.932452107e-05 | EO50: 1.915726702e-05 | EP50: 49 | EQ50: 49 | ER50: 1.683001568e-05 | ES50: 49 | ET50: 8.932452107e-05 | EV50: 49 | EW50: 7.814098351e-05 | EX50: 1.466053794e-05 | EY50: 6.106013303e-09
X51: 50 | Y51: 3000 | Z51: =$X51/130*(BJ$80*HLOOKUP($BK$80,$BM$1:$CG$51,$X51+1,0)+BJ$81*HLOOKUP($BK$81,$BM$1:$CG$51,$X51+1,0)+BJ$82*HLOOKUP($BK$82,$BM$1:$CG$51,$X51+1,0)+BJ$83*HLOOKUP($BK$83,$BM$1:$CG$51,$X51+1,0)+BJ$84*HLOOKUP($BK$84,$BM$1:$CG$51,$X51+1,0)+BJ$85*HLOOKUP($BK$85,$BM$1:$CG$51,$X51+1,0)+BJ$86*HLOOKUP($BK$86,$BM$1:$CG$51,$X51+1,0)+BJ$87*HLOOKUP($BK$87,$BM$1:$CG$51,$X51+1,0)+BJ$88*HLOOKUP($BK$88,$BM$1:$CG$51,$X51+1,0)+BJ$89*HLOOKUP($BK$89,$BM$1:$CG$51,$X51+1,0)+BJ$90*HLOOKUP($BK$90,$BM$1:$CG$51,$X51+1,0)+BJ$91*HLOOKUP($BK$91,$BM$1:$CG$51,$X51+1,0)+BJ$92*HLOOKUP($BK$92,$BM$1:$CG$51,$X51+1,0)+BJ$93*HLOOKUP($BK$93,$BM$1:$CG$51,$X51+1,0)+BJ$94*HLOOKUP($BK$94,$BM$1:$CG$51,$X51+1,0)+BJ$95*HLOOKUP($BK$95,$BM$1:$CG$51,$X51+1,0)+BJ$96*HLOOKUP($BK$96,$BM$1:$CG$51,$X51+1,0)+BJ$97*HLOOKUP($BK$97,$BM$1:$CG$51,$X51+1,0)+BJ$98*HLOOKUP($BK$98,$BM$1:$CG$51,$X51+1,0)+BJ$99*HLOOKUP($BK$99,$BM$1:$CG$51,$X51+1,0)+BJ$100*HLOOKUP($BK$100,$BM$1:$CG$51,$X51+1,0))+BK211 -> 1.91137367e-05 | AA51: =1/$N$8/$U$18*(AF$103*AF$56*(AF51+AF211)+AG$103*AG$56*(AG51+AG211)+AH$103*AH$56*(AH51+AH211)+AI$103*AI$56*(AI51+AI211)+AJ$103*AJ$56*(AJ51+AJ211)+AK$103*AK$56*(AK51+AK211)+AL$103*AL$56*(AL51+AL211)+AM$103*AM$56*(AM51+AM211)+AN$103*AN$56*(AN51+AN211)+AO$103*AO$56*(AO51+AO211)+AP$103*AP$56*(AP51+AP211)+AQ$103*AQ$56*(AQ51+AQ211)+AR$103*AR$56*(AR51+AR211)+AS$103*AS$56*(AS51+AS211)+AT$103*AT$56*(AT51+AT211)+AU$103*AU$56*(AU51+AU211)+AV$103*AV$56*(AV51+AV211)+AW$103*AW$56*(AW51+AW211)+AX$103*AX$56*(AX51+AX211)+AY$103*AY$56*(AY51+AY211)+AZ$103*AZ$56*(AZ51+AZ211)+BA$103*BA$56*(BA51+BA211)+BB$103*BB$56*(BB51+BB211)+BC$103*BC$56*(BC51+BC211)+BD$103*BD$56*(BD51+BD211)) -> 9.941635832e-05 | AB51: =0.25*HLOOKUP($U$17,$Q$53:$Y$60,8,1) -> 0.25 | AC51: 0.2181216072 | AD51: 8.696931059e-05 | AE51: 48 | AF51: 0.2185012689 | AG51: 0 | AH51: 0 | AI51: 0 | AJ51: 0 | AK51: 0 | AL51: 0 | AM51: 0 | AN51: 0 | AO51: 0 | AP51: 0 | AQ51: 0 | AR51: 0 | AS51: 0 | AT51: 0 | AU51: 0 | AV51: =(HLOOKUP(AV$69,$CI$3:$DA$750,$AE51+52*(AV$75-1),1)-AV$74*(HLOOKUP(AV$73,$CI$1:$DA$750,$AE51+2+52*(AV$75-1),0)-HLOOKUP(AV$73+1,$CI$1:$DA$750,$AE51+2+52*(AV$75-1),0)))*AV$65 -> 0 | AW51: 0 | AX51: 0 | AY51: 0 | AZ51: 0 | BA51: 0 | BB51: 0 | BC51: 0 | BD51: 0 | BN51: 0.2180651386 | BO51: 0.2182829859 | BP51: 0 | BQ51: 0 | BR51: 0 | BS51: 0 | BT51: 0 | BU51: 0 | BV51: 0 | BW51: 0 | BX51: 0 | BY51: 0 | BZ51: 0 | CA51: 0 | CB51: 0 | CC51: 0 | CD51: 0 | CE51: 0 | CF51: 0 | CG51: 0 | CI51: %I47th | CJ51: 2.326863069 | CK51: 0.7864147898 | CL51: 0.6568371924 | CM51: 0.5814332168 | CN51: 0.4492896067 | CO51: 0.4129415199 | CP51: 0.294056833 | CQ51: 0.2786885915 | CR51: 0.2669726362 | CS51: 0.2606458539 | CT51: 0.2367936037 | CU51: 0.1903846856 | CV51: 0.1845607069 | CW51: 0.1610851648 | CX51: 0.1552207331 | CY51: 0.1552207331 | CZ51: 0.1552207331 | DA51: 0.1552207331 | DB51: 47 | DC51: 2.326863069 | DD51: 0.7864147898 | DE51: 0.6568371924 | DF51: 0.5814332168 | DG51: 0.4492896067 | DH51: 0.4129415199 | DI51: 0.294056833 | DJ51: 0.2786885915 | DK51: 0.2669726362 | DL51: 0.2606458539 | DM51: 0.2367936037 | DN51: 0.1903846856 | DO51: 0.1845607069 | DP51: 0.1610851648 | DQ51: 0.1528502897 | DR51: 0.1528502897 | DS51: 0.1528502897 | DT51: 47 | EM51: 50 | EN51: 9.941635832e-05 | EO51: 2.470903075e-05 | EP51: 50 | EQ51: 50 | ER51: 1.91137367e-05 | ES51: 50 | ET51: 9.941635832e-05 | EV51: 50 | EW51: 8.696931059e-05 | EX51: 1.890915246e-05 | EY51: 7.563660984e-09
AF52: D1 | AG52: D2 | AH52: D3 | AI52: D4 | AJ52: D5 | AK52: D6 | AL52: D7 | AM52: D8 | AN52: D9 | AO52: D10 | AP52: D11 | AQ52: D12 | AR52: D13 | AS52: D14 | AT52: D15 | AU52: D16 | AV52: D17 | AW52: D18 | AX52: D19 | AY52: D20 | AZ52: D21 | BA52: D22 | BB52: D23 | BC52: D24 | BD52: D25 | BM52: 0 | BN52: utility | BO52: t1 | BP52: t2 | BQ52: t3 | BR52: t4 | BS52: t5 | BT52: t6 | BU52: t7 | BV52: t8 | BW52: t9 | BX52: b1 | BY52: b2 | BZ52: b3 | CA52: b4 | CB52: b5 | CC52: b6 | CD52: b7 | CE52: b8 | CF52: b9 | CG52: b10 | CI52: %I49th | CJ52: 2.222090687 | CK52: 0.823132029 | CL52: 0.5437272837 | CM52: 0.3338858673 | CN52: 0.2047297789 | CO52: 0.1606790953 | CP52: 0.1963584894 | CQ52: 0.1802228465 | CR52: 0.1524119461 | CS52: 0.1456807867 | CT52: 0.1431662342 | CU52: 0.1182098636 | CV52: 0.1132466144 | CW52: 0.1059195009 | CX52: 0.1018137305 | CY52: 0.1018137305 | CZ52: 0.1018137305 | DA52: 0.1018137305 | DB52: 49 | DC52: 2.222090687 | DD52: 0.823132029 | DE52: 0.5437272837 | DF52: 0.3338858673 | DG52: 0.2047297789 | DH52: 0.1606790953 | DI52: 0.1963584894 | DJ52: 0.1802228465 | DK52: 0.1524119461 | DL52: 0.1456807867 | DM52: 0.1431662342 | DN52: 0.1182098636 | DO52: 0.1132466144 | DP52: 0.1059195009 | DQ52: 0.09991594796 | DR52: 0.09991594796 | DS52: 0.09991594796 | DT52: 49 | EV52: 0
E53: =+SUM(E22:E46) -> 1 | G53: =+SUMPRODUCT(E22:E46,F22:F46)/5 -> 1 | N53: =SUMIF(D22:D46,"=1",E22:E46) -> 1 | P53: Isc/Idmd | Q53: 0 | R53: 19 | S53: 20 | T53: 49 | U53: 50 | V53: 99 | W53: 100 | X53: 999 | Y53: 1000 | AD53: FedFrom= | AF53: =+C22 -> T1 | AG53: =+C23 -> 0 | AH53: =+C24 -> 0 | AI53: =+C25 -> 0 | AJ53: =+C26 -> 0 | AK53: =+C27 -> 0 | AL53: =+C28 -> 0 | AM53: =+C29 -> 0 | AN53: =+C30 -> 0 | AO53: =+C31 -> 0 | AP53: =+C32 -> 0 | AQ53: =+C33 -> 0 | AR53: =+C34 -> 0 | AS53: =+C35 -> 0 | AT53: =+C36 -> 0 | AU53: =+C37 -> 0 | AV53: =+C38 -> 0 | AW53: =+C39 -> 0 | AX53: =+C40 -> 0 | AY53: =+C41 -> 0 | AZ53: =+C42 -> 0 | BA53: =+C43 -> 0 | BB53: =+C44 -> 0 | BC53: =+C45 -> 0 | BD53: =+C46 -> 0 | BE53: Utility | BF53: =FedFrom | BL53: FedFrom | BM53: 0 | BN53: 0 | BO53: utility | BP53: =+C13 -> 0 | BQ53: =+C14 -> 0 | BR53: =+C15 -> 0 | BS53: =+C16 -> 0 | BT53: =+C17 -> 0 | BU53: =+C18 -> 0 | BV53: =+C19 -> 0 | BW53: =+C20 -> 0 | BX53: =+J11 -> 0 | BY53: =+J12 -> 0 | BZ53: =+J13 -> 0 | CA53: =+J14 -> 0 | CB53: =+J15 -> 0 | CC53: =+J16 -> 0 | CD53: =+J17 -> 0 | CE53: =+J18 -> 0 | CF53: =+J19 -> 0 | CG53: =+J20 -> 0 | CI53: 0 | CJ53: 1 | CK53: 2 | CL53: 3 | CM53: 4 | CN53: 5 | CO53: 6 | CP53: 7 | CQ53: 8 | CR53: 9 | CS53: 10 | CT53: 11 | CU53: 12 | CV53: 13 | CW53: 14 | CX53: 15 | CY53: 16 | CZ53: 17 | DA53: 18 | EV53: 999
A54: ABB 6 Pulse Harmonic Guarantees | N54: HarmLimitTable | P54: %TDDLimit | Q54: 5 | R54: 5 | S54: 8 | T54: 8 | U54: 12 | V54: 12 | W54: 15 | X54: 15 | Y54: 20 | AD54: ConvType= | AF54: =+D22 -> 1 | AG54: =+D23 -> 0 | AH54: =+D24 -> 0 | AI54: =+D25 -> 0 | AJ54: =+D26 -> 0 | AK54: =+D27 -> 0 | AL54: =+D28 -> 0 | AM54: =+D29 -> 0 | AN54: =+D30 -> 0 | AO54: =+D31 -> 0 | AP54: =+D32 -> 0 | AQ54: =+D33 -> 0 | AR54: =+D34 -> 0 | AS54: =+D35 -> 0 | AT54: =+D36 -> 0 | AU54: =+D37 -> 0 | AV54: =+D38 -> 0 | AW54: =+D39 -> 0 | AX54: =+D40 -> 0 | AY54: =+D41 -> 0 | AZ54: =+D42 -> 0 | BA54: =+D43 -> 0 | BB54: =+D44 -> 0 | BC54: =+D45 -> 0 | BD54: =+D46 -> 0 | BF54: =ConvType | BG54: =SUM($EO$3:$EO$51)*($U$18/100)^2 -> 5.663232849 | CH54: 2 | CI54: 12 pulse data | DA54: 1 | EV54: 15
A55: For %Vthd if %Zsource is less than 3%, %Vthd will be less than 5%, meeting IEEE519 general systems reqmts. | N55: Pulses | O55: HP | P55: 1 | Q55: 2 | R55: 3 | S55: 4 | T55: 5 | U55: 6 | V55: 7 | W55: 8 | X55: 9 | Y55: 10 | AC55: all | AD55: Hpall= | AF55: =+E22 -> 1 | AG55: =+E23 -> 0 | AH55: =+E24 -> 0 | AI55: =+E25 -> 0 | AJ55: =+E26 -> 0 | AK55: =+E27 -> 0 | AL55: =+E28 -> 0 | AM55: =+E29 -> 0 | AN55: =+E30 -> 0 | AO55: =+E31 -> 0 | AP55: =+E32 -> 0 | AQ55: =+E33 -> 0 | AR55: =+E34 -> 0 | AS55: =+E35 -> 0 | AT55: =+E36 -> 0 | AU55: =+E37 -> 0 | AV55: =+E38 -> 0 | AW55: =+E39 -> 0 | AX55: =+E40 -> 0 | AY55: =+E41 -> 0 | AZ55: =+E42 -> 0 | BA55: =+E43 -> 0 | BB55: =+E44 -> 0 | BC55: =+E45 -> 0 | BD55: =+E46 -> 0 | BE55: =+BN55 -> 1.002 | BF55: Hpall | BJ55: 300 | BL55: Hpatnode= | BM55: =+AE135 -> 1.002 | BN55: =+AE135 -> 1.002 | BO55: =+AE136 -> 1.001 | BP55: =+AE137 -> 0.001 | BQ55: =+AE138 -> 0.001 | BR55: =+AE139 -> 0.001 | BS55: =+AE140 -> 0.001 | BT55: =+AE141 -> 0.001 | BU55: =+AE142 -> 0.001 | BV55: =+AE143 -> 0.001 | BW55: =+AE144 -> 0.001 | BX55: =+AE145 -> 0.001 | BY55: =+AE146 -> 0.001 | BZ55: =+AE147 -> 0.001 | CA55: =+AE148 -> 0.001 | CB55: =+AE149 -> 0.001 | CC55: =+AE150 -> 0.001 | CD55: =+AE151 -> 0.001 | CE55: =+AE152 -> 0.001 | CF55: =+AE153 -> 0.001 | CG55: =+AE154 -> 0.001 | CI55: %Zloop | CJ55: 0.1 | CK55: 0.5 | CL55: 1 | CM55: 2 | CN55: 3 | CO55: 4 | CP55: 5 | CQ55: 6 | CR55: 7 | CS55: 8 | CT55: 10 | CU55: 12 | CV55: 14 | CW55: 18 | CX55: 21 | CY55: 100 | CZ55: 1000 | DA55: 10000 | EV55: 9
A56: If %Zsource is less than 1.6%, then %Vthd will be less than 3%, meeting IEEE519 special systems reqmts. | N56: HPpu6pul= | O56: =1-O57-O58 -> 1 | P56: <11 | Q56: 4 | R56: 4 | S56: 7 | T56: 7 | U56: 10 | V56: 10 | W56: 12 | X56: 12 | Y56: 15 | AD56: Hpusedall= | AF56: =+AF55*$G$9/10000*IF($H$22=0,100,$H$22) -> 1 | AG56: =+AG55*$G$9/10000*IF($H23=0,100,$H23) -> 0 | AH56: =+AH55*$G$9/10000*IF($H24=0,100,$H24) -> 0 | AI56: =+AI55*$G$9/10000*IF($H25=0,100,$H25) -> 0 | AJ56: =+AJ55*$G$9/10000*IF($H26=0,100,$H26) -> 0 | AK56: =+AK55*$G$9/10000*IF($H27=0,100,$H27) -> 0 | AL56: =+AL55*$G$9/10000*IF($H28=0,100,$H28) -> 0 | AM56: =+AM55*$G$9/10000*IF($H29=0,100,$H29) -> 0 | AN56: =+AN55*$G$9/10000*IF($H30=0,100,$H30) -> 0 | AO56: =+AO55*$G$9/10000*IF($H31=0,100,$H31) -> 0 | AP56: =+AP55*$G$9/10000*IF($H32=0,100,$H32) -> 0 | AQ56: =+AQ55*$G$9/10000*IF($H33=0,100,$H33) -> 0 | AR56: =+AR55*$G$9/10000*IF($H34=0,100,$H34) -> 0 | AS56: =+AS55*$G$9/10000*IF($H35=0,100,$H35) -> 0 | AT56: =+AT55*$G$9/10000*IF($H36=0,100,$H36) -> 0 | AU56: =+AU55*$G$9/10000*IF($H37=0,100,$H37) -> 0 | AV56: =+AV55*$G$9/10000*IF($H38=0,100,$H38) -> 0 | AW56: =+AW55*$G$9/10000*IF($H39=0,100,$H39) -> 0 | AX56: =+AX55*$G$9/10000*IF($H40=0,100,$H40) -> 0 | AY56: =+AY55*$G$9/10000*IF($H41=0,100,$H41) -> 0 | AZ56: =+AZ55*$G$9/10000*IF($H42=0,100,$H42) -> 0 | BA56: =+BA55*$G$9/10000*IF($H43=0,100,$H43) -> 0 | BB56: =+BB55*$G$9/10000*IF($H44=0,100,$H44) -> 0 | BC56: =+BC55*$G$9/10000*IF($H45=0,100,$H45) -> 0 | BD56: =+BD55*$G$9/10000*IF($H46=0,100,$H46) -> 0 | BE56: =+BE55*$G$9/100 -> 1.002 | BF56: Hpusedall | BL56: Hpusedatnode= | BN56: =+AB135 -> 1 | BO56: =+AB136 -> 1 | BP56: =+AB137 -> 0 | BQ56: =+AB138 -> 0 | BR56: =+AB139 -> 0 | BS56: =+AB140 -> 0 | BT56: =+AB141 -> 0 | BU56: =+AB142 -> 0 | BV56: =+AB143 -> 0 | BW56: =+AB144 -> 0 | BX56: =+AB145 -> 0 | BY56: =+AB146 -> 0 | BZ56: =+AB147 -> 0 | CA56: =+AB148 -> 0 | CB56: =+AB149 -> 0 | CC56: =+AB150 -> 0 | CD56: =+AB151 -> 0 | CE56: =+AB152 -> 0 | CF56: =+AB153 -> 0 | CG56: =+AB154 -> 0 | CI56: Kfactor | CJ56: =+(10000+SUMPRODUCT(CJ65:CJ104,$DB65:$DB104,CJ65:CJ104,$DB65:$DB104))/10000/CJ58^2 -> 53.71915659 | CK56: =+(10000+SUMPRODUCT(CK65:CK104,$DB65:$DB104,CK65:CK104,$DB65:$DB104))/10000/CK58^2 -> 9.915951302 | CL56: 4.445593952 | CM56: 2.95250636 | CN56: 2.543562808 | CO56: 2.154508359 | CP56: 1.921963457 | CQ56: 1.771655528 | CR56: 1.65960001 | CS56: 1.574649525 | CT56: 1.457727079 | CU56: 1.375413597 | CV56: 1.316400224 | CW56: 1.23864314 | CX56: 1.195706745 | CY56: 1.195706745 | CZ56: 1.195706745 | DA56: 1.195706745 | EV56: 12
A57: %Zs=100/(Isc/Idmd)/(Idmd/Idrv) ahead of PCC | N57: HPpu12pul= | O57: =SUMIF($AF$182:$BD$182,"=2",$AF$183:$BD$183)/$N$9 -> 0 | P57: 11<=<17 | Q57: 2 | R57: 2 | S57: 3.5 | T57: 3.5 | U57: 4.5 | V57: 4.5 | W57: 5.5 | X57: 5.5 | Y57: 7 | AC57: 9 | AD57: Hpacmtr= | AF57: =+IF(AF54=9,AF55,0) -> 0 | AG57: 0 | AH57: 0 | AI57: 0 | AJ57: 0 | AK57: 0 | AL57: 0 | AM57: 0 | AN57: 0 | AO57: 0 | AP57: 0 | AQ57: 0 | AR57: 0 | AS57: 0 | AT57: 0 | AU57: 0 | AV57: 0 | AW57: 0 | AX57: 0 | AY57: 0 | AZ57: 0 | BA57: 0 | BB57: 0 | BC57: 0 | BD57: 0 | BF57: Hpacmtr | CI57: %Ithd | CJ57: =+SQRT(SUMSQ(CJ65:CJ104)) -> 73.15924296 | CK57: =+SQRT(SUMSQ(CK65:CK104)) -> 24.5262801 | CL57: 14.15019803 | CM57: 11.58489278 | CN57: 11.80675058 | CO57: 11.01063622 | CP57: 8.954619069 | CQ57: 7.649928215 | CR57: 6.789778482 | CS57: 6.197757593 | CT57: 5.402985496 | CU57: 4.865306691 | CV57: 4.466927051 | CW57: 3.893930633 | CX57: 3.555648064 | CY57: 3.555648064 | CZ57: 3.555648064 | DA57: 3.555648064 | EV57: 5.5
A58: For %TDD with Isc/Idmd ratios of <20 20-50 50-100 100-1000 >1000 | N58: HPpu18pul= | O58: =SUMIF($AF$182:$BD$182,"=3",$AF$183:$BD$183)/$N$9 -> 0 | P58: 17<=<23 | Q58: 1.5 | R58: 1.5 | S58: 2.5 | T58: 2.5 | U58: 4 | V58: 4 | W58: 5 | X58: 5 | Y58: 6 | AC58: 8 | AD58: Hpactf= | AF58: =+IF(AF54=8,AF55,0) -> 0 | AG58: 0 | AH58: 0 | AI58: 0 | AJ58: 0 | AK58: 0 | AL58: 0 | AM58: 0 | AN58: 0 | AO58: 0 | AP58: 0 | AQ58: 0 | AR58: 0 | AS58: 0 | AT58: 0 | AU58: 0 | AV58: 0 | AW58: 0 | AX58: 0 | AY58: 0 | AZ58: 0 | BA58: 0 | BB58: 0 | BC58: 0 | BD58: 0 | BF58: Hpactf | CI58: Irms/If | CJ58: =+SQRT(1+(CJ57/100)^2) -> 1.239042971 | CK58: =+SQRT(1+(CK57/100)^2) -> 1.029637723 | CL58: 1.009961787 | CM58: 1.006688122 | CN58: 1.006945846 | CO58: 1.006043444 | CP58: 1.004001255 | CQ58: 1.002921802 | CR58: 1.002302404 | CS58: 1.001918769 | CT58: 1.001458549 | CU58: 1.001182861 | CV58: 1.000997175 | CW58: 1.000757848 | CX58: 1.000631932 | CY58: 1.000631932 | CZ58: 1.000631932 | DA58: 1.000631932 | EV58: 5
A59: %TDD will be less than 5 8 12 15 20% | K59: meeting IEEE519 reqmts. | N59: Mult6pul | O59: =+$O$56+0.25*($O$57+$O$58) -> 1 | P59: 23<=<35 | Q59: 0.6 | R59: 0.6 | S59: 1 | T59: 1 | U59: 1.5 | V59: 1.5 | W59: 2 | X59: 2 | Y59: 2.5 | AC59: all-8 | AD59: HPdrv&acm | AF59: =+AF55-AF58 -> 1 | AG59: 0 | AH59: 0 | AI59: 0 | AJ59: 0 | AK59: 0 | AL59: 0 | AM59: 0 | AN59: 0 | AO59: 0 | AP59: 0 | AQ59: 0 | AR59: 0 | AS59: 0 | AT59: 0 | AU59: 0 | AV59: 0 | AW59: 0 | AX59: 0 | AY59: 0 | AZ59: 0 | BA59: 0 | BB59: 0 | BC59: 0 | BD59: 0 | BF59: HPdrv&acm-actf | BJ59: =+P26 -> 0.4037338736 | BL59: HPdrv&acm-actf | CI59: Ih/If | CJ59: =+CJ57/100 -> 0.7315924296 | CK59: =+CK57/100 -> 0.245262801 | CL59: 0.1415019803 | CM59: 0.1158489278 | CN59: 0.1180675058 | CO59: 0.1101063622 | CP59: 0.08954619069 | CQ59: 0.07649928215 | CR59: 0.06789778482 | CS59: 0.06197757593 | CT59: 0.05402985496 | CU59: 0.04865306691 | CV59: 0.04466927051 | CW59: 0.03893930633 | CX59: 0.03555648064 | CY59: 0.03555648064 | CZ59: 0.03555648064 | DA59: 0.03555648064 | EV59: 2
A60: if the Idmd/Idrv ratio is greater than 10 6.7 4.5 3.6 2.7 | N60: Mult6&12 | O60: =+$O$56+1.414*$O$57+0.25*$O$58 -> 1 | P60: <35 | Q60: 0.3 | R60: 0.3 | S60: 0.5 | T60: 0.5 | U60: 0.7 | V60: 0.7 | W60: 1 | X60: 1 | Y60: 1.4 | AD60: Hpuseddrvs&acmtrs= | AF60: =+AF59*$G$9/10000*IF($H22=0,100,$H22) -> 1 | AG60: =+AG59*$G$9/10000*IF($H23=0,100,$H23) -> 0 | AH60: =+AH59*$G$9/10000*IF($H24=0,100,$H24) -> 0 | AI60: =+AI59*$G$9/10000*IF($H25=0,100,$H25) -> 0 | AJ60: =+AJ59*$G$9/10000*IF($H26=0,100,$H26) -> 0 | AK60: =+AK59*$G$9/10000*IF($H27=0,100,$H27) -> 0 | AL60: =+AL59*$G$9/10000*IF($H28=0,100,$H28) -> 0 | AM60: =+AM59*$G$9/10000*IF($H29=0,100,$H29) -> 0 | AN60: =+AN59*$G$9/10000*IF($H30=0,100,$H30) -> 0 | AO60: =+AO59*$G$9/10000*IF($H31=0,100,$H31) -> 0 | AP60: =+AP59*$G$9/10000*IF($H32=0,100,$H32) -> 0 | AQ60: =+AQ59*$G$9/10000*IF($H33=0,100,$H33) -> 0 | AR60: =+AR59*$G$9/10000*IF($H34=0,100,$H34) -> 0 | AS60: =+AS59*$G$9/10000*IF($H35=0,100,$H35) -> 0 | AT60: =+AT59*$G$9/10000*IF($H36=0,100,$H36) -> 0 | AU60: =+AU59*$G$9/10000*IF($H37=0,100,$H37) -> 0 | AV60: =+AV59*$G$9/10000*IF($H38=0,100,$H38) -> 0 | AW60: =+AW59*$G$9/10000*IF($H39=0,100,$H39) -> 0 | AX60: =+AX59*$G$9/10000*IF($H40=0,100,$H40) -> 0 | AY60: =+AY59*$G$9/10000*IF($H41=0,100,$H41) -> 0 | AZ60: =+AZ59*$G$9/10000*IF($H42=0,100,$H42) -> 0 | BA60: =+BA59*$G$9/10000*IF($H43=0,100,$H43) -> 0 | BB60: =+BB59*$G$9/10000*IF($H44=0,100,$H44) -> 0 | BC60: =+BC59*$G$9/10000*IF($H45=0,100,$H45) -> 0 | BD60: =+BD59*$G$9/10000*IF($H46=0,100,$H46) -> 0 | BF60: Hpuseddrvs&acmtrs= | BJ60: =+P27 -> 0.0001840154763 | BL60: Hpuseddrvs&acmtrs= | BN60: =+Y135 -> 1 | BO60: =+Y136 -> 1 | BP60: =+Y137 -> 0 | BQ60: =+Y138 -> 0 | BR60: =+Y139 -> 0 | BS60: =+Y140 -> 0 | BT60: =+Y141 -> 0 | BU60: =+Y142 -> 0 | BV60: =+Y143 -> 0 | BW60: =+Y144 -> 0 | BX60: =+Y145 -> 0 | BY60: =+Y146 -> 0 | BZ60: =+Y147 -> 0 | CA60: =+Y148 -> 0 | CB60: =+Y149 -> 0 | CC60: =+Y150 -> 0 | CD60: =+Y151 -> 0 | CE60: =+Y152 -> 0 | CF60: =+Y153 -> 0 | CG60: =+Y154 -> 0 | CI60: DispPF | CJ60: 0.947 | CK60: 0.946 | CL60: 0.947 | CM60: 0.944 | CN60: 0.941 | CO60: 0.939 | CP60: 0.937 | CQ60: 0.936 | CR60: 0.934 | CS60: 0.933 | CT60: 0.932 | CU60: 0.932 | CV60: 0.931 | CW60: 0.932 | CX60: 0.933 | CY60: 0.9 | CZ60: 0.9 | DA60: 0.9 | EV60: 1
N61: Mult6&18 | O61: =+$O$56+0.25*$O$57+1.732*$O$58 -> 1 | Q61: Harmonic Table from IEEE519 Table 10.3 | AD61: Hpusedactfilt= | AF61: =+AF56-AF60 -> 0 | AG61: =+AG56-AG60 -> 0 | AH61: 0 | AI61: 0 | AJ61: 0 | AK61: 0 | AL61: 0 | AM61: 0 | AN61: 0 | AO61: 0 | AP61: 0 | AQ61: 0 | AR61: 0 | AS61: 0 | AT61: 0 | AU61: 0 | AV61: 0 | AW61: 0 | AX61: 0 | AY61: 0 | AZ61: 0 | BA61: 0 | BB61: 0 | BC61: 0 | BD61: 0 | BJ61: =+P30 -> 4.17178158e-06 | CI61: ActPF | CJ61: 0.932 | CK61: 0.908 | CL61: 0.932 | CM61: 0.935 | CN61: 0.933 | CO61: 0.932 | CP61: 0.93 | CQ61: 0.929 | CR61: 0.928 | CS61: 0.927 | CT61: 0.925 | CU61: 0.924 | CV61: 0.923 | CW61: 0.922 | CX61: 0.923 | CY61: 0.9 | CZ61: 0.9 | DA61: 0.9 | EV61: 0
N62: Multall | O62: =+$O$56+1.414*$O$57+1.732*$O$58 -> 1 | AC62: all-8-9 | AD62: Hpdrv= | AF62: =+(AF55-AF58-AF57) -> 1 | AG62: 0 | AH62: 0 | AI62: 0 | AJ62: 0 | AK62: 0 | AL62: 0 | AM62: 0 | AN62: 0 | AO62: 0 | AP62: 0 | AQ62: 0 | AR62: 0 | AS62: 0 | AT62: 0 | AU62: 0 | AV62: 0 | AW62: 0 | AX62: 0 | AY62: 0 | AZ62: 0 | BA62: 0 | BB62: 0 | BC62: 0 | BD62: 0 | BF62: Hpdrv | BL62: HPdrvs= | BN62: =+AD135 -> 1 | BO62: =+AD136 -> 1 | BP62: =+AD137 -> 0 | BQ62: =+AD138 -> 0 | BR62: =+AD139 -> 0 | BS62: =+AD140 -> 0 | BT62: =+AD141 -> 0 | BU62: =+AD142 -> 0 | BV62: =+AD143 -> 0 | BW62: =+AD144 -> 0 | BX62: =+AD145 -> 0 | BY62: =+AD146 -> 0 | BZ62: =+AD147 -> 0 | CA62: =+AD148 -> 0 | CB62: =+AD149 -> 0 | CC62: =+AD150 -> 0 | CD62: =+AD151 -> 0 | CE62: =+AD152 -> 0 | CF62: =+AD153 -> 0 | CG62: =+AD154 -> 0 | CI62: %Vthd | CJ62: 2.145 | CK62: 1.619 | CL62: 2.145 | CM62: 3.267 | CN62: 4.243 | CO62: 5.112 | CP62: 5.908 | CQ62: 6.628 | CR62: 7.273 | CS62: 7.876 | CT62: 8.951 | CU62: 9.892 | CV62: 10.735 | CW62: 12.167 | CX62: 13 | CY62: 90 | CZ62: 90 | DA62: 90 | EV62: 0
A63: Mitigation Methods | N63: Wire Table | S63: 75degC | AD63: Hpdrvused= | AF63: =+AF62*$G$9/10000*IF($H$22=0,100,$H$22) -> 1 | AG63: =+AG62*$G$9/10000*IF($H23=0,100,$H23) -> 0 | AH63: =+AH62*$G$9/10000*IF($H$24=0,100,$H$24) -> 0 | AI63: =+AI62*$G$9/10000*IF($H$25=0,100,$H$25) -> 0 | AJ63: =+AJ62*$G$9/10000*IF($H$26=0,100,$H$26) -> 0 | AK63: =+AK62*$G$9/10000*IF($H$27=0,100,$H$27) -> 0 | AL63: =+AL62*$G$9/10000*IF($H$28=0,100,$H$28) -> 0 | AM63: =+AM62*$G$9/10000*IF($H$29=0,100,$H$29) -> 0 | AN63: =+AN62*$G$9/10000*IF($H$30=0,100,$H$30) -> 0 | AO63: =+AO62*$G$9/10000*IF($H$31=0,100,$H$31) -> 0 | AP63: =+AP62*$G$9/10000*IF($H$32=0,100,$H$32) -> 0 | AQ63: =+AQ62*$G$9/10000*IF($H$33=0,100,$H$33) -> 0 | AR63: =+AR62*$G$9/10000*IF($H$34=0,100,$H$34) -> 0 | AS63: =+AS62*$G$9/10000*IF($H$35=0,100,$H$35) -> 0 | AT63: =+AT62*$G$9/10000*IF($H$36=0,100,$H$36) -> 0 | AU63: =+AU62*$G$9/10000*IF($H$37=0,100,$H$37) -> 0 | AV63: =+AV62*$G$9/10000*IF($H$38=0,100,$H$38) -> 0 | AW63: =+AW62*$G$9/10000*IF($H$39=0,100,$H$39) -> 0 | AX63: =+AX62*$G$9/10000*IF($H$40=0,100,$H$40) -> 0 | AY63: =+AY62*$G$9/10000*IF($H$41=0,100,$H$41) -> 0 | AZ63: =+AZ62*$G$9/10000*IF($H$42=0,100,$H$42) -> 0 | BA63: =+BA62*$G$9/10000*IF($H$43=0,100,$H$43) -> 0 | BB63: =+BB62*$G$9/10000*IF($H$44=0,100,$H$44) -> 0 | BC63: =+BC62*$G$9/10000*IF($H$45=0,100,$H$45) -> 0 | BD63: =+BD62*$G$9/10000*IF($H$46=0,100,$H$46) -> 0 | BF63: Hpdrvused= | BL63: HPuseddrv= | BN63: =+AC135 -> 1.002 | BO63: =+AC136 -> 1.001 | BP63: =+AC137 -> 0.001 | BQ63: =+AC138 -> 0.001 | BR63: =+AC139 -> 0.001 | BS63: =+AC140 -> 0.001 | BT63: =+AC141 -> 0.001 | BU63: =+AC142 -> 0.001 | BV63: =+AC143 -> 0.001 | BW63: =+AC144 -> 0.001 | BX63: =+AC145 -> 0.001 | BY63: =+AC146 -> 0.001 | BZ63: =+AC147 -> 0.001 | CA63: =+AC148 -> 0.001 | CB63: =+AC149 -> 0.001 | CC63: =+AC150 -> 0.001 | CD63: =+AC151 -> 0.001 | CE63: =+AC152 -> 0.001 | CF63: =+AC153 -> 0.001 | CG63: =+AC154 -> 0.001 | CI63: Vrms/Vs | CJ63: 0.9974 | CK63: 0.9981 | CL63: 0.9974 | CM63: 0.9917 | CN63: 0.9874 | CO63: 0.983 | CP63: 0.9786 | CQ63: 0.9741 | CR63: 0.9698 | CS63: 0.9653 | CT63: 0.9564 | CU63: 0.9477 | CV63: 0.9388 | CW63: 0.9218 | CX63: 0.9092 | CY63: 0.09 | CZ63: 0.09 | DA63: 0.09 | EV63: 0
A64: A 1.5 to 5% Line Reactor will improve both %Vthd & &TDD with equivalent loss of voltage. | N64: Wire size | O64: Xl pvc, al | P64: Rdc cu 1kf | Q64: Z(ohm/ft) | S64: Ampacity | AD64: %Loading | AF64: =+IF($H22=0,100,$H22) -> 100 | AG64: =+IF($H23=0,100,$H23) -> 100 | AH64: =+IF($H24=0,100,$H24) -> 100 | AI64: =+IF($H25=0,100,$H25) -> 100 | AJ64: =+IF($H26=0,100,$H26) -> 100 | AK64: =+IF($H27=0,100,$H27) -> 100 | AL64: =+IF($H28=0,100,$H28) -> 100 | AM64: =+IF($H29=0,100,$H29) -> 100 | AN64: =+IF($H30=0,100,$H30) -> 100 | AO64: =+IF($H31=0,100,$H31) -> 100 | AP64: =+IF($H32=0,100,$H32) -> 100 | AQ64: =+IF($H33=0,100,$H33) -> 100 | AR64: =+IF($H34=0,100,$H34) -> 100 | AS64: =+IF($H35=0,100,$H35) -> 100 | AT64: =+IF($H36=0,100,$H36) -> 100 | AU64: =+IF($H37=0,100,$H37) -> 100 | AV64: =+IF($H38=0,100,$H38) -> 100 | AW64: =+IF($H39=0,100,$H39) -> 100 | AX64: =+IF($H40=0,100,$H40) -> 100 | AY64: =+IF($H41=0,100,$H41) -> 100 | AZ64: =+IF($H42=0,100,$H42) -> 100 | BA64: =+IF($H43=0,100,$H43) -> 100 | BB64: =+IF($H44=0,100,$H44) -> 100 | BC64: =+IF($H45=0,100,$H45) -> 100 | BD64: =+IF($H46=0,100,$H46) -> 100 | BL64: Vpri | BM64: =+G6 -> 13200 | BN64: =+G6 -> 13200 | BO64: =+HLOOKUP(BO53,$BM$1:$CG$65,65,0) -> 13200 | BP64: =+HLOOKUP(BP53,$BM$1:$CG$65,65,0) -> 0.001 | BQ64: =+HLOOKUP(BQ53,$BM$1:$CG$65,65,0) -> 0.001 | BR64: 0.001 | BS64: 0.001 | BT64: 0.001 | BU64: 0.001 | BV64: 0.001 | BW64: 0.001 | BX64: 0.001 | BY64: 0.001 | BZ64: 0.001 | CA64: 0.001 | CB64: 0.001 | CC64: 0.001 | CD64: 0.001 | CE64: 0.001 | CF64: 0.001 | CG64: 0.001 | CI64: Vbus/Vs | CJ64: 1.3883 | CK64: 1.3904 | CL64: 1.3883 | CM64: 1.378 | CN64: 1.36985 | CO64: 1.362 | CP64: 1.354 | CQ64: 1.3463 | CR64: 1.3388 | CS64: 1.331 | CT64: 1.3165 | CU64: 1.3024 | CV64: 1.2885 | CW64: 1.2619 | CX64: 1.2429 | CY64: 0.5 | CZ64: 0.5 | DA64: 0.5 | EV64: 0
A65: The improvement amounts can be checked using the Calculator above adding the reactor % to %Zf. | N65: 0 | O65: 1 | P65: 1 | Q65: 1e-11 | R65: 0 | S65: 0 | U65: K= | V65: =746/1.732/V66/V67/V68 -> 430.7159353 | W65: =746/1.732/W66/W67/W68 -> 583.4480481 | AD65: ActMult | AF65: =+IF(AF$54=6,10000/($G$9*AF64+0.00001),1) -> 1 | AG65: 1 | AH65: 1 | AI65: 1 | AJ65: 1 | AK65: 1 | AL65: 1 | AM65: 1 | AN65: 1 | AO65: 1 | AP65: 1 | AQ65: 1 | AR65: 1 | AS65: 1 | AT65: 1 | AU65: 1 | AV65: 1 | AW65: 1 | AX65: 1 | AY65: 1 | AZ65: 1 | BA65: 1 | BB65: 1 | BC65: 1 | BD65: 1 | BL65: Vsec | BM65: 0.001 | BN65: =+G6 -> 13200 | BO65: =+F12 -> 480 | BP65: =+F13 -> 0 | BQ65: =+F14 -> 0 | BR65: =+F15 -> 0 | BS65: =+F16 -> 0 | BT65: =+F17 -> 0 | BU65: =+F18 -> 0 | BV65: =+F19 -> 0 | BW65: =+F20 -> 0 | BX65: =+HLOOKUP(BX53,$BM$1:$CG$65,65,0) -> 0.001 | BY65: 0.001 | BZ65: 0.001 | CA65: 0.001 | CB65: 0.001 | CC65: 0.001 | CD65: 0.001 | CE65: 0.001 | CF65: 0.001 | CG65: 0.001 | CI65: %I2nd | CJ65: 0.01673397678 | CK65: 0.005689262887 | CL65: 0.0896252342 | CM65: 0.0032455288 | CN65: 0.00860566276 | CO65: 0.05810021454 | CP65: 0.1231724288 | CQ65: 0.2036545285 | CR65: 0.2265477608 | CS65: 0.3374345385 | CT65: 0.4874665153 | CU65: 0.6319145051 | CV65: 0.7378068744 | CW65: 0.8358798871 | CX65: 0.8632032072 | CY65: 0.8632032072 | CZ65: 0.8632032072 | DA65: 0.8632032072 | DB65: 2 | EV65: 0
N66: 1 | O66: 0.046 | P66: 0.16 | Q66: =SQRT(O66^2+P66^2)/1000 -> 0.0001664812302 | R66: 1 | S66: 130 | U66: Effdrv= | V66: 1 | W66: 0.965 | AD66: Vinput | AF66: =+HLOOKUP(AF53,$BM$1:$CG$65,65,0) -> 480 | AG66: 0.001 | AH66: 0.001 | AI66: 0.001 | AJ66: 0.001 | AK66: 0.001 | AL66: 0.001 | AM66: 0.001 | AN66: 0.001 | AO66: 0.001 | AP66: 0.001 | AQ66: 0.001 | AR66: 0.001 | AS66: 0.001 | AT66: 0.001 | AU66: 0.001 | AV66: 0.001 | AW66: 0.001 | AX66: 0.001 | AY66: 0.001 | AZ66: 0.001 | BA66: 0.001 | BB66: 0.001 | BC66: 0.001 | BD66: 0.001 | BF66: =Vinput | BL66: %Znode | BM66: 0 | BN66: =+N7-N6 -> 0.0002278939024 | BO66: =+N6 -> 0.002096627549 | BP66: =+E13/(D13+0.00001)*BP55/$G$10 -> 0 | BQ66: =+E14/(D14+0.00001)*BQ55/$G$10 -> 0 | BR66: =+$E15/($D15+0.00001)*BR55/$G$10 -> 0 | BS66: =+$E16/($D16+0.00001)*BS55/$G$10 -> 0 | BT66: =+$E17/($D17+0.00001)*BT55/$G$10 -> 0 | BU66: =+$E18/($D18+0.00001)*BU55/$G$10 -> 0 | BV66: =+$E19/($D19+0.00001)*BV55/$G$10 -> 0 | BW66: =+$E20/($D20+0.00001)*BW55/$G$10 -> 0 | BX66: =+VLOOKUP($K11,$N$65:$R$94,4,0)*$M11/($L11+0.00001)*746/G10*BX55/(BX64+0.00001)^2 -> 0 | BY66: =+VLOOKUP($K12,$N$65:$R$94,4,0)*$M12/($L12+0.00001)*746/G10*BY55/(BY64+0.00001)^2 -> 0 | BZ66: =+VLOOKUP($K13,$N$65:$R$94,4,0)*$M13/($L13+0.00001)*746/G10*BZ55/(BZ64+0.00001)^2 -> 0 | CA66: =+VLOOKUP($K14,$N$65:$R$94,4,0)*$M14/($L14+0.00001)*746/G10*CA55/(CA64+0.00001)^2 -> 0 | CB66: =+VLOOKUP($K15,$N$65:$R$94,4,0)*$M15/($L15+0.00001)*746/G10*CB55/(CB64+0.00001)^2 -> 0 | CC66: =+VLOOKUP($K16,$N$65:$R$94,4,0)*$M16/($L16+0.00001)*746/G10*CC55/(CC64+0.00001)^2 -> 0 | CD66: =+VLOOKUP($K17,$N$65:$R$94,4,0)*$M17/($L17+0.00001)*746/G10*CD55/(CD64+0.00001)^2 -> 0 | CE66: =+VLOOKUP($K18,$N$65:$R$94,4,0)*$M18/($L18+0.00001)*746/G10*CE55/(CE64+0.00001)^2 -> 0 | CF66: =+VLOOKUP($K19,$N$65:$R$94,4,0)*$M19/($L19+0.00001)*746/G10*CF55/(CF64+0.00001)^2 -> 0 | CG66: =+VLOOKUP($K20,$N$65:$R$94,4,0)*$M20/($L20+0.00001)*746/G10*CG55/(CG64+0.00001)^2 -> 0 | CI66: %I3rd | CJ66: 2.942538424 | CK66: 2.991238149 | CL66: 3.284284303 | CM66: 5.097922824 | CN66: 7.097998517 | CO66: 7.46467781 | CP66: 5.295367007 | CQ66: 3.813357049 | CR66: 2.895776728 | CS66: 2.317707179 | CT66: 1.636001995 | CU66: 1.260964958 | CV66: 1.024532986 | CW66: 0.7548598483 | CX66: 0.6296528279 | CY66: 0.6296528279 | CZ66: 0.6296528279 | DA66: 0.6296528279 | DB66: 3 | EV66: 0
A67: A 5th harmonic trap filter is sized for about a KVAR = Drive KVA / 3. | N67: 1/0 | O67: 0.044 | P67: 0.127 | Q67: 0.0001344061011 | R67: =+R66+1 -> 2 | S67: 150 | U67: Effmtr= | V67: 1 | W67: 0.85 | AD67: %Zatdrv | AF67: =+IF(AF75=4,0,IF(AF75=7,0,$M22)) -> 5 | AG67: =+IF(AG75=4,0,IF(AG75=7,0,$M23)) -> 0 | AH67: =+IF(AH75=4,0,IF(AH75=7,0,$M24)) -> 0 | AI67: =+IF(AI75=4,0,IF(AI75=7,0,$M25)) -> 0 | AJ67: =+IF(AJ75=4,0,IF(AJ75=7,0,$M26)) -> 0 | AK67: =+IF(AK75=4,0,IF(AK75=7,0,$M27)) -> 0 | AL67: =+IF(AL75=4,0,IF(AL75=7,0,$M28)) -> 0 | AM67: =+IF(AM75=4,0,IF(AM75=7,0,$M29)) -> 0 | AN67: =+IF(AN75=4,0,IF(AN75=7,0,$M30)) -> 0 | AO67: =+IF(AO75=4,0,IF(AO75=7,0,$M31)) -> 0 | AP67: =+IF(AP75=4,0,IF(AP75=7,0,$M32)) -> 0 | AQ67: =+IF(AQ75=4,0,IF(AQ75=7,0,$M33)) -> 0 | AR67: =+IF(AR75=4,0,IF(AR75=7,0,$M34)) -> 0 | AS67: =+IF(AS75=4,0,IF(AS75=7,0,$M35)) -> 0 | AT67: =+IF(AT75=4,0,IF(AT75=7,0,$M36)) -> 0 | AU67: =+IF(AU75=4,0,IF(AU75=7,0,$M37)) -> 0 | AV67: =+IF(AV75=4,0,IF(AV75=7,0,$M38)) -> 0 | AW67: =+IF(AW75=4,0,IF(AW75=7,0,$M39)) -> 0 | AX67: =+IF(AX75=4,0,IF(AX75=7,0,$M40)) -> 0 | AY67: =+IF(AY75=4,0,IF(AY75=7,0,$M41)) -> 0 | AZ67: =+IF(AZ75=4,0,IF(AZ75=7,0,$M42)) -> 0 | BA67: =+IF(BA75=4,0,IF(BA75=7,0,$M43)) -> 0 | BB67: =+IF(BB75=4,0,IF(BB75=7,0,$M44)) -> 0 | BC67: =+IF(BC75=4,0,IF(BC75=7,0,$M45)) -> 0 | BD67: =+IF(BD75=4,0,IF(BD75=7,0,$M46)) -> 0 | BF67: =%Ztotdrv | BL67: %Znode/HP= | BN67: =+BN66/(BN63+0.00001) -> 0.0002274367546 | BO67: 0.002094512092 | BP67: 0 | BQ67: 0 | BR67: 0 | BS67: 0 | BT67: 0 | BU67: 0 | BV67: 0 | BW67: 0 | BX67: 0 | BY67: 0 | BZ67: 0 | CA67: 0 | CB67: 0 | CC67: 0 | CD67: 0 | CE67: 0 | CF67: 0 | CG67: 0 | CI67: %I4th | CJ67: 0.01926833968 | CK67: 0.03277831531 | CL67: 0.05431100667 | CM67: 0.009745402047 | CN67: 0.02033845383 | CO67: 0.01318899791 | CP67: 0.008181763866 | CQ67: 0.00258405237 | CR67: 0.007449537866 | CS67: 0.004290743844 | CT67: 0.009024734465 | CU67: 0.007922219668 | CV67: 0.005883006849 | CW67: 0.006378356502 | CX67: 0.007019755071 | CY67: 0.007019755071 | CZ67: 0.007019755071 | DA67: 0.007019755071 | DB67: 4 | EV67: 0
A68: It is tuned to the 4.77th harmonic | N68: 10 | O68: 0.05 | P68: 1.26 | Q68: 0.001260991673 | R68: =+R67+1 -> 3 | S68: 35 | U68: Pfin= | V68: 1 | W68: 0.9 | AD68: %Zs= | AF68: =+AF56*(HLOOKUP(AF80,$BM$1:$CG$70,67,0)+HLOOKUP(AF81,$BM$1:$CG$70,67,0)+HLOOKUP(AF82,$BM$1:$CG$70,67,0)+HLOOKUP(AF83,$BM$1:$CG$70,67,0)+HLOOKUP(AF84,$BM$1:$CG$70,67,0)+HLOOKUP(AF85,$BM$1:$CG$70,67,0)+HLOOKUP(AF86,$BM$1:$CG$70,67,0)+HLOOKUP(AF87,$BM$1:$CG$70,67,0)+HLOOKUP(AF88,$BM$1:$CG$70,67,0)+HLOOKUP(AF89,$BM$1:$CG$70,67,0)+HLOOKUP(AF90,$BM$1:$CG$70,67,0)+HLOOKUP(AF91,$BM$1:$CG$70,67,0)+HLOOKUP(AF92,$BM$1:$CG$70,67,0)+HLOOKUP(AF93,$BM$1:$CG$70,67,0)+HLOOKUP(AF94,$BM$1:$CG$70,67,0)+HLOOKUP(AF95,$BM$1:$CG$70,67,0)+HLOOKUP(AF96,$BM$1:$CG$70,67,0)+HLOOKUP(AF97,$BM$1:$CG$70,67,0)+HLOOKUP(AF98,$BM$1:$CG$70,67,0)+HLOOKUP(AF99,$BM$1:$CG$70,67,0)+HLOOKUP(AF100,$BM$1:$CG$70,67,0)) -> 0.002321948846 | AG68: =+AG56*(HLOOKUP(AG80,$BM$1:$CG$70,67,0)+HLOOKUP(AG81,$BM$1:$CG$70,67,0)+HLOOKUP(AG82,$BM$1:$CG$70,67,0)+HLOOKUP(AG83,$BM$1:$CG$70,67,0)+HLOOKUP(AG84,$BM$1:$CG$70,67,0)+HLOOKUP(AG85,$BM$1:$CG$70,67,0)+HLOOKUP(AG86,$BM$1:$CG$70,67,0)+HLOOKUP(AG87,$BM$1:$CG$70,67,0)+HLOOKUP(AG88,$BM$1:$CG$70,67,0)+HLOOKUP(AG89,$BM$1:$CG$70,67,0)+HLOOKUP(AG90,$BM$1:$CG$70,67,0)+HLOOKUP(AG91,$BM$1:$CG$70,67,0)+HLOOKUP(AG92,$BM$1:$CG$70,67,0)+HLOOKUP(AG93,$BM$1:$CG$70,67,0)+HLOOKUP(AG94,$BM$1:$CG$70,67,0)+HLOOKUP(AG95,$BM$1:$CG$70,67,0)+HLOOKUP(AG96,$BM$1:$CG$70,67,0)+HLOOKUP(AG97,$BM$1:$CG$70,67,0)+HLOOKUP(AG98,$BM$1:$CG$70,67,0)+HLOOKUP(AG99,$BM$1:$CG$70,67,0)+HLOOKUP(AG100,$BM$1:$CG$70,67,0)) -> 0 | AH68: 0 | AI68: 0 | AJ68: 0 | AK68: 0 | AL68: 0 | AM68: 0 | AN68: 0 | AO68: 0 | AP68: 0 | AQ68: 0 | AR68: 0 | AS68: 0 | AT68: 0 | AU68: 0 | AV68: 0 | AW68: 0 | AX68: 0 | AY68: 0 | AZ68: 0 | BA68: 0 | BB68: 0 | BC68: 0 | BD68: 0 | BE68: =+N7-N6 -> 0.0002278939024 | BL68: %Zsbefnode= | BN68: =+BF127 -> 0.0002278939024 | BO68: 0.002324294012 | BP68: 0 | BQ68: 0 | BR68: 0 | BS68: 0 | BT68: 0 | BU68: 0 | BV68: 0 | BW68: 0 | BX68: 0 | BY68: 0 | BZ68: 0 | CA68: 0 | CB68: 0 | CC68: 0 | CD68: 0 | CE68: 0 | CF68: 0 | CG68: 0 | CI68: %I5th | CJ68: 0.06470036041 | CK68: 0.02284395504 | CL68: 0.1543280323 | CM68: 0.01882318259 | CN68: 0.03151777828 | CO68: 0.04439940073 | CP68: 0.03196045 | CQ68: 0.01976732721 | CR68: 0.01237185782 | CS68: 0.01011877995 | CT68: 0.005147681283 | CU68: 0.002128045521 | CV68: 0.001385346195 | CW68: 0.002184207033 | CX68: 0.006893480266 | CY68: 0.006893480266 | CZ68: 0.006893480266 | DA68: 0.006893480266 | DB68: 5 | EV68: =X68 -> 0
A69: It should have at minimum a 5% series reactor or equivalent impedance transformer ahead of it | N69: 1000 | O69: 0.037 | P69: 0.0132 | Q69: 3.928409347e-05 | R69: 4 | S69: 545 | AD69: %Zloop= | AF69: =+MAX(AF67+AF68,0.1) -> 5.002321949 | AG69: =+MAX(AG67+AG68,0.1) -> 0.1 | AH69: 0.1 | AI69: 0.1 | AJ69: 0.1 | AK69: 0.1 | AL69: 0.1 | AM69: 0.1 | AN69: 0.1 | AO69: 0.1 | AP69: 0.1 | AQ69: 0.1 | AR69: 0.1 | AS69: 0.1 | AT69: 0.1 | AU69: 0.1 | AV69: 0.1 | AW69: 0.1 | AX69: 0.1 | AY69: 0.1 | AZ69: 0.1 | BA69: 0.1 | BB69: 0.1 | BC69: 0.1 | BD69: 0.1 | BF69: =%Zloop6= | BL69: %Zfaftnode= | BN69: =+AD107 -> 5.007094726 | BO69: =+AD108 -> 5 | BP69: =+AD109 ->  | BQ69: =+AD110 ->  | BR69: =+AD111 ->  | BS69: =+AD112 ->  | BT69: =+AD113 ->  | BU69: =+AD114 ->  | BV69: =+AD115 ->  | BW69: =+AD116 ->  | BX69: =+AD117 ->  | BY69: =+AD118 ->  | BZ69: =+AD119 ->  | CA69: =+AD120 ->  | CB69: =+AD121 ->  | CC69: =+AD122 ->  | CD69: =+AD123 ->  | CE69: =+AD124 ->  | CF69: =+AD125 ->  | CG69: =+AD126 ->  | CI69: %I6th | CJ69: 0.1151546028 | CK69: 0.01973722932 | CL69: 0.06906018942 | CM69: 0.006136836422 | CN69: 0.02506520826 | CO69: 0.007767489071 | CP69: 0.006693690547 | CQ69: 0.00406931041 | CR69: 0.00290486062 | CS69: 0.002048155248 | CT69: 0.001081158026 | CU69: 0.006592900549 | CV69: 0.004967734165 | CW69: 0.0045849608 | CX69: 0.007832822968 | CY69: 0.007832822968 | CZ69: 0.007832822968 | DA69: 0.007832822968 | DB69: 6 | EV69: 0
A70: to isolate it from other equipment on the utility line. | N70: 12 | O70: 0.054 | P70: 2.01 | Q70: 0.002010725242 | R70: 5 | S70: 25 | AD70: %VMult | AF70: =+HLOOKUP(AF53,$BM$1:$CG$70,61,0)*AF56/$U$12 -> 0 | AG70: 0 | AH70: 0 | AI70: 0 | AJ70: 0 | AK70: 0 | AL70: 0 | AM70: 0 | AN70: 0 | AO70: 0 | AP70: 0 | AQ70: 0 | AR70: 0 | AS70: 0 | AT70: 0 | AU70: 0 | AV70: 0 | AW70: 0 | AX70: 0 | AY70: 0 | AZ70: 0 | BA70: 0 | BB70: 0 | BC70: 0 | BD70: 0 | BL70: %Zs/Hpnode | BM70: =(HLOOKUP(BM80,$BM$1:$CG$70,62,0)+HLOOKUP(BM81,$BM$1:$CG$70,62,0)+HLOOKUP(BM82,$BM$1:$CG$70,62,0)+HLOOKUP(BM83,$BM$1:$CG$70,62,0)+HLOOKUP(BM84,$BM$1:$CG$70,62,0)+HLOOKUP(BM85,$BM$1:$CG$70,62,0)+HLOOKUP(BM86,$BM$1:$CG$70,62,0)+HLOOKUP(BM87,$BM$1:$CG$70,62,0)+HLOOKUP(BM88,$BM$1:$CG$70,62,0)+HLOOKUP(BM89,$BM$1:$CG$70,62,0)+HLOOKUP(BM90,$BM$1:$CG$70,62,0)+HLOOKUP(BM91,$BM$1:$CG$70,62,0)+HLOOKUP(BM92,$BM$1:$CG$70,62,0)+HLOOKUP(BM93,$BM$1:$CG$70,62,0)+HLOOKUP(BM94,$BM$1:$CG$70,62,0)+HLOOKUP(BM95,$BM$1:$CG$70,62,0)+HLOOKUP(BM96,$BM$1:$CG$70,62,0)+HLOOKUP(BM97,$BM$1:$CG$70,62,0)+HLOOKUP(BM98,$BM$1:$CG$70,62,0)+HLOOKUP(BM99,$BM$1:$CG$70,62,0)+HLOOKUP(BM100,$BM$1:$CG$70,62,0)) -> 0 | BN70: 1 | BO70: 2 | BP70: 0 | BQ70: 0 | BR70: 0 | BS70: 0 | BT70: 0 | BU70: 0 | BV70: 0 | BW70: 0 | BX70: 0 | BY70: 0 | BZ70: 0 | CA70: 0 | CB70: 0 | CC70: 0 | CD70: 0 | CE70: 0 | CF70: 0 | CG70: 0 | CI70: %I7th | CJ70: 0.04642394371 | CK70: 0.04101405582 | CL70: 0.0207738225 | CM70: 0.005088257806 | CN70: 0.02671308864 | CO70: 0.04959833081 | CP70: 0.03281286566 | CQ70: 0.01961873246 | CR70: 0.01440724541 | CS70: 0.009825916117 | CT70: 0.005334171089 | CU70: 0.005469488777 | CV70: 0.00308648561 | CW70: 0.006460887989 | CX70: 0.008364370603 | CY70: 0.008364370603 | CZ70: 0.008364370603 | DA70: 0.008364370603 | DB70: 7 | EV70: 0
A71: It should not be sized too much different than that as: | N71: 1250 | O71: 0.037 | P71: 0.0106 | Q71: 3.848843982e-05 | R71: 6 | S71: 590 | V71: =+U16 -> 0.03987226231 | AD71: =+SUM(AF71:BD71) -> 0 | AF71: =+AF70*AF30 -> 0 | AG71: 0 | AH71: 0 | AI71: 0 | AJ71: 0 | AK71: 0 | AL71: 0 | AM71: 0 | AN71: 0 | AO71: 0 | AP71: 0 | AQ71: 0 | AR71: 0 | AS71: 0 | AT71: 0 | AU71: 0 | AV71: 0 | AW71: 0 | AX71: 0 | AY71: 0 | AZ71: 0 | BA71: 0 | BB71: 0 | BC71: 0 | BD71: 0 | BM71: =+BM74*BM70 -> 0 | BN71: 1 | BO71: 0 | BP71: 0 | BQ71: 0 | BR71: 0 | BS71: 0 | BT71: 0 | BU71: 0 | BV71: 0 | BW71: 0 | BX71: 0 | BY71: 0 | BZ71: 0 | CA71: 0 | CB71: 0 | CC71: 0 | CD71: 0 | CE71: 0 | CF71: 0 | CG71: 0 | CI71: %I8th | CJ71: 0.1892644245 | CK71: 0.0409110343 | CL71: 0.04894654383 | CM71: 0.002641725248 | CN71: 0.01285108748 | CO71: 0.002839921543 | CP71: 0.004514925154 | CQ71: 0.008372400301 | CR71: 0.005188095069 | CS71: 0.0006173072415 | CT71: 0.01122059405 | CU71: 0.007156515647 | CV71: 0.0073956579 | CW71: 0.004273649281 | CX71: 0.007929862797 | CY71: 0.007929862797 | CZ71: 0.007929862797 | DA71: 0.007929862797 | DB71: 8 | EV71: 0
A72: Much smaller and the trap current may be too high | N72: 14 | O72: 0.058 | P72: 3.19 | Q72: =SQRT(O72^2+P72^2)/1000 -> 0.003190527229 | R72: 7 | S72: 20 | U72: 1 | V72: 0.91 | AE72: %Z*HP= | AF72: =+AF56*AF67 -> 5 | AG72: 0 | AH72: 0 | AI72: 0 | AJ72: 0 | AK72: 0 | AL72: 0 | AM72: 0 | AN72: 0 | AO72: 0 | AP72: 0 | AQ72: 0 | AR72: 0 | AS72: 0 | AT72: 0 | AU72: 0 | AV72: 0 | AW72: 0 | AX72: 0 | AY72: 0 | AZ72: 0 | BA72: 0 | BB72: 0 | BC72: 0 | BD72: 0 | BN72: 1 | BO72: =+COUNTIF($BD$80:$BD$100,BO1) -> 0 | BP72: 0 | BQ72: 0 | BR72: 0 | BS72: 0 | BT72: 0 | BU72: 0 | BV72: 0 | BW72: 0 | BX72: 0 | BY72: 0 | BZ72: 0 | CA72: 0 | CB72: 0 | CC72: 0 | CD72: 0 | CE72: 0 | CF72: 0 | CG72: 0 | CI72: %I9th | CJ72: 2.067529604 | CK72: 0.471192867 | CL72: 0.5535389507 | CM72: 0.6014193968 | CN72: 0.940999278 | CO72: 1.025626609 | CP72: 0.743010747 | CQ72: 0.5627256262 | CR72: 0.4461101967 | CS72: 0.3708027725 | CT72: 0.2746541311 | CU72: 0.2198534329 | CV72: 0.1876000197 | CW72: 0.1461419151 | CX72: 0.123941451 | CY72: 0.123941451 | CZ72: 0.123941451 | DA72: 0.123941451 | DB72: 9 | EV72: 0
A73: Much larger and the input power factor will be too leading. | N73: 1500 | O73: 0.037 | P73: 0.00833 | Q73: 3.792609787e-05 | R73: 8 | S73: 625 | U73: 2 | V73: 0.96 | AE73: Index | AF73: =HLOOKUP(AF69,$CI$3:$CX$53,51,1) -> 7 | AG73: 1 | AH73: 1 | AI73: 1 | AJ73: 1 | AK73: 1 | AL73: 1 | AM73: 1 | AN73: 1 | AO73: 1 | AP73: 1 | AQ73: 1 | AR73: 1 | AS73: 1 | AT73: 1 | AU73: 1 | AV73: 1 | AW73: 1 | AX73: 1 | AY73: 1 | AZ73: 1 | BA73: 1 | BB73: 1 | BC73: 1 | BD73: 1 | BF73: =Index | BL73: %Zn*HPdrv/HPd&m= | BN73: =+BN66*BN63/(BN60+0.00001) -> 0.0002283474068 | BO73: 0.002098703189 | BP73: 0 | BQ73: 0 | BR73: 0 | BS73: 0 | BT73: 0 | BU73: 0 | BV73: 0 | BW73: =+BW66*BW63/(BW60+0.001) -> 0 | BX73: =+BX66*BX63/(BX60+0.00001) -> 0 | BY73: 0 | BZ73: 0 | CA73: 0 | CB73: 0 | CC73: 0 | CD73: 0 | CE73: 0 | CF73: 0 | CG73: 0 | CI73: %I10th | CJ73: 0.09993260102 | CK73: 0.0293320317 | CL73: 0.04485472927 | CM73: 0.007331143023 | CN73: 0.001621634941 | CO73: 0.0126908759 | CP73: 0.01526028683 | CQ73: 0.01144232081 | CR73: 0.02825308185 | CS73: 0.03154265714 | CT73: 0.05307780499 | CU73: 0.06959432643 | CV73: 0.08463450033 | CW73: 0.107241743 | CX73: 0.1096524587 | CY73: 0.1096524587 | CZ73: 0.1096524587 | DA73: 0.1096524587 | DB73: 10 | EV73: 0
A74: It will reduce %TDD to about 1/3 of 6 pulse level without trap | N74: 1750 | O74: 0.037 | P74: 0.00756 | Q74: 3.776444889e-05 | R74: 9 | S74: 650 | U74: 3 | V74: 0.98 | AE74: InterpFactor | AF74: =+(AF69-HLOOKUP(AF73,$CI$1:$DA$3,3,0))/(HLOOKUP(AF73+1,$CI$1:$DA$3,3,0)-HLOOKUP(AF73,$CI$1:$CX$3,3,0)) -> 0.002321948846 | AG74: 0 | AH74: 0 | AI74: 0 | AJ74: 0 | AK74: 0 | AL74: 0 | AM74: 0 | AN74: 0 | AO74: 0 | AP74: 0 | AQ74: 0 | AR74: 0 | AS74: 0 | AT74: 0 | AU74: 0 | AV74: 0 | AW74: 0 | AX74: 0 | AY74: 0 | AZ74: 0 | BA74: 0 | BB74: 0 | BC74: 0 | BD74: 0 | BF74: =InterpFactor | BL74: inPCCSpath= | BM74: 0 | BN74: =+COUNTIF($BK$80:$BK$100,BN1) -> 1 | BO74: 0 | BP74: 0 | BQ74: 0 | BR74: 0 | BS74: 0 | BT74: 0 | BU74: 0 | BV74: 0 | BW74: 0 | BX74: 0 | BY74: 0 | BZ74: 0 | CA74: 0 | CB74: 0 | CC74: 0 | CD74: 0 | CE74: 0 | CF74: 0 | CG74: 0 | CI74: %I11th | CJ74: 56.14761704 | CK74: 21.04597195 | CL74: 10.53425695 | CM74: 8.338869694 | CN74: 8.271302785 | CO74: 7.096744082 | CP74: 6.207460061 | CQ74: 5.708815392 | CR74: 5.270908632 | CS74: 4.913234326 | CT74: 4.359072491 | CU74: 3.937836963 | CV74: 3.607690831 | CW74: 3.116693415 | CX74: 2.826277093 | CY74: 2.826277093 | CZ74: 2.826277093 | DA74: 2.826277093 | DB74: 11 | EV74: 0
A75: If this is not enough to meet IEE519 then other mitigating means should be used. | N75: 2 | O75: 0.045 | P75: 0.201 | Q75: 0.0002059757267 | R75: 10 | S75: 115 | U75: 4 | V75: 0.9 | AE75: ConvType | AF75: =+IF($D22<1,9,$D22) -> 1 | AG75: =+IF($D23<1,9,$D23) -> 9 | AH75: =+IF($D24<1,9,$D24) -> 9 | AI75: =+IF($D25<1,9,$D25) -> 9 | AJ75: =+IF($D26<1,9,$D26) -> 9 | AK75: =+IF($D27<1,9,$D27) -> 9 | AL75: =+IF($D28<1,9,$D28) -> 9 | AM75: =+IF($D29<1,9,$D29) -> 9 | AN75: =+IF($D30<1,9,$D30) -> 9 | AO75: =+IF($D31<1,9,$D31) -> 9 | AP75: =+IF($D32<1,9,$D32) -> 9 | AQ75: =+IF($D33<1,9,$D33) -> 9 | AR75: =+IF($D34<1,9,$D34) -> 9 | AS75: =+IF($D35<1,9,$D35) -> 9 | AT75: =+IF($D36<1,9,$D36) -> 9 | AU75: =+IF($D37<1,9,$D37) -> 9 | AV75: =+IF($D38<1,9,$D38) -> 9 | AW75: =+IF($D39<1,9,$D39) -> 9 | AX75: =+IF($D40<1,9,$D40) -> 9 | AY75: =+IF($D41<1,9,$D41) -> 9 | AZ75: =+IF($D42<1,9,$D42) -> 9 | BA75: =+IF($D43<1,9,$D43) -> 9 | BB75: =+IF($D44<1,9,$D44) -> 9 | BC75: =+IF($D45<1,9,$D45) -> 9 | BD75: =+IF($D46<1,9,$D46) -> 9 | BF75: =ConvType | BL75: inPCCLpath= | BN75: =+IF(BN74=1,0,COUNTIF(BN$80:BN$100,BN1)) -> 0 | BO75: 1 | BP75: 1 | BQ75: 1 | BR75: 1 | BS75: 1 | BT75: 1 | BU75: 1 | BV75: 1 | BW75: 1 | BX75: 1 | BY75: 1 | BZ75: 1 | CA75: 1 | CB75: 1 | CC75: 1 | CD75: 1 | CE75: 1 | CF75: 1 | CG75: 1 | CI75: %I12th | CJ75: 0.01366334192 | CK75: 0.03662731193 | CL75: 0.01658737937 | CM75: 0.01019217141 | CN75: 0.009655529979 | CO75: 0.01082740235 | CP75: 0.007535294403 | CQ75: 0.003309378284 | CR75: 0.01073951692 | CS75: 0.01921092318 | CT75: 0.04296940327 | CU75: 0.07484939663 | CV75: 0.1048012218 | CW75: 0.1457800108 | CX75: 0.1524494124 | CY75: 0.1524494124 | CZ75: 0.1524494124 | DA75: 0.1524494124 | DB75: 12 | EV75: 0
A76: A Mirus filter will have %Ithd less than 8% | F76: Use only with ACS600 drives in DTC mode. | N76: 2/0 | O76: 0.043 | P76: 0.101 | Q76: 0.000109772492 | R76: 11 | S76: 195 | U76: 5 | V76: 0.93 | AE76: %Ithd | AF76: =+SQRT(SUMSQ(AF3:AF51)) -> 40.44366113 | AG76: 0 | AH76: 0 | AI76: 0 | AJ76: 0 | AK76: 0 | AL76: 0 | AM76: 0 | AN76: 0 | AO76: 0 | AP76: 0 | AQ76: 0 | AR76: 0 | AS76: 0 | AT76: 0 | AU76: 0 | AV76: 0 | AW76: 0 | AX76: 0 | AY76: 0 | AZ76: 0 | BA76: 0 | BB76: 0 | BC76: 0 | BD76: 0 | BF76: =%Ithd | BL76: %Ithd | BN76: =+SQRT(SUMSQ(BN3:BN51)) -> 40.36293526 | BO76: 40.40325787 | BP76: 0 | BQ76: 0 | BR76: 0 | BS76: 0 | BT76: 0 | BU76: 0 | BV76: 0 | BW76: 0 | BX76: 0 | BY76: 0 | BZ76: 0 | CA76: 0 | CB76: 0 | CC76: 0 | CD76: 0 | CE76: 0 | CF76: 0 | CG76: 0 | CI76: %I13th | CJ76: 45.69475966 | CK76: 11.04072359 | CL76: 7.902508233 | CM76: 5.473730651 | CN76: 3.54231237 | CO76: 2.917707049 | CP76: 2.955396929 | CQ76: 2.728220492 | CR76: 2.578413357 | CS76: 2.458889755 | CT76: 2.275341018 | CU76: 2.124776622 | CV76: 1.994526942 | CW76: 1.782270047 | CX76: 1.647009261 | CY76: 1.647009261 | CZ76: 1.647009261 | DA76: 1.647009261 | DB76: 13 | EV76: 0
A77: A 12 pulse drive will reduce %TDD to about 1/5 of 6 pulse level. | N77: 2000 | O77: 0.036 | P77: 0.00662 | Q77: 3.660361184e-05 | R77: 12 | S77: 665 | U77: 6 | V77: 0.99 | AE77: Ih= | AF77: =+AF76/100*AF56*430/$G$10/(AF66+0.00001) -> 0.4418387684 | AG77: 0 | AH77: 0 | AI77: 0 | AJ77: 0 | AK77: 0 | AL77: 0 | AM77: 0 | AN77: 0 | AO77: 0 | AP77: 0 | AQ77: 0 | AR77: 0 | AS77: 0 | AT77: 0 | AU77: 0 | AV77: 0 | AW77: 0 | AX77: 0 | AY77: 0 | AZ77: 0 | BA77: 0 | BB77: 0 | BC77: 0 | BD77: 0 | BF77: =Ih | BL77: Ih= | BN77: =+BN76/100*BN63*430/$G$10/$U$11 -> 0.01606686464 | BO77: =+BO76/100*BO63*430/$G$10/$U$11 -> 0.01606686464 | BP77: 0 | BQ77: 0 | BR77: 0 | BS77: 0 | BT77: 0 | BU77: 0 | BV77: 0 | BW77: 0 | BX77: 0 | BY77: 0 | BZ77: 0 | CA77: 0 | CB77: 0 | CC77: 0 | CD77: 0 | CE77: 0 | CF77: 0 | CG77: 0 | CI77: %I14th | CJ77: 0.03870069233 | CK77: 0.0323636835 | CL77: 0.03590820462 | CM77: 0.008199630733 | CN77: 0.000941708603 | CO77: 0.007392274576 | CP77: 0.009944770374 | CQ77: 0.01428687101 | CR77: 0.004598101372 | CS77: 0.01742963969 | CT77: 0.02142374421 | CU77: 0.03153724477 | CV77: 0.04039839864 | CW77: 0.05163013177 | CX77: 0.06054800466 | CY77: 0.06054800466 | CZ77: 0.06054800466 | DA77: 0.06054800466 | DB77: 14 | EV77: 0
A78: 12 pulse %Ithd level will be less than 5% if the loop impedamce is greater than 9% | N78: 250 | O78: 0.041 | P78: 0.0535 | Q78: 6.740363492e-05 | R78: 13 | S78: 255 | U78: 7 | V78: 0.9 | CI78: %I15th | CJ78: 0.7098625544 | CK78: 0.4730340663 | CL78: 0.3715545296 | CM78: 0.3334433754 | CN78: 0.4996252542 | CO78: 0.5344612625 | CP78: 0.4115478929 | CQ78: 0.3029547024 | CR78: 0.2406500723 | CS78: 0.2003079959 | CT78: 0.1544781292 | CU78: 0.1288298223 | CV78: 0.1130714314 | CW78: 0.09133661264 | CX78: 0.0805781789 | CY78: 0.0805781789 | CZ78: 0.0805781789 | DA78: 0.0805781789 | DB78: 15 | EV78: 0
A79: An 18 pulse drive will always have %Ithd less than 5%. | N79: 3 | O79: 0.047 | P79: 0.254 | Q79: 0.0002583118271 | R79: 14 | S79: 100 | U79: 8 | V79: 1 | AE79: Path Calculator | BE79: Path from PCC | BH79: Hpunode | BI79: =+VLOOKUP(D9,$Z$135:$AE$155,4,0) -> 1.002 | BJ79: %Znode | BK79: PCC | BN79: Node fed from | CI79: %I16th | CJ79: 0.01828742516 | CK79: 0.009121845629 | CL79: 0.02557725671 | CM79: 0.006100953871 | CN79: 0.01533721759 | CO79: 0.006517316012 | CP79: 0.004291096202 | CQ79: 0.005613869901 | CR79: 0.00577408392 | CS79: 0.00117612799 | CT79: 0.006730717565 | CU79: 0.007729149443 | CV79: 0.007722414574 | CW79: 0.004831651803 | CX79: 0.004666296148 | CY79: 0.004666296148 | CZ79: 0.004666296148 | DA79: 0.004666296148 | DB79: 16 | EV79: 0
N80: 3/0 | O80: 0.042 | P80: 0.0797 | Q80: 9.008934454e-05 | R80: 15 | S80: 200 | U80: 9 | V80: 1 | AE80: FedFrom | AF80: =+C22 -> T1 | AG80: =+C23 -> 0 | AH80: =+C24 -> 0 | AI80: =+C25 -> 0 | AJ80: =+C26 -> 0 | AK80: =+C27 -> 0 | AL80: =+C28 -> 0 | AM80: =+C29 -> 0 | AN80: =+C30 -> 0 | AO80: =+C31 -> 0 | AP80: =+C32 -> 0 | AQ80: =+C33 -> 0 | AR80: =+C34 -> 0 | AS80: =+C35 -> 0 | AT80: =+C36 -> 0 | AU80: =+C37 -> 0 | AV80: =+C38 -> 0 | AW80: =+C39 -> 0 | AX80: =+C40 -> 0 | AY80: =+C41 -> 0 | AZ80: =+C42 -> 0 | BA80: =+C43 -> 0 | BB80: =+C44 -> 0 | BC80: =+C45 -> 0 | BD80: =+C46 -> 0 | BE80: =+D9 -> Utility | BH80: =+HLOOKUP(BK80,$BM$1:$CG$75,63,0) -> 1.002 | BI80: =+VLOOKUP(BK80,$Z$135:$AE$155,3,0) -> 1 | BJ80: =+HLOOKUP(BK80,$BM$1:$CG$75,66,0) -> 0.0002278939024 | BK80: =+D9 -> Utility | BL80: Node | BM80: 0 | BN80: utility | BO80: t1 | BP80: t2 | BQ80: t3 | BR80: t4 | BS80: t5 | BT80: t6 | BU80: t7 | BV80: t8 | BW80: t9 | BX80: b1 | BY80: b2 | BZ80: b3 | CA80: b4 | CB80: b5 | CC80: b6 | CD80: b7 | CE80: b8 | CF80: b9 | CG80: b10 | CI80: %I17th | CJ80: 0.01090705716 | CK80: 0.008644401133 | CL80: 0.01611376314 | CM80: 0.006222636489 | CN80: 0.02668985046 | CO80: 0.0409814166 | CP80: 0.03052035539 | CQ80: 0.01778310067 | CR80: 0.01375922276 | CS80: 0.009480384767 | CT80: 0.007964442353 | CU80: 0.007369678963 | CV80: 0.007394181538 | CW80: 0.004373420298 | CX80: 0.001816584439 | CY80: 0.001816584439 | CZ80: 0.001816584439 | DA80: 0.001816584439 | DB80: 17 | EV80: 0
N81: 300 | O81: 0.041 | P81: 0.0446 | Q81: 6.058184547e-05 | R81: 16 | S81: 285 | U81: 10 | V81: 0.93 | AE81: Path | AF81: =+HLOOKUP(AF80,$BK$1:$CG$53,53,0) -> utility | AG81: 0 | AH81: 0 | AI81: 0 | AJ81: 0 | AK81: 0 | AL81: 0 | AM81: 0 | AN81: 0 | AO81: 0 | AP81: 0 | AQ81: 0 | AR81: 0 | AS81: 0 | AT81: 0 | AU81: 0 | AV81: 0 | AW81: 0 | AX81: 0 | AY81: 0 | AZ81: 0 | BA81: 0 | BB81: 0 | BC81: 0 | BD81: 0 | BE81: 0 | BH81: =+HLOOKUP(BK81,$BM$1:$CG$75,63,0) -> 0 | BI81: =+VLOOKUP(BK81,$Z$135:$AE$155,3,0) -> 0 | BJ81: =+HLOOKUP(BK81,$BM$1:$CG$75,66,0) -> 0 | BK81: =+HLOOKUP(BK80,$BK$1:$CG$53,53,0) -> 0 | BL81: FedFrom | BM81: 0 | BN81: 0 | BO81: =+C12 -> Utility | BP81: =+C13 -> 0 | BQ81: =+C14 -> 0 | BR81: =+C15 -> 0 | BS81: =+C16 -> 0 | BT81: =+C17 -> 0 | BU81: =+C18 -> 0 | BV81: =+C19 -> 0 | BW81: =+C20 -> 0 | BX81: =+J11 -> 0 | BY81: =+J12 -> 0 | BZ81: =+J13 -> 0 | CA81: =+J14 -> 0 | CB81: =+J15 -> 0 | CC81: =+J16 -> 0 | CD81: =+J17 -> 0 | CE81: =+J18 -> 0 | CF81: =+J19 -> 0 | CG81: =+J20 -> 0 | CI81: %I18th | CJ81: 0.06941789227 | CK81: 0.008278744857 | CL81: 0.02695631482 | CM81: 0.004166560819 | CN81: 0.01984599332 | CO81: 0.003485759095 | CP81: 0.005251878123 | CQ81: 0.004386671495 | CR81: 0.001437375786 | CS81: 0.0008017743629 | CT81: 0.003285718778 | CU81: 0.003822776331 | CV81: 0.001915690705 | CW81: 0.003403898181 | CX81: 0.002647051091 | CY81: 0.002647051091 | CZ81: 0.002647051091 | DA81: 0.002647051091 | DB81: 18 | EV81: 0
N82: 350 | O82: 0.04 | P82: 0.0382 | Q82: 5.531039685e-05 | R82: 17 | S82: 310 | U82: 11 | V82: 0.98 | AF82: =+HLOOKUP(AF81,$BK$1:$CG$53,53,0) -> 0 | AG82: =+HLOOKUP(AG81,$BK$1:$CG$53,53,0) -> 0 | AH82: =+HLOOKUP(AH81,$BK$1:$CG$53,53,0) -> 0 | AI82: =+HLOOKUP(AI81,$BK$1:$CG$53,53,0) -> 0 | AJ82: =+HLOOKUP(AJ81,$BK$1:$CG$53,53,0) -> 0 | AK82: =+HLOOKUP(AK81,$BK$1:$CG$53,53,0) -> 0 | AL82: =+HLOOKUP(AL81,$BK$1:$CG$53,53,0) -> 0 | AM82: =+HLOOKUP(AM81,$BK$1:$CG$53,53,0) -> 0 | AN82: =+HLOOKUP(AN81,$BK$1:$CG$53,53,0) -> 0 | AO82: =+HLOOKUP(AO81,$BK$1:$CG$53,53,0) -> 0 | AP82: =+HLOOKUP(AP81,$BK$1:$CG$53,53,0) -> 0 | AQ82: =+HLOOKUP(AQ81,$BK$1:$CG$53,53,0) -> 0 | AR82: =+HLOOKUP(AR81,$BK$1:$CG$53,53,0) -> 0 | AS82: =+HLOOKUP(AS81,$BK$1:$CG$53,53,0) -> 0 | AT82: =+HLOOKUP(AT81,$BK$1:$CG$53,53,0) -> 0 | AU82: =+HLOOKUP(AU81,$BK$1:$CG$53,53,0) -> 0 | AV82: =+HLOOKUP(AV81,$BK$1:$CG$53,53,0) -> 0 | AW82: =+HLOOKUP(AW81,$BK$1:$CG$53,53,0) -> 0 | AX82: =+HLOOKUP(AX81,$BK$1:$CG$53,53,0) -> 0 | AY82: =+HLOOKUP(AY81,$BK$1:$CG$53,53,0) -> 0 | AZ82: =+HLOOKUP(AZ81,$BK$1:$CG$53,53,0) -> 0 | BA82: =+HLOOKUP(BA81,$BK$1:$CG$53,53,0) -> 0 | BB82: =+HLOOKUP(BB81,$BK$1:$CG$53,53,0) -> 0 | BC82: =+HLOOKUP(BC81,$BK$1:$CG$53,53,0) -> 0 | BD82: =+HLOOKUP(BD81,$BK$1:$CG$53,53,0) -> 0 | BE82: =+HLOOKUP(BE81,$BK$1:$CG$53,53,0) -> 0 | BH82: 0 | BI82: 0 | BJ82: 0 | BK82: =+HLOOKUP(BK81,$BK$1:$CG$53,53,0) -> 0 | BM82: 0 | BN82: 0 | BO82: =+HLOOKUP(BO$53,$BK$1:$CG$53,53,0) -> 0 | BP82: 0 | BQ82: 0 | BR82: 0 | BS82: 0 | BT82: 0 | BU82: 0 | BV82: 0 | BW82: 0 | BX82: 0 | BY82: 0 | BZ82: 0 | CA82: 0 | CB82: 0 | CC82: 0 | CD82: 0 | CE82: 0 | CF82: 0 | CG82: 0 | CI82: %I19th | CJ82: 0.005573302841 | CK82: 0.01269296947 | CL82: 0.005521825632 | CM82: 0.004128272733 | CN82: 0.02482034332 | CO82: 0.05010466688 | CP82: 0.02875185466 | CQ82: 0.02126211391 | CR82: 0.01483575227 | CS82: 0.01067678603 | CT82: 0.007191455259 | CU82: 0.006255974199 | CV82: 0.004516134156 | CW82: 0.0027100218 | CX82: 0.001376848004 | CY82: 0.001376848004 | CZ82: 0.001376848004 | DA82: 0.001376848004 | DB82: 19 | EV82: 0
B83: p28 | C83: %TDD=SqrtSum %TDDh | N83: 4 | O83: 0.048 | P83: 0.321 | Q83: 0.0003245689449 | R83: 18 | S83: 85 | AF83: =+HLOOKUP(AF82,$BK$1:$CG$53,53,0) -> 0 | AG83: 0 | AH83: 0 | AI83: 0 | AJ83: 0 | AK83: 0 | AL83: 0 | AM83: 0 | AN83: 0 | AO83: 0 | AP83: 0 | AQ83: 0 | AR83: 0 | AS83: 0 | AT83: 0 | AU83: 0 | AV83: 0 | AW83: 0 | AX83: 0 | AY83: 0 | AZ83: 0 | BA83: 0 | BB83: 0 | BC83: 0 | BD83: 0 | BE83: 0 | BH83: 0 | BI83: 0 | BJ83: 0 | BK83: 0 | BM83: 0 | BN83: 0 | BO83: =+HLOOKUP(BO82,$BK$1:$CG$53,53,0) -> 0 | BP83: =+HLOOKUP(BP82,$BK$1:$CG$53,53,0) -> 0 | BQ83: =+HLOOKUP(BQ82,$BK$1:$CG$53,53,0) -> 0 | BR83: =+HLOOKUP(BR82,$BK$1:$CG$53,53,0) -> 0 | BS83: =+HLOOKUP(BS82,$BK$1:$CG$53,53,0) -> 0 | BT83: =+HLOOKUP(BT82,$BK$1:$CG$53,53,0) -> 0 | BU83: =+HLOOKUP(BU82,$BK$1:$CG$53,53,0) -> 0 | BV83: =+HLOOKUP(BV82,$BK$1:$CG$53,53,0) -> 0 | BW83: =+HLOOKUP(BW82,$BK$1:$CG$53,53,0) -> 0 | BX83: =+HLOOKUP(BX82,$BK$1:$CG$53,53,0) -> 0 | BY83: =+HLOOKUP(BY82,$BK$1:$CG$53,53,0) -> 0 | BZ83: =+HLOOKUP(BZ82,$BK$1:$CG$53,53,0) -> 0 | CA83: =+HLOOKUP(CA82,$BK$1:$CG$53,53,0) -> 0 | CB83: =+HLOOKUP(CB82,$BK$1:$CG$53,53,0) -> 0 | CC83: =+HLOOKUP(CC82,$BK$1:$CG$53,53,0) -> 0 | CD83: =+HLOOKUP(CD82,$BK$1:$CG$53,53,0) -> 0 | CE83: =+HLOOKUP(CE82,$BK$1:$CG$53,53,0) -> 0 | CF83: =+HLOOKUP(CF82,$BK$1:$CG$53,53,0) -> 0 | CG83: =+HLOOKUP(CG82,$BK$1:$CG$53,53,0) -> 0 | CI83: %I20th | CJ83: 0.01844140948 | CK83: 0.01177620609 | CL83: 0.02280921375 | CM83: 0.005030512813 | CN83: 0.01312127034 | CO83: 0.00743174982 | CP83: 0.006387333761 | CQ83: 0.00559259802 | CR83: 0.00423964439 | CS83: 0.000856944565 | CT83: 0.007042133425 | CU83: 0.005512641203 | CV83: 0.003708476167 | CW83: 0.001226359595 | CX83: 0.001532917993 | CY83: 0.001532917993 | CZ83: 0.001532917993 | DA83: 0.001532917993 | DB83: 20 | EV83: 0
B84: aa3:aa51 | C84: %TDDh=0.91/HPused@pcc/Idmd/Idrv*Sumall25drvs[HPuseddrv*InPath(1,0)*(%HARMhdrv(Zloop)-%HARMhactfilt)] | N84: 4/0 | O84: 0.041 | P84: 0.0626 | Q84: 7.483154415e-05 | R84: 19 | S84: 230 | AF84: 0 | AG84: 0 | AH84: 0 | AI84: 0 | AJ84: 0 | AK84: 0 | AL84: 0 | AM84: 0 | AN84: 0 | AO84: 0 | AP84: 0 | AQ84: 0 | AR84: 0 | AS84: 0 | AT84: 0 | AU84: 0 | AV84: 0 | AW84: 0 | AX84: 0 | AY84: 0 | AZ84: 0 | BA84: 0 | BB84: 0 | BC84: 0 | BD84: 0 | BE84: 0 | BH84: 0 | BI84: 0 | BJ84: 0 | BK84: 0 | BM84: 0 | BN84: 0 | BO84: 0 | BP84: 0 | BQ84: 0 | BR84: 0 | BS84: 0 | BT84: 0 | BU84: 0 | BV84: 0 | BW84: 0 | BX84: 0 | BY84: 0 | BZ84: 0 | CA84: 0 | CB84: 0 | CC84: 0 | CD84: 0 | CE84: 0 | CF84: 0 | CG84: 0 | CI84: %I21th | CJ84: 0.0275386538 | CK84: 0.2772059872 | CL84: 0.2323956439 | CM84: 0.2305515905 | CN84: 0.3712653651 | CO84: 0.424609165 | CP84: 0.3072347902 | CQ84: 0.2414094206 | CR84: 0.1935263505 | CS84: 0.1619310231 | CT84: 0.1216597344 | CU84: 0.09771051042 | CV84: 0.08222233855 | CW84: 0.06301352636 | CX84: 0.05350796227 | CY84: 0.05350796227 | CZ84: 0.05350796227 | DA84: 0.05350796227 | DB84: 21 | EV84: 0
C85: Path=1 if drive is in path of PCC else 0 | N85: 400 | O85: 0.04 | P85: 0.0331 | Q85: 5.191926425e-05 | R85: 20 | S85: 335 | AF85: 0 | AG85: 0 | AH85: 0 | AI85: 0 | AJ85: 0 | AK85: 0 | AL85: 0 | AM85: 0 | AN85: 0 | AO85: 0 | AP85: 0 | AQ85: 0 | AR85: 0 | AS85: 0 | AT85: 0 | AU85: 0 | AV85: 0 | AW85: 0 | AX85: 0 | AY85: 0 | AZ85: 0 | BA85: 0 | BB85: 0 | BC85: 0 | BD85: 0 | BE85: 0 | BH85: 0 | BI85: 0 | BJ85: 0 | BK85: 0 | BM85: 0 | BN85: 0 | BO85: 0 | BP85: 0 | BQ85: 0 | BR85: 0 | BS85: 0 | BT85: 0 | BU85: 0 | BV85: 0 | BW85: 0 | BX85: 0 | BY85: 0 | BZ85: 0 | CA85: 0 | CB85: 0 | CC85: 0 | CD85: 0 | CE85: 0 | CF85: 0 | CG85: 0 | CI85: %I22th | CJ85: 0.04158508202 | CK85: 0.03285885116 | CL85: 0.02110098691 | CM85: 0.007130471589 | CN85: 0.00272722943 | CO85: 0.008870480714 | CP85: 0.009094734263 | CQ85: 0.003266851458 | CR85: 0.0106124322 | CS85: 0.01182636124 | CT85: 0.02196787307 | CU85: 0.02722071877 | CV85: 0.03414140574 | CW85: 0.04452250806 | CX85: 0.04553224601 | CY85: 0.04553224601 | CZ85: 0.04553224601 | DA85: 0.04553224601 | DB85: 22 | EV85: 0
B86: af3:bd51 | C86: HARMhdrv=Hlookup[%Zloopdrv,Hdata,Index,0]+Interpolation | N86: 500 | O86: 0.039 | P86: 0.0265 | Q86: 4.715135205e-05 | R86: 21 | S86: 380 | AF86: 0 | AG86: 0 | AH86: 0 | AI86: 0 | AJ86: 0 | AK86: 0 | AL86: 0 | AM86: 0 | AN86: 0 | AO86: 0 | AP86: 0 | AQ86: 0 | AR86: 0 | AS86: 0 | AT86: 0 | AU86: 0 | AV86: 0 | AW86: 0 | AX86: 0 | AY86: 0 | AZ86: 0 | BA86: 0 | BB86: 0 | BC86: 0 | BD86: 0 | BE86: 0 | BH86: 0 | BI86: 0 | BJ86: 0 | BK86: 0 | BM86: 0 | BN86: 0 | BO86: 0 | BP86: 0 | BQ86: 0 | BR86: 0 | BS86: 0 | BT86: 0 | BU86: 0 | BV86: 0 | BW86: 0 | BX86: 0 | BY86: 0 | BZ86: 0 | CA86: 0 | CB86: 0 | CC86: 0 | CD86: 0 | CE86: 0 | CF86: 0 | CG86: 0 | CI86: %I23th | CJ86: 6.556200666 | CK86: 3.495855566 | CL86: 2.966680386 | CM86: 2.2238049 | CN86: 2.143191628 | CO86: 1.871912232 | CP86: 1.527641264 | CQ86: 1.420395297 | CR86: 1.307615081 | CS86: 1.208168113 | CT86: 1.053570038 | CU86: 0.9308043908 | CV86: 0.8363399371 | CW86: 0.7008279356 | CX86: 0.6194538326 | CY86: 0.6194538326 | CZ86: 0.6194538326 | DA86: 0.6194538326 | DB86: 23 | EV86: 0
B87: af69:bd69 | C87: %Zloop=HPdrv*SumInPath[%Znode/Hpnode]+%Zdrv | N87: 6 | O87: 0.051 | P87: 0.51 | Q87: 0.0005125436567 | R87: 22 | S87: 65 | AF87: 0 | AG87: 0 | AH87: 0 | AI87: 0 | AJ87: 0 | AK87: 0 | AL87: 0 | AM87: 0 | AN87: 0 | AO87: 0 | AP87: 0 | AQ87: 0 | AR87: 0 | AS87: 0 | AT87: 0 | AU87: 0 | AV87: 0 | AW87: 0 | AX87: 0 | AY87: 0 | AZ87: 0 | BA87: 0 | BB87: 0 | BC87: 0 | BD87: 0 | BE87: 0 | BH87: 0 | BI87: 0 | BJ87: 0 | BK87: 0 | BM87: 0 | BN87: 0 | BO87: 0 | BP87: 0 | BQ87: 0 | BR87: 0 | BS87: 0 | BT87: 0 | BU87: 0 | BV87: 0 | BW87: 0 | BX87: 0 | BY87: 0 | BZ87: 0 | CA87: 0 | CB87: 0 | CC87: 0 | CD87: 0 | CE87: 0 | CF87: 0 | CG87: 0 | CI87: %I24th | CJ87: 0.007895553272 | CK87: 0.03178434095 | CL87: 0.01083267943 | CM87: 0.01070915322 | CN87: 0.004613270512 | CO87: 0.009747910926 | CP87: 0.008311724194 | CQ87: 0.005995862434 | CR87: 0.009760969879 | CS87: 0.0144317579 | CT87: 0.0261719871 | CU87: 0.04250099975 | CV87: 0.0564577998 | CW87: 0.07245894467 | CX87: 0.07466009827 | CY87: 0.07466009827 | CZ87: 0.07466009827 | DA87: 0.07466009827 | DB87: 24 | EV87: 0
C88: Index=Line# + 52 * (ConvType#-1) | N88: 600 | O88: 0.039 | P88: 0.0223 | Q88: 4.492538258e-05 | R88: 23 | S88: 420 | AF88: 0 | AG88: 0 | AH88: 0 | AI88: 0 | AJ88: 0 | AK88: 0 | AL88: 0 | AM88: 0 | AN88: 0 | AO88: 0 | AP88: 0 | AQ88: 0 | AR88: 0 | AS88: 0 | AT88: 0 | AU88: 0 | AV88: 0 | AW88: 0 | AX88: 0 | AY88: 0 | AZ88: 0 | BA88: 0 | BB88: 0 | BC88: 0 | BD88: 0 | BE88: 0 | BH88: 0 | BI88: 0 | BJ88: 0 | BK88: 0 | BM88: 0 | BN88: 0 | BO88: 0 | BP88: 0 | BQ88: 0 | BR88: 0 | BS88: 0 | BT88: 0 | BU88: 0 | BV88: 0 | BW88: 0 | BX88: 0 | BY88: 0 | BZ88: 0 | CA88: 0 | CB88: 0 | CC88: 0 | CD88: 0 | CE88: 0 | CF88: 0 | CG88: 0 | CI88: %I25th | CJ88: 5.520132884 | CK88: 3.035517406 | CL88: 1.971911098 | CM88: 1.222193088 | CN88: 0.9832000002 | CO88: 0.8316084151 | CP88: 1.004143579 | CQ88: 0.9217099934 | CR88: 0.8667406493 | CS88: 0.8186432963 | CT88: 0.7436908506 | CU88: 0.6740935067 | CV88: 0.615798246 | CW88: 0.5260357465 | CX88: 0.4678694395 | CY88: 0.4678694395 | CZ88: 0.4678694395 | DA88: 0.4678694395 | DB88: 25 | EV88: 0
C89: Interpolation = | N89: 700 | O89: 0.039 | P89: 0.0189 | Q89: 4.333832023e-05 | R89: 24 | S89: 460 | AF89: 0 | AG89: 0 | AH89: 0 | AI89: 0 | AJ89: 0 | AK89: 0 | AL89: 0 | AM89: 0 | AN89: 0 | AO89: 0 | AP89: 0 | AQ89: 0 | AR89: 0 | AS89: 0 | AT89: 0 | AU89: 0 | AV89: 0 | AW89: 0 | AX89: 0 | AY89: 0 | AZ89: 0 | BA89: 0 | BB89: 0 | BC89: 0 | BD89: 0 | BE89: 0 | BH89: 0 | BI89: 0 | BJ89: 0 | BK89: 0 | BM89: 0 | BN89: 0 | BO89: 0 | BP89: 0 | BQ89: 0 | BR89: 0 | BS89: 0 | BT89: 0 | BU89: 0 | BV89: 0 | BW89: 0 | BX89: 0 | BY89: 0 | BZ89: 0 | CA89: 0 | CB89: 0 | CC89: 0 | CD89: 0 | CE89: 0 | CF89: 0 | CG89: 0 | CI89: %I26th | CJ89: 0.0243345318 | CK89: 0.02654320735 | CL89: 0.01285187476 | CM89: 0.007803315675 | CN89: 0.004041722216 | CO89: 0.007865262319 | CP89: 0.009009966294 | CQ89: 0.007108826949 | CR89: 0.004475973688 | CS89: 0.007111290214 | CT89: 0.008697967484 | CU89: 0.01602463835 | CV89: 0.02109944744 | CW89: 0.02620510604 | CX89: 0.03095581633 | CY89: 0.03095581633 | CZ89: 0.03095581633 | DA89: 0.03095581633 | DB89: 26 | EV89: 0
C90: %Ithd=%TDD*Idmdpcc/Ifpcc | N90: 750 | O90: 0.038 | P90: 0.0176 | Q90: 4.187791781e-05 | R90: 25 | S90: 475 | AF90: 0 | AG90: 0 | AH90: 0 | AI90: 0 | AJ90: 0 | AK90: 0 | AL90: 0 | AM90: 0 | AN90: 0 | AO90: 0 | AP90: 0 | AQ90: 0 | AR90: 0 | AS90: 0 | AT90: 0 | AU90: 0 | AV90: 0 | AW90: 0 | AX90: 0 | AY90: 0 | AZ90: 0 | BA90: 0 | BB90: 0 | BC90: 0 | BD90: 0 | BE90: 0 | BH90: 0 | BI90: 0 | BJ90: 0 | BK90: 0 | BM90: 0 | BN90: 0 | BO90: 0 | BP90: 0 | BQ90: 0 | BR90: 0 | BS90: 0 | BT90: 0 | BU90: 0 | BV90: 0 | BW90: 0 | BX90: 0 | BY90: 0 | BZ90: 0 | CA90: 0 | CB90: 0 | CC90: 0 | CD90: 0 | CE90: 0 | CF90: 0 | CG90: 0 | CI90: %I27th | CJ90: 0.196148664 | CK90: 0.1491778022 | CL90: 0.2183313123 | CM90: 0.1528421233 | CN90: 0.2106284849 | CO90: 0.2337603899 | CP90: 0.2063248778 | CQ90: 0.1586891082 | CR90: 0.1322210312 | CS90: 0.1129248771 | CT90: 0.09032062353 | CU90: 0.07505264904 | CV90: 0.06461017214 | CW90: 0.05195397675 | CX90: 0.04481886914 | CY90: 0.04481886914 | CZ90: 0.04481886914 | DA90: 0.04481886914 | DB90: 27 | EV90: 0
C91: %Ithdh= | N91: 8 | O91: 0.052 | P91: 0.786 | Q91: 0.0007877182237 | R91: 26 | S91: 50 | AF91: 0 | AG91: 0 | AH91: 0 | AI91: 0 | AJ91: 0 | AK91: 0 | AL91: 0 | AM91: 0 | AN91: 0 | AO91: 0 | AP91: 0 | AQ91: 0 | AR91: 0 | AS91: 0 | AT91: 0 | AU91: 0 | AV91: 0 | AW91: 0 | AX91: 0 | AY91: 0 | AZ91: 0 | BA91: 0 | BB91: 0 | BC91: 0 | BD91: 0 | BE91: 0 | BH91: 0 | BI91: 0 | BJ91: 0 | BK91: 0 | BM91: 0 | BN91: 0 | BO91: 0 | BP91: 0 | BQ91: 0 | BR91: 0 | BS91: 0 | BT91: 0 | BU91: 0 | BV91: 0 | BW91: 0 | BX91: 0 | BY91: 0 | BZ91: 0 | CA91: 0 | CB91: 0 | CC91: 0 | CD91: 0 | CE91: 0 | CF91: 0 | CG91: 0 | CI91: %I28th | CJ91: 0.02467631899 | CK91: 0.002060429391 | CL91: 0.01007515764 | CM91: 0.00409542263 | CN91: 0.01552817219 | CO91: 0.004545358125 | CP91: 0.004090094108 | CQ91: 0.005530586961 | CR91: 0.005869271458 | CS91: 0.001138810928 | CT91: 0.005274941161 | CU91: 0.004353431525 | CV91: 0.004040494563 | CW91: 0.004403836252 | CX91: 0.005180242042 | CY91: 0.005180242042 | CZ91: 0.005180242042 | DA91: 0.005180242042 | DB91: 28 | EV91: 0
B92: p30 | C92: %Vthd=SqrtSum%Vthdh | N92: 800 | O92: 0.038 | P92: 0.0166 | Q92: 4.14675777e-05 | R92: 27 | S92: 490 | AF92: 0 | AG92: 0 | AH92: 0 | AI92: 0 | AJ92: 0 | AK92: 0 | AL92: 0 | AM92: 0 | AN92: 0 | AO92: 0 | AP92: 0 | AQ92: 0 | AR92: 0 | AS92: 0 | AT92: 0 | AU92: 0 | AV92: 0 | AW92: 0 | AX92: 0 | AY92: 0 | AZ92: 0 | BA92: 0 | BB92: 0 | BC92: 0 | BD92: 0 | BE92: 0 | BH92: 0 | BI92: 0 | BJ92: 0 | BK92: 0 | BM92: 0 | BN92: 0 | BO92: 0 | BP92: 0 | BQ92: 0 | BR92: 0 | BS92: 0 | BT92: 0 | BU92: 0 | BV92: 0 | BW92: 0 | BX92: 0 | BY92: 0 | BZ92: 0 | CA92: 0 | CB92: 0 | CC92: 0 | CD92: 0 | CE92: 0 | CF92: 0 | CG92: 0 | CI92: %I29th | CJ92: 0.004078784818 | CK92: 0.0100882431 | CL92: 0.02313389965 | CM92: 0.006536618098 | CN92: 0.02539639397 | CO92: 0.03279034587 | CP92: 0.02746130979 | CQ92: 0.01581957742 | CR92: 0.01140858432 | CS92: 0.00825305119 | CT92: 0.005938503265 | CU92: 0.005639364805 | CV92: 0.005529517801 | CW92: 0.004971411825 | CX92: 0.004108643126 | CY92: 0.004108643126 | CZ92: 0.004108643126 | DA92: 0.004108643126 | DB92: 29 | EV92: 0
B93: z3:z51 | C93: %Vthdh=HarmNo/130*Sum[HARMhdrv* | N93: 900 | O93: 0.038 | P93: 0.0147 | Q93: 4.074420204e-05 | R93: 28 | S93: 520 | AF93: 0 | AG93: 0 | AH93: 0 | AI93: 0 | AJ93: 0 | AK93: 0 | AL93: 0 | AM93: 0 | AN93: 0 | AO93: 0 | AP93: 0 | AQ93: 0 | AR93: 0 | AS93: 0 | AT93: 0 | AU93: 0 | AV93: 0 | AW93: 0 | AX93: 0 | AY93: 0 | AZ93: 0 | BA93: 0 | BB93: 0 | BC93: 0 | BD93: 0 | BE93: 0 | BH93: 0 | BI93: 0 | BJ93: 0 | BK93: 0 | BM93: 0 | BN93: 0 | BO93: 0 | BP93: 0 | BQ93: 0 | BR93: 0 | BS93: 0 | BT93: 0 | BU93: 0 | BV93: 0 | BW93: 0 | BX93: 0 | BY93: 0 | BZ93: 0 | CA93: 0 | CB93: 0 | CC93: 0 | CD93: 0 | CE93: 0 | CF93: 0 | CG93: 0 | CI93: %I30th | CJ93: 0.04416264236 | CK93: 0.004784685381 | CL93: 0.02268048624 | CM93: 0.004093150281 | CN93: 0.01845655209 | CO93: 0.003992250654 | CP93: 0.005753408469 | CQ93: 0.002180797368 | CR93: 0.0007462453165 | CS93: 0.0002856765065 | CT93: 0.002678053426 | CU93: 0.003086750654 | CV93: 0.00308424659 | CW93: 0.0003740779479 | CX93: 0.0008367495021 | CY93: 0.0008367495021 | CZ93: 0.0008367495021 | DA93: 0.0008367495021 | DB93: 30 | EV93: 0
O94: 1 | P94: 1 | Q94: 1e-11 | R94: 29 | S94: 0 | AF94: 0 | AG94: 0 | AH94: 0 | AI94: 0 | AJ94: 0 | AK94: 0 | AL94: 0 | AM94: 0 | AN94: 0 | AO94: 0 | AP94: 0 | AQ94: 0 | AR94: 0 | AS94: 0 | AT94: 0 | AU94: 0 | AV94: 0 | AW94: 0 | AX94: 0 | AY94: 0 | AZ94: 0 | BA94: 0 | BB94: 0 | BC94: 0 | BD94: 0 | BE94: 0 | BH94: 0 | BI94: 0 | BJ94: 0 | BK94: 0 | BM94: 0 | BN94: 0 | BO94: 0 | BP94: 0 | BQ94: 0 | BR94: 0 | BS94: 0 | BT94: 0 | BU94: 0 | BV94: 0 | BW94: 0 | BX94: 0 | BY94: 0 | BZ94: 0 | CA94: 0 | CB94: 0 | CC94: 0 | CD94: 0 | CE94: 0 | CF94: 0 | CG94: 0 | CI94: %I31th | CJ94: 0.00522465926 | CK94: 0.007438084827 | CL94: 0.005728734602 | CM94: 0.005848650099 | CN94: 0.02481917941 | CO94: 0.04936011461 | CP94: 0.02771169574 | CQ94: 0.02061651602 | CR94: 0.01391943516 | CS94: 0.00981418478 | CT94: 0.00700347719 | CU94: 0.006746261073 | CV94: 0.006211794285 | CW94: 0.004805261811 | CX94: 0.003629960507 | CY94: 0.003629960507 | CZ94: 0.003629960507 | DA94: 0.003629960507 | DB94: 31 | EV94: 0
AF95: 0 | AG95: 0 | AH95: 0 | AI95: 0 | AJ95: 0 | AK95: 0 | AL95: 0 | AM95: 0 | AN95: 0 | AO95: 0 | AP95: 0 | AQ95: 0 | AR95: 0 | AS95: 0 | AT95: 0 | AU95: 0 | AV95: 0 | AW95: 0 | AX95: 0 | AY95: 0 | AZ95: 0 | BA95: 0 | BB95: 0 | BC95: 0 | BD95: 0 | BE95: 0 | BH95: 0 | BI95: 0 | BJ95: 0 | BK95: 0 | BM95: 0 | BN95: 0 | BO95: 0 | BP95: 0 | BQ95: 0 | BR95: 0 | BS95: 0 | BT95: 0 | BU95: 0 | BV95: 0 | BW95: 0 | BX95: 0 | BY95: 0 | BZ95: 0 | CA95: 0 | CB95: 0 | CC95: 0 | CD95: 0 | CE95: 0 | CF95: 0 | CG95: 0 | CI95: %I32th | CJ95: 0.03370070584 | CK95: 0.01423517452 | CL95: 0.007109564238 | CM95: 0.005098445899 | CN95: 0.008314863429 | CO95: 0.00597555739 | CP95: 0.005770114931 | CQ95: 0.006263396191 | CR95: 0.006327781534 | CS95: 0.0003861875369 | CT95: 0.008077023025 | CU95: 0.007497459364 | CV95: 0.006557730898 | CW95: 0.003124239229 | CX95: 0.003595117662 | CY95: 0.003595117662 | CZ95: 0.003595117662 | DA95: 0.003595117662 | DB95: 32 | EV95: 0
AF96: 0 | AG96: 0 | AH96: 0 | AI96: 0 | AJ96: 0 | AK96: 0 | AL96: 0 | AM96: 0 | AN96: 0 | AO96: 0 | AP96: 0 | AQ96: 0 | AR96: 0 | AS96: 0 | AT96: 0 | AU96: 0 | AV96: 0 | AW96: 0 | AX96: 0 | AY96: 0 | AZ96: 0 | BA96: 0 | BB96: 0 | BC96: 0 | BD96: 0 | BE96: 0 | BH96: 0 | BI96: 0 | BJ96: 0 | BK96: 0 | BM96: 0 | BN96: 0 | BO96: 0 | BP96: 0 | BQ96: 0 | BR96: 0 | BS96: 0 | BT96: 0 | BU96: 0 | BV96: 0 | BW96: 0 | BX96: 0 | BY96: 0 | BZ96: 0 | CA96: 0 | CB96: 0 | CC96: 0 | CD96: 0 | CE96: 0 | CF96: 0 | CG96: 0 | CI96: %I33rd | CJ96: 0.04471216861 | CK96: 0.1498697045 | CL96: 0.1636379911 | CM96: 0.1307375939 | CN96: 0.2188477955 | CO96: 0.2480136653 | CP96: 0.1765413686 | CQ96: 0.1404392545 | CR96: 0.1124475567 | CS96: 0.09487909852 | CT96: 0.07009709485 | CU96: 0.05561966528 | CV96: 0.0474387653 | CW96: 0.03891548401 | CX96: 0.03337130296 | CY96: 0.03337130296 | CZ96: 0.03337130296 | DA96: 0.03337130296 | DB96: 33 | EV96: 0
AF97: 0 | AG97: 0 | AH97: 0 | AI97: 0 | AJ97: 0 | AK97: 0 | AL97: 0 | AM97: 0 | AN97: 0 | AO97: 0 | AP97: 0 | AQ97: 0 | AR97: 0 | AS97: 0 | AT97: 0 | AU97: 0 | AV97: 0 | AW97: 0 | AX97: 0 | AY97: 0 | AZ97: 0 | BA97: 0 | BB97: 0 | BC97: 0 | BD97: 0 | BE97: 0 | BH97: 0 | BI97: 0 | BJ97: 0 | BK97: 0 | BM97: 0 | BN97: 0 | BO97: 0 | BP97: 0 | BQ97: 0 | BR97: 0 | BS97: 0 | BT97: 0 | BU97: 0 | BV97: 0 | BW97: 0 | BX97: 0 | BY97: 0 | BZ97: 0 | CA97: 0 | CB97: 0 | CC97: 0 | CD97: 0 | CE97: 0 | CF97: 0 | CG97: 0 | CI97: %I35th | CJ97: 3.410516023 | CK97: 1.695864621 | CL97: 1.132806 | CM97: 0.9975917984 | CN97: 0.8357824391 | CO97: 0.7061276126 | CP97: 0.5472244372 | CQ97: 0.5148964148 | CR97: 0.4764823815 | CS97: 0.4409840838 | CT97: 0.3889526461 | CU97: 0.3483911201 | CV97: 0.3185323133 | CW97: 0.2807030189 | CX97: 0.25110113 | CY97: 0.25110113 | CZ97: 0.25110113 | DA97: 0.25110113 | DB97: 35 | EV97: 0
AF98: 0 | AG98: 0 | AH98: 0 | AI98: 0 | AJ98: 0 | AK98: 0 | AL98: 0 | AM98: 0 | AN98: 0 | AO98: 0 | AP98: 0 | AQ98: 0 | AR98: 0 | AS98: 0 | AT98: 0 | AU98: 0 | AV98: 0 | AW98: 0 | AX98: 0 | AY98: 0 | AZ98: 0 | BA98: 0 | BB98: 0 | BC98: 0 | BD98: 0 | BE98: 0 | BH98: 0 | BI98: 0 | BJ98: 0 | BK98: 0 | BM98: 0 | BN98: 0 | BO98: 0 | BP98: 0 | BQ98: 0 | BR98: 0 | BS98: 0 | BT98: 0 | BU98: 0 | BV98: 0 | BW98: 0 | BX98: 0 | BY98: 0 | BZ98: 0 | CA98: 0 | CB98: 0 | CC98: 0 | CD98: 0 | CE98: 0 | CF98: 0 | CG98: 0 | CI98: %I37th | CJ98: 2.578309979 | CK98: 1.314453694 | CL98: 0.9203595668 | CM98: 0.5751752731 | CN98: 0.4270339778 | CO98: 0.3252539165 | CP98: 0.4183138617 | CQ98: 0.3655890452 | CR98: 0.3339097274 | CS98: 0.3080569123 | CT98: 0.2722790316 | CU98: 0.242157652 | CV98: 0.220009221 | CW98: 0.1924776992 | CX98: 0.1722321277 | CY98: 0.1722321277 | CZ98: 0.1722321277 | DA98: 0.1722321277 | DB98: 37 | EV98: 0
AF99: 0 | AG99: 0 | AH99: 0 | AI99: 0 | AJ99: 0 | AK99: 0 | AL99: 0 | AM99: 0 | AN99: 0 | AO99: 0 | AP99: 0 | AQ99: 0 | AR99: 0 | AS99: 0 | AT99: 0 | AU99: 0 | AV99: 0 | AW99: 0 | AX99: 0 | AY99: 0 | AZ99: 0 | BA99: 0 | BB99: 0 | BC99: 0 | BD99: 0 | BE99: 0 | BH99: 0 | BI99: 0 | BJ99: 0 | BK99: 0 | BM99: 0 | BN99: 0 | BO99: 0 | BP99: 0 | BQ99: 0 | BR99: 0 | BS99: 0 | BT99: 0 | BU99: 0 | BV99: 0 | BW99: 0 | BX99: 0 | BY99: 0 | BZ99: 0 | CA99: 0 | CB99: 0 | CC99: 0 | CD99: 0 | CE99: 0 | CF99: 0 | CG99: 0 | CI99: %I39th | CJ99: 0.09387292818 | CK99: 0.1106085687 | CL99: 0.1238509107 | CM99: 0.08702624528 | CN99: 0.131559583 | CO99: 0.1479423074 | CP99: 0.1413915903 | CQ99: 0.1060376386 | CR99: 0.0865202953 | CS99: 0.07300332685 | CT99: 0.05837187247 | CU99: 0.0487538361 | CV99: 0.04181217004 | CW99: 0.03169716746 | CX99: 0.02643800327 | CY99: 0.02643800327 | CZ99: 0.02643800327 | DA99: 0.02643800327 | DB99: 39 | EV99: 0
AF100: 0 | AG100: 0 | AH100: 0 | AI100: 0 | AJ100: 0 | AK100: 0 | AL100: 0 | AM100: 0 | AN100: 0 | AO100: 0 | AP100: 0 | AQ100: 0 | AR100: 0 | AS100: 0 | AT100: 0 | AU100: 0 | AV100: 0 | AW100: 0 | AX100: 0 | AY100: 0 | AZ100: 0 | BA100: 0 | BB100: 0 | BC100: 0 | BD100: 0 | BE100: 0 | BH100: 0 | BI100: 0 | BJ100: 0 | BK100: 0 | BM100: 0 | BN100: 0 | BO100: 0 | BP100: 0 | BQ100: 0 | BR100: 0 | BS100: 0 | BT100: 0 | BU100: 0 | BV100: 0 | BW100: 0 | BX100: 0 | BY100: 0 | BZ100: 0 | CA100: 0 | CB100: 0 | CC100: 0 | CD100: 0 | CE100: 0 | CF100: 0 | CG100: 0 | CI100: %I41th | CJ100: 0.00997031416 | CK100: 0.005453134799 | CL100: 0.01764346966 | CM100: 0.005916035199 | CN100: 0.02204517387 | CO100: 0.02603310226 | CP100: 0.02600134493 | CQ100: 0.0143564107 | CR100: 0.01165138503 | CS100: 0.008333951674 | CT100: 0.006374167649 | CU100: 0.00524103503 | CV100: 0.00427922284 | CW100: 0.003131172595 | CX100: 0.003137657462 | CY100: 0.003137657462 | CZ100: 0.003137657462 | DA100: 0.003137657462 | DB100: 41 | EV100: 0
AE101: Path" | AF101: =+IF(AF80=$D$9,1,IF(AF81=$D$9,1,IF(AF82=$D$9,1,IF(AF83=$D$9,1,IF(AF84=$D$9,1,IF(AF85=$D$9,1,IF(AF86=$D$9,1,0))))))) -> 1 | AG101: 0 | AH101: 0 | AI101: 0 | AJ101: 0 | AK101: 0 | AL101: 0 | AM101: 0 | AN101: 0 | AO101: 0 | AP101: 0 | AQ101: 0 | AR101: 0 | AS101: 0 | AT101: 0 | AU101: 0 | AV101: 0 | AW101: 0 | AX101: 0 | AY101: 0 | AZ101: 0 | BA101: 0 | BB101: 0 | BC101: 0 | BD101: 0 | BE101: Path" | BJ101: HP | BK101: =+HLOOKUP(D9,$BN1:CG55,54,0) -> 0 | CI101: %I43th | CJ101: 0.005863477121 | CK101: 0.0108505828 | CL101: 0.0109425536 | CM101: 0.006032502433 | CN101: 0.02641836046 | CO101: 0.05086425749 | CP101: 0.02731494174 | CQ101: 0.02063417447 | CR101: 0.01432415272 | CS101: 0.009897877678 | CT101: 0.006494710237 | CU101: 0.005412483886 | CV101: 0.004441860814 | CW101: 0.004657665776 | CX101: 0.004258739326 | CY101: 0.004258739326 | CZ101: 0.004258739326 | DA101: 0.004258739326 | DB101: 43 | EV101: 0
AE102: Path' | AF102: =+IF(AF87=$D$9,1,IF(AF88=$D$9,1,IF(AF89=$D$9,1,IF(AF90=$D$9,1,IF(AF91=$D$9,1,IF(AF92=$D$9,1,IF(AF93=$D$9,1,IF(AF94=$D$9,1,AF101)))))))) -> 1 | AG102: 0 | AH102: 0 | AI102: 0 | AJ102: 0 | AK102: 0 | AL102: 0 | AM102: 0 | AN102: 0 | AO102: 0 | AP102: 0 | AQ102: 0 | AR102: 0 | AS102: 0 | AT102: 0 | AU102: 0 | AV102: 0 | AW102: 0 | AX102: 0 | AY102: 0 | AZ102: 0 | BA102: 0 | BB102: 0 | BC102: 0 | BD102: 0 | BE102: Path' | CI102: %I45th | CJ102: 0.04934771271 | CK102: 0.1083955491 | CL102: 0.1013131898 | CM102: 0.08840336153 | CN102: 0.1639017912 | CO102: 0.1790617063 | CP102: 0.1275718604 | CQ102: 0.1031195596 | CR102: 0.08364251562 | CS102: 0.07048675545 | CT102: 0.05266999497 | CU102: 0.04076576384 | CV102: 0.033896526 | CW102: 0.0264625035 | CX102: 0.02332818326 | CY102: 0.02332818326 | CZ102: 0.02332818326 | DA102: 0.02332818326 | DB102: 45 | EV102: 0
AE103: Drv in PCC Path= | AF103: =+IF(AF95=$D$9,1,IF(AF96=$D$9,1,IF(AF97=$D$9,1,IF(AF98=$D$9,1,IF(AF99=$D$9,1,IF(AF100=$D$9,1,AF102)))))) -> 1 | AG103: 0 | AH103: 0 | AI103: 0 | AJ103: 0 | AK103: 0 | AL103: 0 | AM103: 0 | AN103: 0 | AO103: 0 | AP103: 0 | AQ103: 0 | AR103: 0 | AS103: 0 | AT103: 0 | AU103: 0 | AV103: 0 | AW103: 0 | AX103: 0 | AY103: 0 | AZ103: 0 | BA103: 0 | BB103: 0 | BC103: 0 | BD103: 0 | BE103: Path | CI103: %I47th | CJ103: 1.949480786 | CK103: 0.8401411511 | CL103: 0.5974142193 | CM103: 0.5169087121 | CN103: 0.4105080459 | CO103: 0.3398152139 | CP103: 0.2826376048 | CQ103: 0.2773194719 | CR103: 0.264817657 | CS103: 0.2505069642 | CT103: 0.228468755 | CU103: 0.2045969719 | CV103: 0.1855409047 | CW103: 0.1607353774 | CX103: 0.1392469307 | CY103: 0.1392469307 | CZ103: 0.1392469307 | DA103: 0.1392469307 | DB103: 47 | EV103: 0
CI104: %I49th | CJ104: 1.613759282 | CK104: 0.641590075 | CL104: 0.4421107571 | CM104: 0.3270522345 | CN104: 0.1681104138 | CO104: 0.1125729711 | CP104: 0.1797605846 | CQ104: 0.157082723 | CR104: 0.1482936773 | CS104: 0.1409728953 | CT104: 0.1351396323 | CU104: 0.1259004481 | CV104: 0.1174031643 | CW104: 0.1055796343 | CX104: 0.09377529362 | CY104: 0.09377529362 | CZ104: 0.09377529362 | DA104: 0.09377529362 | DB104: 49 | EV104: 0
Z105: z | AC105: ac | AE105: %Zs&ld Calculator | AJ105: 1 if drive is in node path | BG105: bg | CY105: 16 | CZ105: 16 | DA105: 16 | DV105: 0.1 | DW105: 0.5 | DX105: 1 | DY105: 2 | DZ105: 3 | EA105: 4 | EB105: 5 | EC105: 6 | ED105: 7 | EE105: 8 | EF105: 10 | EG105: 12 | EH105: 14 | EI105: 18 | EJ105: 21 | EV105: 0
B106: HpCalculator | C106: 0 | D106: utility | E106: T1 | F106: T2 | G106: T3 | H106: T4 | I106: T5 | J106: T6 | K106: T7 | L106: T8 | M106: T9 | N106: B1 | O106: B2 | P106: B3 | Q106: B4 | R106: B5 | S106: B6 | T106: B7 | U106: B8 | V106: B9 | W106: B10 | AA106: Hpnode | AB106: %Znode | AC106: %Zs | AD106: %Zload | AF106: D1 | AG106: D2 | AH106: D3 | AI106: D4 | AJ106: D5 | AK106: D6 | AL106: D7 | AM106: D8 | AN106: D9 | AO106: D10 | AP106: D11 | AQ106: D12 | AR106: D13 | AS106: D14 | AT106: D15 | AU106: D16 | AV106: D17 | AW106: D18 | AX106: D19 | AY106: D20 | AZ106: D21 | BA106: D22 | BB106: D23 | BC106: D24 | BD106: D25 | BE106: 0 | BF106: utility | BG106: t1 | BH106: t2 | BI106: t3 | BJ106: t4 | BK106: t5 | BL106: t6 | BM106: t7 | BN106: t8 | BO106: t9 | BP106: b1 | BQ106: b2 | BR106: b3 | BS106: b4 | BT106: b5 | BU106: b6 | BV106: b7 | BW106: b8 | BX106: b9 | BY106: b10 | CH106: 3 | CI106: 18 pulse data | DA106: 1 | EV106: 0
B107: utility | D107: =+IF(BN$53=$Z107,D$127,0) -> 0 | E107: =+IF(BO$53=$Z107,E$127,0) -> 1.001 | F107: =+IF(BP$53=$Z107,F$127,0) -> 0 | G107: =+IF(BQ$53=$Z107,G$127,0) -> 0 | H107: =+IF(BR$53=$Z107,H$127,0) -> 0 | I107: =+IF(BS$53=$Z107,I$127,0) -> 0 | J107: =+IF(BT$53=$Z107,J$127,0) -> 0 | K107: =+IF(BU$53=$Z107,K$127,0) -> 0 | L107: =+IF(BV$53=$Z107,L$127,0) -> 0 | M107: =+IF(BW$53=$Z107,M$127,0) -> 0 | N107: =+IF(BX$53=$Z107,N$127,0) -> 0 | O107: =+IF(BY$53=$Z107,O$127,0) -> 0 | P107: =+IF(BZ$53=$Z107,P$127,0) -> 0 | Q107: =+IF(CA$53=$Z107,Q$127,0) -> 0 | R107: =+IF(CB$53=$Z107,R$127,0) -> 0 | S107: =+IF(CC$53=$Z107,S$127,0) -> 0 | T107: =+IF(CD$53=$Z107,T$127,0) -> 0 | U107: =+IF(CE$53=$Z107,U$127,0) -> 0 | V107: =+IF(CF$53=$Z107,V$127,0) -> 0 | W107: =+IF(CG$53=$Z107,W$127,0) -> 0 | Z107: Utility | AA107: =+AE135 -> 1.002 | AB107: =+BN$66 -> 0.0002278939024 | AC107: =+BF127+0.001 -> 0.001227893902 | AD107: =1/(AF107/($AF$129*$AA107/$AF$130-$AC107)+AG107/($AG$129*$AA107/$AG$130-$AC107)+AH107/($AH$129*$AA107/$AH$130-$AC107)+AI107/($AI$129*$AA107/$AI$130-AC107)+AJ107/($AJ$127*$AA107/$AJ$130-$AC107)+AK107/($AK$129*$AA107/$AK$130-$AC107)+AL107/($AL$129*$AA107/$AL$130-$AC107)+AM107/($AM$129*$AA107/$AM$130-$AC107)+AN107/($AN$129*$AA107/$AN$130-$AC107)+AO107/($AO$129*$AA107/$AO$130-$AC107)+AP107/($AP$129*$AA107/$AP$130-$AC107)+AQ107/($AQ$129*$AA107/$AQ$130-$AC107)+AR107/($AR$129*$AA107/$AR$130-$AC107)+AS107/($AS$129*$AA107/$AS$130-$AC107)+AT107/($AT$129*$AA107/$AT$130-$AC107)+AU107/($AU$129*$AA107/$AU$130-$AC107)+AV107/($AV$129*$AA107/$AV$130-$AC107)+AW107/($AW$129*$AA107/$AW$130-$AC107)+AX107/($AX$129*$AA107/$AX$130-$AC107)+AY107/($AY$129*$AA107/$AY$130-$AC107)+AZ107/($AZ$129*$AA107/$AZ$130-$AC107)+BA107/($BA$129*$AA107/$BA$130-$AC107)+BB107/($BB$129*$AA107/$BB$130-$AC107)+BC107/($BC$129*$AA107/$BC$130-$AC107)+BD107/($BD$129*$AA107/$BD$130-$AC107)) -> 5.007094726 | AE107: Utility | AF107: =+COUNTIF(AF$80:AF$100,$AE107) -> 1 | AG107: 0 | AH107: 0 | AI107: 0 | AJ107: 0 | AK107: 0 | AL107: 0 | AM107: 0 | AN107: 0 | AO107: 0 | AP107: =+COUNTIF(AP$80:AP$100,$AE107) -> 0 | AQ107: 0 | AR107: 0 | AS107: 0 | AT107: 0 | AU107: 0 | AV107: 0 | AW107: 0 | AX107: 0 | AY107: 0 | AZ107: 0 | BA107: 0 | BB107: 0 | BC107: 0 | BD107: 0 | BE107: =+COUNTIF(BM$81:BM$100,$AE107) -> 0 | BF107: =+COUNTIF(BN$81:BN$100,$AE107) -> 0 | BG107: =+COUNTIF(BO$81:BO$100,$AE107) -> 1 | BH107: =+COUNTIF(BP$81:BP$100,$AE107) -> 0 | BI107: =+COUNTIF(BQ$81:BQ$100,$AE107) -> 0 | BJ107: =+COUNTIF(BR$81:BR$100,$AE107) -> 0 | BK107: =+COUNTIF(BS$81:BS$100,$AE107) -> 0 | BL107: =+COUNTIF(BT$81:BT$100,$AE107) -> 0 | BM107: =+COUNTIF(BU$81:BU$100,$AE107) -> 0 | BN107: =+COUNTIF(BV$81:BV$100,$AE107) -> 0 | BO107: =+COUNTIF(BW$81:BW$100,$AE107) -> 0 | BP107: =+COUNTIF(BX$81:BX$100,$AE107) -> 0 | BQ107: =+COUNTIF(BY$81:BY$100,$AE107) -> 0 | BR107: =+COUNTIF(BZ$81:BZ$100,$AE107) -> 0 | BS107: =+COUNTIF(CA$81:CA$100,$AE107) -> 0 | BT107: =+COUNTIF(CB$81:CB$100,$AE107) -> 0 | BU107: =+COUNTIF(CC$81:CC$100,$AE107) -> 0 | BV107: =+COUNTIF(CD$81:CD$100,$AE107) -> 0 | BW107: =+COUNTIF(CE$81:CE$100,$AE107) -> 0 | BX107: =+COUNTIF(CF$81:CF$100,$AE107) -> 0 | BY107: =+COUNTIF(CG$81:CG$100,$AE107) -> 0 | BZ107: Utility | CI107: %Zloop | CJ107: 0.1 | CK107: 0.5 | CL107: 1 | CM107: 2 | CN107: 3 | CO107: 4 | CP107: 5 | CQ107: 6 | CR107: 7 | CS107: 8 | CT107: 10 | CU107: 12 | CV107: 14 | CW107: 18 | CX107: 21 | CY107: 100 | CZ107: 1000 | DA107: 10000 | EV107: 0
B108: T1 | D108: 0 | E108: 0 | F108: 0 | G108: 0 | H108: 0 | I108: 0 | J108: 0 | K108: 0 | L108: 0 | M108: 0 | N108: 0 | O108: 0 | P108: 0 | Q108: 0 | R108: 0 | S108: 0 | T108: 0 | U108: 0 | V108: 0 | W108: 0 | Z108: t1 | AA108: 1.001 | AB108: =+BO$66 -> 0.002096627549 | AC108: =+BG127+0.001 -> 0.003324294012 | AD108: =1/(AF108/($AF$129*$AA108/$AF$130-$AC108)+AG108/($AG$129*$AA108/$AG$130-$AC108)+AH108/($AH$129*$AA108/$AH$130-$AC108)+AI108/($AI$129*$AA108/$AI$130-AC108)+AJ108/($AJ$129*$AA108/$AJ$130-$AC108)+AK108/($AK$129*$AA108/$AK$130-$AC108)+AL108/($AL$129*$AA108/$AL$130-$AC108)+AM108/($AM$129*$AA108/$AM$130-$AC108)+AN108/($AN$129*$AA108/$AN$130-$AC108)+AO108/($AO$129*$AA108/$AO$130-$AC108)+AP108/($AP$129*$AA108/$AP$130-$AC108)+AQ108/($AQ$129*$AA108/$AQ$130-$AC108)+AR108/($AR$129*$AA108/$AR$130-$AC108)+AS108/($AS$129*$AA108/$AS$130-$AC108)+AT108/($AT$129*$AA108/$AT$130-$AC108)+AU108/($AU$129*$AA108/$AU$130-$AC108)+AV108/($AV$129*$AA108/$AV$130-$AC108)+AW108/($AW$129*$AA108/$AW$130-$AC108)+AX108/($AX$129*$AA108/$AX$130-$AC108)+AY108/($AY$129*$AA108/$AY$130-$AC108)+AZ108/($AZ$129*$AA108/$AZ$130-$AC108)+BA108/($BA$129*$AA108/$BA$130-$AC108)+BB108/($BB$129*$AA108/$BB$130-$AC108)+BC108/($BC$129*$AA108/$BC$130-$AC108)+BD108/($BD$129*$AA108/$BD$130-$AC108)) -> 5 | AE108: t1 | AF108: 1 | AG108: 0 | AH108: 0 | AI108: 0 | AJ108: 0 | AK108: 0 | AL108: 0 | AM108: 0 | AN108: 0 | AO108: 0 | AP108: 0 | AQ108: 0 | AR108: 0 | AS108: 0 | AT108: 0 | AU108: 0 | AV108: 0 | AW108: 0 | AX108: 0 | AY108: 0 | AZ108: 0 | BA108: 0 | BB108: 0 | BC108: 0 | BD108: 0 | BE108: 0 | BF108: 0 | BG108: 0 | BH108: 0 | BI108: 0 | BJ108: 0 | BK108: 0 | BL108: 0 | BM108: 0 | BN108: 0 | BO108: 0 | BP108: 0 | BQ108: 0 | BR108: 0 | BS108: 0 | BT108: 0 | BU108: 0 | BV108: 0 | BW108: 0 | BX108: 0 | BY108: 0 | BZ108: t1 | CI108: Kfactor | CJ108: =+(10000+SUMPRODUCT(CJ117:CJ156,$DB117:$DB156,CJ117:CJ156,$DB117:$DB156))/10000/CJ110^2 -> 19.2996747 | CK108: 5.284404561 | CL108: 2.693110549 | CM108: 1.917108723 | CN108: 1.788902632 | CO108: 1.619537276 | CP108: 1.509398979 | CQ108: 1.429195402 | CR108: 1.370909713 | CS108: 1.325125151 | CT108: 1.261307686 | CU108: 1.222433897 | CV108: 1.193676999 | CW108: 1.144049761 | CX108: 1.119075891 | CY108: 1.119075891 | CZ108: 1.119075891 | DA108: 1.119075891 | EV108: 0
B109: T2 | D109: 0 | E109: 0 | F109: 0 | G109: 0 | H109: 0 | I109: 0 | J109: 0 | K109: 0 | L109: 0 | M109: 0 | N109: 0 | O109: 0 | P109: 0 | Q109: 0 | R109: 0 | S109: 0 | T109: 0 | U109: 0 | V109: 0 | W109: 0 | Z109: t2 | AA109: 0.001 | AB109: =+BP$66 -> 0 | AC109: =+BH$127+0.001 -> 0.001 | AE109: t2 | AF109: 0 | AG109: 0 | AH109: 0 | AI109: 0 | AJ109: 0 | AK109: 0 | AL109: 0 | AM109: 0 | AN109: 0 | AO109: 0 | AP109: 0 | AQ109: 0 | AR109: 0 | AS109: 0 | AT109: 0 | AU109: 0 | AV109: 0 | AW109: 0 | AX109: 0 | AY109: 0 | AZ109: 0 | BA109: 0 | BB109: 0 | BC109: 0 | BD109: 0 | BE109: 0 | BF109: 0 | BG109: 0 | BH109: 0 | BI109: 0 | BJ109: 0 | BK109: 0 | BL109: 0 | BM109: 0 | BN109: 0 | BO109: 0 | BP109: 0 | BQ109: 0 | BR109: 0 | BS109: 0 | BT109: 0 | BU109: 0 | BV109: 0 | BW109: 0 | BX109: 0 | BY109: 0 | BZ109: t2 | CI109: %Ithd | CJ109: =+SQRT(SUMSQ(CJ117:CJ156)) -> 23.82920156 | CK109: 11.47386659 | CL109: 7.675272739 | CM109: 7.44102365 | CN109: 9.031275232 | CO109: 9.16835945 | CP109: 6.930413326 | CQ109: 5.420633589 | CR109: 4.503305601 | CS109: 3.92735479 | CT109: 3.228627109 | CU109: 2.843981975 | CV109: 2.613643049 | CW109: 2.213446357 | CX109: 2.018876917 | CY109: 2.018876917 | CZ109: 2.018876917 | DA109: 2.018876917 | EV109: 0
B110: T3 | D110: 0 | E110: 0 | F110: 0 | G110: 0 | H110: 0 | I110: 0 | J110: 0 | K110: 0 | L110: 0 | M110: 0 | N110: 0 | O110: 0 | P110: 0 | Q110: 0 | R110: 0 | S110: 0 | T110: 0 | U110: 0 | V110: 0 | W110: 0 | Z110: t3 | AA110: 0.001 | AB110: =+BQ$66 -> 0 | AC110: =+BI$127+0.001 -> 0.001 | AE110: t3 | AF110: 0 | AG110: 0 | AH110: 0 | AI110: 0 | AJ110: 0 | AK110: 0 | AL110: 0 | AM110: 0 | AN110: 0 | AO110: 0 | AP110: 0 | AQ110: 0 | AR110: 0 | AS110: 0 | AT110: 0 | AU110: 0 | AV110: 0 | AW110: 0 | AX110: 0 | AY110: 0 | AZ110: 0 | BA110: 0 | BB110: 0 | BC110: 0 | BD110: 0 | BE110: 0 | BF110: 0 | BG110: 0 | BH110: 0 | BI110: 0 | BJ110: 0 | BK110: 0 | BL110: 0 | BM110: 0 | BN110: 0 | BO110: 0 | BP110: 0 | BQ110: 0 | BR110: 0 | BS110: 0 | BT110: 0 | BU110: 0 | BV110: 0 | BW110: 0 | BX110: 0 | BY110: 0 | BZ110: t3 | CI110: Irms/If | CJ110: =+SQRT(1+(CJ109/100)^2) -> 1.027999555 | CK110: 1.006560958 | CL110: 1.002941165 | CM110: 1.00276462 | CN110: 1.004069915 | CO110: 1.004194145 | CP110: 1.002398655 | CQ110: 1.001468086 | CR110: 1.001013475 | CS110: 1.000770909 | CT110: 1.000521066 | CU110: 1.00040433 | CV110: 1.000341498 | CW110: 1.000244937 | CX110: 1.000203772 | CY110: 1.000203772 | CZ110: 1.000203772 | DA110: 1.000203772 | EV110: 0
B111: T4 | D111: 0 | E111: 0 | F111: 0 | G111: 0 | H111: 0 | I111: 0 | J111: 0 | K111: 0 | L111: 0 | M111: 0 | N111: 0 | O111: 0 | P111: 0 | Q111: 0 | R111: 0 | S111: 0 | T111: 0 | U111: 0 | V111: 0 | W111: 0 | Z111: t4 | AA111: 0.001 | AB111: =+BR$66 -> 0 | AC111: =+BJ$127+0.001 -> 0.001 | AE111: t4 | AF111: 0 | AG111: 0 | AH111: 0 | AI111: 0 | AJ111: 0 | AK111: 0 | AL111: 0 | AM111: 0 | AN111: 0 | AO111: 0 | AP111: 0 | AQ111: 0 | AR111: 0 | AS111: 0 | AT111: 0 | AU111: 0 | AV111: 0 | AW111: 0 | AX111: 0 | AY111: 0 | AZ111: 0 | BA111: 0 | BB111: 0 | BC111: 0 | BD111: 0 | BE111: 0 | BF111: 0 | BG111: 0 | BH111: 0 | BI111: 0 | BJ111: 0 | BK111: 0 | BL111: 0 | BM111: 0 | BN111: 0 | BO111: 0 | BP111: 0 | BQ111: 0 | BR111: 0 | BS111: 0 | BT111: 0 | BU111: 0 | BV111: 0 | BW111: 0 | BX111: 0 | BY111: 0 | BZ111: t4 | CI111: Ih/If | CJ111: =+CJ109/100 -> 0.2382920156 | CK111: 0.1147386659 | CL111: 0.07675272739 | CM111: 0.0744102365 | CN111: 0.09031275232 | CO111: 0.0916835945 | CP111: 0.06930413326 | CQ111: 0.05420633589 | CR111: 0.04503305601 | CS111: 0.0392735479 | CT111: 0.03228627109 | CU111: 0.02843981975 | CV111: 0.02613643049 | CW111: 0.02213446357 | CX111: 0.02018876917 | CY111: 0.02018876917 | CZ111: 0.02018876917 | DA111: 0.02018876917 | EV111: 0
B112: T5 | D112: 0 | E112: 0 | F112: 0 | G112: 0 | H112: 0 | I112: 0 | J112: 0 | K112: 0 | L112: 0 | M112: 0 | N112: 0 | O112: 0 | P112: 0 | Q112: 0 | R112: 0 | S112: 0 | T112: 0 | U112: 0 | V112: 0 | W112: 0 | Z112: t5 | AA112: 0.001 | AB112: =+BS$66 -> 0 | AC112: =+BK$127+0.001 -> 0.001 | AE112: t5 | AF112: 0 | AG112: 0 | AH112: 0 | AI112: 0 | AJ112: 0 | AK112: 0 | AL112: 0 | AM112: 0 | AN112: 0 | AO112: 0 | AP112: 0 | AQ112: 0 | AR112: 0 | AS112: 0 | AT112: 0 | AU112: 0 | AV112: 0 | AW112: 0 | AX112: 0 | AY112: 0 | AZ112: 0 | BA112: 0 | BB112: 0 | BC112: 0 | BD112: 0 | BE112: 0 | BF112: 0 | BG112: 0 | BH112: 0 | BI112: 0 | BJ112: 0 | BK112: 0 | BL112: 0 | BM112: 0 | BN112: 0 | BO112: 0 | BP112: 0 | BQ112: 0 | BR112: 0 | BS112: 0 | BT112: 0 | BU112: 0 | BV112: 0 | BW112: 0 | BX112: 0 | BY112: 0 | BZ112: t5 | CI112: DispPF | CJ112: 0.99 | CK112: 0.992 | CL112: 0.991 | CM112: 0.989 | CN112: 0.988 | CO112: 0.988 | CP112: 0.987 | CQ112: 0.987 | CR112: 0.986 | CS112: 0.986 | CT112: 0.986 | CU112: 0.987 | CV112: 0.987 | CW112: 0.989 | CX112: 0.99 | CY112: 0.9 | CZ112: 0.9 | DA112: 0.9 | EV112: 0
B113: T6 | D113: 0 | E113: 0 | F113: 0 | G113: 0 | H113: 0 | I113: 0 | J113: 0 | K113: 0 | L113: 0 | M113: 0 | N113: 0 | O113: 0 | P113: 0 | Q113: 0 | R113: 0 | S113: 0 | T113: 0 | U113: 0 | V113: 0 | W113: 0 | Z113: t6 | AA113: 0.001 | AB113: =+BT$66 -> 0 | AC113: =+BL$127+0.001 -> 0.001 | AE113: t6 | AF113: 0 | AG113: 0 | AH113: 0 | AI113: 0 | AJ113: 0 | AK113: 0 | AL113: 0 | AM113: 0 | AN113: 0 | AO113: 0 | AP113: 0 | AQ113: 0 | AR113: 0 | AS113: 0 | AT113: 0 | AU113: 0 | AV113: 0 | AW113: 0 | AX113: 0 | AY113: 0 | AZ113: 0 | BA113: 0 | BB113: 0 | BC113: 0 | BD113: 0 | BE113: 0 | BF113: 0 | BG113: 0 | BH113: 0 | BI113: 0 | BJ113: 0 | BK113: 0 | BL113: 0 | BM113: 0 | BN113: 0 | BO113: 0 | BP113: 0 | BQ113: 0 | BR113: 0 | BS113: 0 | BT113: 0 | BU113: 0 | BV113: 0 | BW113: 0 | BX113: 0 | BY113: 0 | BZ113: t6 | CI113: ActPF | CJ113: 0.913 | CK113: 0.986 | CL113: 0.987 | CM113: 0.986 | CN113: 0.985 | CO113: 0.985 | CP113: 0.984 | CQ113: 0.984 | CR113: 0.983 | CS113: 0.983 | CT113: 0.983 | CU113: 0.983 | CV113: 0.983 | CW113: 0.985 | CX113: 0.986 | CY113: 0.9 | CZ113: 0.9 | DA113: 0.9 | EV113: 0
B114: T7 | D114: 0 | E114: 0 | F114: 0 | G114: 0 | H114: 0 | I114: 0 | J114: 0 | K114: 0 | L114: 0 | M114: 0 | N114: 0 | O114: 0 | P114: 0 | Q114: 0 | R114: 0 | S114: 0 | T114: 0 | U114: 0 | V114: 0 | W114: 0 | Z114: t7 | AA114: 0.001 | AB114: =+BU$66 -> 0 | AC114: =+BM$127+0.001 -> 0.001 | AE114: t7 | AF114: 0 | AG114: 0 | AH114: 0 | AI114: 0 | AJ114: 0 | AK114: 0 | AL114: 0 | AM114: 0 | AN114: 0 | AO114: 0 | AP114: 0 | AQ114: 0 | AR114: 0 | AS114: 0 | AT114: 0 | AU114: 0 | AV114: 0 | AW114: 0 | AX114: 0 | AY114: 0 | AZ114: 0 | BA114: 0 | BB114: 0 | BC114: 0 | BD114: 0 | BE114: 0 | BF114: 0 | BG114: 0 | BH114: 0 | BI114: 0 | BJ114: 0 | BK114: 0 | BL114: 0 | BM114: 0 | BN114: 0 | BO114: 0 | BP114: 0 | BQ114: 0 | BR114: 0 | BS114: 0 | BT114: 0 | BU114: 0 | BV114: 0 | BW114: 0 | BX114: 0 | BY114: 0 | BZ114: t7 | CI114: %Vthd | CJ114: 0.643 | CK114: 0.916 | CL114: 1.504 | CM114: 2.564 | CN114: 3.485 | CO114: 4.175 | CP114: 4.785 | CQ114: 5.4 | CR114: 5.926 | CS114: 6.33 | CT114: 7.217 | CU114: 7.864 | CV114: 8.396 | CW114: 8.522 | CX114: 8.558 | CY114: 90 | CZ114: 90 | DA114: 90 | EV114: 0
B115: T8 | D115: 0 | E115: 0 | F115: 0 | G115: 0 | H115: 0 | I115: 0 | J115: 0 | K115: 0 | L115: 0 | M115: 0 | N115: 0 | O115: 0 | P115: 0 | Q115: 0 | R115: 0 | S115: 0 | T115: 0 | U115: 0 | V115: 0 | W115: 0 | Z115: t8 | AA115: 0.001 | AB115: =+BV$66 -> 0 | AC115: =+BN$127+0.001 -> 0.001 | AE115: t8 | AF115: 0 | AG115: 0 | AH115: 0 | AI115: 0 | AJ115: 0 | AK115: 0 | AL115: 0 | AM115: 0 | AN115: 0 | AO115: 0 | AP115: 0 | AQ115: 0 | AR115: 0 | AS115: 0 | AT115: 0 | AU115: 0 | AV115: 0 | AW115: 0 | AX115: 0 | AY115: 0 | AZ115: 0 | BA115: 0 | BB115: 0 | BC115: 0 | BD115: 0 | BE115: 0 | BF115: 0 | BG115: 0 | BH115: 0 | BI115: 0 | BJ115: 0 | BK115: 0 | BL115: 0 | BM115: 0 | BN115: 0 | BO115: 0 | BP115: 0 | BQ115: 0 | BR115: 0 | BS115: 0 | BT115: 0 | BU115: 0 | BV115: 0 | BW115: 0 | BX115: 0 | BY115: 0 | BZ115: t8 | CI115: Vrms/Vs | CJ115: 0.9999 | CK115: 0.9988 | CL115: 0.9975 | CM115: 0.9947 | CN115: 0.9919 | CO115: 0.9889 | CP115: 0.9859 | CQ115: 0.9829 | CR115: 0.9798 | CS115: 0.9768 | CT115: 0.9707 | CU115: 0.9644 | CV115: 0.9584 | CW115: 0.9462 | CX115: 0.93704 | CY115: 0.09 | CZ115: 0.09 | DA115: 0.09 | EV115: 0
B116: T9 | D116: 0 | E116: 0 | F116: 0 | G116: 0 | H116: 0 | I116: 0 | J116: 0 | K116: 0 | L116: 0 | M116: 0 | N116: 0 | O116: 0 | P116: 0 | Q116: 0 | R116: 0 | S116: 0 | T116: 0 | U116: 0 | V116: 0 | W116: 0 | Z116: t9 | AA116: 0.001 | AB116: =+BW$66 -> 0 | AC116: =+BO$127+0.001 -> 0.001 | AE116: t9 | AF116: 0 | AG116: 0 | AH116: 0 | AI116: 0 | AJ116: 0 | AK116: 0 | AL116: 0 | AM116: 0 | AN116: 0 | AO116: 0 | AP116: 0 | AQ116: 0 | AR116: 0 | AS116: 0 | AT116: 0 | AU116: 0 | AV116: 0 | AW116: 0 | AX116: 0 | AY116: 0 | AZ116: 0 | BA116: 0 | BB116: 0 | BC116: 0 | BD116: 0 | BE116: 0 | BF116: 0 | BG116: 0 | BH116: 0 | BI116: 0 | BJ116: 0 | BK116: 0 | BL116: 0 | BM116: 0 | BN116: 0 | BO116: 0 | BP116: 0 | BQ116: 0 | BR116: 0 | BS116: 0 | BT116: 0 | BU116: 0 | BV116: 0 | BW116: 0 | BX116: 0 | BY116: 0 | BZ116: t9 | CI116: Vbus/Vs | CJ116: 1.403 | CK116: 1.4008 | CL116: 1.398 | CM116: 1.3929 | CN116: 1.3876 | CO116: 1.3824 | CP116: 1.377 | CQ116: 1.3722 | CR116: 1.3671 | CS116: 1.3622 | CT116: 1.3523 | CU116: 1.3428 | CV116: 1.3335 | CW116: 1.3163 | CX116: 1.3036 | CY116: 0.5 | CZ116: 0.5 | DA116: 0.5 | EV116: 0
B117: B1 | D117: 0 | E117: 0 | F117: 0 | G117: 0 | H117: 0 | I117: 0 | J117: 0 | K117: 0 | L117: 0 | M117: 0 | N117: 0 | O117: 0 | P117: 0 | Q117: 0 | R117: 0 | S117: 0 | T117: 0 | U117: 0 | V117: 0 | W117: 0 | Z117: b1 | AA117: 0.001 | AB117: =+BX$66 -> 0 | AC117: =+BP$127+0.001 -> 0.001 | AE117: b1 | AF117: =+COUNTIF(AF$80:AF$100,$AE117) -> 0 | AG117: 0 | AH117: 0 | AI117: 0 | AJ117: 0 | AK117: 0 | AL117: 0 | AM117: 0 | AN117: 0 | AO117: 0 | AP117: =+COUNTIF(AP$80:AP$100,$AE117) -> 0 | AQ117: 0 | AR117: 0 | AS117: 0 | AT117: 0 | AU117: 0 | AV117: 0 | AW117: 0 | AX117: 0 | AY117: 0 | AZ117: 0 | BA117: 0 | BB117: 0 | BC117: 0 | BD117: 0 | BE117: 0 | BF117: 0 | BG117: 0 | BH117: 0 | BI117: 0 | BJ117: 0 | BK117: 0 | BL117: 0 | BM117: 0 | BN117: 0 | BO117: 0 | BP117: 0 | BQ117: 0 | BR117: 0 | BS117: 0 | BT117: 0 | BU117: 0 | BV117: 0 | BW117: 0 | BX117: 0 | BY117: 0 | BZ117: b1 | CI117: %I2nd | CJ117: 0.01190952943 | CK117: 0.0230066945 | CL117: 0.1369795611 | CM117: 0.01466226732 | CN117: 0.006902769672 | CO117: 0.04383113587 | CP117: 0.0468026387 | CQ117: 0.06879425293 | CR117: 0.1083541683 | CS117: 0.1103678673 | CT117: 0.1742164357 | CU117: 0.1698782745 | CV117: 0.2812714985 | CW117: 0.2668482209 | CX117: 0.3425589421 | CY117: 0.3425589421 | CZ117: 0.3425589421 | DA117: 0.3425589421 | DB117: 2 | DC117: 0.01 | DD117: 0.03 | DE117: 0 | DF117: 0.08 | DG117: 0.11 | DH117: 0.11 | DI117: 0.21 | DJ117: 0.26 | DK117: 0.33 | DL117: 0.38 | DM117: 0.55 | DN117: 0.73 | DO117: 0.83 | DP117: 0.92 | DQ117: 1.08 | DR117: 0 | DS117: 0 | DT117: 0 | EV117: 0
B118: B2 | D118: 0 | E118: 0 | F118: 0 | G118: 0 | H118: 0 | I118: 0 | J118: 0 | K118: 0 | L118: 0 | M118: 0 | N118: 0 | O118: 0 | P118: 0 | Q118: 0 | R118: 0 | S118: 0 | T118: 0 | U118: 0 | V118: 0 | W118: 0 | Z118: b2 | AA118: 0.001 | AB118: =+BY$66 -> 0 | AC118: =+BQ$127+0.001 -> 0.001 | AE118: b2 | AF118: 0 | AG118: 0 | AH118: 0 | AI118: 0 | AJ118: 0 | AK118: 0 | AL118: 0 | AM118: 0 | AN118: 0 | AO118: 0 | AP118: 0 | AQ118: 0 | AR118: 0 | AS118: 0 | AT118: 0 | AU118: 0 | AV118: 0 | AW118: 0 | AX118: 0 | AY118: 0 | AZ118: 0 | BA118: 0 | BB118: 0 | BC118: 0 | BD118: 0 | BE118: 0 | BF118: 0 | BG118: 0 | BH118: 0 | BI118: 0 | BJ118: 0 | BK118: 0 | BL118: 0 | BM118: 0 | BN118: 0 | BO118: 0 | BP118: 0 | BQ118: 0 | BR118: 0 | BS118: 0 | BT118: 0 | BU118: 0 | BV118: 0 | BW118: 0 | BX118: 0 | BY118: 0 | BZ118: b2 | CI118: %I3rd | CJ118: 3.035932882 | CK118: 3.209737755 | CL118: 3.422422603 | CM118: 5.560002388 | CN118: 7.745463022 | CO118: 8.218706411 | CP118: 5.855234697 | CQ118: 4.187529069 | CR118: 3.152365041 | CS118: 2.509899844 | CT118: 1.741917284 | CU118: 1.320519735 | CV118: 1.143081794 | CW118: 0.8322293153 | CX118: 0.7432889341 | CY118: 0.7432889341 | CZ118: 0.7432889341 | DA118: 0.7432889341 | DB118: 3 | EV118: 0
B119: B3 | D119: 0 | E119: 0 | F119: 0 | G119: 0 | H119: 0 | I119: 0 | J119: 0 | K119: 0 | L119: 0 | M119: 0 | N119: 0 | O119: 0 | P119: 0 | Q119: 0 | R119: 0 | S119: 0 | T119: 0 | U119: 0 | V119: 0 | W119: 0 | Z119: b3 | AA119: 0.001 | AB119: =+BZ$66 -> 0 | AC119: =+BR$127+0.001 -> 0.001 | AE119: b3 | AF119: 0 | AG119: 0 | AH119: 0 | AI119: 0 | AJ119: 0 | AK119: 0 | AL119: 0 | AM119: 0 | AN119: 0 | AO119: 0 | AP119: 0 | AQ119: 0 | AR119: 0 | AS119: 0 | AT119: 0 | AU119: 0 | AV119: 0 | AW119: 0 | AX119: 0 | AY119: 0 | AZ119: 0 | BA119: 0 | BB119: 0 | BC119: 0 | BD119: 0 | BE119: 0 | BF119: 0 | BG119: 0 | BH119: 0 | BI119: 0 | BJ119: 0 | BK119: 0 | BL119: 0 | BM119: 0 | BN119: 0 | BO119: 0 | BP119: 0 | BQ119: 0 | BR119: 0 | BS119: 0 | BT119: 0 | BU119: 0 | BV119: 0 | BW119: 0 | BX119: 0 | BY119: 0 | BZ119: b3 | CI119: %I4th | CJ119: 0.03558658388 | CK119: 0.09682841863 | CL119: 0.1773059238 | CM119: 0.01293068486 | CN119: 0.01640590657 | CO119: 0.00178190102 | CP119: 0.01000471218 | CQ119: 0.01338274676 | CR119: 0.01124266874 | CS119: 0.007037744416 | CT119: 0.006246726573 | CU119: 0.01877605766 | CV119: 0.009743055817 | CW119: 0.03583609637 | CX119: 0.008764735495 | CY119: 0.008764735495 | CZ119: 0.008764735495 | DA119: 0.008764735495 | DB119: 4 | DC119: 0 | DD119: 0.02 | DE119: 0.01 | DF119: 0.01 | DG119: 0 | DH119: 0.02 | DI119: 0.01 | DJ119: 0.01 | DK119: 0 | DL119: 0.01 | DM119: 0.01 | DN119: 0.02 | DO119: 0.02 | DP119: 0.08 | DQ119: 0.07 | DR119: 0 | DS119: 0 | DT119: 0 | EV119: 0
B120: B4 | D120: 0 | E120: 0 | F120: 0 | G120: 0 | H120: 0 | I120: 0 | J120: 0 | K120: 0 | L120: 0 | M120: 0 | N120: 0 | O120: 0 | P120: 0 | Q120: 0 | R120: 0 | S120: 0 | T120: 0 | U120: 0 | V120: 0 | W120: 0 | Z120: b4 | AA120: 0.001 | AB120: =+CA$66 -> 0 | AC120: =+BS$127+0.001 -> 0.001 | AE120: b4 | AF120: 0 | AG120: 0 | AH120: 0 | AI120: 0 | AJ120: 0 | AK120: 0 | AL120: 0 | AM120: 0 | AN120: 0 | AO120: 0 | AP120: 0 | AQ120: 0 | AR120: 0 | AS120: 0 | AT120: 0 | AU120: 0 | AV120: 0 | AW120: 0 | AX120: 0 | AY120: 0 | AZ120: 0 | BA120: 0 | BB120: 0 | BC120: 0 | BD120: 0 | BE120: 0 | BF120: 0 | BG120: 0 | BH120: 0 | BI120: 0 | BJ120: 0 | BK120: 0 | BL120: 0 | BM120: 0 | BN120: 0 | BO120: 0 | BP120: 0 | BQ120: 0 | BR120: 0 | BS120: 0 | BT120: 0 | BU120: 0 | BV120: 0 | BW120: 0 | BX120: 0 | BY120: 0 | BZ120: b4 | CI120: %I5th | CJ120: 0.03670667213 | CK120: 0.07165564328 | CL120: 0.1380719958 | CM120: 0.03390227412 | CN120: 0.03784055532 | CO120: 0.03771621517 | CP120: 0.0441487388 | CQ120: 0.03350591867 | CR120: 0.02685949277 | CS120: 0.02038087982 | CT120: 0.02137820984 | CU120: 0.03928244597 | CV120: 0.03579654082 | CW120: 0.04603544806 | CX120: 0.0724530643 | CY120: 0.0724530643 | CZ120: 0.0724530643 | DA120: 0.0724530643 | DB120: 5 | DC120: 0.01 | DD120: 0.08 | DE120: 0.01 | DF120: 0.01 | DG120: 0 | DH120: 0.01 | DI120: 0.01 | DJ120: 0.01 | DK120: 0.01 | DL120: 0.01 | DM120: 0.02 | DN120: 0.01 | DO120: 0.03 | DP120: 0.05 | DQ120: 0.13 | DR120: 13 | DS120: 13 | DT120: 13 | EV120: 0
B121: B5 | D121: 0 | E121: 0 | F121: 0 | G121: 0 | H121: 0 | I121: 0 | J121: 0 | K121: 0 | L121: 0 | M121: 0 | N121: 0 | O121: 0 | P121: 0 | Q121: 0 | R121: 0 | S121: 0 | T121: 0 | U121: 0 | V121: 0 | W121: 0 | Z121: b5 | AA121: 0.001 | AB121: =+CB$66 -> 0 | AC121: =+BT$127+0.001 -> 0.001 | AE121: b5 | AF121: 0 | AG121: 0 | AH121: 0 | AI121: 0 | AJ121: 0 | AK121: 0 | AL121: 0 | AM121: 0 | AN121: 0 | AO121: 0 | AP121: 0 | AQ121: 0 | AR121: 0 | AS121: 0 | AT121: 0 | AU121: 0 | AV121: 0 | AW121: 0 | AX121: 0 | AY121: 0 | AZ121: 0 | BA121: 0 | BB121: 0 | BC121: 0 | BD121: 0 | BE121: 0 | BF121: 0 | BG121: 0 | BH121: 0 | BI121: 0 | BJ121: 0 | BK121: 0 | BL121: 0 | BM121: 0 | BN121: 0 | BO121: 0 | BP121: 0 | BQ121: 0 | BR121: 0 | BS121: 0 | BT121: 0 | BU121: 0 | BV121: 0 | BW121: 0 | BX121: 0 | BY121: 0 | BZ121: b5 | CI121: %I6th | CJ121: 0.02297389146 | CK121: 0.06546212825 | CL121: 0.1074454213 | CM121: 0.01237781766 | CN121: 0.01213049372 | CO121: 0.002712904748 | CP121: 0.008736565538 | CQ121: 0.003728683788 | CR121: 0.006029619469 | CS121: 0.0129187118 | CT121: 0.007748001371 | CU121: 0.01642501018 | CV121: 0.005586745494 | CW121: 0.02129065865 | CX121: 0.01032755877 | CY121: 0.01032755877 | CZ121: 0.01032755877 | DA121: 0.01032755877 | DB121: 6 | EV121: 0
B122: B6 | D122: 0 | E122: 0 | F122: 0 | G122: 0 | H122: 0 | I122: 0 | J122: 0 | K122: 0 | L122: 0 | M122: 0 | N122: 0 | O122: 0 | P122: 0 | Q122: 0 | R122: 0 | S122: 0 | T122: 0 | U122: 0 | V122: 0 | W122: 0 | Z122: b6 | AA122: 0.001 | AB122: =+CC$66 -> 0 | AC122: =+BU$127+0.001 -> 0.001 | AE122: b6 | AF122: 0 | AG122: 0 | AH122: 0 | AI122: 0 | AJ122: 0 | AK122: 0 | AL122: 0 | AM122: 0 | AN122: 0 | AO122: 0 | AP122: 0 | AQ122: 0 | AR122: 0 | AS122: 0 | AT122: 0 | AU122: 0 | AV122: 0 | AW122: 0 | AX122: 0 | AY122: 0 | AZ122: 0 | BA122: 0 | BB122: 0 | BC122: 0 | BD122: 0 | BE122: 0 | BF122: 0 | BG122: 0 | BH122: 0 | BI122: 0 | BJ122: 0 | BK122: 0 | BL122: 0 | BM122: 0 | BN122: 0 | BO122: 0 | BP122: 0 | BQ122: 0 | BR122: 0 | BS122: 0 | BT122: 0 | BU122: 0 | BV122: 0 | BW122: 0 | BX122: 0 | BY122: 0 | BZ122: b6 | CI122: %I7th | CJ122: 0.02883170789 | CK122: 0.07534648895 | CL122: 0.08356628984 | CM122: 0.01006540481 | CN122: 0.005274576889 | CO122: 0.00478912626 | CP122: 0.00712224338 | CQ122: 0.005458108804 | CR122: 0.008866371509 | CS122: 0.009447466528 | CT122: 0.005284309247 | CU122: 0.02764775834 | CV122: 0.005003879919 | CW122: 0.0006703150235 | CX122: 0.0361764808 | CY122: 0.0361764808 | CZ122: 0.0361764808 | DA122: 0.0361764808 | DB122: 7 | DC122: 0.03 | DD122: 0.1 | DE122: 0.02 | DF122: 0 | DG122: 0 | DH122: 0.03 | DI122: 0.01 | DJ122: 0.01 | DK122: 0.01 | DL122: 0.02 | DM122: 0.01 | DN122: 0 | DO122: 0.03 | DP122: 0.04 | DQ122: 0.12 | DR122: 4 | DS122: 4 | DT122: 4 | EV122: 0
B123: B7 | D123: 0 | E123: 0 | F123: 0 | G123: 0 | H123: 0 | I123: 0 | J123: 0 | K123: 0 | L123: 0 | M123: 0 | N123: 0 | O123: 0 | P123: 0 | Q123: 0 | R123: 0 | S123: 0 | T123: 0 | U123: 0 | V123: 0 | W123: 0 | Z123: b7 | AA123: 0.001 | AB123: =+CD$66 -> 0 | AC123: =+BV$127+0.001 -> 0.001 | AE123: b7 | AF123: 0 | AG123: 0 | AH123: 0 | AI123: 0 | AJ123: 0 | AK123: 0 | AL123: 0 | AM123: 0 | AN123: 0 | AO123: 0 | AP123: 0 | AQ123: 0 | AR123: 0 | AS123: 0 | AT123: 0 | AU123: 0 | AV123: 0 | AW123: 0 | AX123: 0 | AY123: 0 | AZ123: 0 | BA123: 0 | BB123: 0 | BC123: 0 | BD123: 0 | BE123: 0 | BF123: 0 | BG123: 0 | BH123: 0 | BI123: 0 | BJ123: 0 | BK123: 0 | BL123: 0 | BM123: 0 | BN123: 0 | BO123: 0 | BP123: 0 | BQ123: 0 | BR123: 0 | BS123: 0 | BT123: 0 | BU123: 0 | BV123: 0 | BW123: 0 | BX123: 0 | BY123: 0 | BZ123: b7 | CI123: %I8th | CJ123: 0.3350690952 | CK123: 0.01009546839 | CL123: 0.04368177825 | CM123: 0.001360098338 | CN123: 0.00546475784 | CO123: 0.011310349 | CP123: 0.008357176452 | CQ123: 0.005185279146 | CR123: 0.006974364551 | CS123: 0.005256877994 | CT123: 0.004746203976 | CU123: 0.01392849552 | CV123: 0.006964564708 | CW123: 0.04989147706 | CX123: 0.01069897451 | CY123: 0.01069897451 | CZ123: 0.01069897451 | DA123: 0.01069897451 | DB123: 8 | DC123: 0.12 | DD123: 0.03 | DE123: 0.06 | DF123: 0.03 | DG123: 0.03 | DH123: 0.01 | DI123: 0.04 | DJ123: 0.01 | DK123: 0 | DL123: 0.01 | DM123: 0.01 | DN123: 0.01 | DO123: 0.02 | DP123: 0.1 | DQ123: 0.07 | DR123: 0 | DS123: 0 | DT123: 0 | EV123: 0
B124: B8 | D124: 0 | E124: 0 | F124: 0 | G124: 0 | H124: 0 | I124: 0 | J124: 0 | K124: 0 | L124: 0 | M124: 0 | N124: 0 | O124: 0 | P124: 0 | Q124: 0 | R124: 0 | S124: 0 | T124: 0 | U124: 0 | V124: 0 | W124: 0 | Z124: b8 | AA124: 0.001 | AB124: =+CE$66 -> 0 | AC124: =+BW$12+0.001 -> 0.001 | AE124: b8 | AF124: 0 | AG124: 0 | AH124: 0 | AI124: 0 | AJ124: 0 | AK124: 0 | AL124: 0 | AM124: 0 | AN124: 0 | AO124: 0 | AP124: 0 | AQ124: 0 | AR124: 0 | AS124: 0 | AT124: 0 | AU124: 0 | AV124: 0 | AW124: 0 | AX124: 0 | AY124: 0 | AZ124: 0 | BA124: 0 | BB124: 0 | BC124: 0 | BD124: 0 | BE124: 0 | BF124: 0 | BG124: 0 | BH124: 0 | BI124: 0 | BJ124: 0 | BK124: 0 | BL124: 0 | BM124: 0 | BN124: 0 | BO124: 0 | BP124: 0 | BQ124: 0 | BR124: 0 | BS124: 0 | BT124: 0 | BU124: 0 | BV124: 0 | BW124: 0 | BX124: 0 | BY124: 0 | BZ124: b8 | CI124: %I9th | CJ124: 0.1067223876 | CK124: 0.007430634853 | CL124: 0.0479612236 | CM124: 0.001507754347 | CN124: 0.001322631572 | CO124: 0.003062924984 | CP124: 0.001486154057 | CQ124: 0.001595101919 | CR124: 0.002599992078 | CS124: 0.0009432077089 | CT124: 0.002513476045 | CU124: 0.01947886417 | CV124: 0.01025615594 | CW124: 0.01441611313 | CX124: 0.01194648299 | CY124: 0.01194648299 | CZ124: 0.01194648299 | DA124: 0.01194648299 | DB124: 9 | EV124: 0
B125: B9 | D125: 0 | E125: 0 | F125: 0 | G125: 0 | H125: 0 | I125: 0 | J125: 0 | K125: 0 | L125: 0 | M125: 0 | N125: 0 | O125: 0 | P125: 0 | Q125: 0 | R125: 0 | S125: 0 | T125: 0 | U125: 0 | V125: 0 | W125: 0 | Z125: b9 | AA125: 0.001 | AB125: =+CF$66 -> 0 | AC125: =+BX$127+0.001 -> 0.001 | AE125: b9 | AF125: 0 | AG125: 0 | AH125: 0 | AI125: 0 | AJ125: 0 | AK125: 0 | AL125: 0 | AM125: 0 | AN125: 0 | AO125: 0 | AP125: 0 | AQ125: 0 | AR125: 0 | AS125: 0 | AT125: 0 | AU125: 0 | AV125: 0 | AW125: 0 | AX125: 0 | AY125: 0 | AZ125: 0 | BA125: 0 | BB125: 0 | BC125: 0 | BD125: 0 | BE125: 0 | BF125: 0 | BG125: 0 | BH125: 0 | BI125: 0 | BJ125: 0 | BK125: 0 | BL125: 0 | BM125: 0 | BN125: 0 | BO125: 0 | BP125: 0 | BQ125: 0 | BR125: 0 | BS125: 0 | BT125: 0 | BU125: 0 | BV125: 0 | BW125: 0 | BX125: 0 | BY125: 0 | BZ125: b9 | CI125: %I10th | CJ125: 0.2056485162 | CK125: 0.0322578441 | CL125: 0.004398709529 | CM125: 0.007782083091 | CN125: 0.0081753321 | CO125: 0.005374449078 | CP125: 0.005467457539 | CQ125: 0.002111132354 | CR125: 0.008050218435 | CS125: 0.007510937964 | CT125: 0.006600060963 | CU125: 0.02849209828 | CV125: 0.02755031302 | CW125: 0.03065921248 | CX125: 0.01768550225 | CY125: 0.01768550225 | CZ125: 0.01768550225 | DA125: 0.01768550225 | DB125: 10 | DC125: 0.25 | DD125: 0.04 | DE125: 0.01 | DF125: 0.02 | DG125: 0.02 | DH125: 0 | DI125: 0.03 | DJ125: 0.02 | DK125: 0 | DL125: 0.01 | DM125: 0.01 | DN125: 0.02 | DO125: 0.02 | DP125: 0.12 | DQ125: 0.05 | DR125: 0 | DS125: 0 | DT125: 0 | EV125: 0
B126: B10 | D126: 0 | E126: 0 | F126: 0 | G126: 0 | H126: 0 | I126: 0 | J126: 0 | K126: 0 | L126: 0 | M126: 0 | N126: 0 | O126: 0 | P126: 0 | Q126: 0 | R126: 0 | S126: 0 | T126: 0 | U126: 0 | V126: 0 | W126: 0 | Z126: b10 | AA126: 0.001 | AB126: =+CG$66 -> 0 | AC126: =+BY$127+0.001 -> 0.001 | AE126: b10 | AF126: 0 | AG126: 0 | AH126: 0 | AI126: 0 | AJ126: 0 | AK126: 0 | AL126: 0 | AM126: 0 | AN126: 0 | AO126: 0 | AP126: 0 | AQ126: 0 | AR126: 0 | AS126: 0 | AT126: 0 | AU126: 0 | AV126: 0 | AW126: 0 | AX126: 0 | AY126: 0 | AZ126: 0 | BA126: 0 | BB126: 0 | BC126: 0 | BD126: 0 | BE126: 0 | BF126: 0 | BG126: 0 | BH126: 0 | BI126: 0 | BJ126: 0 | BK126: 0 | BL126: 0 | BM126: 0 | BN126: 0 | BO126: 0 | BP126: 0 | BQ126: 0 | BR126: 0 | BS126: 0 | BT126: 0 | BU126: 0 | BV126: 0 | BW126: 0 | BX126: 0 | BY126: 0 | BZ126: b10 | CI126: %I11th | CJ126: 0.09379194152 | CK126: 0.0272247878 | CL126: 0.01281769424 | CM126: 0.004716533418 | CN126: 0.0081635762 | CO126: 0.009324659732 | CP126: 0.005943238045 | CQ126: 0.002882182561 | CR126: 0.003597492766 | CS126: 0.001062981161 | CT126: 0.002354594499 | CU126: 0.03214358051 | CV126: 0.01044115159 | CW126: 0.02512483519 | CX126: 0.02280609056 | CY126: 0.02280609056 | CZ126: 0.02280609056 | DA126: 0.02280609056 | DB126: 11 | DC126: 0.07 | DD126: 0 | DE126: 0.01 | DF126: 0.01 | DG126: 0.01 | DH126: 0.01 | DI126: 0 | DJ126: 0.01 | DK126: 0.01 | DL126: 0.01 | DM126: 0.02 | DN126: 0.01 | DO126: 0.03 | DP126: 0.01 | DQ126: 0.07 | DR126: 0.5 | DS126: 0.5 | DT126: 0.5 | EV126: 0
D127: =+AC135 -> 1.002 | E127: =+AC136 -> 1.001 | F127: =+AC137 -> 0.001 | G127: =+AC138 -> 0.001 | H127: =+AC139 -> 0.001 | I127: =+AC140 -> 0.001 | J127: =+AC141 -> 0.001 | K127: =+AC142 -> 0.001 | L127: =+AC143 -> 0.001 | M127: =+AC144 -> 0.001 | N127: =+AC145 -> 0.001 | O127: =+AC146 -> 0.001 | P127: =+AC147 -> 0.001 | Q127: =+AC148 -> 0.001 | R127: =+AC149 -> 0.001 | S127: =+AC150 -> 0.001 | T127: =+AC151 -> 0.001 | U127: =+AC152 -> 0.001 | V127: =+AC153 -> 0.001 | W127: =+AC154 -> 0.001 | AE127: %Zs= | AF127: =+($AB$107*AF107/$AA$107+$AB$108*AF108/$AA$108+$AB$109*AF109/$AA$109+$AB$110*AF110/$AA$110+$AB$111*AF111/$AA$111+$AB$112*AF112/$AA$112+$AB$113*AF113/$AA$113+$AB$114*AF114/$AA$114+$AB$115*AF115/$AA$115+$AB$116*AF116/$AA$116+$AB$117*AF117/$AA$117+$AB$118*AF118/$AA$118+$AB$119*AF119/$AA$119+$AB$120*AF120/$AA$120+$AB$121*AF121/$AA$121+$AB$122*AF122/$AA$122+$AB$123*AF123/$AA$123+$AB$124*AF124/$AA$124+$AB$125*AF125/$AA$125+$AB$126*AF126/$AA$126)*AF$130 -> 0.002324294012 | AG127: 0 | AH127: 0 | AI127: 0 | AJ127: 0 | AK127: 0 | AL127: 0 | AM127: 0 | AN127: 0 | AO127: 0 | AP127: 0 | AQ127: 0 | AR127: 0 | AS127: 0 | AT127: 0 | AU127: 0 | AV127: 0 | AW127: 0 | AX127: 0 | AY127: 0 | AZ127: 0 | BA127: 0 | BB127: 0 | BC127: 0 | BD127: 0 | BE127: 0 | BF127: =+($AB$107*BF107/$AA$107+$AB$108*BF108/$AA$108+$AB$109*BF109/$AA$109+$AB$110*BF110/$AA$110+$AB$111*BF111/$AA$111+$AB$112*BF112/$AA$112+$AB$113*BF113/$AA$113+$AB$114*BF114/$AA$114+$AB$115*BF115/$AA$115+$AB$116*BF116/$AA$116+$AB$117*BF117/$AA$117+$AB$118*BF118/$AA$118+$AB$119*BF119/$AA$119+$AB$120*BF120/$AA$120+$AB$121*BF121/$AA$121+$AB$122*BF122/$AA$122+$AB$123*BF123/$AA$123+$AB$124*BF124/$AA$124+$AB$125*BF125/$AA$125+$AB$126*BF126/$AA$126)*BF$130+AB107 -> 0.0002278939024 | BG127: =+($AB$107*BG107/$AA$107+$AB$108*BG108/$AA$108+$AB$109*BG109/$AA$109+$AB$110*BG110/$AA$110+$AB$111*BG111/$AA$111+$AB$112*BG112/$AA$112+$AB$113*BG113/$AA$113+$AB$114*BG114/$AA$114+$AB$115*BG115/$AA$115+$AB$116*BG116/$AA$116+$AB$117*BG117/$AA$117+$AB$118*BG118/$AA$118+$AB$119*BG119/$AA$119+$AB$120*BG120/$AA$120+$AB$121*BG121/$AA$121+$AB$122*BG122/$AA$122+$AB$123*BG123/$AA$123+$AB$124*BG124/$AA$124+$AB$125*BG125/$AA$125+$AB$126*BG126/$AA$126)*BG$130+AB108 -> 0.002324294012 | BH127: =+($AB$107*BH107/$AA$107+$AB$108*BH108/$AA$108+$AB$109*BH109/$AA$109+$AB$110*BH110/$AA$110+$AB$111*BH111/$AA$111+$AB$112*BH112/$AA$112+$AB$113*BH113/$AA$113+$AB$114*BH114/$AA$114+$AB$115*BH115/$AA$115+$AB$116*BH116/$AA$116+$AB$117*BH117/$AA$117+$AB$118*BH118/$AA$118+$AB$119*BH119/$AA$119+$AB$120*BH120/$AA$120+$AB$121*BH121/$AA$121+$AB$122*BH122/$AA$122+$AB$123*BH123/$AA$123+$AB$124*BH124/$AA$124+$AB$125*BH125/$AA$125+$AB$126*BH126/$AA$126)*BH$130+AB109 -> 0 | BI127: =+($AB$107*BI107/$AA$107+$AB$108*BI108/$AA$108+$AB$109*BI109/$AA$109+$AB$110*BI110/$AA$110+$AB$111*BI111/$AA$111+$AB$112*BI112/$AA$112+$AB$113*BI113/$AA$113+$AB$114*BI114/$AA$114+$AB$115*BI115/$AA$115+$AB$116*BI116/$AA$116+$AB$117*BI117/$AA$117+$AB$118*BI118/$AA$118+$AB$119*BI119/$AA$119+$AB$120*BI120/$AA$120+$AB$121*BI121/$AA$121+$AB$122*BI122/$AA$122+$AB$123*BI123/$AA$123+$AB$124*BI124/$AA$124+$AB$125*BI125/$AA$125+$AB$126*BI126/$AA$126)*BI$130+AB110 -> 0 | BJ127: =+($AB$107*BJ107/$AA$107+$AB$108*BJ108/$AA$108+$AB$109*BJ109/$AA$109+$AB$110*BJ110/$AA$110+$AB$111*BJ111/$AA$111+$AB$112*BJ112/$AA$112+$AB$113*BJ113/$AA$113+$AB$114*BJ114/$AA$114+$AB$115*BJ115/$AA$115+$AB$116*BJ116/$AA$116+$AB$117*BJ117/$AA$117+$AB$118*BJ118/$AA$118+$AB$119*BJ119/$AA$119+$AB$120*BJ120/$AA$120+$AB$121*BJ121/$AA$121+$AB$122*BJ122/$AA$122+$AB$123*BJ123/$AA$123+$AB$124*BJ124/$AA$124+$AB$125*BJ125/$AA$125+$AB$126*BJ126/$AA$126)*BJ$130+AB111 -> 0 | BK127: =+($AB$107*BK107/$AA$107+$AB$108*BK108/$AA$108+$AB$109*BK109/$AA$109+$AB$110*BK110/$AA$110+$AB$111*BK111/$AA$111+$AB$112*BK112/$AA$112+$AB$113*BK113/$AA$113+$AB$114*BK114/$AA$114+$AB$115*BK115/$AA$115+$AB$116*BK116/$AA$116+$AB$117*BK117/$AA$117+$AB$118*BK118/$AA$118+$AB$119*BK119/$AA$119+$AB$120*BK120/$AA$120+$AB$121*BK121/$AA$121+$AB$122*BK122/$AA$122+$AB$123*BK123/$AA$123+$AB$124*BK124/$AA$124+$AB$125*BK125/$AA$125+$AB$126*BK126/$AA$126)*BK$130+AB112 -> 0 | BL127: =+($AB$107*BL107/$AA$107+$AB$108*BL108/$AA$108+$AB$109*BL109/$AA$109+$AB$110*BL110/$AA$110+$AB$111*BL111/$AA$111+$AB$112*BL112/$AA$112+$AB$113*BL113/$AA$113+$AB$114*BL114/$AA$114+$AB$115*BL115/$AA$115+$AB$116*BL116/$AA$116+$AB$117*BL117/$AA$117+$AB$118*BL118/$AA$118+$AB$119*BL119/$AA$119+$AB$120*BL120/$AA$120+$AB$121*BL121/$AA$121+$AB$122*BL122/$AA$122+$AB$123*BL123/$AA$123+$AB$124*BL124/$AA$124+$AB$125*BL125/$AA$125+$AB$126*BL126/$AA$126)*BL$130+AB113 -> 0 | BM127: =+($AB$107*BM107/$AA$107+$AB$108*BM108/$AA$108+$AB$109*BM109/$AA$109+$AB$110*BM110/$AA$110+$AB$111*BM111/$AA$111+$AB$112*BM112/$AA$112+$AB$113*BM113/$AA$113+$AB$114*BM114/$AA$114+$AB$115*BM115/$AA$115+$AB$116*BM116/$AA$116+$AB$117*BM117/$AA$117+$AB$118*BM118/$AA$118+$AB$119*BM119/$AA$119+$AB$120*BM120/$AA$120+$AB$121*BM121/$AA$121+$AB$122*BM122/$AA$122+$AB$123*BM123/$AA$123+$AB$124*BM124/$AA$124+$AB$125*BM125/$AA$125+$AB$126*BM126/$AA$126)*BM$130+AB114 -> 0 | BN127: =+($AB$107*BN107/$AA$107+$AB$108*BN108/$AA$108+$AB$109*BN109/$AA$109+$AB$110*BN110/$AA$110+$AB$111*BN111/$AA$111+$AB$112*BN112/$AA$112+$AB$113*BN113/$AA$113+$AB$114*BN114/$AA$114+$AB$115*BN115/$AA$115+$AB$116*BN116/$AA$116+$AB$117*BN117/$AA$117+$AB$118*BN118/$AA$118+$AB$119*BN119/$AA$119+$AB$120*BN120/$AA$120+$AB$121*BN121/$AA$121+$AB$122*BN122/$AA$122+$AB$123*BN123/$AA$123+$AB$124*BN124/$AA$124+$AB$125*BN125/$AA$125+$AB$126*BN126/$AA$126)*BN$130+AB115 -> 0 | BO127: =+($AB$107*BO107/$AA$107+$AB$108*BO108/$AA$108+$AB$109*BO109/$AA$109+$AB$110*BO110/$AA$110+$AB$111*BO111/$AA$111+$AB$112*BO112/$AA$112+$AB$113*BO113/$AA$113+$AB$114*BO114/$AA$114+$AB$115*BO115/$AA$115+$AB$116*BO116/$AA$116+$AB$117*BO117/$AA$117+$AB$118*BO118/$AA$118+$AB$119*BO119/$AA$119+$AB$120*BO120/$AA$120+$AB$121*BO121/$AA$121+$AB$122*BO122/$AA$122+$AB$123*BO123/$AA$123+$AB$124*BO124/$AA$124+$AB$125*BO125/$AA$125+$AB$126*BO126/$AA$126)*BO$130+AB116 -> 0 | BP127: =+($AB$107*BP107/$AA$107+$AB$108*BP108/$AA$108+$AB$109*BP109/$AA$109+$AB$110*BP110/$AA$110+$AB$111*BP111/$AA$111+$AB$112*BP112/$AA$112+$AB$113*BP113/$AA$113+$AB$114*BP114/$AA$114+$AB$115*BP115/$AA$115+$AB$116*BP116/$AA$116+$AB$117*BP117/$AA$117+$AB$118*BP118/$AA$118+$AB$119*BP119/$AA$119+$AB$120*BP120/$AA$120+$AB$121*BP121/$AA$121+$AB$122*BP122/$AA$122+$AB$123*BP123/$AA$123+$AB$124*BP124/$AA$124+$AB$125*BP125/$AA$125+$AB$126*BP126/$AA$126)*BP$130+AB117 -> 0 | BQ127: =+($AB$107*BQ107/$AA$107+$AB$108*BQ108/$AA$108+$AB$109*BQ109/$AA$109+$AB$110*BQ110/$AA$110+$AB$111*BQ111/$AA$111+$AB$112*BQ112/$AA$112+$AB$113*BQ113/$AA$113+$AB$114*BQ114/$AA$114+$AB$115*BQ115/$AA$115+$AB$116*BQ116/$AA$116+$AB$117*BQ117/$AA$117+$AB$118*BQ118/$AA$118+$AB$119*BQ119/$AA$119+$AB$120*BQ120/$AA$120+$AB$121*BQ121/$AA$121+$AB$122*BQ122/$AA$122+$AB$123*BQ123/$AA$123+$AB$124*BQ124/$AA$124+$AB$125*BQ125/$AA$125+$AB$126*BQ126/$AA$126)*BQ$130+AB118 -> 0 | BR127: =+($AB$107*BR107/$AA$107+$AB$108*BR108/$AA$108+$AB$109*BR109/$AA$109+$AB$110*BR110/$AA$110+$AB$111*BR111/$AA$111+$AB$112*BR112/$AA$112+$AB$113*BR113/$AA$113+$AB$114*BR114/$AA$114+$AB$115*BR115/$AA$115+$AB$116*BR116/$AA$116+$AB$117*BR117/$AA$117+$AB$118*BR118/$AA$118+$AB$119*BR119/$AA$119+$AB$120*BR120/$AA$120+$AB$121*BR121/$AA$121+$AB$122*BR122/$AA$122+$AB$123*BR123/$AA$123+$AB$124*BR124/$AA$124+$AB$125*BR125/$AA$125+$AB$126*BR126/$AA$126)*BR$130+AB119 -> 0 | BS127: =+($AB$107*BS107/$AA$107+$AB$108*BS108/$AA$108+$AB$109*BS109/$AA$109+$AB$110*BS110/$AA$110+$AB$111*BS111/$AA$111+$AB$112*BS112/$AA$112+$AB$113*BS113/$AA$113+$AB$114*BS114/$AA$114+$AB$115*BS115/$AA$115+$AB$116*BS116/$AA$116+$AB$117*BS117/$AA$117+$AB$118*BS118/$AA$118+$AB$119*BS119/$AA$119+$AB$120*BS120/$AA$120+$AB$121*BS121/$AA$121+$AB$122*BS122/$AA$122+$AB$123*BS123/$AA$123+$AB$124*BS124/$AA$124+$AB$125*BS125/$AA$125+$AB$126*BS126/$AA$126)*BS$130+AB120 -> 0 | BT127: =+($AB$107*BT107/$AA$107+$AB$108*BT108/$AA$108+$AB$109*BT109/$AA$109+$AB$110*BT110/$AA$110+$AB$111*BT111/$AA$111+$AB$112*BT112/$AA$112+$AB$113*BT113/$AA$113+$AB$114*BT114/$AA$114+$AB$115*BT115/$AA$115+$AB$116*BT116/$AA$116+$AB$117*BT117/$AA$117+$AB$118*BT118/$AA$118+$AB$119*BT119/$AA$119+$AB$120*BT120/$AA$120+$AB$121*BT121/$AA$121+$AB$122*BT122/$AA$122+$AB$123*BT123/$AA$123+$AB$124*BT124/$AA$124+$AB$125*BT125/$AA$125+$AB$126*BT126/$AA$126)*BT$130+AB121 -> 0 | BU127: =+($AB$107*BU107/$AA$107+$AB$108*BU108/$AA$108+$AB$109*BU109/$AA$109+$AB$110*BU110/$AA$110+$AB$111*BU111/$AA$111+$AB$112*BU112/$AA$112+$AB$113*BU113/$AA$113+$AB$114*BU114/$AA$114+$AB$115*BU115/$AA$115+$AB$116*BU116/$AA$116+$AB$117*BU117/$AA$117+$AB$118*BU118/$AA$118+$AB$119*BU119/$AA$119+$AB$120*BU120/$AA$120+$AB$121*BU121/$AA$121+$AB$122*BU122/$AA$122+$AB$123*BU123/$AA$123+$AB$124*BU124/$AA$124+$AB$125*BU125/$AA$125+$AB$126*BU126/$AA$126)*BU$130+AB122 -> 0 | BV127: =+($AB$107*BV107/$AA$107+$AB$108*BV108/$AA$108+$AB$109*BV109/$AA$109+$AB$110*BV110/$AA$110+$AB$111*BV111/$AA$111+$AB$112*BV112/$AA$112+$AB$113*BV113/$AA$113+$AB$114*BV114/$AA$114+$AB$115*BV115/$AA$115+$AB$116*BV116/$AA$116+$AB$117*BV117/$AA$117+$AB$118*BV118/$AA$118+$AB$119*BV119/$AA$119+$AB$120*BV120/$AA$120+$AB$121*BV121/$AA$121+$AB$122*BV122/$AA$122+$AB$123*BV123/$AA$123+$AB$124*BV124/$AA$124+$AB$125*BV125/$AA$125+$AB$126*BV126/$AA$126)*BV$130+AB123 -> 0 | BW127: =+($AB$107*BW107/$AA$107+$AB$108*BW108/$AA$108+$AB$109*BW109/$AA$109+$AB$110*BW110/$AA$110+$AB$111*BW111/$AA$111+$AB$112*BW112/$AA$112+$AB$113*BW113/$AA$113+$AB$114*BW114/$AA$114+$AB$115*BW115/$AA$115+$AB$116*BW116/$AA$116+$AB$117*BW117/$AA$117+$AB$118*BW118/$AA$118+$AB$119*BW119/$AA$119+$AB$120*BW120/$AA$120+$AB$121*BW121/$AA$121+$AB$122*BW122/$AA$122+$AB$123*BW123/$AA$123+$AB$124*BW124/$AA$124+$AB$125*BW125/$AA$125+$AB$126*BW126/$AA$126)*BW$130+AB124 -> 0 | BX127: =+($AB$107*BX107/$AA$107+$AB$108*BX108/$AA$108+$AB$109*BX109/$AA$109+$AB$110*BX110/$AA$110+$AB$111*BX111/$AA$111+$AB$112*BX112/$AA$112+$AB$113*BX113/$AA$113+$AB$114*BX114/$AA$114+$AB$115*BX115/$AA$115+$AB$116*BX116/$AA$116+$AB$117*BX117/$AA$117+$AB$118*BX118/$AA$118+$AB$119*BX119/$AA$119+$AB$120*BX120/$AA$120+$AB$121*BX121/$AA$121+$AB$122*BX122/$AA$122+$AB$123*BX123/$AA$123+$AB$124*BX124/$AA$124+$AB$125*BX125/$AA$125+$AB$126*BX126/$AA$126)*BX$130+AB125 -> 0 | BY127: =+($AB$107*BY107/$AA$107+$AB$108*BY108/$AA$108+$AB$109*BY109/$AA$109+$AB$110*BY110/$AA$110+$AB$111*BY111/$AA$111+$AB$112*BY112/$AA$112+$AB$113*BY113/$AA$113+$AB$114*BY114/$AA$114+$AB$115*BY115/$AA$115+$AB$116*BY116/$AA$116+$AB$117*BY117/$AA$117+$AB$118*BY118/$AA$118+$AB$119*BY119/$AA$119+$AB$120*BY120/$AA$120+$AB$121*BY121/$AA$121+$AB$122*BY122/$AA$122+$AB$123*BY123/$AA$123+$AB$124*BY124/$AA$124+$AB$125*BY125/$AA$125+$AB$126*BY126/$AA$126)*BY$130+AB126 -> 0 | CI127: %I12th | CJ127: 0.04422269851 | CK127: 0.03935666788 | CL127: 0.03058673053 | CM127: 0.01234681627 | CN127: 0.007692121198 | CO127: 0.004733902477 | CP127: 0.009399446138 | CQ127: 0.00190607253 | CR127: 0.009094566587 | CS127: 0.01161253109 | CT127: 0.0007628402418 | CU127: 0.0309124505 | CV127: 0.02025893218 | CW127: 0.02481857538 | CX127: 0.02227679637 | CY127: 0.02227679637 | CZ127: 0.02227679637 | DA127: 0.02227679637 | DB127: 12 | EV127: 0
AC128: Af67 | AE128: %Zf= | AF128: =+AF67+0.001 -> 5.001 | AG128: =+AG67+0.001 -> 0.001 | AH128: 0.001 | AI128: 0.001 | AJ128: 0.001 | AK128: 0.001 | AL128: 0.001 | AM128: 0.001 | AN128: 0.001 | AO128: 0.001 | AP128: 0.001 | AQ128: 0.001 | AR128: 0.001 | AS128: 0.001 | AT128: 0.001 | AU128: 0.001 | AV128: 0.001 | AW128: 0.001 | AX128: 0.001 | AY128: 0.001 | AZ128: 0.001 | BA128: 0.001 | BB128: 0.001 | BC128: 0.001 | BD128: 0.001 | CI128: %I13th | CJ128: 0.03820020151 | CK128: 0.002902663836 | CL128: 0.0141079554 | CM128: 0.006948123 | CN128: 0.0308771347 | CO128: 0.05426944154 | CP128: 0.02494539262 | CQ128: 0.01992061191 | CR128: 0.01797050906 | CS128: 0.01518445226 | CT128: 0.004793763905 | CU128: 0.008868253399 | CV128: 0.02429174639 | CW128: 0.01185283795 | CX128: 0.0333084894 | CY128: 0.0333084894 | CZ128: 0.0333084894 | DA128: 0.0333084894 | DB128: 13 | DC128: 0.07 | DD128: 0.01 | DE128: 0.01 | DF128: 0.01 | DG128: 0 | DH128: 0 | DI128: 0 | DJ128: 0.01 | DK128: 0 | DL128: 0 | DM128: 0.01 | DN128: 0.01 | DO128: 0 | DP128: 0.02 | DQ128: 0.06 | DR128: 0.5 | DS128: 0.5 | DT128: 0.5 | EV128: 0
AE129: %Zloop= | AF129: =+AF127+AF128 -> 5.003324294 | AG129: =+AG127+AG128 -> 0.001 | AH129: 0.001 | AI129: 0.001 | AJ129: 0.001 | AK129: 0.001 | AL129: 0.001 | AM129: 0.001 | AN129: 0.001 | AO129: 0.001 | AP129: 0.001 | AQ129: 0.001 | AR129: 0.001 | AS129: 0.001 | AT129: 0.001 | AU129: 0.001 | AV129: 0.001 | AW129: 0.001 | AX129: 0.001 | AY129: 0.001 | AZ129: 0.001 | BA129: 0.001 | BB129: 0.001 | BC129: 0.001 | BD129: 0.001 | BE129: 0 | BF129: 0.0002278939024 | BG129: 0.002324294012 | BH129: 0 | BI129: 0 | BJ129: 0 | BK129: 0 | BL129: 0 | BM129: 0 | BN129: 0 | BO129: 0 | BP129: 0 | BQ129: 0 | BR129: 0 | BS129: 0 | BT129: 0 | BU129: 0 | BV129: 0 | BW129: 0 | BX129: 0 | BY129: 0 | CI129: %I14th | CJ129: 0.03126149561 | CK129: 0.01160650879 | CL129: 0.02742905017 | CM129: 0.008102391832 | CN129: 0.00243452189 | CO129: 0.002891725654 | CP129: 0.001969703897 | CQ129: 0.004906023107 | CR129: 0.005130365298 | CS129: 0.002136271619 | CT129: 0.005450546501 | CU129: 0.009031166268 | CV129: 0.009186248903 | CW129: 0.0180491211 | CX129: 0.02324685728 | CY129: 0.02324685728 | CZ129: 0.02324685728 | DA129: 0.02324685728 | DB129: 14 | DC129: 0.01 | DD129: 0.01 | DE129: 0.01 | DF129: 0.01 | DG129: 0 | DH129: 0.01 | DI129: 0.01 | DJ129: 0 | DK129: 0 | DL129: 0.01 | DM129: 0 | DN129: 0.01 | DO129: 0.02 | DP129: 0.02 | DQ129: 0.01 | DR129: 0 | DS129: 0 | DT129: 0 | EV129: 0
AE130: HPdrv | AF130: =+AF55+0.001 -> 1.001 | AG130: =+AG55+0.001 -> 0.001 | AH130: 0.001 | AI130: 0.001 | AJ130: 0.001 | AK130: 0.001 | AL130: 0.001 | AM130: 0.001 | AN130: 0.001 | AO130: 0.001 | AP130: 0.001 | AQ130: 0.001 | AR130: 0.001 | AS130: 0.001 | AT130: 0.001 | AU130: 0.001 | AV130: 0.001 | AW130: 0.001 | AX130: 0.001 | AY130: 0.001 | AZ130: 0.001 | BA130: 0.001 | BB130: 0.001 | BC130: 0.001 | BD130: 0.001 | BE130: =+AA107 -> 1.002 | BF130: =+AA107 -> 1.002 | BG130: =+AA108 -> 1.001 | BH130: =+AA109 -> 0.001 | BI130: =+AA110 -> 0.001 | BJ130: =+AA111 -> 0.001 | BK130: =+AA112 -> 0.001 | BL130: =+AA113 -> 0.001 | BM130: =+AA114 -> 0.001 | BN130: =+AA115 -> 0.001 | BO130: =+AA116 -> 0.001 | BP130: =+AA117 -> 0.001 | BQ130: =+AA118 -> 0.001 | BR130: =+AA119 -> 0.001 | BS130: =+AA120 -> 0.001 | BT130: =+AA121 -> 0.001 | BU130: =+AA122 -> 0.001 | BV130: =+AA123 -> 0.001 | BW130: =+AA124 -> 0.001 | BX130: =+AA125 -> 0.001 | BY130: =+AA126 -> 0.001 | CI130: %I15th | CJ130: 0.1776476235 | CK130: 0.4478042957 | CL130: 0.3033750363 | CM130: 0.3674579914 | CN130: 0.5915709307 | CO130: 0.6729305342 | CP130: 0.5024135463 | CQ130: 0.3899628135 | CR130: 0.3093435701 | CS130: 0.2543457707 | CT130: 0.1886259338 | CU130: 0.1603294648 | CV130: 0.1491479628 | CW130: 0.121935569 | CX130: 0.1027991317 | CY130: 0.1027991317 | CZ130: 0.1027991317 | DA130: 0.1027991317 | DB130: 15 | EV130: 0
AC131: not8 or 9= | AF131: =+IF(AF54=8,0,IF(AF54=9,0,1)) -> 1 | AG131: 1 | AH131: 1 | AI131: 1 | AJ131: 1 | AK131: 1 | AL131: 1 | AM131: 1 | AN131: 1 | AO131: 1 | AP131: 1 | AQ131: 1 | AR131: 1 | AS131: 1 | AT131: 1 | AU131: 1 | AV131: 1 | AW131: 1 | AX131: 1 | AY131: 1 | AZ131: 1 | BA131: 1 | BB131: 1 | BC131: 1 | BD131: 1 | BE131: 0 | BF131: 1 | BG131: 1 | BH131: 1 | BI131: 1 | BJ131: 1 | BK131: 1 | BL131: 1 | BM131: 1 | BN131: 1 | BO131: 1 | BP131: 1 | BQ131: 1 | BR131: 1 | BS131: 1 | BT131: 1 | BU131: 1 | BV131: 1 | BW131: 1 | BX131: 1 | BY131: 1 | CI131: %I16th | CJ131: 0.05356440848 | CK131: 0.007531189426 | CL131: 0.02703395816 | CM131: 0.0009295526414 | CN131: 0.01040649721 | CO131: 0.01133355593 | CP131: 0.001482651127 | CQ131: 0.009981305929 | CR131: 0.01148442082 | CS131: 0.008299693771 | CT131: 0.01252734165 | CU131: 0.02559238936 | CV131: 0.02466209824 | CW131: 0.01576036931 | CX131: 0.0533360305 | CY131: 0.0533360305 | CZ131: 0.0533360305 | DA131: 0.0533360305 | DB131: 16 | DC131: 0.01 | DD131: 0.01 | DE131: 0.01 | DF131: 0.01 | DG131: 0.01 | DH131: 0.02 | DI131: 0.01 | DJ131: 0.02 | DK131: 0.02 | DL131: 0.03 | DM131: 0.04 | DN131: 0.04 | DO131: 0.06 | DP131: 0.07 | DQ131: 0.09 | DR131: 0 | DS131: 0 | EV131: 0
AD132: not 8= | AF132: =+IF(AF$54=8,0,1) -> 1 | AG132: 1 | AH132: 1 | AI132: 1 | AJ132: 1 | AK132: 1 | AL132: 1 | AM132: 1 | AN132: 1 | AO132: 1 | AP132: 1 | AQ132: 1 | AR132: 1 | AS132: 1 | AT132: 1 | AU132: 1 | AV132: 1 | AW132: 1 | AX132: 1 | AY132: 1 | AZ132: 1 | BA132: 1 | BB132: 1 | BC132: 1 | BD132: 1 | BE132: 1 | BF132: 1 | BG132: 1 | BH132: =+IF(BH$53=8,0,1) -> 1 | BI132: 1 | BJ132: 1 | BK132: 1 | BL132: 1 | BM132: 1 | BN132: 1 | BO132: 1 | BP132: 1 | BQ132: 1 | BR132: 1 | BS132: 1 | BT132: 1 | BU132: 1 | BV132: 1 | BW132: 1 | BX132: 1 | BY132: 1 | CI132: %I17th | CJ132: 19.46577062 | CK132: 8.479962752 | CL132: 5.674302238 | CM132: 4.12852261 | CN132: 4.123465577 | CO132: 3.590443024 | CP132: 3.11256899 | CQ132: 2.899671445 | CR132: 2.696733287 | CS132: 2.51914232 | CT132: 2.236674426 | CU132: 2.060381989 | CV132: 1.896455447 | CW132: 1.651858016 | CX132: 1.479024541 | CY132: 1.479024541 | CZ132: 1.479024541 | DA132: 1.479024541 | DB132: 17 | DC132: 11.6 | DD132: 7.75 | DE132: 4.84 | DF132: 3.42 | DG132: 2.8 | DH132: 2.37 | DI132: 2.24 | DJ132: 2.13 | DK132: 2.04 | DL132: 1.86 | DM132: 1.7 | DN132: 1.51 | DO132: 1.4 | DP132: 1.33 | DQ132: 1.2 | DR132: 0.2 | DS132: 0.2 | EV132: =X132 -> 0
AD133: DrvUsedFactor= | AF133: =+$G$9/10000*IF($H22=0,100,$H22) -> 1 | AG133: =+$G$9/10000*IF($H23=0,100,$H23) -> 1 | AH133: =+$G$9/10000*IF($H24=0,100,$H24) -> 1 | AI133: =+$G$9/10000*IF($H25=0,100,$H25) -> 1 | AJ133: =+$G$9/10000*IF($H26=0,100,$H26) -> 1 | AK133: =+$G$9/10000*IF($H27=0,100,$H27) -> 1 | AL133: =+$G$9/10000*IF($H28=0,100,$H28) -> 1 | AM133: =+$G$9/10000*IF($H29=0,100,$H29) -> 1 | AN133: =+$G$9/10000*IF($H30=0,100,$H30) -> 1 | AO133: =+$G$9/10000*IF($H31=0,100,$H31) -> 1 | AP133: =+$G$9/10000*IF($H32=0,100,$H32) -> 1 | AQ133: =+$G$9/10000*IF($H33=0,100,$H33) -> 1 | AR133: =+$G$9/10000*IF($H34=0,100,$H34) -> 1 | AS133: =+$G$9/10000*IF($H35=0,100,$H35) -> 1 | AT133: =+$G$9/10000*IF($H36=0,100,$H36) -> 1 | AU133: =+$G$9/10000*IF($H37=0,100,$H37) -> 1 | AV133: =+$G$9/10000*IF($H38=0,100,$H38) -> 1 | AW133: =+$G$9/10000*IF($H39=0,100,$H39) -> 1 | AX133: =+$G$9/10000*IF($H40=0,100,$H40) -> 1 | AY133: =+$G$9/10000*IF($H41=0,100,$H41) -> 1 | AZ133: =+$G$9/10000*IF($H42=0,100,$H42) -> 1 | BA133: =+$G$9/10000*IF($H43=0,100,$H43) -> 1 | BB133: =+$G$9/10000*IF($H44=0,100,$H44) -> 1 | BC133: =+$G$9/10000*IF($H45=0,100,$H45) -> 1 | BD133: =+$G$9/10000*IF($H46=0,100,$H46) -> 1 | BE133: 1 | BF133: 1 | BG133: 1 | BH133: 1 | BI133: 1 | BJ133: 1 | BK133: 1 | BL133: 1 | BM133: 1 | BN133: 1 | BO133: 1 | BP133: 1 | BQ133: 1 | BR133: 1 | BS133: 1 | BT133: 1 | BU133: 1 | BV133: 1 | BW133: 1 | BX133: 1 | BY133: 1 | CI133: %I18th | CJ133: 0.0733181483 | CK133: 0.003683509578 | CL133: 0.0121880174 | CM133: 0.0002496985018 | CN133: 0.01102929425 | CO133: 0.002314450494 | CP133: 0.009491642061 | CQ133: 0.009412427104 | CR133: 0.004019584562 | CS133: 0.007149485534 | CT133: 0.01228958998 | CU133: 0.04262660608 | CV133: 0.03066133772 | CW133: 0.01805378189 | CX133: 0.05728218844 | CY133: 0.05728218844 | CZ133: 0.05728218844 | DA133: 0.05728218844 | DB133: 18 | DR133: 0.1 | DS133: 0.1 | EV133: 0
B134: HpCalculator | C134: 0 | D134: utility | E134: T1 | F134: T2 | G134: T3 | H134: T4 | I134: T5 | J134: T6 | K134: T7 | L134: T8 | M134: T9 | N134: B1 | O134: B2 | P134: B3 | Q134: B4 | R134: B5 | S134: B6 | T134: B7 | U134: B8 | V134: B9 | W134: B10 | Y134: Hpudv&mtr | Z134: HpCalculator | AA134: FedFrom | AB134: Hpused | AC134: Hpdrvused | AD134: HPdrv | AE134: Hpall | AF134: D1 | AG134: D2 | AH134: D3 | AI134: D4 | AJ134: D5 | AK134: D6 | AL134: D7 | AM134: D8 | AN134: D9 | AO134: D10 | AP134: D11 | AQ134: D12 | AR134: D13 | AS134: D14 | AT134: D15 | AU134: D16 | AV134: D17 | AW134: D18 | AX134: D19 | AY134: D20 | AZ134: D21 | BA134: D22 | BB134: D23 | BC134: D24 | BD134: D25 | BF134: utility | BG134: T1 | BH134: T2 | BI134: T3 | BJ134: T4 | BK134: T5 | BL134: T6 | BM134: T7 | BN134: T8 | BO134: T9 | BP134: B1 | BQ134: B2 | BR134: B3 | BS134: B4 | BT134: B5 | BU134: B6 | BV134: B7 | BW134: B8 | BX134: B9 | BY134: B10 | CI134: %I19th | CJ134: 12.5840393 | CK134: 6.623760401 | CL134: 3.496206414 | CM134: 2.376181634 | CN134: 1.735906705 | CO134: 1.478741866 | CP134: 1.741365403 | CQ134: 1.629423257 | CR134: 1.559065603 | CS134: 1.49962744 | CT134: 1.403574136 | CU134: 1.323639969 | CV134: 1.249950543 | CW134: 1.100265991 | CX134: 1.02611725 | CY134: 1.02611725 | CZ134: 1.02611725 | DA134: 1.02611725 | DB134: 19 | DC134: 9.36 | DD134: 3.78 | DE134: 2.4 | DF134: 2 | DG134: 1.8 | DH134: 1.62 | DI134: 1.58 | DJ134: 1.56 | DK134: 1.52 | DL134: 1.42 | DM134: 1.31 | DN134: 1.2 | DO134: 1.1 | DP134: 1.04 | DQ134: 0.97 | DR134: 0.2 | DS134: 0.2 | EV134: 0
B135: utility | D135: =+IF(BN$53=$Z135,D$127,0) -> 0 | E135: =+IF(BO$53=$Z135,E$155,0) -> 1 | F135: =+IF(BP$53=$Z135,F$155,0) -> 0 | G135: =+IF(BQ$53=$Z135,G$155,0) -> 0 | H135: =+IF(BR$53=$Z135,H$155,0) -> 0 | I135: =+IF(BS$53=$Z135,I$155,0) -> 0 | J135: =+IF(BT$53=$Z135,J$155,0) -> 0 | K135: =+IF(BU$53=$Z135,K$155,0) -> 0 | L135: =+IF(BV$53=$Z135,L$155,0) -> 0 | M135: =+IF(BW$53=$Z135,M$155,0) -> 0 | N135: =+IF(BX$53=$Z135,N$155,0) -> 0 | O135: =+IF(BY$53=$Z135,O$155,0) -> 0 | P135: =+IF(BZ$53=$Z135,P$155,0) -> 0 | Q135: =+IF(CA$53=$Z135,Q$155,0) -> 0 | R135: =+IF(CB$53=$Z135,R$155,0) -> 0 | S135: =+IF(CC$53=$Z135,S$155,0) -> 0 | T135: =+IF(CD$53=$Z135,T$155,0) -> 0 | U135: =+IF(CE$53=$Z135,U$155,0) -> 0 | V135: =+IF(CF$53=$Z135,V$155,0) -> 0 | W135: =+IF(CG$53=$Z135,W$155,0) -> 0 | Y135: =SUMPRODUCT($AF$132:$BD$132,$AF$133:$BD$133,$AF135:$BD135)+SUM(D135:W135) -> 1 | Z135: utility | AA135: 0 | AB135: =SUMPRODUCT($AF$133:$BD$133,$AF135:$BD135)+SUM(D135:W135) -> 1 | AC135: =SUMPRODUCT($AF$131:$BD$131,$AF$133:$BD$133,$AF135:$BD135)+SUM(D107:W107)+0.001 -> 1.002 | AD135: =SUMPRODUCT($AF$131:$BD$131,$AF135:$BD135)+SUM(D160:W160) -> 1 | AE135: =+SUM(AF135:BY135)+0.001 -> 1.002 | AF135: =+IF(AF$53=$Z135,AF$55,0) -> 0 | AG135: 0 | AH135: 0 | AI135: 0 | AJ135: 0 | AK135: 0 | AL135: 0 | AM135: 0 | AN135: 0 | AO135: 0 | AP135: =+IF(AP$53=$Z135,AP$55,0) -> 0 | AQ135: 0 | AR135: 0 | AS135: 0 | AT135: 0 | AU135: 0 | AV135: 0 | AW135: 0 | AX135: 0 | AY135: 0 | AZ135: 0 | BA135: 0 | BB135: 0 | BC135: 0 | BD135: 0 | BF135: =+IF(BN$53=$Z135,BN$55,0) -> 0 | BG135: =+IF(BO$53=$Z135,BO$55,0) -> 1.001 | BH135: =+IF(BP$53=$Z135,BP$55,0) -> 0 | BI135: =+IF(BQ$53=$Z135,BQ$55,0) -> 0 | BJ135: =+IF(BR$53=$Z135,BR$55,0) -> 0 | BK135: =+IF(BS$53=$Z135,BS$55,0) -> 0 | BL135: =+IF(BT$53=$Z135,BT$55,0) -> 0 | BM135: =+IF(BU$53=$Z135,BU$55,0) -> 0 | BN135: =+IF(BV$53=$Z135,BV$55,0) -> 0 | BO135: =+IF(BW$53=$Z135,BW$55,0) -> 0 | BP135: =+IF(BX$53=$Z135,BX$55,0) -> 0 | BQ135: =+IF(BY$53=$Z135,BY$55,0) -> 0 | BR135: =+IF(BZ$53=$Z135,BZ$55,0) -> 0 | BS135: =+IF(CA$53=$Z135,CA$55,0) -> 0 | BT135: =+IF(CB$53=$Z135,CB$55,0) -> 0 | BU135: =+IF(CC$53=$Z135,CC$55,0) -> 0 | BV135: =+IF(CD$53=$Z135,CD$55,0) -> 0 | BW135: =+IF(CE$53=$Z135,CE$55,0) -> 0 | BX135: =+IF(CF$53=$Z135,CF$55,0) -> 0 | BY135: =+IF(CG$53=$Z135,CG$55,0) -> 0 | CI135: %I20th | CJ135: 0.04119952058 | CK135: 0.006800822728 | CL135: 0.02279041236 | CM135: 0.001902343624 | CN135: 0.006392084819 | CO135: 0.01132469041 | CP135: 0.003230558382 | CQ135: 0.006424114292 | CR135: 0.0135491645 | CS135: 0.009549736714 | CT135: 0.01351992352 | CU135: 0.02004987984 | CV135: 0.01123819478 | CW135: 0.00726265116 | CX135: 0.02127856606 | CY135: 0.02127856606 | CZ135: 0.02127856606 | DA135: 0.02127856606 | DB135: 20 | DC135: 0 | DD135: 0.01 | DE135: 0 | DF135: 0.01 | DG135: 0 | DH135: 0.01 | DI135: 0 | DJ135: 0 | DK135: 0 | DL135: 0.01 | DM135: 0.02 | DN135: 0.03 | DO135: 0.03 | DP135: 0.05 | DQ135: 0.07 | DR135: 0 | DS135: 0 | EV135: 0
B136: T1 | D136: =+IF(BN$53=$Z136,D$155,0) -> 0 | E136: 0 | F136: 0 | G136: 0 | H136: 0 | I136: 0 | J136: 0 | K136: 0 | L136: 0 | M136: 0 | N136: 0 | O136: 0 | P136: 0 | Q136: 0 | R136: 0 | S136: 0 | T136: 0 | U136: 0 | V136: 0 | W136: 0 | Y136: =SUMPRODUCT($AF$132:$BD$132,$AF$133:$BD$133,$AF136:$BD136)+SUM(D136:W136) -> 1 | Z136: T1 | AA136: =+C12 -> Utility | AB136: 1 | AC136: =SUMPRODUCT($AF$131:$BD$131,$AF$133:$BD$133,$AF136:$BD136)+SUM(D108:W108)+0.001 -> 1.001 | AD136: 1 | AE136: =+SUM(AF136:BY136)+0.001 -> 1.001 | AF136: 1 | AG136: 0 | AH136: 0 | AI136: 0 | AJ136: 0 | AK136: 0 | AL136: 0 | AM136: 0 | AN136: 0 | AO136: 0 | AP136: 0 | AQ136: 0 | AR136: 0 | AS136: 0 | AT136: 0 | AU136: 0 | AV136: 0 | AW136: 0 | AX136: 0 | AY136: 0 | AZ136: 0 | BA136: 0 | BB136: 0 | BC136: 0 | BD136: 0 | BF136: 0 | BG136: 0 | BH136: 0 | BI136: 0 | BJ136: 0 | BK136: 0 | BL136: 0 | BM136: 0 | BN136: 0 | BO136: 0 | BP136: 0 | BQ136: 0 | BR136: 0 | BS136: 0 | BT136: 0 | BU136: 0 | BV136: 0 | BW136: 0 | BX136: 0 | BY136: 0 | CI136: %I21th | CJ136: 0.3423370759 | CK136: 0.2221702945 | CL136: 0.2902492094 | CM136: 0.2379688103 | CN136: 0.3340161305 | CO136: 0.3642094186 | CP136: 0.2983162766 | CQ136: 0.2266351125 | CR136: 0.1832855545 | CS136: 0.1561269398 | CT136: 0.1202135876 | CU136: 0.1038767517 | CV136: 0.08784662362 | CW136: 0.09653657313 | CX136: 0.06913226894 | CY136: 0.06913226894 | CZ136: 0.06913226894 | DA136: 0.06913226894 | DB136: 21 | DR136: 0.1 | DS136: 0.1 | EV136: 0
B137: T2 | D137: 0 | E137: 0 | F137: 0 | G137: 0 | H137: 0 | I137: 0 | J137: 0 | K137: 0 | L137: 0 | M137: 0 | N137: 0 | O137: 0 | P137: 0 | Q137: 0 | R137: 0 | S137: 0 | T137: 0 | U137: 0 | V137: 0 | W137: 0 | Y137: 0 | Z137: T2 | AA137: 0 | AB137: 0 | AC137: 0.001 | AD137: 0 | AE137: 0.001 | AF137: 0 | AG137: 0 | AH137: 0 | AI137: 0 | AJ137: 0 | AK137: 0 | AL137: 0 | AM137: 0 | AN137: 0 | AO137: 0 | AP137: 0 | AQ137: 0 | AR137: 0 | AS137: 0 | AT137: 0 | AU137: 0 | AV137: 0 | AW137: 0 | AX137: 0 | AY137: 0 | AZ137: 0 | BA137: 0 | BB137: 0 | BC137: 0 | BD137: 0 | BF137: 0 | BG137: 0 | BH137: 0 | BI137: 0 | BJ137: 0 | BK137: 0 | BL137: 0 | BM137: 0 | BN137: 0 | BO137: 0 | BP137: 0 | BQ137: 0 | BR137: 0 | BS137: 0 | BT137: 0 | BU137: 0 | BV137: 0 | BW137: 0 | BX137: 0 | BY137: 0 | CI137: %I22th | CJ137: 0.0112960468 | CK137: 0.01259755233 | CL137: 0.008640671569 | CM137: 0.007935788019 | CN137: 0.00279932954 | CO137: 0.004471501027 | CP137: 0.005347882893 | CQ137: 0.0001388197198 | CR137: 0.002896620403 | CS137: 0.002625887334 | CT137: 0.003916194368 | CU137: 0.006631379244 | CV137: 0.01039317821 | CW137: 0.009248160955 | CX137: 0.008422723194 | CY137: 0.008422723194 | CZ137: 0.008422723194 | DA137: 0.008422723194 | DB137: 22 | DC137: 0 | DD137: 0.01 | DE137: 0 | DF137: 0.01 | DG137: 0 | DH137: 0.01 | DI137: 0 | DJ137: 0 | DK137: 0 | DL137: 0 | DM137: 0 | DN137: 0 | DO137: 0 | DP137: 0.02 | DQ137: 0.01 | DR137: 0 | DS137: 0 | EV137: 0
B138: T3 | D138: 0 | E138: 0 | F138: 0 | G138: 0 | H138: 0 | I138: 0 | J138: 0 | K138: 0 | L138: 0 | M138: 0 | N138: 0 | O138: 0 | P138: 0 | Q138: 0 | R138: 0 | S138: 0 | T138: 0 | U138: 0 | V138: 0 | W138: 0 | Y138: 0 | Z138: T3 | AA138: 0 | AB138: 0 | AC138: 0.001 | AD138: 0 | AE138: 0.001 | AF138: 0 | AG138: 0 | AH138: 0 | AI138: 0 | AJ138: 0 | AK138: 0 | AL138: 0 | AM138: 0 | AN138: 0 | AO138: 0 | AP138: 0 | AQ138: 0 | AR138: 0 | AS138: 0 | AT138: 0 | AU138: 0 | AV138: 0 | AW138: 0 | AX138: 0 | AY138: 0 | AZ138: 0 | BA138: 0 | BB138: 0 | BC138: 0 | BD138: 0 | BF138: 0 | BG138: 0 | BH138: 0 | BI138: 0 | BJ138: 0 | BK138: 0 | BL138: 0 | BM138: 0 | BN138: 0 | BO138: 0 | BP138: 0 | BQ138: 0 | BR138: 0 | BS138: 0 | BT138: 0 | BU138: 0 | BV138: 0 | BW138: 0 | BX138: 0 | BY138: 0 | CI138: %I23th | CJ138: 0.01352870456 | CK138: 0.01442871934 | CL138: 0.02277202432 | CM138: 0.01209730367 | CN138: 0.02859982354 | CO138: 0.04656376918 | CP138: 0.03146951083 | CQ138: 0.02225547785 | CR138: 0.01689605558 | CS138: 0.01163431267 | CT138: 0.009123091136 | CU138: 0.01374221107 | CV138: 0.01177637708 | CW138: 0.004655348888 | CX138: 0.009924505715 | CY138: 0.009924505715 | CZ138: 0.009924505715 | DA138: 0.009924505715 | DB138: 23 | DC138: 0 | DD138: 0.01 | DE138: 0 | DF138: 0.01 | DG138: 0 | DH138: 0 | DI138: 0 | DJ138: 0 | DK138: 0 | DL138: 0 | DM138: 0 | DN138: 0 | DO138: 0 | DP138: 0.01 | DQ138: 0.03 | DR138: 0.1 | DS138: 0.1 | EV138: 0
B139: T4 | D139: 0 | E139: 0 | F139: 0 | G139: 0 | H139: 0 | I139: 0 | J139: 0 | K139: 0 | L139: 0 | M139: 0 | N139: 0 | O139: 0 | P139: 0 | Q139: 0 | R139: 0 | S139: 0 | T139: 0 | U139: 0 | V139: 0 | W139: 0 | Y139: 0 | Z139: T4 | AA139: 0 | AB139: 0 | AC139: 0.001 | AD139: 0 | AE139: 0.001 | AF139: 0 | AG139: 0 | AH139: 0 | AI139: 0 | AJ139: 0 | AK139: 0 | AL139: 0 | AM139: 0 | AN139: 0 | AO139: 0 | AP139: 0 | AQ139: 0 | AR139: 0 | AS139: 0 | AT139: 0 | AU139: 0 | AV139: 0 | AW139: 0 | AX139: 0 | AY139: 0 | AZ139: 0 | BA139: 0 | BB139: 0 | BC139: 0 | BD139: 0 | BF139: 0 | BG139: 0 | BH139: 0 | BI139: 0 | BJ139: 0 | BK139: 0 | BL139: 0 | BM139: 0 | BN139: 0 | BO139: 0 | BP139: 0 | BQ139: 0 | BR139: 0 | BS139: 0 | BT139: 0 | BU139: 0 | BV139: 0 | BW139: 0 | BX139: 0 | BY139: 0 | CI139: %I24th | CJ139: 0.01236399226 | CK139: 0.01886291936 | CL139: 0.02039498207 | CM139: 0.009324584741 | CN139: 0.01197021185 | CO139: 0.002392533407 | CP139: 0.003533095341 | CQ139: 0.001495882799 | CR139: 0.001347120132 | CS139: 0.004747652058 | CT139: 0.01219181256 | CU139: 0.003263833005 | CV139: 0.006805822723 | CW139: 0.01022491572 | CX139: 0.005770408593 | CY139: 0.005770408593 | CZ139: 0.005770408593 | DA139: 0.005770408593 | DB139: 24 | DR139: 0.1 | DS139: 0.1 | EV139: 0
B140: T5 | D140: 0 | E140: 0 | F140: 0 | G140: 0 | H140: 0 | I140: 0 | J140: 0 | K140: 0 | L140: 0 | M140: 0 | N140: 0 | O140: 0 | P140: 0 | Q140: 0 | R140: 0 | S140: 0 | T140: 0 | U140: 0 | V140: 0 | W140: 0 | Y140: 0 | Z140: T5 | AA140: 0 | AB140: 0 | AC140: 0.001 | AD140: 0 | AE140: 0.001 | AF140: 0 | AG140: 0 | AH140: 0 | AI140: 0 | AJ140: 0 | AK140: 0 | AL140: 0 | AM140: 0 | AN140: 0 | AO140: 0 | AP140: 0 | AQ140: 0 | AR140: 0 | AS140: 0 | AT140: 0 | AU140: 0 | AV140: 0 | AW140: 0 | AX140: 0 | AY140: 0 | AZ140: 0 | BA140: 0 | BB140: 0 | BC140: 0 | BD140: 0 | BF140: 0 | BG140: 0 | BH140: 0 | BI140: 0 | BJ140: 0 | BK140: 0 | BL140: 0 | BM140: 0 | BN140: 0 | BO140: 0 | BP140: 0 | BQ140: 0 | BR140: 0 | BS140: 0 | BT140: 0 | BU140: 0 | BV140: 0 | BW140: 0 | BX140: 0 | BY140: 0 | CI140: %I25th | CJ140: 0.02313035536 | CK140: 0.006863281799 | CL140: 0.01493140614 | CM140: 0.003167142856 | CN140: 0.004919205482 | CO140: 0.00272723109 | CP140: 0.001164495095 | CQ140: 0.0009115397249 | CR140: 0.001625091099 | CS140: 0.001159515653 | CT140: 0.002879940548 | CU140: 0.01588590862 | CV140: 0.009479607278 | CW140: 0.009653183072 | CX140: 0.01484954158 | CY140: 0.01484954158 | CZ140: 0.01484954158 | DA140: 0.01484954158 | DB140: 25 | DC140: 0.01 | DD140: 0 | DE140: 0 | DF140: 0.01 | DG140: 0 | DH140: 0.01 | DI140: 0 | DJ140: 0 | DK140: 0.01 | DL140: 0 | DM140: 0.01 | DN140: 0 | DO140: 0.01 | DP140: 0.01 | DQ140: 0.03 | DR140: 0.1 | DS140: 0.1 | EV140: 0
B141: T6 | D141: 0 | E141: 0 | F141: 0 | G141: 0 | H141: 0 | I141: 0 | J141: 0 | K141: 0 | L141: 0 | M141: 0 | N141: 0 | O141: 0 | P141: 0 | Q141: 0 | R141: 0 | S141: 0 | T141: 0 | U141: 0 | V141: 0 | W141: 0 | Y141: 0 | Z141: T6 | AA141: 0 | AB141: 0 | AC141: 0.001 | AD141: 0 | AE141: 0.001 | AF141: 0 | AG141: 0 | AH141: 0 | AI141: 0 | AJ141: 0 | AK141: 0 | AL141: 0 | AM141: 0 | AN141: 0 | AO141: 0 | AP141: 0 | AQ141: 0 | AR141: 0 | AS141: 0 | AT141: 0 | AU141: 0 | AV141: 0 | AW141: 0 | AX141: 0 | AY141: 0 | AZ141: 0 | BA141: 0 | BB141: 0 | BC141: 0 | BD141: 0 | BF141: 0 | BG141: 0 | BH141: 0 | BI141: 0 | BJ141: 0 | BK141: 0 | BL141: 0 | BM141: 0 | BN141: 0 | BO141: 0 | BP141: 0 | BQ141: 0 | BR141: 0 | BS141: 0 | BT141: 0 | BU141: 0 | BV141: 0 | BW141: 0 | BX141: 0 | BY141: 0 | CI141: %I26th | CJ141: 0.03161100259 | CK141: 0.009762611111 | CL141: 0.01064831012 | CM141: 0.004167744924 | CN141: 0.003738610911 | CO141: 0.009011881925 | CP141: 0.003860697217 | CQ141: 0.001392736852 | CR141: 0.004605919229 | CS141: 0.001666291143 | CT141: 0.008501789239 | CU141: 0.00462891861 | CV141: 0.008124960207 | CW141: 0.009513748387 | CX141: 0.006897290482 | CY141: 0.006897290482 | CZ141: 0.006897290482 | DA141: 0.006897290482 | DB141: 26 | EV141: 0
B142: T7 | D142: 0 | E142: 0 | F142: 0 | G142: 0 | H142: 0 | I142: 0 | J142: 0 | K142: 0 | L142: 0 | M142: 0 | N142: 0 | O142: 0 | P142: 0 | Q142: 0 | R142: 0 | S142: 0 | T142: 0 | U142: 0 | V142: 0 | W142: 0 | Y142: 0 | Z142: T7 | AA142: 0 | AB142: 0 | AC142: 0.001 | AD142: 0 | AE142: 0.001 | AF142: 0 | AG142: 0 | AH142: 0 | AI142: 0 | AJ142: 0 | AK142: 0 | AL142: 0 | AM142: 0 | AN142: 0 | AO142: 0 | AP142: 0 | AQ142: 0 | AR142: 0 | AS142: 0 | AT142: 0 | AU142: 0 | AV142: 0 | AW142: 0 | AX142: 0 | AY142: 0 | AZ142: 0 | BA142: 0 | BB142: 0 | BC142: 0 | BD142: 0 | BF142: 0 | BG142: 0 | BH142: 0 | BI142: 0 | BJ142: 0 | BK142: 0 | BL142: 0 | BM142: 0 | BN142: 0 | BO142: 0 | BP142: 0 | BQ142: 0 | BR142: 0 | BS142: 0 | BT142: 0 | BU142: 0 | BV142: 0 | BW142: 0 | BX142: 0 | BY142: 0 | CI142: %I27th | CJ142: 0.04256150867 | CK142: 0.004211054407 | CL142: 0.006916415453 | CM142: 0.0005770424115 | CN142: 0.002592634771 | CO142: 0.003273681093 | CP142: 0.00147914295 | CQ142: 0.001190495029 | CR142: 0.0009015188812 | CS142: 0.003889791145 | CT142: 0.00533751434 | CU142: 0.01334184331 | CV142: 0.005760173218 | CW142: 0.01098848736 | CX142: 0.004721718545 | CY142: 0.004721718545 | CZ142: 0.004721718545 | DA142: 0.004721718545 | DB142: 27 | DR142: 16 | DS142: 16 | EV142: 0
B143: T8 | D143: 0 | E143: 0 | F143: 0 | G143: 0 | H143: 0 | I143: 0 | J143: 0 | K143: 0 | L143: 0 | M143: 0 | N143: 0 | O143: 0 | P143: 0 | Q143: 0 | R143: 0 | S143: 0 | T143: 0 | U143: 0 | V143: 0 | W143: 0 | Y143: 0 | Z143: T8 | AA143: 0 | AB143: 0 | AC143: 0.001 | AD143: 0 | AE143: 0.001 | AF143: 0 | AG143: 0 | AH143: 0 | AI143: 0 | AJ143: 0 | AK143: 0 | AL143: 0 | AM143: 0 | AN143: 0 | AO143: 0 | AP143: 0 | AQ143: 0 | AR143: 0 | AS143: 0 | AT143: 0 | AU143: 0 | AV143: 0 | AW143: 0 | AX143: 0 | AY143: 0 | AZ143: 0 | BA143: 0 | BB143: 0 | BC143: 0 | BD143: 0 | BF143: 0 | BG143: 0 | BH143: 0 | BI143: 0 | BJ143: 0 | BK143: 0 | BL143: 0 | BM143: 0 | BN143: 0 | BO143: 0 | BP143: 0 | BQ143: 0 | BR143: 0 | BS143: 0 | BT143: 0 | BU143: 0 | BV143: 0 | BW143: 0 | BX143: 0 | BY143: 0 | CI143: %I28th | CJ143: 0.01930028001 | CK143: 0.02216264216 | CL143: 0.02254370264 | CM143: 0.002495248655 | CN143: 0.01012165984 | CO143: 0.004253285757 | CP143: 0.003126114595 | CQ143: 0.0006349640775 | CR143: 0.003000561461 | CS143: 0.003458188084 | CT143: 0.004900323391 | CU143: 0.006449319766 | CV143: 0.008587108149 | CW143: 0.01558486055 | CX143: 0.00948796862 | CY143: 0.00948796862 | CZ143: 0.00948796862 | DA143: 0.00948796862 | DB143: 28 | EV143: 0
B144: T9 | D144: 0 | E144: 0 | F144: 0 | G144: 0 | H144: 0 | I144: 0 | J144: 0 | K144: 0 | L144: 0 | M144: 0 | N144: 0 | O144: 0 | P144: 0 | Q144: 0 | R144: 0 | S144: 0 | T144: 0 | U144: 0 | V144: 0 | W144: 0 | Y144: 0 | Z144: T9 | AA144: 0 | AB144: 0 | AC144: 0.001 | AD144: 0 | AE144: 0.001 | AF144: 0 | AG144: 0 | AH144: 0 | AI144: 0 | AJ144: 0 | AK144: 0 | AL144: 0 | AM144: 0 | AN144: 0 | AO144: 0 | AP144: 0 | AQ144: 0 | AR144: 0 | AS144: 0 | AT144: 0 | AU144: 0 | AV144: 0 | AW144: 0 | AX144: 0 | AY144: 0 | AZ144: 0 | BA144: 0 | BB144: 0 | BC144: 0 | BD144: 0 | BF144: 0 | BG144: 0 | BH144: 0 | BI144: 0 | BJ144: 0 | BK144: 0 | BL144: 0 | BM144: 0 | BN144: 0 | BO144: 0 | BP144: 0 | BQ144: 0 | BR144: 0 | BS144: 0 | BT144: 0 | BU144: 0 | BV144: 0 | BW144: 0 | BX144: 0 | BY144: 0 | CI144: %I29th | CJ144: 0.05109959736 | CK144: 0.01137322626 | CL144: 0.01597816473 | CM144: 0.001178189966 | CN144: 0.006865733273 | CO144: 0.0108561851 | CP144: 0.004147312918 | CQ144: 0.0001462327868 | CR144: 0.001765617304 | CS144: 0.001411487196 | CT144: 0.003288893508 | CU144: 0.003480237712 | CV144: 0.005251132923 | CW144: 0.006022433009 | CX144: 0.006704867611 | CY144: 0.006704867611 | CZ144: 0.006704867611 | DA144: 0.006704867611 | DB144: 29 | DC144: 0.01 | DD144: 0 | DE144: 0 | DF144: 0.01 | DG144: 0 | DH144: 0.01 | DI144: 0 | DJ144: 0.01 | DK144: 0.01 | DL144: 0 | DM144: 0.01 | DN144: 0.01 | DO144: 0.01 | DP144: 0.01 | DQ144: 0.03 | DR144: 0.1 | DS144: 0.1 | EV144: 0
B145: B1 | D145: 0 | E145: 0 | F145: 0 | G145: 0 | H145: 0 | I145: 0 | J145: 0 | K145: 0 | L145: 0 | M145: 0 | N145: 0 | O145: 0 | P145: 0 | Q145: 0 | R145: 0 | S145: 0 | T145: 0 | U145: 0 | V145: 0 | W145: 0 | Y145: 0 | Z145: B1 | AA145: =+J11 -> 0 | AB145: 0 | AC145: 0.001 | AD145: 0 | AE145: 0.001 | AF145: =+IF(AF$53=$Z145,AF$55,0) -> 0 | AG145: 0 | AH145: 0 | AI145: 0 | AJ145: 0 | AK145: 0 | AL145: 0 | AM145: 0 | AN145: 0 | AO145: 0 | AP145: =+IF(AP$53=$Z145,AP$55,0) -> 0 | AQ145: 0 | AR145: 0 | AS145: 0 | AT145: 0 | AU145: 0 | AV145: 0 | AW145: 0 | AX145: 0 | AY145: 0 | AZ145: 0 | BA145: 0 | BB145: 0 | BC145: 0 | BD145: 0 | BF145: 0 | BG145: 0 | BH145: 0 | BI145: 0 | BJ145: 0 | BK145: 0 | BL145: 0 | BM145: 0 | BN145: 0 | BO145: 0 | BP145: 0 | BQ145: 0 | BR145: 0 | BS145: 0 | BT145: 0 | BU145: 0 | BV145: 0 | BW145: 0 | BX145: 0 | BY145: 0 | CI145: %I30th | CJ145: 0.01844532372 | CK145: 0.02449270267 | CL145: 0.0146831482 | CM145: 0.01044987672 | CN145: 0.006035036474 | CO145: 0.003265845201 | CP145: 0.007486763821 | CQ145: 0.001281737236 | CR145: 0.005400650449 | CS145: 0.005506131318 | CT145: 0.008682024299 | CU145: 0.01157168056 | CV145: 0.005148506649 | CW145: 0.0138829024 | CX145: 0.00739858741 | CY145: 0.00739858741 | CZ145: 0.00739858741 | DA145: 0.00739858741 | DB145: 30 | DR145: 0.1 | DS145: 0.1 | EV145: 0
B146: B2 | D146: 0 | E146: 0 | F146: 0 | G146: 0 | H146: 0 | I146: 0 | J146: 0 | K146: 0 | L146: 0 | M146: 0 | N146: 0 | O146: 0 | P146: 0 | Q146: 0 | R146: 0 | S146: 0 | T146: 0 | U146: 0 | V146: 0 | W146: 0 | Y146: 0 | Z146: B2 | AA146: 0 | AB146: 0 | AC146: 0.001 | AD146: 0 | AE146: 0.001 | AF146: 0 | AG146: 0 | AH146: 0 | AI146: 0 | AJ146: 0 | AK146: 0 | AL146: 0 | AM146: 0 | AN146: 0 | AO146: 0 | AP146: 0 | AQ146: 0 | AR146: 0 | AS146: 0 | AT146: 0 | AU146: 0 | AV146: 0 | AW146: 0 | AX146: 0 | AY146: 0 | AZ146: 0 | BA146: 0 | BB146: 0 | BC146: 0 | BD146: 0 | BF146: 0 | BG146: 0 | BH146: 0 | BI146: 0 | BJ146: 0 | BK146: 0 | BL146: 0 | BM146: 0 | BN146: 0 | BO146: 0 | BP146: 0 | BQ146: 0 | BR146: 0 | BS146: 0 | BT146: 0 | BU146: 0 | BV146: 0 | BW146: 0 | BX146: 0 | BY146: 0 | CI146: %I31th | CJ146: 0.01216511008 | CK146: 0.004997577662 | CL146: 0.00412763478 | CM146: 0.005793143174 | CN146: 0.03097499082 | CO146: 0.04911891354 | CP146: 0.02693916326 | CQ146: 0.02063478907 | CR146: 0.01689726867 | CS146: 0.01271899951 | CT146: 0.005898079734 | CU146: 0.007365454323 | CV146: 0.01512027869 | CW146: 0.00760715092 | CX146: 0.01406680629 | CY146: 0.01406680629 | CZ146: 0.01406680629 | DA146: 0.01406680629 | DB146: 31 | DC146: 0.01 | DD146: 0 | DE146: 0 | DF146: 0 | DG146: 0 | DH146: 0 | DI146: 0 | DJ146: 0 | DK146: 0 | DL146: 0 | DM146: 0 | DN146: 0 | DO146: 0 | DP146: 0.01 | DQ146: 0.03 | DR146: 0.1 | DS146: 0.1 | EV146: 0
B147: B3 | D147: 0 | E147: 0 | F147: 0 | G147: 0 | H147: 0 | I147: 0 | J147: 0 | K147: 0 | L147: 0 | M147: 0 | N147: 0 | O147: 0 | P147: 0 | Q147: 0 | R147: 0 | S147: 0 | T147: 0 | U147: 0 | V147: 0 | W147: 0 | Y147: 0 | Z147: B3 | AA147: 0 | AB147: 0 | AC147: 0.001 | AD147: 0 | AE147: 0.001 | AF147: 0 | AG147: 0 | AH147: 0 | AI147: 0 | AJ147: 0 | AK147: 0 | AL147: 0 | AM147: 0 | AN147: 0 | AO147: 0 | AP147: 0 | AQ147: 0 | AR147: 0 | AS147: 0 | AT147: 0 | AU147: 0 | AV147: 0 | AW147: 0 | AX147: 0 | AY147: 0 | AZ147: 0 | BA147: 0 | BB147: 0 | BC147: 0 | BD147: 0 | BF147: 0 | BG147: 0 | BH147: 0 | BI147: 0 | BJ147: 0 | BK147: 0 | BL147: 0 | BM147: 0 | BN147: 0 | BO147: 0 | BP147: 0 | BQ147: 0 | BR147: 0 | BS147: 0 | BT147: 0 | BU147: 0 | BV147: 0 | BW147: 0 | BX147: 0 | BY147: 0 | CI147: %I32th | CJ147: 0.006264700903 | CK147: 0.01110101054 | CL147: 0.008268535487 | CM147: 0.008715093586 | CN147: 0.005681219362 | CO147: 0.003693443624 | CP147: 0.002083663799 | CQ147: 0.003599317396 | CR147: 0.005419115392 | CS147: 0.005288367638 | CT147: 0.003883633021 | CU147: 0.005543831844 | CV147: 0.005175557767 | CW147: 0.001761530361 | CX147: 0.01223222226 | CY147: 0.01223222226 | CZ147: 0.01223222226 | DA147: 0.01223222226 | DB147: 32 | DR147: 0.1 | DS147: 0.1 | EV147: 0
B148: B4 | D148: 0 | E148: 0 | F148: 0 | G148: 0 | H148: 0 | I148: 0 | J148: 0 | K148: 0 | L148: 0 | M148: 0 | N148: 0 | O148: 0 | P148: 0 | Q148: 0 | R148: 0 | S148: 0 | T148: 0 | U148: 0 | V148: 0 | W148: 0 | Y148: 0 | Z148: B4 | AA148: 0 | AB148: 0 | AC148: 0.001 | AD148: 0 | AE148: 0.001 | AF148: 0 | AG148: 0 | AH148: 0 | AI148: 0 | AJ148: 0 | AK148: 0 | AL148: 0 | AM148: 0 | AN148: 0 | AO148: 0 | AP148: 0 | AQ148: 0 | AR148: 0 | AS148: 0 | AT148: 0 | AU148: 0 | AV148: 0 | AW148: 0 | AX148: 0 | AY148: 0 | AZ148: 0 | BA148: 0 | BB148: 0 | BC148: 0 | BD148: 0 | BF148: 0 | BG148: 0 | BH148: 0 | BI148: 0 | BJ148: 0 | BK148: 0 | BL148: 0 | BM148: 0 | BN148: 0 | BO148: 0 | BP148: 0 | BQ148: 0 | BR148: 0 | BS148: 0 | BT148: 0 | BU148: 0 | BV148: 0 | BW148: 0 | BX148: 0 | BY148: 0 | CI148: %I33rd | CJ148: 0.1703073735 | CK148: 0.1573526536 | CL148: 0.1718722951 | CM148: 0.1387855062 | CN148: 0.2318774675 | CO148: 0.2683069103 | CP148: 0.1976999067 | CQ148: 0.15749092 | CR148: 0.1257504976 | CS148: 0.1047029524 | CT148: 0.07825917135 | CU148: 0.06234607439 | CV148: 0.07006010528 | CW148: 0.05151713652 | CX148: 0.03555320899 | CY148: 0.03555320899 | CZ148: 0.03555320899 | DA148: 0.03555320899 | DB148: 33 | DR148: 0.1 | DS148: 0.1 | EV148: 0
B149: B5 | D149: 0 | E149: 0 | F149: 0 | G149: 0 | H149: 0 | I149: 0 | J149: 0 | K149: 0 | L149: 0 | M149: 0 | N149: 0 | O149: 0 | P149: 0 | Q149: 0 | R149: 0 | S149: 0 | T149: 0 | U149: 0 | V149: 0 | W149: 0 | Y149: 0 | Z149: B5 | AA149: 0 | AB149: 0 | AC149: 0.001 | AD149: 0 | AE149: 0.001 | AF149: 0 | AG149: 0 | AH149: 0 | AI149: 0 | AJ149: 0 | AK149: 0 | AL149: 0 | AM149: 0 | AN149: 0 | AO149: 0 | AP149: 0 | AQ149: 0 | AR149: 0 | AS149: 0 | AT149: 0 | AU149: 0 | AV149: 0 | AW149: 0 | AX149: 0 | AY149: 0 | AZ149: 0 | BA149: 0 | BB149: 0 | BC149: 0 | BD149: 0 | BF149: 0 | BG149: 0 | BH149: 0 | BI149: 0 | BJ149: 0 | BK149: 0 | BL149: 0 | BM149: 0 | BN149: 0 | BO149: 0 | BP149: 0 | BQ149: 0 | BR149: 0 | BS149: 0 | BT149: 0 | BU149: 0 | BV149: 0 | BW149: 0 | BX149: 0 | BY149: 0 | CI149: %I35th | CJ149: 3.349475228 | CK149: 1.807264277 | CL149: 1.220390979 | CM149: 1.074907356 | CN149: 0.8967825554 | CO149: 0.7821390456 | CP149: 0.6222572055 | CQ149: 0.5950177275 | CR149: 0.5583242089 | CS149: 0.5188246311 | CT149: 0.4607341786 | CU149: 0.4146679654 | CV149: 0.3963984289 | CW149: 0.3267229253 | CX149: 0.2921175766 | CY149: 0.2921175766 | CZ149: 0.2921175766 | DA149: 0.2921175766 | DB149: 35 | DC149: 1.35 | DD149: 2.17 | DE149: 1.45 | DF149: 0.93 | DG149: 0.67 | DH149: 0.48 | DI149: 0.39 | DJ149: 0.36 | DK149: 0.32 | DL149: 0.3 | DM149: 0.3 | DN149: 0.3 | DO149: 0.3 | DP149: 0.29 | DQ149: 0.26 | DR149: 0.1 | DS149: 0.1 | EV149: 0
B150: B6 | D150: 0 | E150: 0 | F150: 0 | G150: 0 | H150: 0 | I150: 0 | J150: 0 | K150: 0 | L150: 0 | M150: 0 | N150: 0 | O150: 0 | P150: 0 | Q150: 0 | R150: 0 | S150: 0 | T150: 0 | U150: 0 | V150: 0 | W150: 0 | Y150: 0 | Z150: B6 | AA150: 0 | AB150: 0 | AC150: 0.001 | AD150: 0 | AE150: 0.001 | AF150: 0 | AG150: 0 | AH150: 0 | AI150: 0 | AJ150: 0 | AK150: 0 | AL150: 0 | AM150: 0 | AN150: 0 | AO150: 0 | AP150: 0 | AQ150: 0 | AR150: 0 | AS150: 0 | AT150: 0 | AU150: 0 | AV150: 0 | AW150: 0 | AX150: 0 | AY150: 0 | AZ150: 0 | BA150: 0 | BB150: 0 | BC150: 0 | BD150: 0 | BF150: 0 | BG150: 0 | BH150: 0 | BI150: 0 | BJ150: 0 | BK150: 0 | BL150: 0 | BM150: 0 | BN150: 0 | BO150: 0 | BP150: 0 | BQ150: 0 | BR150: 0 | BS150: 0 | BT150: 0 | BU150: 0 | BV150: 0 | BW150: 0 | BX150: 0 | BY150: 0 | CI150: %I37th | CJ150: 3.118915193 | CK150: 1.405652698 | CL150: 0.983998325 | CM150: 0.6209944993 | CN150: 0.45586186 | CO150: 0.3488911739 | CP150: 0.4757368132 | CQ150: 0.4245565206 | CR150: 0.3979592416 | CS150: 0.3731293701 | CT150: 0.3352548933 | CU150: 0.3053045205 | CV150: 0.2938903973 | CW150: 0.2244756977 | CX150: 0.2107532532 | CY150: 0.2107532532 | CZ150: 0.2107532532 | DA150: 0.2107532532 | DB150: 37 | DC150: 1.11 | DD150: 1.37 | DE150: 1.07 | DF150: 0.79 | DG150: 0.61 | DH150: 0.45 | DI150: 0.37 | DJ150: 0.33 | DK150: 0.3 | DL150: 0.27 | DM150: 0.26 | DN150: 0.26 | DO150: 0.26 | DP150: 0.25 | DQ150: 0.23 | DR150: 0.1 | DS150: 0.1 | EV150: 0
B151: B7 | D151: 0 | E151: 0 | F151: 0 | G151: 0 | H151: 0 | I151: 0 | J151: 0 | K151: 0 | L151: 0 | M151: 0 | N151: 0 | O151: 0 | P151: 0 | Q151: 0 | R151: 0 | S151: 0 | T151: 0 | U151: 0 | V151: 0 | W151: 0 | Y151: 0 | Z151: B7 | AA151: 0 | AB151: 0 | AC151: 0.001 | AD151: 0 | AE151: 0.001 | AF151: 0 | AG151: 0 | AH151: 0 | AI151: 0 | AJ151: 0 | AK151: 0 | AL151: 0 | AM151: 0 | AN151: 0 | AO151: 0 | AP151: 0 | AQ151: 0 | AR151: 0 | AS151: 0 | AT151: 0 | AU151: 0 | AV151: 0 | AW151: 0 | AX151: 0 | AY151: 0 | AZ151: 0 | BA151: 0 | BB151: 0 | BC151: 0 | BD151: 0 | BF151: 0 | BG151: 0 | BH151: 0 | BI151: 0 | BJ151: 0 | BK151: 0 | BL151: 0 | BM151: 0 | BN151: 0 | BO151: 0 | BP151: 0 | BQ151: 0 | BR151: 0 | BS151: 0 | BT151: 0 | BU151: 0 | BV151: 0 | BW151: 0 | BX151: 0 | BY151: 0 | CI151: %I39th | CJ151: 0.1010069601 | CK151: 0.1235025329 | CL151: 0.1179217136 | CM151: 0.09718646769 | CN151: 0.1447625804 | CO151: 0.1649185881 | CP151: 0.1542080639 | CQ151: 0.1171655813 | CR151: 0.0961627085 | CS151: 0.08266584377 | CT151: 0.06318358929 | CU151: 0.04848338935 | CV151: 0.03724554677 | CW151: 0.03533411416 | CX151: 0.03049255456 | CY151: 0.03049255456 | CZ151: 0.03049255456 | DA151: 0.03049255456 | DB151: 39 | DR151: 0.1 | DS151: 0.1 | EV151: 0
B152: B8 | D152: 0 | E152: 0 | F152: 0 | G152: 0 | H152: 0 | I152: 0 | J152: 0 | K152: 0 | L152: 0 | M152: 0 | N152: 0 | O152: 0 | P152: 0 | Q152: 0 | R152: 0 | S152: 0 | T152: 0 | U152: 0 | V152: 0 | W152: 0 | Y152: 0 | Z152: B8 | AA152: 0 | AB152: 0 | AC152: 0.001 | AD152: 0 | AE152: 0.001 | AF152: 0 | AG152: 0 | AH152: 0 | AI152: 0 | AJ152: 0 | AK152: 0 | AL152: 0 | AM152: 0 | AN152: 0 | AO152: 0 | AP152: 0 | AQ152: 0 | AR152: 0 | AS152: 0 | AT152: 0 | AU152: 0 | AV152: 0 | AW152: 0 | AX152: 0 | AY152: 0 | AZ152: 0 | BA152: 0 | BB152: 0 | BC152: 0 | BD152: 0 | BF152: 0 | BG152: 0 | BH152: 0 | BI152: 0 | BJ152: 0 | BK152: 0 | BL152: 0 | BM152: 0 | BN152: 0 | BO152: 0 | BP152: 0 | BQ152: 0 | BR152: 0 | BS152: 0 | BT152: 0 | BU152: 0 | BV152: 0 | BW152: 0 | BX152: 0 | BY152: 0 | CI152: %I41th | CJ152: 0.01087504804 | CK152: 0.01134530138 | CL152: 0.01553446221 | CM152: 0.01009083238 | CN152: 0.02278199594 | CO152: 0.03906307818 | CP152: 0.02678778099 | CQ152: 0.01856575519 | CR152: 0.01668415084 | CS152: 0.01194663342 | CT152: 0.008620589699 | CU152: 0.01018196016 | CV152: 0.008259287634 | CW152: 0.005445545074 | CX152: 0.007130193939 | CY152: 0.007130193939 | CZ152: 0.007130193939 | DA152: 0.007130193939 | DB152: 41 | DC152: 0 | DD152: 0 | DE152: 0 | DF152: 0.01 | DG152: 0 | DH152: 0 | DI152: 0 | DJ152: 0 | DK152: 0 | DL152: 0 | DM152: 0 | DN152: 0 | DO152: 0 | DP152: 0.01 | DQ152: 0.01 | DR152: 0.1 | DS152: 0.1 | EV152: 0
B153: B9 | D153: 0 | E153: 0 | F153: 0 | G153: 0 | H153: 0 | I153: 0 | J153: 0 | K153: 0 | L153: 0 | M153: 0 | N153: 0 | O153: 0 | P153: 0 | Q153: 0 | R153: 0 | S153: 0 | T153: 0 | U153: 0 | V153: 0 | W153: 0 | Y153: 0 | Z153: B9 | AA153: 0 | AB153: 0 | AC153: 0.001 | AD153: 0 | AE153: 0.001 | AF153: 0 | AG153: 0 | AH153: 0 | AI153: 0 | AJ153: 0 | AK153: 0 | AL153: 0 | AM153: 0 | AN153: 0 | AO153: 0 | AP153: 0 | AQ153: 0 | AR153: 0 | AS153: 0 | AT153: 0 | AU153: 0 | AV153: 0 | AW153: 0 | AX153: 0 | AY153: 0 | AZ153: 0 | BA153: 0 | BB153: 0 | BC153: 0 | BD153: 0 | BF153: 0 | BG153: 0 | BH153: 0 | BI153: 0 | BJ153: 0 | BK153: 0 | BL153: 0 | BM153: 0 | BN153: 0 | BO153: 0 | BP153: 0 | BQ153: 0 | BR153: 0 | BS153: 0 | BT153: 0 | BU153: 0 | BV153: 0 | BW153: 0 | BX153: 0 | BY153: 0 | CI153: %I43th | CJ153: 0.02907049617 | CK153: 0.002910520406 | CL153: 0.004468233886 | CM153: 0.002755024036 | CN153: 0.005375139155 | CO153: 0.004371640347 | CP153: 0.00204868943 | CQ153: 0.002052326923 | CR153: 0.002270416066 | CS153: 0.002412823593 | CT153: 0.001932542817 | CU153: 0.006508576802 | CV153: 0.007868770628 | CW153: 0.0058108437 | CX153: 0.01753177725 | CY153: 0.01753177725 | CZ153: 0.01753177725 | DA153: 0.01753177725 | DB153: 43 | DC153: 0.01 | DD153: 0 | DE153: 0 | DF153: 0.01 | DG153: 0 | DH153: 0 | DI153: 0 | DJ153: 0 | DK153: 0.01 | DL153: 0 | DM153: 0.01 | DN153: 0 | DO153: 0.01 | DP153: 0.01 | DQ153: 0.01 | DR153: 0.1 | DS153: 0.1 | EV153: 0
B154: B10 | D154: 0 | E154: 0 | F154: 0 | G154: 0 | H154: 0 | I154: 0 | J154: 0 | K154: 0 | L154: 0 | M154: 0 | N154: 0 | O154: 0 | P154: 0 | Q154: 0 | R154: 0 | S154: 0 | T154: 0 | U154: 0 | V154: 0 | W154: 0 | Y154: 0 | Z154: B10 | AA154: 0 | AB154: 0 | AC154: 0.001 | AD154: 0 | AE154: 0.001 | AF154: 0 | AG154: 0 | AH154: 0 | AI154: 0 | AJ154: 0 | AK154: 0 | AL154: 0 | AM154: 0 | AN154: 0 | AO154: 0 | AP154: 0 | AQ154: 0 | AR154: 0 | AS154: 0 | AT154: 0 | AU154: 0 | AV154: 0 | AW154: 0 | AX154: 0 | AY154: 0 | AZ154: 0 | BA154: 0 | BB154: 0 | BC154: 0 | BD154: 0 | BF154: 0 | BG154: 0 | BH154: 0 | BI154: 0 | BJ154: 0 | BK154: 0 | BL154: 0 | BM154: 0 | BN154: 0 | BO154: 0 | BP154: 0 | BQ154: 0 | BR154: 0 | BS154: 0 | BT154: 0 | BU154: 0 | BV154: 0 | BW154: 0 | BX154: 0 | BY154: 0 | CI154: %I45th | CJ154: 0.0409307359 | CK154: 0.003601479235 | CL154: 0.00695766505 | CM154: 0.0002029288627 | CN154: 0.00288618973 | CO154: 0.004120818864 | CP154: 0.001963736182 | CQ154: 0.0008428438837 | CR154: 0.0009281736886 | CS154: 0.002371701321 | CT154: 0.003484401287 | CU154: 0.002092015316 | CV154: 0.006837551647 | CW154: 0.006989852968 | CX154: 0.00642963001 | CY154: 0.00642963001 | CZ154: 0.00642963001 | DA154: 0.00642963001 | DB154: 45 | DR154: 0.1 | DS154: 0.1 | EV154: 0
D155: =+AB135 -> 1 | E155: =+AB136 -> 1 | F155: =+AB137 -> 0 | G155: =+AB138 -> 0 | H155: =+AB139 -> 0 | I155: =+AB140 -> 0 | J155: =+AB141 -> 0 | K155: =+AB142 -> 0 | L155: =+AB143 -> 0 | M155: =+AB144 -> 0 | N155: =+AB145 -> 0 | O155: =+AB146 -> 0 | P155: =+AB147 -> 0 | Q155: =+AB148 -> 0 | R155: =+AB149 -> 0 | S155: =+AB150 -> 0 | T155: =+AB151 -> 0 | U155: =+AB152 -> 0 | V155: =+AB153 -> 0 | W155: =+AB154 -> 0 | Y155: 2 | Z155: 0 | AA155: 0 | AB155: 0 | AC155: 0 | AD155: 0 | AF155: =+$L22*$N22/$K$7 -> 0 | AG155: =+$L23*$N23/$K$7 -> 0 | AH155: =+$L24*$N24/$K$7 -> 0 | AI155: =+$L25*$N25/$K$7 -> 0 | AJ155: =+$L26*$N26/$K$7 -> 0 | AK155: =+$L27*$N27/$K$7 -> 0 | AL155: =+$L28*$N28/$K$7 -> 0 | AM155: =+$L29*$N29/$K$7 -> 0 | AN155: =+$L30*$N30/$K$7 -> 0 | AO155: =+$L31*$N31/$K$7 -> 0 | AP155: =+$L32*$N32/$K$7 -> 0 | AQ155: =+$L33*$N33/$K$7 -> 0 | AR155: =+$L34*$N34/$K$7 -> 0 | AS155: =+$L35*$N35/$K$7 -> 0 | AT155: =+$L36*$N36/$K$7 -> 0 | AU155: =+$L37*$N37/$K$7 -> 0 | AV155: =+$L38*$N38/$K$7 -> 0 | AW155: =+$L39*$N39/$K$7 -> 0 | AX155: =+$L40*$N40/$K$7 -> 0 | AY155: =+$L41*$N41/$K$7 -> 0 | AZ155: =+$L42*$N42/$K$7 -> 0 | BA155: =+$L43*$N43/$K$7 -> 0 | BB155: =+$L44*$N44/$K$7 -> 0 | BC155: =+$L45*$N45/$K$7 -> 0 | BD155: =+$L46*$N46/$K$7 -> 0 | CI155: %I47th | CJ155: 0.04324013249 | CK155: 0.008437884883 | CL155: 0.009204152891 | CM155: 0.0008438833522 | CN155: 0.006618352607 | CO155: 0.01168630844 | CP155: 0.004280449246 | CQ155: 0.001391332599 | CR155: 0.003795154008 | CS155: 0.00133650597 | CT155: 0.001106131435 | CU155: 0.006726374198 | CV155: 0.004891030225 | CW155: 0.00461938957 | CX155: 0.00699890263 | CY155: 0.00699890263 | CZ155: 0.00699890263 | DA155: 0.00699890263 | DB155: 47 | DC155: 0.01 | DD155: 0.01 | DE155: 0 | DF155: 0.01 | DG155: 0 | DH155: 0 | DI155: 0 | DJ155: 0 | DK155: 0.01 | DL155: 0 | DM155: 0.01 | DN155: 0.01 | DO155: 0.01 | DP155: 0.01 | DQ155: 0.02 | DR155: 0.1 | DS155: 0.1 | EV155: 0
AF156: =+HLOOKUP(AF159,$BM$1:$CG$77,77,0) -> 0.01606686464 | AG156: =+HLOOKUP(AG159,$BM$1:$CG$77,77,0) -> 0 | AH156: =+HLOOKUP(AH159,$BM$1:$CG$77,77,0) -> 0 | AI156: =+HLOOKUP(AI159,$BM$1:$CG$77,77,0) -> 0 | AJ156: 0 | AK156: 0 | AL156: 0 | AM156: 0 | AN156: 0 | AO156: 0 | AP156: 0 | AQ156: 0 | AR156: 0 | AS156: 0 | AT156: 0 | AU156: 0 | AV156: 0 | AW156: 0 | AX156: 0 | AY156: 0 | AZ156: 0 | BA156: 0 | BB156: 0 | BC156: 0 | BD156: 0 | CI156: %I49th | CJ156: 0.009177313662 | CK156: 0.006393746313 | CL156: 0.003735942659 | CM156: 0.006536743214 | CN156: 0.03081126042 | CO156: 0.04637850326 | CP156: 0.02610149458 | CQ156: 0.02063424114 | CR156: 0.01672001464 | CS156: 0.01209503817 | CT156: 0.006299909047 | CU156: 0.0031998241 | CV156: 0.02048651813 | CW156: 0.008140491144 | CX156: 0.01681880733 | CY156: 0.01681880733 | CZ156: 0.01681880733 | DA156: 0.01681880733 | DB156: 49 | DC156: 0 | DD156: 0 | DE156: 0 | DF156: 0.01 | DG156: 0 | DH156: 0 | DI156: 0 | DJ156: 0 | DK156: 0.01 | DL156: 0 | DM156: 0 | DN156: 0 | DO156: 0 | DP156: 0.01 | DQ156: 0.01 | DR156: 0.1 | DS156: 0.1 | EV156: 0
B157: fe | D157: =+BN53 -> 0 | E157: utility | F157: 0 | G157: 0 | H157: 0 | I157: 0 | J157: 0 | K157: 0 | L157: 0 | M157: 0 | N157: 0 | O157: 0 | P157: 0 | Q157: 0 | R157: 0 | S157: 0 | T157: 0 | U157: 0 | V157: 0 | W157: 0 | CY157: 0.1 | CZ157: 0.1 | EV157: 0
AE158: Active Filter Harmonic Calcalutor | CH158: 4 | CI158: 5th harmtrap & 5% filter, | DA158: 1 | EV158: 0
B159: HpCalculator | D159: utility | E159: T1 | F159: T2 | G159: T3 | H159: T4 | I159: T5 | J159: T6 | K159: T7 | L159: T8 | M159: T9 | N159: B1 | O159: B2 | P159: B3 | Q159: B4 | R159: B5 | S159: B6 | T159: B7 | U159: B8 | V159: B9 | W159: B10 | AE159: FedFrom | AF159: =+AF53 -> T1 | AG159: 0 | AH159: 0 | AI159: 0 | AJ159: 0 | AK159: 0 | AL159: 0 | AM159: 0 | AN159: 0 | AO159: 0 | AP159: 0 | AQ159: 0 | AR159: 0 | AS159: 0 | AT159: 0 | AU159: 0 | AV159: 0 | AW159: 0 | AX159: 0 | AY159: 0 | AZ159: 0 | BA159: 0 | BB159: 0 | BC159: 0 | BD159: 0 | BO159: =+AG63 -> 0 | CI159: %Zloop | CJ159: 0.1 | CK159: 0.5 | CL159: 1 | CM159: 2 | CN159: 3 | CO159: 4 | CP159: 5 | CQ159: 6 | CR159: 7 | CS159: 8 | CT159: 10 | CU159: 12 | CV159: 14 | CW159: 18 | CX159: 21 | CY159: 100 | CZ159: 1000 | DA159: 10000 | DC159: 0.1 | DD159: 0.5 | DE159: 1 | DF159: 2 | DG159: 3 | DH159: 4 | DI159: 5 | DJ159: 6 | DK159: 7 | DL159: 8 | DM159: 10 | DN159: 12 | DO159: 14 | DP159: 18 | DQ159: 21 | DR159: 100 | DS159: 1000 | EV159: 0
B160: utility | D160: =+IF(BN$53=$B160,D$180,0) -> 0 | E160: =+IF(BO$53=$B160,E$180,0) -> 1 | F160: =+IF(BP$53=$B160,F$180,0) -> 0 | G160: =+IF(BQ$53=$B160,G$180,0) -> 0 | H160: =+IF(BR$53=$B160,H$180,0) -> 0 | I160: =+IF(BS$53=$B160,I$180,0) -> 0 | J160: =+IF(BT$53=$B160,J$180,0) -> 0 | K160: =+IF(BU$53=$B160,K$180,0) -> 0 | L160: =+IF(BV$53=$B160,L$180,0) -> 0 | M160: =+IF(BW$53=$B160,M$180,0) -> 0 | N160: =+IF(BX$53=$B160,N$180,0) -> 0 | O160: =+IF(BY$53=$B160,O$180,0) -> 0 | P160: =+IF(BZ$53=$B160,P$180,0) -> 0 | Q160: =+IF(CA$53=$B160,Q$180,0) -> 0 | R160: =+IF(CB$53=$B160,R$180,0) -> 0 | S160: =+IF(CC$53=$B160,S$180,0) -> 0 | T160: =+IF(CD$53=$B160,T$180,0) -> 0 | U160: =+IF(CE$53=$B160,U$180,0) -> 0 | V160: =+IF(CF$53=$B160,V$180,0) -> 0 | W160: =+IF(CG$53=$B160,W$180,0) -> 0 | AE160: HPff | AF160: =+HLOOKUP(AF159,BF1:BY65,56,0) -> 1 | AG160: 0 | AH160: 0 | AI160: 0 | AJ160: 0 | AK160: 0 | AL160: 0 | AM160: 0 | AO160: =+HLOOKUP(AO159,BO1:CH70,56,0) -> 0 | AP160: 0 | AQ160: 0 | AR160: 0 | AS160: 0 | AT160: 0 | AU160: 0 | AV160: 0 | AW160: 0 | AX160: 0 | AY160: 0 | AZ160: 0 | BA160: 0 | BB160: 0 | BC160: 0 | BD160: 0 | BK160: 150 | BM160: af/bd107 | BN160: =+AF107 -> 1 | BO160: =+AF108 -> 1 | BP160: =+AF109 -> 0 | BQ160: =+AF110 -> 0 | CI160: Kfactor | CJ160: =+(10000+SUMPRODUCT(CJ169:CJ208,$DB169:$DB208,CJ169:CJ208,$DB169:$DB208))/10000/CJ162^2 -> 2.781489248 | CK160: 2.652152536 | CL160: 2.407530778 | CM160: 2.12232329 | CN160: 1.935982664 | CO160: 1.795061886 | CP160: 1.665626294 | CQ160: 1.572539351 | CR160: 1.501536161 | CS160: 1.448056752 | CT160: 1.355526374 | CU160: 1.289855018 | CV160: 1.242609154 | CW160: 1.172981566 | CX160: 1.140751676 | CY160: 1.140751676 | CZ160: 1.140751676 | DA160: 1.140751676 | EV160: 0
B161: T1 | D161: 0 | E161: 0 | F161: 0 | G161: 0 | H161: 0 | I161: 0 | J161: 0 | K161: 0 | L161: 0 | M161: 0 | N161: 0 | O161: 0 | P161: 0 | Q161: 0 | R161: 0 | S161: 0 | T161: 0 | U161: 0 | V161: 0 | W161: 0 | AE161: Harm | AF161: =+IF(AF54=8,AF55,0) -> 0 | AG161: 0 | AH161: 0 | AI161: 0 | AJ161: 0 | AK161: 0 | AL161: 0 | AM161: 0 | AN161: 0 | AO161: 0 | AP161: 0 | AQ161: 0 | AR161: 0 | AS161: 0 | AT161: 0 | AU161: 0 | AV161: 0 | AW161: 0 | AX161: 0 | AY161: 0 | AZ161: 0 | BA161: 0 | BB161: 0 | BC161: 0 | BD161: 0 | BN161: =+BN63 -> 1.002 | BO161: =+BO63 -> 1.001 | BP161: 0.001 | BQ161: 0.001 | BR161: 0.001 | BS161: 0.001 | BT161: 0.001 | BU161: 0.001 | BV161: 0.001 | BW161: 0.001 | BX161: 0.001 | BY161: 0.001 | BZ161: 0.001 | CA161: 0.001 | CB161: 0.001 | CC161: 0.001 | CD161: 0.001 | CE161: 0.001 | CF161: 0.001 | CG161: 0.001 | CI161: %Ithd | CJ161: =+SQRT(SUMSQ(CJ169:CJ208)) -> 18.85079381 | CK161: 18.10149494 | CL161: 16.41780124 | CM161: 14.49366983 | CN161: 13.03676841 | CO161: 11.7183345 | CP161: 10.58496127 | CQ161: 9.719132873 | CR161: 9.031978912 | CS161: 8.400340526 | CT161: 7.429959873 | CU161: 6.578143166 | CV161: 5.904396508 | CW161: 4.923188426 | CX161: 4.370694722 | CY161: 4.370694722 | CZ161: 4.370694722 | DA161: 4.370694722 | EV161: 0
B162: T2 | D162: 0 | E162: 0 | F162: 0 | G162: 0 | H162: 0 | I162: 0 | J162: 0 | K162: 0 | L162: 0 | M162: 0 | N162: 0 | O162: 0 | P162: 0 | Q162: 0 | R162: 0 | S162: 0 | T162: 0 | U162: 0 | V162: 0 | W162: 0 | AE162: Mult | AF162: =-$CL366*MIN(AF155,IF(AF54=8,AF156,0))/(AF156+0.001)*$N$8/AF56 -> 0 | AG162: =-$CL366*MIN(AG155,IF(AG54=8,AG156,0))/(AG156+0.001)*$N$8/(AG56+0.001) -> 0 | AH162: =-$CL366*MIN(AH155,IF(AH54=8,AH156,0))/(AH156+0.001)*$N$8/(AH56+0.001) -> 0 | AI162: 0 | AJ162: 0 | AK162: 0 | AL162: 0 | AM162: 0 | AN162: 0 | AO162: 0 | AP162: 0 | AQ162: 0 | AR162: 0 | AS162: 0 | AT162: 0 | AU162: 0 | AV162: 0 | AW162: 0 | AX162: 0 | AY162: 0 | AZ162: 0 | BA162: 0 | BB162: 0 | BC162: 0 | BD162: 0 | BI162: pcc | BM162: 0 | BN162: =+BN1 -> utility | BO162: t1 | BP162: t2 | BQ162: t3 | BR162: t4 | BS162: t5 | BT162: t6 | BU162: t7 | BV162: t8 | BW162: t9 | BX162: b1 | BY162: b2 | BZ162: b3 | CA162: b4 | CB162: b5 | CC162: b6 | CD162: b7 | CE162: b8 | CF162: b9 | CG162: b10 | CI162: Irms/If | CJ162: =+SQRT(1+(CJ161/100)^2) -> 1.017612521 | CK162: 1.016251156 | CL162: 1.013387596 | CM162: 1.010448735 | CN162: 1.008462063 | CO162: 1.006842558 | CP162: 1.005586466 | CQ162: 1.004711976 | CR162: 1.004070547 | CS162: 1.003522084 | CT162: 1.002756416 | CU162: 1.002161263 | CV162: 1.001741578 | CW162: 1.001211156 | CX162: 1.000954693 | CY162: 1.000954693 | CZ162: 1.000954693 | DA162: 1.000954693 | EV162: 0
B163: T3 | D163: 0 | E163: 0 | F163: 0 | G163: 0 | H163: 0 | I163: 0 | J163: 0 | K163: 0 | L163: 0 | M163: 0 | N163: 0 | O163: 0 | P163: 0 | Q163: 0 | R163: 0 | S163: 0 | T163: 0 | U163: 0 | V163: 0 | W163: 0 | AB163: =++CL366 -> 0.95 | AE163: 2 | AF163: =+AF$162*HLOOKUP(AF$159,$BM$1:$CG$53,1+$AE163,0) -> 0 | AG163: 0 | AH163: 0 | AI163: 0 | AJ163: 0 | AK163: 0 | AL163: 0 | AM163: 0 | AN163: 0 | AO163: 0 | AP163: =+AP$162*HLOOKUP(AP$159,$BM$1:$CG$53,1+$AE163,0) -> 0 | AQ163: 0 | AR163: 0 | AS163: 0 | AT163: 0 | AU163: 0 | AV163: 0 | AW163: 0 | AX163: 0 | AY163: 0 | AZ163: 0 | BA163: 0 | BB163: 0 | BC163: 0 | BD163: 0 | BI163: =+HLOOKUP($D$9,$BM$1:$CG$51,$BL163+1,0) -> 0.01077671423 | BJ163: =+Z3 -> 3.778380708e-08 | BK163: =$BL163/130*($BJ$80*HLOOKUP($BK$80,$BM$162:$CG$211,$BL163,0)+$BJ$81*HLOOKUP($BK$81,$BM$162:$CG$211,$BL163,0)+$BJ$82*HLOOKUP($BK$82,$BM$162:$CG$211,$BL163,0)+$BJ$83*HLOOKUP($BK$83,$BM$162:$CG$211,$BL163,0)+$BJ$84*HLOOKUP($BK$84,$BM$162:$CG$211,$BL163,0)+$BJ$85*HLOOKUP($BK$85,$BM$162:$CG$211,$BL163,0)+$BJ$86*HLOOKUP($BK$86,$BM$162:$CG$211,$BL163,0)+$BJ$87*HLOOKUP($BK$87,$BM$162:$CG$211,$BL163,0)+$BJ$88*HLOOKUP($BK$88,$BM$162:$CG$211,$BL163,0)+$BJ$89*HLOOKUP($BK$89,$BM$162:$CG$211,$BL163,0)+$BJ$90*HLOOKUP($BK$90,$BM$162:$CG$211,$BL163,0)+$BJ$91*HLOOKUP($BK$91,$BM$162:$CG$211,$BL163,0)+$BJ$92*HLOOKUP($BK$92,$BM$162:$CG$211,$BL163,0)+$BJ$93*HLOOKUP($BK$93,$BM$162:$CG$211,$BL163,0)+$BJ$94*HLOOKUP($BK$94,$BM$162:$CG$211,$BL163,0)+$BJ$95*HLOOKUP($BK$95,$BM$162:$CG$211,$BL163,0)+$BJ$96*HLOOKUP($BK$96,$BM$162:$CG$211,$BL163,0)+$BJ$97*HLOOKUP($BK$97,$BM$162:$CG$211,$BL163,0)+$BJ$98*HLOOKUP($BK$98,$BM$162:$CG$211,$BL163,0)+$BJ$99*HLOOKUP($BK$99,$BM$162:$CG$211,$BL163,0)+$BJ$100*HLOOKUP($BK$100,$BM$162:$CG$211,$BL163,0)) -> 0 | BL163: 2 | BN163: =($AF163*$AF$61*$AF$107+$AG163*$AG$61*$AG$107+$AH163*$AH$61*$AH$107+$AI163*$AI$61*$AI$107+$AJ163*$AJ$61*$AJ$107+$AK163*$AK$61*$AK$107+$AL163*$AL$61*$AL$107+$AM163*$AM$61*$AM$107+$AN163*$AN$61*$AN$107+$AO163*$AO$61*$AO$107+$AP163*$AP$61*$AP$107+$AQ163*$AQ$61*$AQ$107+$AR163*$AR$61*$AR$107+$AS163*$AS$61*$AS$107+$AT163*$AT$61*$AT$107+$AU163*$AU$61*$AU$107+$AV163*$AV$61*$AV$107+$AW163*$AW$61*$AW$107+$AX163*$AX$61*$AX$107+$AY163*$AY$61*$AY$107+$AZ163*$AZ$61*$AZ$107+$BA163*$BA$61*$BA$107+$BB163*$BB$61*$BB$107+$BC163*$BC$61*$BC$107+$BD163*$BD$61*$BD$107)/BN$63 -> 0 | BO163: =($AF163*$AF$61*$AF$108+$AG163*$AG$61*$AG$108+$AH163*$AH$61*$AH$108+$AI163*$AI$61*$AI$108+$AJ163*$AJ$61*$AJ$108+$AK163*$AK$61*$AK$108+$AL163*$AL$61*$AL$108+$AM163*$AM$61*$AM$108+$AN163*$AN$61*$AN$108+$AO163*$AO$61*$AO$108+$AP163*$AP$61*$AP$108+$AQ163*$AQ$61*$AQ$108+$AR163*$AR$61*$AR$108+$AS163*$AS$61*$AS$108+$AT163*$AT$61*$AT$108+$AU163*$AU$61*$AU$108+$AV163*$AV$61*$AV$108+$AW163*$AW$61*$AW$108+$AX163*$AX$61*$AX$108+$AY163*$AY$61*$AY$108+$AZ163*$AZ$61*$AZ$108+$BA163*$BA$61*$BA$108+$BB163*$BB$61*$BB$108+$BC163*$BC$61*$BC$108+$BD163*$BD$61*$BD$108)/BO$63 -> 0 | BP163: =($AF163*$AF$61*$AF$109+$AG163*$AG$61*$AG$109+$AH163*$AH$61*$AH$109+$AI163*$AI$61*$AI$109+$AJ163*$AJ$61*$AJ$109+$AK163*$AK$61*$AK$109+$AL163*$AL$61*$AL$109+$AM163*$AM$61*$AM$109+$AN163*$AN$61*$AN$109+$AO163*$AO$61*$AO$109+$AP163*$AP$61*$AP$109+$AQ163*$AQ$61*$AQ$109+$AR163*$AR$61*$AR$109+$AS163*$AS$61*$AS$109+$AT163*$AT$61*$AT$109+$AU163*$AU$61*$AU$109+$AV163*$AV$61*$AV$109+$AW163*$AW$61*$AW$109+$AX163*$AX$61*$AX$109+$AY163*$AY$61*$AY$109+$AZ163*$AZ$61*$AZ$109+$BA163*$BA$61*$BA$109+$BB163*$BB$61*$BB$109+$BC163*$BC$61*$BC$109+$BD163*$BD$61*$BD$109)/BP$63 -> 0 | BQ163: =($AF163*$AF$61*$AF$110+$AG163*$AG$61*$AG$110+$AH163*$AH$61*$AH$110+$AI163*$AI$61*$AI$110+$AJ163*$AJ$61*$AJ$110+$AK163*$AK$61*$AK$110+$AL163*$AL$61*$AL$110+$AM163*$AM$61*$AM$110+$AN163*$AN$61*$AN$110+$AO163*$AO$61*$AO$110+$AP163*$AP$61*$AP$110+$AQ163*$AQ$61*$AQ$110+$AR163*$AR$61*$AR$110+$AS163*$AS$61*$AS$110+$AT163*$AT$61*$AT$110+$AU163*$AU$61*$AU$110+$AV163*$AV$61*$AV$110+$AW163*$AW$61*$AW$110+$AX163*$AX$61*$AX$110+$AY163*$AY$61*$AY$110+$AZ163*$AZ$61*$AZ$110+$BA163*$BA$61*$BA$110+$BB163*$BB$61*$BB$110+$BC163*$BC$61*$BC$110+$BD163*$BD$61*$BD$110)/BQ$63 -> 0 | BR163: =($AF163*$AF$61*$AF$111+$AG163*$AG$61*$AG$111+$AH163*$AH$61*$AH$111+$AI163*$AI$61*$AI$111+$AJ163*$AJ$61*$AJ$111+$AK163*$AK$61*$AK$111+$AL163*$AL$61*$AL$111+$AM163*$AM$61*$AM$111+$AN163*$AN$61*$AN$111+$AO163*$AO$61*$AO$111+$AP163*$AP$61*$AP$111+$AQ163*$AQ$61*$AQ$111+$AR163*$AR$61*$AR$111+$AS163*$AS$61*$AS$111+$AT163*$AT$61*$AT$111+$AU163*$AU$61*$AU$111+$AV163*$AV$61*$AV$111+$AW163*$AW$61*$AW$111+$AX163*$AX$61*$AX$111+$AY163*$AY$61*$AY$111+$AZ163*$AZ$61*$AZ$111+$BA163*$BA$61*$BA$111+$BB163*$BB$61*$BB$111+$BC163*$BC$61*$BC$111+$BD163*$BD$61*$BD$111)/BR$63 -> 0 | BS163: =($AF163*$AF$61*$AF$112+$AG163*$AG$61*$AG$112+$AH163*$AH$61*$AH$112+$AI163*$AI$61*$AI$112+$AJ163*$AJ$61*$AJ$112+$AK163*$AK$61*$AK$112+$AL163*$AL$61*$AL$112+$AM163*$AM$61*$AM$112+$AN163*$AN$61*$AN$112+$AO163*$AO$61*$AO$112+$AP163*$AP$61*$AP$112+$AQ163*$AQ$61*$AQ$112+$AR163*$AR$61*$AR$112+$AS163*$AS$61*$AS$112+$AT163*$AT$61*$AT$112+$AU163*$AU$61*$AU$112+$AV163*$AV$61*$AV$112+$AW163*$AW$61*$AW$112+$AX163*$AX$61*$AX$112+$AY163*$AY$61*$AY$112+$AZ163*$AZ$61*$AZ$112+$BA163*$BA$61*$BA$112+$BB163*$BB$61*$BB$112+$BC163*$BC$61*$BC$112+$BD163*$BD$61*$BD$112)/BS$63 -> 0 | BT163: =($AF163*$AF$61*$AF$113+$AG163*$AG$61*$AG$113+$AH163*$AH$61*$AH$113+$AI163*$AI$61*$AI$113+$AJ163*$AJ$61*$AJ$113+$AK163*$AK$61*$AK$113+$AL163*$AL$61*$AL$113+$AM163*$AM$61*$AM$113+$AN163*$AN$61*$AN$113+$AO163*$AO$61*$AO$113+$AP163*$AP$61*$AP$113+$AQ163*$AQ$61*$AQ$113+$AR163*$AR$61*$AR$113+$AS163*$AS$61*$AS$113+$AT163*$AT$61*$AT$113+$AU163*$AU$61*$AU$113+$AV163*$AV$61*$AV$113+$AW163*$AW$61*$AW$113+$AX163*$AX$61*$AX$113+$AY163*$AY$61*$AY$113+$AZ163*$AZ$61*$AZ$113+$BA163*$BA$61*$BA$113+$BB163*$BB$61*$BB$113+$BC163*$BC$61*$BC$113+$BD163*$BD$61*$BD$113)/BT$63 -> 0 | BU163: =($AF163*$AF$61*$AF$114+$AG163*$AG$61*$AG$114+$AH163*$AH$61*$AH$114+$AI163*$AI$61*$AI$114+$AJ163*$AJ$61*$AJ$114+$AK163*$AK$61*$AK$114+$AL163*$AL$61*$AL$114+$AM163*$AM$61*$AM$114+$AN163*$AN$61*$AN$114+$AO163*$AO$61*$AO$114+$AP163*$AP$61*$AP$114+$AQ163*$AQ$61*$AQ$114+$AR163*$AR$61*$AR$114+$AS163*$AS$61*$AS$114+$AT163*$AT$61*$AT$114+$AU163*$AU$61*$AU$114+$AV163*$AV$61*$AV$114+$AW163*$AW$61*$AW$114+$AX163*$AX$61*$AX$114+$AY163*$AY$61*$AY$114+$AZ163*$AZ$61*$AZ$114+$BA163*$BA$61*$BA$114+$BB163*$BB$61*$BB$114+$BC163*$BC$61*$BC$114+$BD163*$BD$61*$BD$114)/BU$63 -> 0 | BV163: =($AF163*$AF$61*$AF$115+$AG163*$AG$61*$AG$115+$AH163*$AH$61*$AH$115+$AI163*$AI$61*$AI$115+$AJ163*$AJ$61*$AJ$115+$AK163*$AK$61*$AK$115+$AL163*$AL$61*$AL$115+$AM163*$AM$61*$AM$115+$AN163*$AN$61*$AN$115+$AO163*$AO$61*$AO$115+$AP163*$AP$61*$AP$115+$AQ163*$AQ$61*$AQ$115+$AR163*$AR$61*$AR$115+$AS163*$AS$61*$AS$115+$AT163*$AT$61*$AT$115+$AU163*$AU$61*$AU$115+$AV163*$AV$61*$AV$115+$AW163*$AW$61*$AW$115+$AX163*$AX$61*$AX$115+$AY163*$AY$61*$AY$115+$AZ163*$AZ$61*$AZ$115+$BA163*$BA$61*$BA$115+$BB163*$BB$61*$BB$115+$BC163*$BC$61*$BC$115+$BD163*$BD$61*$BD$115)/BV$63 -> 0 | BW163: =($AF163*$AF$61*$AF$116+$AG163*$AG$61*$AG$116+$AH163*$AH$61*$AH$116+$AI163*$AI$61*$AI$116+$AJ163*$AJ$61*$AJ$116+$AK163*$AK$61*$AK$116+$AL163*$AL$61*$AL$116+$AM163*$AM$61*$AM$116+$AN163*$AN$61*$AN$116+$AO163*$AO$61*$AO$116+$AP163*$AP$61*$AP$116+$AQ163*$AQ$61*$AQ$116+$AR163*$AR$61*$AR$116+$AS163*$AS$61*$AS$116+$AT163*$AT$61*$AT$116+$AU163*$AU$61*$AU$116+$AV163*$AV$61*$AV$116+$AW163*$AW$61*$AW$116+$AX163*$AX$61*$AX$116+$AY163*$AY$61*$AY$116+$AZ163*$AZ$61*$AZ$116+$BA163*$BA$61*$BA$116+$BB163*$BB$61*$BB$116+$BC163*$BC$61*$BC$116+$BD163*$BD$61*$BD$116)/BW$63 -> 0 | BX163: =($AF163*$AF$61*$AF$117+$AG163*$AG$61*$AG$117+$AH163*$AH$61*$AH$117+$AI163*$AI$61*$AI$117+$AJ163*$AJ$61*$AJ$117+$AK163*$AK$61*$AK$117+$AL163*$AL$61*$AL$117+$AM163*$AM$61*$AM$117+$AN163*$AN$61*$AN$117+$AO163*$AO$61*$AO$117+$AP163*$AP$61*$AP$117+$AQ163*$AQ$61*$AQ$117+$AR163*$AR$61*$AR$117+$AS163*$AS$61*$AS$117+$AT163*$AT$61*$AT$117+$AU163*$AU$61*$AU$117+$AV163*$AV$61*$AV$117+$AW163*$AW$61*$AW$117+$AX163*$AX$61*$AX$117+$AY163*$AY$61*$AY$117+$AZ163*$AZ$61*$AZ$117+$BA163*$BA$61*$BA$117+$BB163*$BB$61*$BB$117+$BC163*$BC$61*$BC$117+$BD163*$BD$61*$BD$117)/BX$63 -> 0 | BY163: =($AF163*$AF$61*$AF$118+$AG163*$AG$61*$AG$118+$AH163*$AH$61*$AH$118+$AI163*$AI$61*$AI$118+$AJ163*$AJ$61*$AJ$118+$AK163*$AK$61*$AK$118+$AL163*$AL$61*$AL$118+$AM163*$AM$61*$AM$118+$AN163*$AN$61*$AN$118+$AO163*$AO$61*$AO$118+$AP163*$AP$61*$AP$118+$AQ163*$AQ$61*$AQ$118+$AR163*$AR$61*$AR$118+$AS163*$AS$61*$AS$118+$AT163*$AT$61*$AT$118+$AU163*$AU$61*$AU$118+$AV163*$AV$61*$AV$118+$AW163*$AW$61*$AW$118+$AX163*$AX$61*$AX$118+$AY163*$AY$61*$AY$118+$AZ163*$AZ$61*$AZ$118+$BA163*$BA$61*$BA$118+$BB163*$BB$61*$BB$118+$BC163*$BC$61*$BC$118+$BD163*$BD$61*$BD$118)/BY$63 -> 0 | BZ163: =($AF163*$AF$61*$AF$119+$AG163*$AG$61*$AG$119+$AH163*$AH$61*$AH$119+$AI163*$AI$61*$AI$119+$AJ163*$AJ$61*$AJ$119+$AK163*$AK$61*$AK$119+$AL163*$AL$61*$AL$119+$AM163*$AM$61*$AM$119+$AN163*$AN$61*$AN$119+$AO163*$AO$61*$AO$119+$AP163*$AP$61*$AP$119+$AQ163*$AQ$61*$AQ$119+$AR163*$AR$61*$AR$119+$AS163*$AS$61*$AS$119+$AT163*$AT$61*$AT$119+$AU163*$AU$61*$AU$119+$AV163*$AV$61*$AV$119+$AW163*$AW$61*$AW$119+$AX163*$AX$61*$AX$119+$AY163*$AY$61*$AY$119+$AZ163*$AZ$61*$AZ$119+$BA163*$BA$61*$BA$119+$BB163*$BB$61*$BB$119+$BC163*$BC$61*$BC$119+$BD163*$BD$61*$BD$119)/BZ$63 -> 0 | CA163: =($AF163*$AF$61*$AF$120+$AG163*$AG$61*$AG$120+$AH163*$AH$61*$AH$120+$AI163*$AI$61*$AI$120+$AJ163*$AJ$61*$AJ$120+$AK163*$AK$61*$AK$120+$AL163*$AL$61*$AL$120+$AM163*$AM$61*$AM$120+$AN163*$AN$61*$AN$120+$AO163*$AO$61*$AO$120+$AP163*$AP$61*$AP$120+$AQ163*$AQ$61*$AQ$120+$AR163*$AR$61*$AR$120+$AS163*$AS$61*$AS$120+$AT163*$AT$61*$AT$120+$AU163*$AU$61*$AU$120+$AV163*$AV$61*$AV$120+$AW163*$AW$61*$AW$120+$AX163*$AX$61*$AX$120+$AY163*$AY$61*$AY$120+$AZ163*$AZ$61*$AZ$120+$BA163*$BA$61*$BA$120+$BB163*$BB$61*$BB$120+$BC163*$BC$61*$BC$120+$BD163*$BD$61*$BD$120)/CA$63 -> 0 | CB163: =($AF163*$AF$61*$AF$121+$AG163*$AG$61*$AG$121+$AH163*$AH$61*$AH$121+$AI163*$AI$61*$AI$121+$AJ163*$AJ$61*$AJ$121+$AK163*$AK$61*$AK$121+$AL163*$AL$61*$AL$121+$AM163*$AM$61*$AM$121+$AN163*$AN$61*$AN$121+$AO163*$AO$61*$AO$121+$AP163*$AP$61*$AP$121+$AQ163*$AQ$61*$AQ$121+$AR163*$AR$61*$AR$121+$AS163*$AS$61*$AS$121+$AT163*$AT$61*$AT$121+$AU163*$AU$61*$AU$121+$AV163*$AV$61*$AV$121+$AW163*$AW$61*$AW$121+$AX163*$AX$61*$AX$121+$AY163*$AY$61*$AY$121+$AZ163*$AZ$61*$AZ$121+$BA163*$BA$61*$BA$121+$BB163*$BB$61*$BB$121+$BC163*$BC$61*$BC$121+$BD163*$BD$61*$BD$121)/CB$63 -> 0 | CC163: =($AF163*$AF$61*$AF$122+$AG163*$AG$61*$AG$122+$AH163*$AH$61*$AH$122+$AI163*$AI$61*$AI$122+$AJ163*$AJ$61*$AJ$122+$AK163*$AK$61*$AK$122+$AL163*$AL$61*$AL$122+$AM163*$AM$61*$AM$122+$AN163*$AN$61*$AN$122+$AO163*$AO$61*$AO$122+$AP163*$AP$61*$AP$122+$AQ163*$AQ$61*$AQ$122+$AR163*$AR$61*$AR$122+$AS163*$AS$61*$AS$122+$AT163*$AT$61*$AT$122+$AU163*$AU$61*$AU$122+$AV163*$AV$61*$AV$122+$AW163*$AW$61*$AW$122+$AX163*$AX$61*$AX$122+$AY163*$AY$61*$AY$122+$AZ163*$AZ$61*$AZ$122+$BA163*$BA$61*$BA$122+$BB163*$BB$61*$BB$122+$BC163*$BC$61*$BC$122+$BD163*$BD$61*$BD$122)/CC$63 -> 0 | CD163: =($AF163*$AF$61*$AF$123+$AG163*$AG$61*$AG$123+$AH163*$AH$61*$AH$123+$AI163*$AI$61*$AI$123+$AJ163*$AJ$61*$AJ$123+$AK163*$AK$61*$AK$123+$AL163*$AL$61*$AL$123+$AM163*$AM$61*$AM$123+$AN163*$AN$61*$AN$123+$AO163*$AO$61*$AO$123+$AP163*$AP$61*$AP$123+$AQ163*$AQ$61*$AQ$123+$AR163*$AR$61*$AR$123+$AS163*$AS$61*$AS$123+$AT163*$AT$61*$AT$123+$AU163*$AU$61*$AU$123+$AV163*$AV$61*$AV$123+$AW163*$AW$61*$AW$123+$AX163*$AX$61*$AX$123+$AY163*$AY$61*$AY$123+$AZ163*$AZ$61*$AZ$123+$BA163*$BA$61*$BA$123+$BB163*$BB$61*$BB$123+$BC163*$BC$61*$BC$123+$BD163*$BD$61*$BD$123)/CD$63 -> 0 | CE163: =($AF163*$AF$61*$AF$124+$AG163*$AG$61*$AG$124+$AH163*$AH$61*$AH$124+$AI163*$AI$61*$AI$124+$AJ163*$AJ$61*$AJ$124+$AK163*$AK$61*$AK$124+$AL163*$AL$61*$AL$124+$AM163*$AM$61*$AM$124+$AN163*$AN$61*$AN$124+$AO163*$AO$61*$AO$124+$AP163*$AP$61*$AP$124+$AQ163*$AQ$61*$AQ$124+$AR163*$AR$61*$AR$124+$AS163*$AS$61*$AS$124+$AT163*$AT$61*$AT$124+$AU163*$AU$61*$AU$124+$AV163*$AV$61*$AV$124+$AW163*$AW$61*$AW$124+$AX163*$AX$61*$AX$124+$AY163*$AY$61*$AY$124+$AZ163*$AZ$61*$AZ$124+$BA163*$BA$61*$BA$124+$BB163*$BB$61*$BB$124+$BC163*$BC$61*$BC$124+$BD163*$BD$61*$BD$124)/CE$63 -> 0 | CF163: =($AF163*$AF$61*$AF$125+$AG163*$AG$61*$AG$125+$AH163*$AH$61*$AH$125+$AI163*$AI$61*$AI$125+$AJ163*$AJ$61*$AJ$125+$AK163*$AK$61*$AK$125+$AL163*$AL$61*$AL$125+$AM163*$AM$61*$AM$125+$AN163*$AN$61*$AN$125+$AO163*$AO$61*$AO$125+$AP163*$AP$61*$AP$125+$AQ163*$AQ$61*$AQ$125+$AR163*$AR$61*$AR$125+$AS163*$AS$61*$AS$125+$AT163*$AT$61*$AT$125+$AU163*$AU$61*$AU$125+$AV163*$AV$61*$AV$125+$AW163*$AW$61*$AW$125+$AX163*$AX$61*$AX$125+$AY163*$AY$61*$AY$125+$AZ163*$AZ$61*$AZ$125+$BA163*$BA$61*$BA$125+$BB163*$BB$61*$BB$125+$BC163*$BC$61*$BC$125+$BD163*$BD$61*$BD$125)/CF$63 -> 0 | CG163: =($AF163*$AF$61*$AF$126+$AG163*$AG$61*$AG$126+$AH163*$AH$61*$AH$126+$AI163*$AI$61*$AI$126+$AJ163*$AJ$61*$AJ$126+$AK163*$AK$61*$AK$126+$AL163*$AL$61*$AL$126+$AM163*$AM$61*$AM$126+$AN163*$AN$61*$AN$126+$AO163*$AO$61*$AO$126+$AP163*$AP$61*$AP$126+$AQ163*$AQ$61*$AQ$126+$AR163*$AR$61*$AR$126+$AS163*$AS$61*$AS$126+$AT163*$AT$61*$AT$126+$AU163*$AU$61*$AU$126+$AV163*$AV$61*$AV$126+$AW163*$AW$61*$AW$126+$AX163*$AX$61*$AX$126+$AY163*$AY$61*$AY$126+$AZ163*$AZ$61*$AZ$126+$BA163*$BA$61*$BA$126+$BB163*$BB$61*$BB$126+$BC163*$BC$61*$BC$126+$BD163*$BD$61*$BD$126)/CG$63 -> 0 | CI163: Ih/If | CJ163: =+CJ161/100 -> 0.1885079381 | CK163: 0.1810149494 | CL163: 0.1641780124 | CM163: 0.1449366983 | CN163: 0.1303676841 | CO163: 0.117183345 | CP163: 0.1058496127 | CQ163: 0.09719132873 | CR163: 0.09031978912 | CS163: 0.08400340526 | CT163: 0.07429959873 | CU163: 0.06578143166 | CV163: 0.05904396508 | CW163: 0.04923188426 | CX163: 0.04370694722 | CY163: 0.04370694722 | CZ163: 0.04370694722 | DA163: 0.04370694722 | EV163: 0
